Workbook

Sheet Deckblatt

Sheet Impressum
A4: Impressum
A8: Produktlinie/Reihe: | C8: Tabellen
A10: Titel: | C10: Revision der Beschäftigungsstatistik 2017
A12: Region: | C12: Deutschland, Länder, Regionaldirektionen und Agenturen für Arbeit (Arbeitsort)
A14: Erstellungsdatum: | C14: 2018-01-03
A16: Hinweise:
A18: Herausgeberin: | C18: Bundesagentur für Arbeit
C19: Statistik
A21: Rückfragen an: | C21: Zentraler Statistik-Service
C22: Regensburger Straße 104
C23: 90478 Nürnberg
A24: E-Mail: | C24: Zentraler-Statistik-Service@arbeitsagentur.de
A25: Hotline: | C25: 0911/179-3632
A26: Fax: | C26: 0911/179-1131
A30: Weiterführende statistische Informationen
A32: Internet: | C32: http://statistik.arbeitsagentur.de
C33: Register: "Statistik nach Themen"
C34: http://statistik.arbeitsagentur.de/Navigation/Statistik/Statistik-nach-Themen/Statistik-nach-Themen-Nav.html
A36: Zitierhinweis: | C36: Statistik der Bundesagentur für Arbeit, Revision der Beschäftigungsstatistik 2017, Januar 2018
A39: Nutzungsbedingungen: | C39: © Statistik der Bundesagentur für Arbeit
C40: Sie können Informationen speichern, (auch auszugsweise) mit Quellen-
C41: angabe weitergeben, vervielfältigen und verbreiten. Die Inhalte dürfen
C42: nicht verändert oder verfälscht werden. Eigene Berechnungen sind
C43: erlaubt, jedoch als solche kenntlich zu machen.
C44: Im Falle einer Zugänglichmachung im Internet soll dies in Form einer
C45: Verlinkung auf die Homepage der Statistik der Bundesagentur für Arbeit
C46: erfolgen.
C47: Die Nutzung der Inhalte für gewerbliche Zwecke, ausgenommen Presse,
C48: Rundfunk und Fernsehen und wissenschaftliche Publikationen, bedarf
C49: der Genehmigung durch die Statistik der Bundesagentur für Arbeit.

Sheet Inhaltsverzeichnis
A4: Revision der Beschäftigungsstatistik 2017
A8: Methodische Hinweise zur Revision 2017 | C8: Hinweise
A11: Vergleich der Daten vor und nach der Revision - Stichtag 30.06.2016 Beschäftigte, sozialversicherungspflichtig Beschäftigte und geringfügig Beschäftigte
A13: Sozialversicherungspflichtig Beschäftigte und geringfügig Beschäftigte nach ausgewählten Merkmalen - absolute Veränderung in % | C13: 1_Grafik
A14: Daten | C14: 1
A15: Begonnene und beendete sozialversicherungspflichtige Beschäftigungsverhältnisse nach ausgewählten Merkmalen | C15: 2_Grafik
A16: Daten | C16: 2
A17: Sozialversicherungspflichtig Beschäftigte und geringfügig Beschäftigte nach Wirtschaftsabteilungen (WZ 2008) | C17: 3_Grafik
A18: Daten | C18: 3
A19: Sozialversicherungspflichtig Beschäftigte und geringfügig Beschäftigte nach der ausgeübten Tätigkeit (KldB 2010) und dem Anforderungsniveau | C19: 4_Grafik
A20: Daten | C20: 4
A21: Sozialversicherungspflichtig Beschäftigte und geringfügig Beschäftigte nach Ländern und Kreisen | C21: 5
A22: Sozialversicherungspflichtig Beschäftigte und geringfügig Beschäftigte nach Regionaldirektionen und Agenturen für Arbeit | C22: 6
A23: Begonnene und beendete sozialversicherungspflichtige Beschäftigungsverhältnisse nach Ländern und Kreisen | C23: 7
A24: Begonnene und beendete sozialversicherungspflichtige Beschäftigungsverhältnisse nach Regionaldirektionen und Agenturen für Arbeit | C24: 8
A25: Sozialversicherungspflichtig Beschäftigte nach ausgewählten Merkmalen | C25: 9_Grafik
A26: Daten | C26: 9
A27: Geringfügig Beschäftigte | C27: 10_Grafik
A28: Daten | C28: 10
A29: Statistik-Infoseite | C29: Infoseite

Sheet Hinweise_BST-Revision2017
F1: Beschäftigungsstatistik
F2: Stand: Januar 2018
A4: Methodische Hinweise - Revision der Beschäftigungsstatistik 2017
A6: Im Jahr 2016 sind aufgrund eines technischen Problems im Datenverarbeitungsprozess in größerem Umfang Arbeitgebermeldungen zur Sozialversicherung nicht in die Statistik-Datenverarbeitung eingeflossen. Diese Meldungen wurden im Jahr 2017 nachträglich aufgenommen und die Ergebnisse der Beschäftigungsstatistik neu ermittelt. Daher erfolgt eine Revision der Beschäftigungsstatistik.
A10: Folgende signifikante Effekte sind hervorzuheben:
B12: - Der Bestand an sozialversicherungspflichtig und geringfügig entlohnten Beschäftigten für die Berichtsmonate Juni und Juli 2016 war insgesamt leicht unterzeichnet.
B14: Berichtsmonat | C14: Messgröße | D14: Revisionseffekt (gerundet)
D15: sozialversicherungs- pflichtig Beschäftigte | E15: geringfügig entlohnte Beschäftigte | F15: kurzfristig Beschäftigte
B16: 2016-06-01 | C16: Bestand | D16: + 69.600 (+ 0,2 %) | E16: + 7.300 (+ 0,1 %) | F16: - 200 (- 0,1 %)
B17: 2016-07-01 | C17: Bestand | D17: + 119.900 (+ 0,4 %) | E17: + 16.300 (+ 0,2 %) | F17: - 200 (- 0,1 %)
B19: - Die Anzahl der begonnenen und beendeten sozialversicherungspflichtigen Beschäftigungsverhältnisse war im 1. Quartal 2016 untererfasst und ist durch die Revision korrigiert worden.
B21: Berichtsmonat | C21: Messgröße | D21: Revisionseffekt (gerundet)
B22: 1. Quartal 2016 | C22: begonnene Beschäftigungsverhältnisse | D22: + 18.600 (+ 0,7 %)
B23: 1. Quartal 2016 | C23: beendete Beschäftigungsverhältnisse | D23: + 9.000 (+ 0,4 %)
B25: - Die Anzahl der beendeten Beschäftigungsverhältnisse war vor der Revision im 2. und 3. Quartal 2016 deutlich überzeichnet.
B27: Berichtsmonat | C27: Messgröße | D27: Revisionseffekt (gerundet)
B28: 2. Quartal 2016 | C28: beendete Beschäftigungsverhältnisse | D28: - 56.800 (- 2,6 %)
B29: 3. Quartal 2016 | C29: beendete Beschäftigungsverhältnisse | D29: - 62.300 (- 2,2 %)
A31: Die Statistik und Arbeitsmarktberichterstattung der Bundesagentur für Arbeit schließt im Zuge der Revision 2017 zudem die seit längerer Zeit bestehende Lücke (von Januar 2011 bis September 2012) in der Berichterstattung der sozialversicherungspflichtig Beschäftigten zum Merkmal Arbeitszeit (Vollzeit / Teilzeit). Angaben zu Vollzeit- und Teilzeitbeschäftigung stehen damit durchgängig für alle Berichtsmonate zur Verfügung.
A33: Der Methodenbericht „Revision der Beschäftigungsstatistik 2017“ mit ausführlichen Informationen steht im Internet zur Verfügung:
A34: https://statistik.arbeitsagentur.de/Navigation/Statistik/Grundlagen/Methodenberichte/Beschaeftigungsstatistik/Methodeberichte-Beschaeftigungsstatistik-Nav.html

Sheet 1_Grafik
E1: Beschäftigungsstatistik
A3: Sozialversicherungspflichtig Beschäftigte und geringfügig Beschäftigte nach ausgewählten Merkmalen - Veränderung in %
B4: (Daten nach dem Arbeitsort)
A5: Stichtag: 30.06.2016
A7: Merkmale | B7: sozialversicherungspflichtig Beschäftigte | C7: geringfügig Beschäftigte (GB) | D7: davon
D8: ausschließlich GB | E8: im Nebenjob GB
B9: Daten vor und nach der Revision Veränderung in % (relativ) | C9: Daten vor und nach der Revision Veränderung in % (relativ) | D9: Daten vor und nach der Revision Veränderung in % (relativ) | E9: Daten vor und nach der Revision Veränderung in % (relativ)
B10: 1 | C10: 2 | D10: 3 | E10: 4
A11: Insgesamt | B11: =IFERROR('1'!E12,"-") -> 0.2219279842 | C11: =IFERROR('1'!I12,"") -> 0.09185035664 | D11: ='1'!M12 -> 0.007177362947 | E11: ='1'!Q12 -> 0.2583243146
A12: nach Geschlecht
A13: Männer | B13: =IFERROR('1'!E14,"-") -> 0.2092636465 | C13: =IFERROR('1'!I14,"") -> 0.06543104888 | D13: ='1'!M14 -> -0.0319678589 | E13: ='1'!Q14 -> 0.2295738373
A14: Frauen | B14: =IFERROR('1'!E15,"-") -> 0.2365813317 | C14: =IFERROR('1'!I15,"") -> 0.1093484572 | D14: ='1'!M15 -> 0.03088968541 | E14: ='1'!Q15 -> 0.2809230504
A15: nach Alter
A16: unter 25 Jahren | B16: =IFERROR('1'!E17,"-") -> 0.1190403635 | C16: =IFERROR('1'!I17,"") -> -0.01797858521 | D16: ='1'!M17 -> -0.02184026586 | E16: ='1'!Q17 -> -0.002383749638
A17: 25 bis unter 30 Jahren | B17: =IFERROR('1'!E18,"-") -> 0.2062118589 | C17: =IFERROR('1'!I18,"") -> -0.02997443357 | D17: ='1'!M18 -> -0.1620207225 | E17: ='1'!Q18 -> 0.127636121
A18: 30 bis unter 35 Jahren | B18: =IFERROR('1'!E19,"-") -> 0.2384913844 | C18: =IFERROR('1'!I19,"") -> 0.02756656595 | D18: ='1'!M19 -> -0.1840298039 | E18: ='1'!Q19 -> 0.2293013619
A19: 35 bis unter 40 Jahren | B19: =IFERROR('1'!E20,"-") -> 0.2548933001 | C19: =IFERROR('1'!I20,"") -> 0.07097345133 | D19: ='1'!M20 -> -0.1359580995 | E19: ='1'!Q20 -> 0.2799824966
A20: 40 bis unter 45 Jahren | B20: =IFERROR('1'!E21,"-") -> 0.2623148208 | C20: =IFERROR('1'!I21,"") -> 0.1237613441 | D20: ='1'!M21 -> -0.08336751843 | E20: ='1'!Q21 -> 0.3343817806
A21: 45 bis unter 50 Jahren | B21: =IFERROR('1'!E22,"-") -> 0.2539290949 | C21: =IFERROR('1'!I22,"") -> 0.1595362743 | D21: ='1'!M22 -> -0.06336246968 | E21: ='1'!Q22 -> 0.3848940885
A22: 50 bis unter 55 Jahren | B22: =IFERROR('1'!E23,"-") -> 0.2316857508 | C22: =IFERROR('1'!I23,"") -> 0.1598383746 | D22: ='1'!M23 -> -0.01553944734 | E22: ='1'!Q23 -> 0.3682601068
A23: 55 bis unter 60 Jahren | B23: =IFERROR('1'!E24,"-") -> 0.2297736051 | C23: =IFERROR('1'!I24,"") -> 0.1582075133 | D23: ='1'!M24 -> 0.04996064421 | E23: ='1'!Q24 -> 0.3400296883
A24: 60 bis unter 65 Jahren | B24: =IFERROR('1'!E25,"-") -> 0.1787363478 | C24: =IFERROR('1'!I25,"") -> 0.1434948482 | D24: ='1'!M25 -> 0.1076598417 | E24: ='1'!Q25 -> 0.2865775784
A25: 65 Jahre und älter | B25: =IFERROR('1'!E26,"-") -> 0.01296527663 | C25: =IFERROR('1'!I26,"") -> 0.1810292605 | D25: ='1'!M26 -> 0.1961603616 | E25: ='1'!Q26 -> -0.4839876968
A26: nach Nationalität
A27: Deutsche | B27: =IFERROR('1'!E28,"-") -> 0.2305879422 | C27: =IFERROR('1'!I28,"") -> 0.1042006927 | D27: ='1'!M28 -> 0.01627505788 | E27: ='1'!Q28 -> 0.2737082155
A28: Ausländer | B28: =IFERROR('1'!E29,"-") -> 0.1443427516 | C28: =IFERROR('1'!I29,"") -> 0.007554478809 | D28: ='1'!M29 -> -0.05233285527 | E28: ='1'!Q29 -> 0.1394222209
A29: nach der Arbeitszeit
A30: Vollzeit | B30: =IFERROR('1'!E31,"-") -> 0.2130658668
A31: Teilzeit | B31: =IFERROR('1'!E32,"-") -> 0.2457640305
E32: © Statistik der Bundesagentur für Arbeit

Sheet 1
Q1: Beschäftigungsstatistik
A3: Sozialversicherungspflichtig Beschäftigte und geringfügig Beschäftigte nach ausgewählten Merkmalen
C4: (Daten nach dem Arbeitsort)
A5: Stichtag: 30.06.2016
A7: Merkmale | B7: sozialversicherungspflichtig Beschäftigte | F7: geringfügig Beschäftigte (GB) | J7: davon
J8: ausschließlich GB | N8: im Nebenjob GB
B9: nach Revision | C9: vor Revision | D9: Veränderung (Spalte 1 zu 2) | F9: nach Revision | G9: vor Revision | H9: Veränderung (Spalte 5 zu 6) | J9: nach Revision | K9: vor Revision | L9: Veränderung (Spalte 9 zu 10) | N9: nach Revision | O9: vor Revision | P9: Veränderung (Spalte 13 zu 14)
D10: absolut | E10: in % | H10: absolut | I10: in % | L10: absolut | M10: in % | P10: absolut | Q10: in %
B11: 1 | C11: 2 | D11: 3 | E11: 4 | F11: 5 | G11: 6 | H11: 7 | I11: 8 | J11: 9 | K11: 10 | L11: 11 | M11: 12 | N11: 13 | O11: 14 | P11: 15 | Q11: 16
A12: Insgesamt | B12: ='1.2 Steuerung'!H18 -> 31443318 | C12: ='1.2 Steuerung'!G47 -> 31373691 | D12: =B12-C12 -> 69627 | E12: =(D12*100)/C12 -> 0.2219279842 | F12: ='1.2 Steuerung'!I18 -> 7763218 | G12: ='1.2 Steuerung'!I47 -> 7756094 | H12: =F12-G12 -> 7124 | I12: =(H12*100)/G12 -> 0.09185035664 | J12: ='1.2 Steuerung'!J18 -> 5141533 | K12: ='1.2 Steuerung'!J47 -> 5141164 | L12: =J12-K12 -> 369 | M12: =(L12*100)/K12 -> 0.007177362947 | N12: ='1.2 Steuerung'!K18 -> 2621685 | O12: ='1.2 Steuerung'!K47 -> 2614930 | P12: =N12-O12 -> 6755 | Q12: =(P12*100)/O12 -> 0.2583243146
A13: nach Geschlecht
A14: Männer | B14: ='1.2 Steuerung'!H19 -> 16864227 | C14: ='1.2 Steuerung'!G48 -> 16829010 | D14: =B14-C14 -> 35217 | E14: =(D14*100)/C14 -> 0.2092636465 | F14: ='1.2 Steuerung'!I19 -> 3092298 | G14: ='1.2 Steuerung'!I48 -> 3090276 | H14: =F14-G14 -> 2022 | I14: =(H14*100)/G14 -> 0.06543104888 | J14: ='1.2 Steuerung'!J19 -> 1938828 | K14: ='1.2 Steuerung'!J48 -> 1939448 | L14: =J14-K14 -> -620 | M14: =(L14*100)/K14 -> -0.0319678589 | N14: ='1.2 Steuerung'!K19 -> 1153470 | O14: ='1.2 Steuerung'!K48 -> 1150828 | P14: =N14-O14 -> 2642 | Q14: =(P14*100)/O14 -> 0.2295738373
A15: Frauen | B15: ='1.2 Steuerung'!H20 -> 14579091 | C15: ='1.2 Steuerung'!G49 -> 14544681 | D15: =B15-C15 -> 34410 | E15: =(D15*100)/C15 -> 0.2365813317 | F15: ='1.2 Steuerung'!I20 -> 4670920 | G15: ='1.2 Steuerung'!I49 -> 4665818 | H15: =F15-G15 -> 5102 | I15: =(H15*100)/G15 -> 0.1093484572 | J15: ='1.2 Steuerung'!J20 -> 3202705 | K15: ='1.2 Steuerung'!J49 -> 3201716 | L15: =J15-K15 -> 989 | M15: 0.03088968541 | N15: ='1.2 Steuerung'!K20 -> 1468215 | O15: ='1.2 Steuerung'!K49 -> 1464102 | P15: 4113 | Q15: 0.2809230504
A16: nach Alter
A17: unter 25 Jahren | B17: ='1.2 Steuerung'!H21 -> 3088340 | C17: ='1.2 Steuerung'!G50 -> 3084668 | D17: =B17-C17 -> 3672 | E17: 0.1190403635 | F17: ='1.2 Steuerung'!I21 -> 1479272 | G17: ='1.2 Steuerung'!I50 -> 1479538 | H17: -266 | I17: -0.01797858521 | J17: ='1.2 Steuerung'!J21 -> 1185624 | K17: ='1.2 Steuerung'!J50 -> 1185883 | L17: =J17-K17 -> -259 | M17: -0.02184026586 | N17: ='1.2 Steuerung'!K21 -> 293648 | O17: ='1.2 Steuerung'!K50 -> 293655 | P17: -7 | Q17: -0.002383749638
A18: 25 bis unter 30 Jahren | B18: ='1.2 Steuerung'!H22 -> 3528397 | C18: ='1.2 Steuerung'!G51 -> 3521136 | D18: 7261 | E18: 0.2062118589 | F18: ='1.2 Steuerung'!I22 -> 680376 | G18: ='1.2 Steuerung'!I51 -> 680580 | H18: -204 | I18: -0.02997443357 | J18: ='1.2 Steuerung'!J22 -> 369723 | K18: ='1.2 Steuerung'!J51 -> 370323 | L18: -600 | M18: -0.1620207225 | N18: ='1.2 Steuerung'!K22 -> 310653 | O18: ='1.2 Steuerung'!K51 -> 310257 | P18: 396 | Q18: 0.127636121
A19: 30 bis unter 35 Jahren | B19: ='1.2 Steuerung'!H23 -> 3546091 | C19: ='1.2 Steuerung'!G52 -> 3537654 | D19: 8437 | E19: 0.2384913844 | F19: ='1.2 Steuerung'!I23 -> 547916 | G19: ='1.2 Steuerung'!I52 -> 547765 | H19: 151 | I19: 0.02756656595 | J19: ='1.2 Steuerung'!J23 -> 266856 | K19: ='1.2 Steuerung'!J52 -> 267348 | L19: -492 | M19: -0.1840298039 | N19: ='1.2 Steuerung'!K23 -> 281060 | O19: ='1.2 Steuerung'!K52 -> 280417 | P19: 643 | Q19: 0.2293013619
A20: 35 bis unter 40 Jahren | B20: ='1.2 Steuerung'!H24 -> 3386494 | C20: ='1.2 Steuerung'!G53 -> 3377884 | D20: 8610 | E20: 0.2548933001 | F20: ='1.2 Steuerung'!I24 -> 565401 | G20: ='1.2 Steuerung'!I53 -> 565000 | H20: 401 | I20: 0.07097345133 | J20: ='1.2 Steuerung'!J24 -> 283525 | K20: ='1.2 Steuerung'!J53 -> 283911 | L20: -386 | M20: -0.1359580995 | N20: ='1.2 Steuerung'!K24 -> 281876 | O20: ='1.2 Steuerung'!K53 -> 281089 | P20: 787 | Q20: 0.2799824966
A21: 40 bis unter 45 Jahren | B21: ='1.2 Steuerung'!H25 -> 3264170 | C21: ='1.2 Steuerung'!G54 -> 3255630 | D21: 8540 | E21: 0.2623148208 | F21: ='1.2 Steuerung'!I25 -> 600283 | G21: ='1.2 Steuerung'!I54 -> 599541 | H21: 742 | I21: 0.1237613441 | J21: ='1.2 Steuerung'!J25 -> 302024 | K21: ='1.2 Steuerung'!J54 -> 302276 | L21: -252 | M21: -0.08336751843 | N21: ='1.2 Steuerung'!K25 -> 298259 | O21: ='1.2 Steuerung'!K54 -> 297265 | P21: 994 | Q21: 0.3343817806
A22: 45 bis unter 50 Jahren | B22: ='1.2 Steuerung'!H26 -> 4286460 | C22: ='1.2 Steuerung'!G55 -> 4275603 | D22: 10857 | E22: =(D22*100)/C22 -> 0.2539290949 | F22: ='1.2 Steuerung'!I26 -> 767192 | G22: ='1.2 Steuerung'!I55 -> 765970 | H22: 1222 | I22: 0.1595362743 | J22: ='1.2 Steuerung'!J26 -> 384842 | K22: ='1.2 Steuerung'!J55 -> 385086 | L22: -244 | M22: -0.06336246968 | N22: ='1.2 Steuerung'!K26 -> 382350 | O22: ='1.2 Steuerung'!K55 -> 380884 | P22: 1466 | Q22: 0.3848940885
A23: 50 bis unter 55 Jahren | B23: ='1.2 Steuerung'!H27 -> 4525196 | C23: ='1.2 Steuerung'!G56 -> 4514736 | D23: 10460 | E23: 0.2316857508 | F23: ='1.2 Steuerung'!I27 -> 807102 | G23: ='1.2 Steuerung'!I56 -> 805814 | H23: 1288 | I23: 0.1598383746 | J23: ='1.2 Steuerung'!J27 -> 437528 | K23: ='1.2 Steuerung'!J56 -> 437596 | L23: -68 | M23: -0.01553944734 | N23: ='1.2 Steuerung'!K27 -> 369574 | O23: ='1.2 Steuerung'!K56 -> 368218 | P23: 1356 | Q23: 0.3682601068
A24: 55 bis unter 60 Jahren | B24: ='1.2 Steuerung'!H28 -> 3601358 | C24: ='1.2 Steuerung'!G57 -> 3593102 | D24: 8256 | E24: =(D24*100)/C24 -> 0.2297736051 | F24: ='1.2 Steuerung'!I28 -> 678030 | G24: ='1.2 Steuerung'!I57 -> 676959 | H24: 1071 | I24: 0.1582075133 | J24: ='1.2 Steuerung'!J28 -> 424546 | K24: ='1.2 Steuerung'!J57 -> 424334 | L24: 212 | M24: 0.04996064421 | N24: ='1.2 Steuerung'!K28 -> 253484 | O24: ='1.2 Steuerung'!K57 -> 252625 | P24: 859 | Q24: 0.3400296883
A25: 60 bis unter 65 Jahren | B25: ='1.2 Steuerung'!H29 -> 1962252 | C25: ='1.2 Steuerung'!G58 -> 1958751 | D25: 3501 | E25: 0.1787363478 | F25: ='1.2 Steuerung'!I29 -> 642058 | G25: ='1.2 Steuerung'!I58 -> 641138 | H25: 920 | I25: 0.1434948482 | J25: ='1.2 Steuerung'!J29 -> 513278 | K25: ='1.2 Steuerung'!J58 -> 512726 | L25: 552 | M25: 0.1076598417 | N25: ='1.2 Steuerung'!K29 -> 128780 | O25: ='1.2 Steuerung'!K58 -> 128412 | P25: 368 | Q25: 0.2865775784
A26: 65 Jahre und älter | B26: ='1.2 Steuerung'!H30 -> 254559 | C26: ='1.2 Steuerung'!G59 -> 254526 | D26: 33 | E26: 0.01296527663 | F26: ='1.2 Steuerung'!I30 -> 995561 | G26: ='1.2 Steuerung'!I59 -> 993762 | H26: 1799 | I26: 0.1810292605 | J26: ='1.2 Steuerung'!J30 -> 973560 | K26: ='1.2 Steuerung'!J59 -> 971654 | L26: 1906 | M26: 0.1961603616 | N26: ='1.2 Steuerung'!K30 -> 22001 | O26: ='1.2 Steuerung'!K59 -> 22108 | P26: -107 | Q26: -0.4839876968
A27: nach Nationalität
A28: Deutsche | B28: ='1.2 Steuerung'!H31 -> 28292932 | C28: ='1.2 Steuerung'!G60 -> 28227842 | D28: =B28-C28 -> 65090 | E28: 0.2305879422 | F28: ='1.2 Steuerung'!I31 -> 6791093 | G28: ='1.2 Steuerung'!I60 -> 6784024 | H28: 7069 | I28: 0.1042006927 | J28: ='1.2 Steuerung'!J31 -> 4467685 | K28: ='1.2 Steuerung'!J60 -> 4466958 | L28: 727 | M28: 0.01627505788 | N28: ='1.2 Steuerung'!K31 -> 2323408 | O28: ='1.2 Steuerung'!K60 -> 2317066 | P28: 6342 | Q28: 0.2737082155
A29: Ausländer | B29: ='1.2 Steuerung'!H32 -> 3133874 | C29: ='1.2 Steuerung'!G61 -> 3129357 | D29: =B29-C29 -> 4517 | E29: 0.1443427516 | F29: ='1.2 Steuerung'!I32 -> 953149 | G29: ='1.2 Steuerung'!I61 -> 953077 | H29: 72 | I29: 0.007554478809 | J29: ='1.2 Steuerung'!J32 -> 655077 | K29: ='1.2 Steuerung'!J61 -> 655420 | L29: -343 | M29: -0.05233285527 | N29: ='1.2 Steuerung'!K32 -> 298072 | O29: ='1.2 Steuerung'!K61 -> 297657 | P29: 415 | Q29: 0.1394222209
A30: nach der Arbeitszeit
A31: Vollzeit | B31: ='1.2 Steuerung'!H34 -> 22873969 | C31: ='1.2 Steuerung'!G63 -> 22825336 | D31: =B31-C31 -> 48633 | E31: 0.2130658668
A32: Teilzeit | B32: ='1.2 Steuerung'!H35 -> 8568637 | C32: ='1.2 Steuerung'!G64 -> 8547630 | D32: =B32-C32 -> 21007 | E32: 0.2457640305
Q33: © Statistik der Bundesagentur für Arbeit

Sheet 1 Roh-Daten (hidden)
A12: NACH REV
A14: 26 | B14: Metriken | C14: SvB | T14: GB | AK14: GB_ausschl. | BB14: GB_im_NJ
A15: Schleswig-Holstein,01 | B15: D+Länder(AO) | C15: Deutschland | D15: Schleswig-Holstein,01 | E15: Hamburg,02 | F15: Niedersachsen,03 | G15: Bremen,04 | H15: Nordrhein-Westfalen,05 | I15: Hessen,06 | J15: Rheinland-Pfalz,07 | K15: Baden-Württemberg,08 | L15: Bayern,09 | M15: Saarland,10 | N15: Berlin,11 | O15: Brandenburg,12 | P15: Mecklenburg-Vorpommern,13 | Q15: Sachsen,14 | R15: Sachsen-Anhalt,15 | S15: Thüringen,16 | T15: Deutschland | U15: Schleswig-Holstein,01 | V15: Hamburg,02 | W15: Niedersachsen,03 | X15: Bremen,04 | Y15: Nordrhein-Westfalen,05 | Z15: Hessen,06 | AA15: Rheinland-Pfalz,07 | AB15: Baden-Württemberg,08 | AC15: Bayern,09 | AD15: Saarland,10 | AE15: Berlin,11 | AF15: Brandenburg,12 | AG15: Mecklenburg-Vorpommern,13 | AH15: Sachsen,14 | AI15: Sachsen-Anhalt,15 | AJ15: Thüringen,16 | AK15: Deutschland | AL15: Schleswig-Holstein,01 | AM15: Hamburg,02 | AN15: Niedersachsen,03 | AO15: Bremen,04 | AP15: Nordrhein-Westfalen,05 | AQ15: Hessen,06 | AR15: Rheinland-Pfalz,07 | AS15: Baden-Württemberg,08 | AT15: Bayern,09 | AU15: Saarland,10 | AV15: Berlin,11 | AW15: Brandenburg,12 | AX15: Mecklenburg-Vorpommern,13 | AY15: Sachsen,14 | AZ15: Sachsen-Anhalt,15 | BA15: Thüringen,16 | BB15: Deutschland | BC15: Schleswig-Holstein,01 | BD15: Hamburg,02 | BE15: Niedersachsen,03 | BF15: Bremen,04 | BG15: Nordrhein-Westfalen,05 | BH15: Hessen,06 | BI15: Rheinland-Pfalz,07 | BJ15: Baden-Württemberg,08 | BK15: Bayern,09 | BL15: Saarland,10 | BM15: Berlin,11 | BN15: Brandenburg,12 | BO15: Mecklenburg-Vorpommern,13 | BP15: Sachsen,14 | BQ15: Sachsen-Anhalt,15 | BR15: Thüringen,16
A16: Merkmale_1.1
A17: Insgesamt | C17: 31443318 | D17: 940613 | E17: 933846 | F17: 2836091 | G17: 319681 | H17: 6549350 | I17: 2462605 | J17: 1364682 | K17: 4458706 | L17: 5317529 | M17: 379591 | N17: 1367680 | O17: 818474 | P17: 560372 | Q17: 1555300 | R17: 783900 | S17: 793363 | T17: 7763218 | U17: 275474 | V17: 174263 | W17: 792707 | X17: 71241 | Y17: 1835199 | Z17: 602787 | AA17: 417903 | AB17: 1223207 | AC17: 1358722 | AD17: 98481 | AE17: 217952 | AF17: 134126 | AG17: 93184 | AH17: 233512 | AI17: 110120 | AJ17: 122484 | AK17: 5141533 | AL17: 186563 | AM17: 106917 | AN17: 544874 | AO17: 47677 | AP17: 1272586 | AQ17: 394720 | AR17: 282822 | AS17: 746314 | AT17: 820010 | AU17: 70006 | AV17: 152868 | AW17: 99132 | AX17: 71588 | AY17: 172186 | AZ17: 83977 | BA17: 88050 | BB17: 2621685 | BC17: 88911 | BD17: 67346 | BE17: 247833 | BF17: 23564 | BG17: 562613 | BH17: 208067 | BI17: 135081 | BJ17: 476893 | BK17: 538712 | BL17: 28475 | BM17: 65084 | BN17: 34994 | BO17: 21596 | BP17: 61326 | BQ17: 26143 | BR17: 34434
A18: Männer | C18: 16864227 | D18: 490306 | E18: 498817 | F18: 1537923 | G18: 179503 | H18: 3585599 | I18: 1342234 | J18: 727986 | K18: 2445220 | L18: 2881658 | M18: 207807 | N18: 675753 | O18: 422288 | P18: 272778 | Q18: 793229 | R18: 394788 | S18: 407518 | T18: 3092298 | U18: 110054 | V18: 72664 | W18: 306748 | X18: 30491 | Y18: 724606 | Z18: 240463 | AA18: 163635 | AB18: 486525 | AC18: 515756 | AD18: 38342 | AE18: 97505 | AF18: 59461 | AG18: 42264 | AH18: 102191 | AI18: 47450 | AJ18: 53440 | AK18: 1938828 | AL18: 73163 | AM18: 42802 | AN18: 199693 | AO18: 19658 | AP18: 467418 | AQ18: 147571 | AR18: 104176 | AS18: 271825 | AT18: 283120 | AU18: 25822 | AV18: 69491 | AW18: 45457 | AX18: 33812 | AY18: 77912 | AZ18: 36939 | BA18: 39538 | BB18: 1153470 | BC18: 36891 | BD18: 29862 | BE18: 107055 | BF18: 10833 | BG18: 257188 | BH18: 92892 | BI18: 59459 | BJ18: 214700 | BK18: 232636 | BL18: 12520 | BM18: 28014 | BN18: 14004 | BO18: 8452 | BP18: 24279 | BQ18: 10511 | BR18: 13902
A19: Frauen | C19: 14579091 | D19: 450307 | E19: 435029 | F19: 1298168 | G19: 140178 | H19: 2963751 | I19: 1120371 | J19: 636696 | K19: 2013486 | L19: 2435871 | M19: 171784 | N19: 691927 | O19: 396186 | P19: 287594 | Q19: 762071 | R19: 389112 | S19: 385845 | T19: 4670920 | U19: 165420 | V19: 101599 | W19: 485959 | X19: 40750 | Y19: 1110593 | Z19: 362324 | AA19: 254268 | AB19: 736682 | AC19: 842966 | AD19: 60139 | AE19: 120447 | AF19: 74665 | AG19: 50920 | AH19: 131321 | AI19: 62670 | AJ19: 69044 | AK19: 3202705 | AL19: 113400 | AM19: 64115 | AN19: 345181 | AO19: 28019 | AP19: 805168 | AQ19: 247149 | AR19: 178646 | AS19: 474489 | AT19: 536890 | AU19: 44184 | AV19: 83377 | AW19: 53675 | AX19: 37776 | AY19: 94274 | AZ19: 47038 | BA19: 48512 | BB19: 1468215 | BC19: 52020 | BD19: 37484 | BE19: 140778 | BF19: 12731 | BG19: 305425 | BH19: 115175 | BI19: 75622 | BJ19: 262193 | BK19: 306076 | BL19: 15955 | BM19: 37070 | BN19: 20990 | BO19: 13144 | BP19: 37047 | BQ19: 15632 | BR19: 20532
A20: U25 | C20: 3088340 | D20: 100511 | E20: 80703 | F20: 304553 | G20: 30779 | H20: 652726 | I20: 225680 | J20: 151058 | K20: 487403 | L20: 618698 | M20: 38710 | N20: 99594 | O20: 51154 | P20: 37981 | Q20: 103238 | R20: 52466 | S20: 52931 | T20: 1479272 | U20: 55948 | V20: 38660 | W20: 156097 | X20: 15018 | Y20: 361195 | Z20: 115922 | AA20: 83906 | AB20: 247238 | AC20: 237860 | AD20: 15144 | AE20: 45266 | AF20: 20116 | AG20: 15486 | AH20: 37241 | AI20: 15143 | AJ20: 18797 | AK20: 1185624 | AL20: 46688 | AM20: 30925 | AN20: 126714 | AO20: 12134 | AP20: 294643 | AQ20: 94374 | AR20: 68115 | AS20: 191058 | AT20: 176444 | AU20: 12034 | AV20: 39010 | AW20: 17590 | AX20: 13913 | AY20: 32366 | AZ20: 13142 | BA20: 16304 | BB20: 293648 | BC20: 9260 | BD20: 7735 | BE20: 29383 | BF20: 2884 | BG20: 66552 | BH20: 21548 | BI20: 15791 | BJ20: 56180 | BK20: 61416 | BL20: 3110 | BM20: 6256 | BN20: 2526 | BO20: 1573 | BP20: 4875 | BQ20: 2001 | BR20: 2493
A21: 25 - 29 Jahre | C21: 3528397 | D21: 99156 | E21: 114658 | F21: 304610 | G21: 34483 | H21: 730453 | I21: 273047 | J21: 147551 | K21: 501058 | L21: 613759 | M21: 41115 | N21: 180788 | O21: 84194 | P21: 60842 | Q21: 176772 | R21: 81254 | S21: 84473 | T21: 680376 | U21: 22117 | V21: 20206 | W21: 63567 | X21: 7738 | Y21: 157443 | Z21: 54362 | AA21: 33603 | AB21: 105377 | AC21: 118839 | AD21: 7633 | AE21: 28859 | AF21: 10519 | AG21: 8346 | AH21: 22061 | AI21: 9213 | AJ21: 10328 | AK21: 369723 | AL21: 12366 | AM21: 10976 | AN21: 35917 | AO21: 4713 | AP21: 90764 | AQ21: 30494 | AR21: 18500 | AS21: 51083 | AT21: 52822 | AU21: 4360 | AV21: 19178 | AW21: 6488 | AX21: 5563 | AY21: 13872 | AZ21: 6224 | BA21: 6314 | BB21: 310653 | BC21: 9751 | BD21: 9230 | BE21: 27650 | BF21: 3025 | BG21: 66679 | BH21: 23868 | BI21: 15103 | BJ21: 54294 | BK21: 66017 | BL21: 3273 | BM21: 9681 | BN21: 4031 | BO21: 2783 | BP21: 8189 | BQ21: 2989 | BR21: 4014
A22: 30 - 34 Jahre | C22: 3546091 | D22: 96763 | E22: 122405 | F22: 297469 | G22: 34694 | H22: 708101 | I22: 280662 | J22: 141099 | K22: 491166 | L22: 612518 | M22: 39357 | N22: 192965 | O22: 94965 | P22: 64286 | Q22: 190784 | R22: 86223 | S22: 92426 | T22: 547916 | U22: 17408 | V22: 14199 | W22: 51966 | X22: 5242 | Y22: 126347 | Z22: 42719 | AA22: 27279 | AB22: 88515 | AC22: 101991 | AD22: 6194 | AE22: 19583 | AF22: 9261 | AG22: 6064 | AH22: 15872 | AI22: 7296 | AJ22: 7832 | AK22: 266856 | AL22: 8735 | AM22: 6124 | AN22: 27282 | AO22: 2831 | AP22: 68016 | AQ22: 20739 | AR22: 13839 | AS22: 38683 | AT22: 41726 | AU22: 3312 | AV22: 10949 | AW22: 5140 | AX22: 3439 | AY22: 8005 | AZ22: 4250 | BA22: 3702 | BB22: 281060 | BC22: 8673 | BD22: 8075 | BE22: 24684 | BF22: 2411 | BG22: 58331 | BH22: 21980 | BI22: 13440 | BJ22: 49832 | BK22: 60265 | BL22: 2882 | BM22: 8634 | BN22: 4121 | BO22: 2625 | BP22: 7867 | BQ22: 3046 | BR22: 4130
A23: 35 - 39 Jahre | C23: 3386494 | D23: 96985 | E23: 115722 | F23: 289602 | G23: 32978 | H23: 678610 | I23: 275666 | J23: 135810 | K23: 465378 | L23: 585012 | M23: 37365 | N23: 169711 | O23: 91831 | P23: 61366 | Q23: 181147 | R23: 82086 | S23: 87034 | T23: 565401 | U23: 18400 | V23: 13446 | W23: 54498 | X23: 5203 | Y23: 132513 | Z23: 45130 | AA23: 28558 | AB23: 93829 | AC23: 107751 | AD23: 6453 | AE23: 16327 | AF23: 9102 | AG23: 5628 | AH23: 14360 | AI23: 6707 | AJ23: 7315 | AK23: 283525 | AL23: 9290 | AM23: 5807 | AN23: 29558 | AO23: 2791 | AP23: 74917 | AQ23: 22107 | AR23: 14972 | AS23: 42943 | AT23: 47054 | AU23: 3627 | AV23: 8691 | AW23: 4754 | AX23: 3052 | AY23: 6966 | AZ23: 3719 | BA23: 3176 | BB23: 281876 | BC23: 9110 | BD23: 7639 | BE23: 24940 | BF23: 2412 | BG23: 57596 | BH23: 23023 | BI23: 13586 | BJ23: 50886 | BK23: 60697 | BL23: 2826 | BM23: 7636 | BN23: 4348 | BO23: 2576 | BP23: 7394 | BQ23: 2988 | BR23: 4139
A24: 40 - 44 Jahre | C24: 3264170 | D24: 98237 | E24: 102753 | F24: 298123 | G24: 33330 | H24: 679043 | I24: 270565 | J24: 136108 | K24: 464040 | L24: 563337 | M24: 37424 | N24: 139665 | O24: 78989 | P24: 51585 | Q24: 157258 | R24: 74867 | S24: 78675 | T24: 600283 | U24: 20319 | V24: 13414 | W24: 60872 | X24: 5368 | Y24: 144394 | Z24: 48837 | AA24: 31210 | AB24: 100833 | AC24: 113852 | AD24: 6815 | AE24: 14851 | AF24: 8306 | AG24: 4992 | AH24: 12660 | AI24: 6365 | AJ24: 7003 | AK24: 302024 | AL24: 10234 | AM24: 5817 | AN24: 33042 | AO24: 2776 | AP24: 81987 | AQ24: 23803 | AR24: 16352 | AS24: 45310 | AT24: 50406 | AU24: 3852 | AV24: 7996 | AW24: 4503 | AX24: 2805 | AY24: 6271 | AZ24: 3590 | BA24: 3165 | BB24: 298259 | BC24: 10085 | BD24: 7597 | BE24: 27830 | BF24: 2592 | BG24: 62407 | BH24: 25034 | BI24: 14858 | BJ24: 55523 | BK24: 63446 | BL24: 2963 | BM24: 6855 | BN24: 3803 | BO24: 2187 | BP24: 6389 | BQ24: 2775 | BR24: 3838
A25: 45 - 49 Jahre | C25: 4286460 | D25: 137504 | E25: 125895 | F25: 404698 | G25: 45268 | H25: 926803 | I25: 349245 | J25: 184988 | K25: 601360 | L25: 709838 | M25: 52029 | N25: 168192 | O25: 105214 | P25: 69844 | Q25: 198558 | R25: 104740 | S25: 102089 | T25: 767192 | U25: 28613 | V25: 16110 | W25: 81028 | X25: 6627 | Y25: 188568 | Z25: 60834 | AA25: 41063 | AB25: 123145 | AC25: 141940 | AD25: 9586 | AE25: 17500 | AF25: 10775 | AG25: 6762 | AH25: 16354 | AI25: 8940 | AJ25: 9130 | AK25: 384842 | AL25: 14428 | AM25: 6909 | AN25: 43808 | AO25: 3299 | AP25: 105015 | AQ25: 29349 | AR25: 21095 | AS25: 53726 | AT25: 63834 | AU25: 5555 | AV25: 9256 | AW25: 6073 | AX25: 4084 | AY25: 8494 | AZ25: 5307 | BA25: 4478 | BB25: 382350 | BC25: 14185 | BD25: 9201 | BE25: 37220 | BF25: 3328 | BG25: 83553 | BH25: 31485 | BI25: 19968 | BJ25: 69419 | BK25: 78106 | BL25: 4031 | BM25: 8244 | BN25: 4702 | BO25: 2678 | BP25: 7860 | BQ25: 3633 | BR25: 4652
A26: 50 - 54 Jahre | C26: 4525196 | D26: 139676 | E26: 123015 | F26: 416083 | G26: 47164 | H26: 962474 | I26: 355621 | J26: 202372 | K26: 630198 | L26: 718239 | M26: 57752 | N26: 184407 | O26: 130169 | P26: 88405 | Q26: 226078 | R26: 123636 | S26: 119714 | T26: 807102 | U26: 29898 | V26: 15869 | W26: 85310 | X26: 6789 | Y26: 199160 | Z26: 63056 | AA26: 44670 | AB26: 124737 | AC26: 142851 | AD26: 11871 | AE26: 18758 | AF26: 13583 | AG26: 8797 | AH26: 19778 | AI26: 10776 | AJ26: 11005 | AK26: 437528 | AL26: 16210 | AM26: 7144 | AN26: 48558 | AO26: 3583 | AP26: 118327 | AQ26: 33134 | AR26: 24638 | AS26: 57634 | AT26: 70914 | AU26: 7488 | AV26: 10472 | AW26: 8536 | AX26: 5786 | AY26: 11683 | AZ26: 7050 | BA26: 6260 | BB26: 369574 | BC26: 13688 | BD26: 8725 | BE26: 36752 | BF26: 3206 | BG26: 80833 | BH26: 29922 | BI26: 20032 | BJ26: 67103 | BK26: 71937 | BL26: 4383 | BM26: 8286 | BN26: 5047 | BO26: 3011 | BP26: 8095 | BQ26: 3726 | BR26: 4745
A27: 55 - 59 Jahre | C27: 3601358 | D27: 105153 | E27: 90512 | F27: 324571 | G27: 37385 | H27: 751935 | I27: 270527 | J27: 165242 | K27: 506136 | L27: 564739 | M27: 47441 | N27: 138642 | O27: 112455 | P27: 77885 | Q27: 193274 | R27: 108097 | S27: 107221 | T27: 678030 | U27: 23804 | V27: 11918 | W27: 71151 | X27: 5612 | Y27: 167160 | Z27: 51114 | AA27: 38293 | AB27: 99886 | AC27: 115790 | AD27: 11530 | AE27: 15330 | AF27: 13533 | AG27: 9649 | AH27: 20346 | AI27: 11180 | AJ27: 11569 | AK27: 424546 | AL27: 15056 | AM27: 6285 | AN27: 46480 | AO27: 3308 | AP27: 112076 | AQ27: 31372 | AR27: 24302 | AS27: 53303 | AT27: 67022 | AU27: 8376 | AV27: 9703 | AW27: 9709 | AX27: 7182 | AY27: 14191 | AZ27: 8315 | BA27: 7753 | BB27: 253484 | BC27: 8748 | BD27: 5633 | BE27: 24671 | BF27: 2304 | BG27: 55084 | BH27: 19742 | BI27: 13991 | BJ27: 46583 | BK27: 48768 | BL27: 3154 | BM27: 5627 | BN27: 3824 | BO27: 2467 | BP27: 6155 | BQ27: 2865 | BR27: 3816
A28: 60 - 64 Jahre | C28: 1962252 | D28: 56993 | E28: 49687 | F28: 171779 | G28: 20578 | H28: 403028 | I28: 142630 | J28: 88496 | K28: 273710 | L28: 290837 | M28: 25183 | N28: 81890 | O28: 64038 | P28: 44731 | Q28: 118894 | R28: 65776 | S28: 63930 | T28: 642058 | U28: 21732 | V28: 10309 | W28: 65873 | X28: 5041 | Y28: 143785 | Z28: 46299 | AA28: 35474 | AB28: 89675 | AC28: 103717 | AD28: 10226 | AE28: 15418 | AF28: 17451 | AG28: 12657 | AH28: 31817 | AI28: 15310 | AJ28: 17125 | AK28: 513278 | AL28: 17241 | AM28: 7433 | AN28: 53387 | AO28: 3876 | AP28: 116783 | AQ28: 36455 | AR28: 28327 | AS28: 66352 | AT28: 79763 | AU28: 8612 | AV28: 12288 | AW28: 15248 | AX28: 11172 | AY28: 27947 | AZ28: 13439 | BA28: 14829 | BB28: 128780 | BC28: 4491 | BD28: 2876 | BE28: 12486 | BF28: 1165 | BG28: 27002 | BH28: 9844 | BI28: 7147 | BJ28: 23323 | BK28: 23954 | BL28: 1614 | BM28: 3130 | BN28: 2203 | BO28: 1485 | BP28: 3870 | BQ28: 1871 | BR28: 2296
A29: 65+ | C29: 254559 | D29: 9635 | E29: 8496 | F29: 24603 | G29: 3022 | H29: 56177 | I29: 18962 | J29: 11958 | K29: 38257 | L29: 40552 | M29: 3215 | N29: 11825 | O29: 5465 | P29: 3447 | Q29: 9297 | R29: 4755 | S29: 4870 | T29: 995561 | U29: 37234 | V29: 20131 | W29: 102344 | X29: 8603 | Y29: 214629 | Z29: 74512 | AA29: 53846 | AB29: 149967 | AC29: 174128 | AD29: 13029 | AE29: 26059 | AF29: 21473 | AG29: 14803 | AH29: 43023 | AI29: 19190 | AJ29: 22380 | AK29: 973560 | AL29: 36314 | AM29: 19496 | AN29: 100127 | AO29: 8366 | AP29: 210053 | AQ29: 72891 | AR29: 52681 | AS29: 146217 | AT29: 170022 | AU29: 12790 | AV29: 25324 | AW29: 21084 | AX29: 14592 | AY29: 42391 | AZ29: 18941 | BA29: 22069 | BB29: 22001 | BC29: 920 | BD29: 635 | BE29: 2217 | BF29: 237 | BG29: 4576 | BH29: 1621 | BI29: 1165 | BJ29: 3750 | BK29: 4106 | BL29: 239 | BM29: 735 | BN29: 389 | BO29: 211 | BP29: 632 | BQ29: 249 | BR29: 311
A30: Deutsche | C30: 28292932 | D30: 884722 | E30: 834855 | F30: 2632786 | G30: 290014 | H30: 5913164 | I30: 2124932 | J30: 1236435 | K30: 3826915 | L30: 4645002 | M30: 337783 | N30: 1203537 | O30: 782130 | P30: 543163 | Q30: 1505297 | R30: 763265 | S30: 767668 | T30: 6791093 | U30: 254834 | V30: 147338 | W30: 719409 | X30: 60921 | Y30: 1609387 | Z30: 502015 | AA30: 370820 | AB30: 1024372 | AC30: 1173942 | AD30: 87570 | AE30: 181598 | AF30: 124976 | AG30: 87446 | AH30: 222356 | AI30: 105341 | AJ30: 117279 | AK30: 4467685 | AL30: 170798 | AM30: 90006 | AN30: 487584 | AO30: 40214 | AP30: 1099465 | AQ30: 327932 | AR30: 246782 | AS30: 620976 | AT30: 713496 | AU30: 61286 | AV30: 124621 | AW30: 91106 | AX30: 66268 | AY30: 162653 | AZ30: 79843 | BA30: 83698 | BB30: 2323408 | BC30: 84036 | BD30: 57332 | BE30: 231825 | BF30: 20707 | BG30: 509922 | BH30: 174083 | BI30: 124038 | BJ30: 403396 | BK30: 460446 | BL30: 26284 | BM30: 56977 | BN30: 33870 | BO30: 21178 | BP30: 59703 | BQ30: 25498 | BR30: 33581
A31: Ausländer | C31: 3133874 | D31: 55449 | E31: 97891 | F31: 202263 | G31: 29528 | H31: 631202 | I31: 336237 | J31: 127668 | K31: 630143 | L31: 670785 | M31: 41709 | N31: 161757 | O31: 36032 | P31: 17092 | Q31: 49752 | R31: 20495 | S31: 25601 | T31: 953149 | U31: 20100 | V31: 26216 | W31: 71701 | X31: 10098 | Y31: 219895 | Z31: 98927 | AA31: 46139 | AB31: 196325 | AC31: 182623 | AD31: 10761 | AE31: 34800 | AF31: 8884 | AG31: 5646 | AH31: 10947 | AI31: 4633 | AJ31: 5121 | AK31: 655077 | AL31: 15228 | AM31: 16219 | AN31: 55717 | AO31: 7241 | AP31: 167268 | AQ31: 64958 | AR31: 35098 | AS31: 122862 | AT31: 104378 | AU31: 8570 | AV31: 26713 | AW31: 7762 | AX31: 5230 | AY31: 9324 | AZ31: 3989 | BA31: 4268 | BB31: 298072 | BC31: 4872 | BD31: 9997 | BE31: 15984 | BF31: 2857 | BG31: 52627 | BH31: 33969 | BI31: 11041 | BJ31: 73463 | BK31: 78245 | BL31: 2191 | BM31: 8087 | BN31: 1122 | BO31: 416 | BP31: 1623 | BQ31: 644 | BR31: 853
A33: Vollzeitbeschäftigt | C33: 22873969 | D33: 655297 | E33: 682457 | F33: 2034689 | G33: 229034 | H33: 4819617 | I33: 1778404 | J33: 978793 | K33: 3337075 | L33: 3913745 | M33: 281482 | N33: 925921 | O33: 579715 | P33: 399997 | Q33: 1108525 | R33: 560296 | S33: 587944 | T33: 101871 | U33: 3301 | V33: 424 | W33: 17852 | X33: 512 | Y33: 15327 | Z33: 7049 | AA33: 10564 | AB33: 16676 | AC33: 15574 | AD33: 483 | AE33: 918 | AF33: 3907 | AG33: 1932 | AH33: 3198 | AI33: 1506 | AJ33: 2645 | AK33: 98678 | AL33: 3133 | AM33: 400 | AN33: 17488 | AO33: 484 | AP33: 14918 | AQ33: 6868 | AR33: 10318 | AS33: 16124 | AT33: 14753 | AU33: 462 | AV33: 800 | AW33: 3848 | AX33: 1882 | AY33: 3134 | AZ33: 1474 | BA33: 2589 | BB33: 3193 | BC33: 168 | BD33: 24 | BE33: 364 | BF33: 28 | BG33: 409 | BH33: 181 | BI33: 246 | BJ33: 552 | BK33: 821 | BL33: 21 | BM33: 118 | BN33: 59 | BO33: 50 | BP33: 64 | BQ33: 32 | BR33: 56
A34: Teilzeitbeschäftigt | C34: 8568637 | D34: 285297 | E34: 251368 | F34: 801309 | G34: 90644 | H34: 1729552 | I34: 684160 | J34: 385853 | K34: 1121549 | L34: 1403713 | M34: 98100 | N34: 441729 | O34: 238724 | P34: 160354 | Q34: 446749 | R34: 223590 | S34: 205389 | T34: 7385588 | U34: 260402 | V34: 168463 | W34: 743651 | X34: 68640 | Y34: 1746321 | Z34: 575621 | AA34: 389392 | AB34: 1170100 | AC34: 1294702 | AD34: 94360 | AE34: 209693 | AF34: 126140 | AG34: 88934 | AH34: 224904 | AI34: 105816 | AJ34: 117278 | AK34: 4848031 | AL34: 175173 | AM34: 102980 | AN34: 504844 | AO34: 45706 | AP34: 1202711 | AQ34: 373886 | AR34: 259720 | AS34: 706210 | AT34: 773458 | AU34: 66734 | AV34: 146590 | AW34: 92260 | AX34: 67982 | AY34: 165077 | AZ34: 80356 | BA34: 83581 | BB34: 2537557 | BC34: 85229 | BD34: 65483 | BE34: 238807 | BF34: 22934 | BG34: 543610 | BH34: 201735 | BI34: 129672 | BJ34: 463890 | BK34: 521244 | BL34: 27626 | BM34: 63103 | BN34: 33880 | BO34: 20952 | BP34: 59827 | BQ34: 25460 | BR34: 33697
A35: keine Angabe | C35: 712 | D35: 19 | E35: 21 | F35: 93 | G35: 3 | H35: 181 | I35: 41 | J35: 36 | K35: 82 | L35: 71 | M35: 9 | N35: 30 | O35: 35 | P35: 21 | Q35: 26 | R35: 14 | S35: 30 | T35: 275759 | U35: 11771 | V35: 5376 | W35: 31204 | X35: 2089 | Y35: 73551 | Z35: 20117 | AA35: 17947 | AB35: 36431 | AC35: 48446 | AD35: 3638 | AE35: 7341 | AF35: 4079 | AG35: 2318 | AH35: 5410 | AI35: 2798 | AJ35: 2561 | AK35: 194824 | AL35: 8257 | AM35: 3537 | AN35: 22542 | AO35: 1487 | AP35: 54957 | AQ35: 13966 | AR35: 12784 | AS35: 23980 | AT35: 31799 | AU35: 2810 | AV35: 5478 | AW35: 3024 | AX35: 1724 | AY35: 3975 | AZ35: 2147 | BA35: 1880 | BB35: 80935 | BC35: 3514 | BD35: 1839 | BE35: 8662 | BF35: 602 | BG35: 18594 | BH35: 6151 | BI35: 5163 | BJ35: 12451 | BK35: 16647 | BL35: 828 | BM35: 1863 | BN35: 1055 | BO35: 594 | BP35: 1435 | BQ35: 651 | BR35: 681
A36: ohne Berufsabschluss | C36: 3699511 | D36: 115369 | E36: 103502 | F36: 334681 | G36: 39600 | H36: 906313 | I36: 306706 | J36: 182575 | K36: 613361 | L36: 620363 | M36: 51987 | N36: 143226 | O36: 55975 | P36: 36199 | Q36: 90618 | R36: 49612 | S36: 49254 | T36: 1567956 | U36: 54037 | V36: 40276 | W36: 156043 | X36: 16142 | Y36: 401066 | Z36: 131585 | AA36: 85661 | AB36: 276845 | AC36: 247576 | AD36: 19341 | AE36: 44628 | AF36: 17923 | AG36: 12707 | AH36: 33842 | AI36: 13868 | AJ36: 16145 | AK36: 1185028 | AL36: 42708 | AM36: 28470 | AN36: 121736 | AO36: 12070 | AP36: 305078 | AQ36: 97110 | AR36: 65863 | AS36: 200055 | AT36: 178456 | AU36: 15264 | AV36: 35546 | AW36: 15115 | AX36: 11260 | AY36: 29812 | AZ36: 12131 | BA36: 14164 | BB36: 382928 | BC36: 11329 | BD36: 11806 | BE36: 34307 | BF36: 4072 | BG36: 95988 | BH36: 34475 | BI36: 19798 | BJ36: 76790 | BK36: 69120 | BL36: 4077 | BM36: 9082 | BN36: 2808 | BO36: 1447 | BP36: 4030 | BQ36: 1737 | BR36: 1981
A37: mit anerkanntem Berufsabschluss | C37: 19675786 | D37: 612016 | E37: 494401 | F37: 1860174 | G37: 187995 | H37: 3921074 | I37: 1423680 | J37: 894521 | K37: 2762971 | L37: 3368586 | M37: 251093 | N37: 685594 | O37: 562632 | P37: 396563 | Q37: 1091667 | R37: 573587 | S37: 588373 | T37: 3757097 | U37: 133894 | V37: 68846 | W37: 383228 | X37: 28735 | Y37: 792095 | Z37: 276737 | AA37: 203438 | AB37: 618137 | AC37: 738823 | AD37: 49210 | AE37: 77789 | AF37: 68820 | AG37: 48764 | AH37: 133109 | AI37: 62782 | AJ37: 71878 | AK37: 1980435 | AL37: 71030 | AM37: 31236 | AN37: 210130 | AO37: 14615 | AP37: 431558 | AQ37: 143943 | AR37: 108161 | AS37: 289326 | AT37: 354720 | AU37: 29371 | AV37: 42169 | AW37: 43951 | AX37: 33046 | AY37: 88157 | AZ37: 43260 | BA37: 45341 | BB37: 1776662 | BC37: 62864 | BD37: 37610 | BE37: 173098 | BF37: 14120 | BG37: 360537 | BH37: 132794 | BI37: 95277 | BJ37: 328811 | BK37: 384103 | BL37: 19839 | BM37: 35620 | BN37: 24869 | BO37: 15718 | BP37: 44952 | BQ37: 19522 | BR37: 26537
A38: mit akad. Abschluss | C38: 4713610 | D38: 96652 | E38: 201476 | F38: 334085 | G38: 51048 | H38: 912794 | I38: 433807 | J38: 148906 | K38: 715732 | L38: 819574 | M38: 41889 | N38: 326737 | O38: 104115 | P38: 69416 | Q38: 258215 | R38: 96535 | S38: 102352 | T38: 534151 | U38: 14492 | V38: 16523 | W38: 46690 | X38: 5644 | Y38: 106366 | Z38: 42640 | AA38: 22923 | AB38: 86569 | AC38: 96312 | AD38: 5768 | AE38: 26343 | AF38: 10671 | AG38: 7249 | AH38: 24402 | AI38: 9442 | AJ38: 11968 | AK38: 289356 | AL38: 7851 | AM38: 8336 | AN38: 26974 | AO38: 3146 | AP38: 57145 | AQ38: 22334 | AR38: 12181 | AS38: 44713 | AT38: 49472 | AU38: 3149 | AV38: 14758 | AW38: 6203 | AX38: 4347 | AY38: 15072 | AZ38: 6024 | BA38: 7573 | BB38: 244795 | BC38: 6641 | BD38: 8187 | BE38: 19716 | BF38: 2498 | BG38: 49221 | BH38: 20306 | BI38: 10742 | BJ38: 41856 | BK38: 46840 | BL38: 2619 | BM38: 11585 | BN38: 4468 | BO38: 2902 | BP38: 9330 | BQ38: 3418 | BR38: 4395
A39: keine Angabe | C39: 3354411 | D39: 116576 | E39: 134467 | F39: 307151 | G39: 41038 | H39: 809169 | I39: 298412 | J39: 138680 | K39: 366642 | L39: 509006 | M39: 34622 | N39: 212123 | O39: 95752 | P39: 58194 | Q39: 114800 | R39: 64166 | S39: 53384 | T39: 1904014 | U39: 73051 | V39: 48618 | W39: 206746 | X39: 20720 | Y39: 535672 | Z39: 151825 | AA39: 105881 | AB39: 241656 | AC39: 276011 | AD39: 24162 | AE39: 69192 | AF39: 36712 | AG39: 24464 | AH39: 42159 | AI39: 24028 | AJ39: 22493 | AK39: 1686714 | AL39: 64974 | AM39: 38875 | AN39: 186034 | AO39: 17846 | AP39: 478805 | AQ39: 131333 | AR39: 96617 | AS39: 212220 | AT39: 237362 | AU39: 22222 | AV39: 60395 | AW39: 33863 | AX39: 22935 | AY39: 39145 | AZ39: 22562 | BA39: 20972 | BB39: 217300 | BC39: 8077 | BD39: 9743 | BE39: 20712 | BF39: 2874 | BG39: 56867 | BH39: 20492 | BI39: 9264 | BJ39: 29436 | BK39: 38649 | BL39: 1940 | BM39: 8797 | BN39: 2849 | BO39: 1529 | BP39: 3014 | BQ39: 1466 | BR39: 1521
A96: VOR REV
B98: SvB | S98: GB | AJ98: GB_ausschl. | BA98: GB_im_NJ
A99: Merkmale_1.1 | B99: Deutschland | C99: Schleswig-Holstein,01 | D99: Hamburg,02 | E99: Niedersachsen,03 | F99: Bremen,04 | G99: Nordrhein-Westfalen,05 | H99: Hessen,06 | I99: Rheinland-Pfalz,07 | J99: Baden-Württemberg,08 | K99: Bayern,09 | L99: Saarland,10 | M99: Berlin,11 | N99: Brandenburg,12 | O99: Mecklenburg-Vorpommern,13 | P99: Sachsen,14 | Q99: Sachsen-Anhalt,15 | R99: Thüringen,16 | S99: Deutschland | T99: Schleswig-Holstein,01 | U99: Hamburg,02 | V99: Niedersachsen,03 | W99: Bremen,04 | X99: Nordrhein-Westfalen,05 | Y99: Hessen,06 | Z99: Rheinland-Pfalz,07 | AA99: Baden-Württemberg,08 | AB99: Bayern,09 | AC99: Saarland,10 | AD99: Berlin,11 | AE99: Brandenburg,12 | AF99: Mecklenburg-Vorpommern,13 | AG99: Sachsen,14 | AH99: Sachsen-Anhalt,15 | AI99: Thüringen,16 | AJ99: Deutschland | AK99: Schleswig-Holstein,01 | AL99: Hamburg,02 | AM99: Niedersachsen,03 | AN99: Bremen,04 | AO99: Nordrhein-Westfalen,05 | AP99: Hessen,06 | AQ99: Rheinland-Pfalz,07 | AR99: Baden-Württemberg,08 | AS99: Bayern,09 | AT99: Saarland,10 | AU99: Berlin,11 | AV99: Brandenburg,12 | AW99: Mecklenburg-Vorpommern,13 | AX99: Sachsen,14 | AY99: Sachsen-Anhalt,15 | AZ99: Thüringen,16 | BA99: Deutschland | BB99: Schleswig-Holstein,01 | BC99: Hamburg,02 | BD99: Niedersachsen,03 | BE99: Bremen,04 | BF99: Nordrhein-Westfalen,05 | BG99: Hessen,06 | BH99: Rheinland-Pfalz,07 | BI99: Baden-Württemberg,08 | BJ99: Bayern,09 | BK99: Saarland,10 | BL99: Berlin,11 | BM99: Brandenburg,12 | BN99: Mecklenburg-Vorpommern,13 | BO99: Sachsen,14 | BP99: Sachsen-Anhalt,15 | BQ99: Thüringen,16
A100: Insgesamt | B100: 31373691 | C100: 939248 | D100: 932219 | E100: 2820257 | F100: 319041 | G100: 6532721 | H100: 2457858 | I100: 1361894 | J100: 4451187 | K100: 5308747 | L100: 378477 | M100: 1365639 | N100: 816778 | O100: 559531 | P100: 1553509 | Q100: 782541 | R100: 792509 | S100: 7756094 | T100: 275183 | U100: 174175 | V100: 792020 | W100: 71170 | X100: 1833161 | Y100: 602198 | Z100: 417486 | AA100: 1222120 | AB100: 1357589 | AC100: 98330 | AD100: 217838 | AE100: 134078 | AF100: 93120 | AG100: 233364 | AH100: 110006 | AI100: 122399 | AJ100: 5141164 | AK100: 186447 | AL100: 106889 | AM100: 545652 | AN100: 47675 | AO100: 1272081 | AP100: 394583 | AQ100: 282736 | AR100: 746390 | AS100: 819989 | AT100: 69948 | AU100: 152822 | AV100: 99115 | AW100: 71538 | AX100: 172106 | AY100: 83919 | AZ100: 88028 | BA100: 2614930 | BB100: 88736 | BC100: 67286 | BD100: 246368 | BE100: 23495 | BF100: 561080 | BG100: 207615 | BH100: 134750 | BI100: 475730 | BJ100: 537600 | BK100: 28382 | BL100: 65016 | BM100: 34963 | BN100: 21582 | BO100: 61258 | BP100: 26087 | BQ100: 34371
A101: Männer | B101: 16829010 | C101: 489683 | D101: 497997 | E101: 1529704 | F101: 179146 | G101: 3576886 | H101: 1339826 | I101: 726584 | J101: 2441225 | K101: 2877312 | L101: 207188 | M101: 674896 | N101: 421601 | O101: 272468 | P101: 792431 | Q101: 394108 | R101: 407135 | S101: 3090276 | T101: 109946 | U101: 72634 | V101: 306562 | W101: 30472 | X101: 724007 | Y101: 240288 | Z101: 163499 | AA101: 486216 | AB101: 515506 | AC101: 38312 | AD101: 97454 | AE101: 59443 | AF101: 42246 | AG101: 102149 | AH101: 47412 | AI101: 53427 | AJ101: 1939448 | AK101: 73111 | AL101: 42807 | AM101: 200104 | AN101: 19672 | AO101: 467417 | AP101: 147594 | AQ101: 104182 | AR101: 272027 | AS101: 283249 | AT101: 25828 | AU101: 69467 | AV101: 45443 | AW101: 33789 | AX101: 77884 | AY101: 36910 | AZ101: 39531 | BA101: 1150828 | BB101: 36835 | BC101: 29827 | BD101: 106458 | BE101: 10800 | BF101: 256590 | BG101: 92694 | BH101: 59317 | BI101: 214189 | BJ101: 232257 | BK101: 12484 | BL101: 27987 | BM101: 14000 | BN101: 8457 | BO101: 24265 | BP101: 10502 | BQ101: 13896
A102: Frauen | B102: 14544681 | C102: 449565 | D102: 434222 | E102: 1290553 | F102: 139895 | G102: 2955835 | H102: 1118032 | I102: 635310 | J102: 2009962 | K102: 2431435 | L102: 171289 | M102: 690743 | N102: 395177 | O102: 287063 | P102: 761078 | Q102: 388433 | R102: 385374 | S102: 4665818 | T102: 165237 | U102: 101541 | V102: 485458 | W102: 40698 | X102: 1109154 | Y102: 361910 | Z102: 253987 | AA102: 735904 | AB102: 842083 | AC102: 60018 | AD102: 120384 | AE102: 74635 | AF102: 50874 | AG102: 131215 | AH102: 62594 | AI102: 68972 | AJ102: 3201716 | AK102: 113336 | AL102: 64082 | AM102: 345548 | AN102: 28003 | AO102: 804664 | AP102: 246989 | AQ102: 178554 | AR102: 474363 | AS102: 536740 | AT102: 44120 | AU102: 83355 | AV102: 53672 | AW102: 37749 | AX102: 94222 | AY102: 47009 | AZ102: 48497 | BA102: 1464102 | BB102: 51901 | BC102: 37459 | BD102: 139910 | BE102: 12695 | BF102: 304490 | BG102: 114921 | BH102: 75433 | BI102: 261541 | BJ102: 305343 | BK102: 15898 | BL102: 37029 | BM102: 20963 | BN102: 13125 | BO102: 36993 | BP102: 15585 | BQ102: 20475
A103: U25 | B103: 3084668 | C103: 100446 | D103: 80652 | E103: 303543 | F103: 30749 | G103: 651841 | H103: 225516 | I103: 150906 | J103: 487011 | K103: 618122 | L103: 38652 | M103: 99520 | N103: 51094 | O103: 37960 | P103: 103184 | Q103: 52402 | R103: 52915 | S103: 1479538 | T103: 55939 | U103: 38685 | V103: 156117 | W103: 15012 | X103: 361249 | Y103: 115967 | Z103: 83918 | AA103: 247272 | AB103: 237900 | AC103: 15146 | AD103: 45300 | AE103: 20125 | AF103: 15494 | AG103: 37244 | AH103: 15129 | AI103: 18806 | AJ103: 1185883 | AK103: 46679 | AL103: 30925 | AM103: 126779 | AN103: 12128 | AO103: 294704 | AP103: 94386 | AQ103: 68130 | AR103: 191128 | AS103: 176493 | AT103: 12033 | AU103: 39021 | AV103: 17589 | AW103: 13919 | AX103: 32365 | AY103: 13126 | AZ103: 16308 | BA103: 293655 | BB103: 9260 | BC103: 7760 | BD103: 29338 | BE103: 2884 | BF103: 66545 | BG103: 21581 | BH103: 15788 | BI103: 56144 | BJ103: 61407 | BK103: 3113 | BL103: 6279 | BM103: 2536 | BN103: 1575 | BO103: 4879 | BP103: 2003 | BQ103: 2498
A104: 25 - 29 Jahre | B104: 3521136 | C104: 99013 | D104: 114480 | E104: 302945 | F104: 34412 | G104: 728664 | H104: 272620 | I104: 147257 | J104: 500293 | K104: 612826 | L104: 40975 | M104: 180553 | N104: 84059 | O104: 60775 | P104: 176591 | Q104: 81116 | R104: 84373 | S104: 680580 | T104: 22126 | U104: 20236 | V104: 63594 | W104: 7745 | X104: 157443 | Y104: 54381 | Z104: 33624 | AA104: 105397 | AB104: 118895 | AC104: 7630 | AD104: 28876 | AE104: 10518 | AF104: 8351 | AG104: 22069 | AH104: 9207 | AI104: 10323 | AJ104: 370323 | AK104: 12374 | AL104: 11000 | AM104: 36080 | AN104: 4721 | AO104: 90862 | AP104: 30533 | AQ104: 18519 | AR104: 51176 | AS104: 52939 | AT104: 4360 | AU104: 19195 | AV104: 6490 | AW104: 5567 | AX104: 13876 | AY104: 6221 | AZ104: 6321 | BA104: 310257 | BB104: 9752 | BC104: 9236 | BD104: 27514 | BE104: 3024 | BF104: 66581 | BG104: 23848 | BH104: 15105 | BI104: 54221 | BJ104: 65956 | BK104: 3270 | BL104: 9681 | BM104: 4028 | BN104: 2784 | BO104: 8193 | BP104: 2986 | BQ104: 4002
A105: 30 - 34 Jahre | B105: 3537654 | C105: 96605 | D105: 122169 | E105: 295637 | F105: 34591 | G105: 706101 | H105: 280131 | I105: 140791 | J105: 490243 | K105: 611417 | L105: 39243 | M105: 192619 | N105: 94762 | O105: 64173 | P105: 190566 | Q105: 86073 | R105: 92325 | S105: 547765 | T105: 17405 | U105: 14211 | V105: 51958 | W105: 5237 | X105: 126322 | Y105: 42691 | Z105: 27265 | AA105: 88473 | AB105: 101952 | AC105: 6191 | AD105: 19580 | AE105: 9267 | AF105: 6064 | AG105: 15874 | AH105: 7296 | AI105: 7831 | AJ105: 267348 | AK105: 8743 | AL105: 6140 | AM105: 27418 | AN105: 2833 | AO105: 68122 | AP105: 20764 | AQ105: 13846 | AR105: 38762 | AS105: 41794 | AT105: 3321 | AU105: 10959 | AV105: 5148 | AW105: 3442 | AX105: 8015 | AY105: 4254 | AZ105: 3703 | BA105: 280417 | BB105: 8662 | BC105: 8071 | BD105: 24540 | BE105: 2404 | BF105: 58200 | BG105: 21927 | BH105: 13419 | BI105: 49711 | BJ105: 60158 | BK105: 2870 | BL105: 8621 | BM105: 4119 | BN105: 2622 | BO105: 7859 | BP105: 3042 | BQ105: 4128
A106: 35 - 39 Jahre | B106: 3377884 | C106: 96818 | D106: 115489 | E106: 287890 | F106: 32903 | G106: 676558 | H106: 275035 | I106: 135462 | J106: 464412 | K106: 583882 | L106: 37227 | M106: 169425 | N106: 91631 | O106: 61248 | P106: 180881 | Q106: 81914 | R106: 86918 | S106: 565000 | T106: 18395 | U106: 13448 | V106: 54473 | W106: 5196 | X106: 132406 | Y106: 45096 | Z106: 28525 | AA106: 93757 | AB106: 107646 | AC106: 6448 | AD106: 16326 | AE106: 9108 | AF106: 5627 | AG106: 14353 | AH106: 6700 | AI106: 7315 | AJ106: 283911 | AK106: 9301 | AL106: 5826 | AM106: 29660 | AN106: 2797 | AO106: 74978 | AP106: 22107 | AQ106: 14990 | AR106: 42999 | AS106: 47132 | AT106: 3630 | AU106: 8696 | AV106: 4762 | AW106: 3050 | AX106: 6977 | AY106: 3725 | AZ106: 3180 | BA106: 281089 | BB106: 9094 | BC106: 7622 | BD106: 24813 | BE106: 2399 | BF106: 57428 | BG106: 22989 | BH106: 13535 | BI106: 50758 | BJ106: 60514 | BK106: 2818 | BL106: 7630 | BM106: 4346 | BN106: 2577 | BO106: 7376 | BP106: 2975 | BQ106: 4135
A107: 40 - 44 Jahre | B107: 3255630 | C107: 98061 | D107: 102553 | E107: 296321 | F107: 33237 | G107: 676956 | H107: 269943 | I107: 135766 | J107: 463089 | K107: 562256 | L107: 37268 | M107: 139411 | N107: 78784 | O107: 51474 | P107: 157034 | Q107: 74718 | R107: 78588 | S107: 599541 | T107: 20298 | U107: 13382 | V107: 60796 | W107: 5359 | X107: 144182 | Y107: 48761 | Z107: 31159 | AA107: 100727 | AB107: 113742 | AC107: 6810 | AD107: 14847 | AE107: 8301 | AF107: 4988 | AG107: 12643 | AH107: 6362 | AI107: 6992 | AJ107: 302276 | AK107: 10236 | AL107: 5803 | AM107: 33170 | AN107: 2775 | AO107: 82012 | AP107: 23811 | AQ107: 16347 | AR107: 45358 | AS107: 50442 | AT107: 3856 | AU107: 8014 | AV107: 4506 | AW107: 2803 | AX107: 6272 | AY107: 3592 | AZ107: 3163 | BA107: 297265 | BB107: 10062 | BC107: 7579 | BD107: 27626 | BE107: 2584 | BF107: 62170 | BG107: 24950 | BH107: 14812 | BI107: 55369 | BJ107: 63300 | BK107: 2954 | BL107: 6833 | BM107: 3795 | BN107: 2185 | BO107: 6371 | BP107: 2770 | BQ107: 3829
A108: 45 - 49 Jahre | B108: 4275603 | C108: 137288 | D108: 125625 | E108: 402233 | F108: 45166 | G108: 924149 | H108: 348393 | I108: 184481 | J108: 600238 | K108: 708521 | L108: 51867 | M108: 167928 | N108: 104955 | O108: 69728 | P108: 198335 | Q108: 104538 | R108: 101963 | S108: 765970 | T108: 28562 | U108: 16094 | V108: 80914 | W108: 6619 | X108: 188204 | Y108: 60722 | Z108: 41001 | AA108: 122945 | AB108: 141734 | AC108: 9575 | AD108: 17476 | AE108: 10769 | AF108: 6753 | AG108: 16337 | AH108: 8925 | AI108: 9122 | AJ108: 385086 | AK108: 14418 | AL108: 6917 | AM108: 43976 | AN108: 3305 | AO108: 104972 | AP108: 29356 | AQ108: 21120 | AR108: 53771 | AS108: 63864 | AT108: 5559 | AU108: 9251 | AV108: 6078 | AW108: 4076 | AX108: 8497 | AY108: 5310 | AZ108: 4482 | BA108: 380884 | BB108: 14144 | BC108: 9177 | BD108: 36938 | BE108: 3314 | BF108: 83232 | BG108: 31366 | BH108: 19881 | BI108: 69174 | BJ108: 77870 | BK108: 4016 | BL108: 8225 | BM108: 4691 | BN108: 2677 | BO108: 7840 | BP108: 3615 | BQ108: 4640
A109: 50 - 54 Jahre | B109: 4514736 | C109: 139478 | D109: 122786 | E109: 413676 | F109: 47091 | G109: 959930 | H109: 354878 | I109: 201965 | J109: 629092 | K109: 717034 | L109: 57573 | M109: 184143 | N109: 129870 | O109: 88263 | P109: 225764 | Q109: 123428 | R109: 119572 | S109: 805814 | T109: 29836 | U109: 15854 | V109: 85177 | W109: 6772 | X109: 198799 | Y109: 62936 | Z109: 44608 | AA109: 124559 | AB109: 142647 | AC109: 11823 | AD109: 18733 | AE109: 13571 | AF109: 8790 | AG109: 19761 | AH109: 10763 | AI109: 10991 | AJ109: 437596 | AK109: 16194 | AL109: 7142 | AM109: 48721 | AN109: 3580 | AO109: 118268 | AP109: 33107 | AQ109: 24640 | AR109: 57670 | AS109: 70912 | AT109: 7471 | AU109: 10472 | AV109: 8537 | AW109: 5783 | AX109: 11681 | AY109: 7046 | AZ109: 6261 | BA109: 368218 | BB109: 13642 | BC109: 8712 | BD109: 36456 | BE109: 3192 | BF109: 80531 | BG109: 29829 | BH109: 19968 | BI109: 66889 | BJ109: 71735 | BK109: 4352 | BL109: 8261 | BM109: 5034 | BN109: 3007 | BO109: 8080 | BP109: 3717 | BQ109: 4730
A110: 55 - 59 Jahre | B110: 3593102 | C110: 104979 | D110: 90358 | E110: 322555 | F110: 37310 | G110: 750123 | H110: 269984 | I110: 164932 | J110: 505226 | K110: 563708 | L110: 47318 | M110: 138426 | N110: 112203 | O110: 77782 | P110: 193039 | Q110: 107907 | R110: 107109 | S110: 676959 | T110: 23767 | U110: 11904 | V110: 71030 | W110: 5604 | X110: 166865 | Y110: 51037 | Z110: 38222 | AA110: 99725 | AB110: 115626 | AC110: 11503 | AD110: 15310 | AE110: 13524 | AF110: 9627 | AG110: 20329 | AH110: 11167 | AI110: 11554 | AJ110: 424334 | AK110: 15051 | AL110: 6278 | AM110: 46544 | AN110: 3308 | AO110: 111976 | AP110: 31353 | AQ110: 24269 | AR110: 53286 | AS110: 66981 | AT110: 8366 | AU110: 9691 | AV110: 9706 | AW110: 7169 | AX110: 14185 | AY110: 8312 | AZ110: 7746 | BA110: 252625 | BB110: 8716 | BC110: 5626 | BD110: 24486 | BE110: 2296 | BF110: 54889 | BG110: 19684 | BH110: 13953 | BI110: 46439 | BJ110: 48645 | BK110: 3137 | BL110: 5619 | BM110: 3818 | BN110: 2458 | BO110: 6144 | BP110: 2855 | BQ110: 3808
A111: 60 - 64 Jahre | B111: 1958751 | C111: 56925 | D111: 49607 | E111: 170860 | F111: 20558 | G111: 402244 | H111: 142403 | I111: 88377 | J111: 273318 | K111: 290434 | L111: 25138 | M111: 81797 | N111: 63950 | O111: 44678 | P111: 118818 | Q111: 65694 | R111: 63878 | S111: 641138 | T111: 21704 | U111: 10281 | V111: 65799 | W111: 5039 | X111: 143532 | Y111: 46240 | Z111: 35407 | AA111: 89540 | AB111: 103586 | AC111: 10214 | AD111: 15383 | AE111: 17443 | AF111: 12644 | AG111: 31783 | AH111: 15288 | AI111: 17106 | AJ111: 512726 | AK111: 17226 | AL111: 7415 | AM111: 53393 | AN111: 3878 | AO111: 116614 | AP111: 36419 | AQ111: 28285 | AR111: 66284 | AS111: 79695 | AT111: 8603 | AU111: 12258 | AV111: 15240 | AW111: 11160 | AX111: 27900 | AY111: 13414 | AZ111: 14816 | BA111: 128412 | BB111: 4478 | BC111: 2866 | BD111: 12406 | BE111: 1161 | BF111: 26918 | BG111: 9821 | BH111: 7122 | BI111: 23256 | BJ111: 23891 | BK111: 1611 | BL111: 3125 | BM111: 2203 | BN111: 1484 | BO111: 3883 | BP111: 1874 | BQ111: 2290
A112: 65+ | B112: 254526 | C112: 9635 | D112: 8500 | E112: 24597 | F112: 3024 | G112: 56155 | H112: 18955 | I112: 11957 | J112: 38265 | K112: 40547 | L112: 3216 | M112: 11816 | N112: 5470 | O112: 3450 | P112: 9297 | Q112: 4751 | R112: 4868 | S112: 993762 | T112: 37150 | U112: 20079 | V112: 102161 | W112: 8587 | X112: 214154 | Y112: 74365 | Z112: 53756 | AA112: 149720 | AB112: 173858 | AC112: 12990 | AD112: 26006 | AE112: 21445 | AF112: 14782 | AG112: 42971 | AH112: 19169 | AI112: 22359 | AJ112: 971654 | AK112: 36224 | AL112: 19442 | AM112: 99910 | AN112: 8350 | AO112: 209568 | AP112: 72745 | AQ112: 52589 | AR112: 145951 | AS112: 169734 | AT112: 12749 | AU112: 25264 | AV112: 21052 | AW112: 14569 | AX112: 42338 | AY112: 18919 | AZ112: 22048 | BA112: 22108 | BB112: 926 | BC112: 637 | BD112: 2251 | BE112: 237 | BF112: 4586 | BG112: 1620 | BH112: 1167 | BI112: 3769 | BJ112: 4124 | BK112: 241 | BL112: 742 | BM112: 393 | BN112: 213 | BO112: 633 | BP112: 250 | BQ112: 311
A113: Deutsche | B113: 28227842 | C113: 883402 | D113: 833325 | E113: 2617869 | F113: 289416 | G113: 5897625 | H113: 2120588 | I113: 1233768 | J113: 3820095 | K113: 4637008 | L113: 336755 | M113: 1201657 | N113: 780460 | O113: 542327 | P113: 1503516 | Q113: 761933 | R113: 766834 | S113: 6784024 | T113: 254530 | U113: 147235 | V113: 718698 | W113: 60849 | X113: 1607426 | Y113: 501474 | Z113: 370411 | AA113: 1023290 | AB113: 1172809 | AC113: 87422 | AD113: 181466 | AE113: 124928 | AF113: 87378 | AG113: 222201 | AH113: 105226 | AI113: 117191 | AJ113: 4466958 | AK113: 170671 | AL113: 89962 | AM113: 488259 | AN113: 40209 | AO113: 1098963 | AP113: 327783 | AQ113: 246696 | AR113: 620943 | AS113: 713374 | AT113: 61230 | AU113: 124571 | AV113: 91090 | AW113: 66216 | AX113: 162571 | AY113: 79785 | AZ113: 83675 | BA113: 2317066 | BB113: 83859 | BC113: 57273 | BD113: 230439 | BE113: 20640 | BF113: 508463 | BG113: 173691 | BH113: 123715 | BI113: 402347 | BJ113: 459435 | BK113: 26192 | BL113: 56895 | BM113: 33838 | BN113: 21162 | BO113: 59630 | BP113: 25441 | BQ113: 33516
A114: Ausländer | B114: 3129357 | C114: 55404 | D114: 97802 | E114: 201344 | F114: 29486 | G114: 630113 | H114: 335838 | I114: 127549 | J114: 629439 | K114: 670003 | L114: 41624 | M114: 161600 | N114: 36006 | O114: 17087 | P114: 49742 | Q114: 20468 | R114: 25582 | S114: 953077 | T114: 20113 | U114: 26230 | V114: 71725 | W114: 10099 | X114: 219810 | Y114: 98877 | Z114: 46131 | AA114: 196316 | AB114: 182622 | AC114: 10758 | AD114: 34817 | AE114: 8884 | AF114: 5650 | AG114: 10954 | AH114: 4634 | AI114: 5124 | AJ114: 655420 | AK114: 15239 | AL114: 16234 | AM114: 55820 | AN114: 7244 | AO114: 167258 | AP114: 64968 | AQ114: 35098 | AR114: 122967 | AS114: 104478 | AT114: 8568 | AU114: 26717 | AV114: 7761 | AW114: 5232 | AX114: 9326 | AY114: 3989 | AZ114: 4269 | BA114: 297657 | BB114: 4874 | BC114: 9996 | BD114: 15905 | BE114: 2855 | BF114: 52552 | BG114: 33909 | BH114: 11033 | BI114: 73349 | BJ114: 78144 | BK114: 2190 | BL114: 8100 | BM114: 1123 | BN114: 418 | BO114: 1628 | BP114: 645 | BQ114: 855
A116: Vollzeitbeschäftigt | B116: 22825336 | C116: 654396 | D116: 681261 | E116: 2023642 | F116: 228544 | G116: 4807843 | H116: 1775075 | I116: 976809 | J116: 3331613 | K116: 3907766 | L116: 280655 | M116: 924600 | N116: 578663 | O116: 399436 | P116: 1107351 | Q116: 559291 | R116: 587413 | S116: 101914 | T116: 3303 | U116: 426 | V116: 17860 | W116: 510 | X116: 15333 | Y116: 7055 | Z116: 10565 | AA116: 16685 | AB116: 15588 | AC116: 484 | AD116: 918 | AE116: 3909 | AF116: 1932 | AG116: 3195 | AH116: 1505 | AI116: 2643 | AJ116: 98720 | AK116: 3134 | AL116: 401 | AM116: 17496 | AN116: 482 | AO116: 14921 | AP116: 6875 | AQ116: 10320 | AR116: 16133 | AS116: 14768 | AT116: 463 | AU116: 800 | AV116: 3850 | AW116: 1882 | AX116: 3132 | AY116: 1473 | AZ116: 2587 | BA116: 3194 | BB116: 169 | BC116: 25 | BD116: 364 | BE116: 28 | BF116: 412 | BG116: 180 | BH116: 245 | BI116: 552 | BJ116: 820 | BK116: 21 | BL116: 118 | BM116: 59 | BN116: 50 | BO116: 63 | BP116: 32 | BQ116: 56
A117: Teilzeitbeschäftigt | B117: 8547630 | C117: 284833 | D117: 250937 | E117: 796519 | F117: 90493 | G117: 1724693 | H117: 682741 | I117: 385049 | J117: 1119492 | K117: 1400908 | L117: 97813 | M117: 441009 | N117: 238079 | O117: 160074 | P117: 446131 | Q117: 223236 | R117: 205066 | S117: 7377556 | T117: 260058 | U117: 168365 | V117: 742847 | W117: 68561 | X117: 1744031 | Y117: 574969 | Z117: 388917 | AA117: 1168896 | AB117: 1293406 | AC117: 94189 | AD117: 209563 | AE117: 126086 | AF117: 88865 | AG117: 224747 | AH117: 105692 | AI117: 117193 | AJ117: 4846612 | AK117: 175000 | AL117: 102946 | AM117: 505434 | AN117: 45695 | AO117: 1201927 | AP117: 373677 | AQ117: 259565 | AR117: 706168 | AS117: 773254 | AT117: 66655 | AU117: 146527 | AV117: 92237 | AW117: 67926 | AX117: 164988 | AY117: 80288 | AZ117: 83560 | BA117: 2530944 | BB117: 85058 | BC117: 65419 | BD117: 237413 | BE117: 22866 | BF117: 542104 | BG117: 201292 | BH117: 129352 | BI117: 462728 | BJ117: 520152 | BK117: 27534 | BL117: 63036 | BM117: 33849 | BN117: 20939 | BO117: 59759 | BP117: 25404 | BQ117: 33633
A118: Keine Angabe | B118: 725 | C118: 19 | D118: 21 | E118: 96 | F118: 4 | G118: 185 | H118: 42 | I118: 36 | J118: 82 | K118: 73 | L118: 9 | M118: 30 | N118: 36 | O118: 21 | P118: 27 | Q118: 14 | R118: 30 | S118: 276624 | T118: 11822 | U118: 5384 | V118: 31313 | W118: 2099 | X118: 73797 | Y118: 20174 | Z118: 18004 | AA118: 36539 | AB118: 48595 | AC118: 3657 | AD118: 7357 | AE118: 4083 | AF118: 2323 | AG118: 5422 | AH118: 2809 | AI118: 2563 | AJ118: 195832 | AK118: 8313 | AL118: 3542 | AM118: 22722 | AN118: 1498 | AO118: 55233 | AP118: 14031 | AQ118: 12851 | AR118: 24089 | AS118: 31967 | AT118: 2830 | AU118: 5495 | AV118: 3028 | AW118: 1730 | AX118: 3986 | AY118: 2158 | AZ118: 1881 | BA118: 80792 | BB118: 3509 | BC118: 1842 | BD118: 8591 | BE118: 601 | BF118: 18564 | BG118: 6143 | BH118: 5153 | BI118: 12450 | BJ118: 16628 | BK118: 827 | BL118: 1862 | BM118: 1055 | BN118: 593 | BO118: 1436 | BP118: 651 | BQ118: 682
A119: ohne Berufsabschluss | B119: 3693645 | C119: 115284 | D119: 103413 | E119: 333043 | F119: 39541 | G119: 904622 | H119: 306298 | I119: 182395 | J119: 612785 | K119: 619726 | L119: 51894 | M119: 143071 | N119: 55913 | O119: 36176 | P119: 90513 | Q119: 49572 | R119: 49229 | S119: 1567590 | T119: 54006 | U119: 40273 | V119: 156008 | W119: 16141 | X119: 400945 | Y119: 131556 | Z119: 85667 | AA119: 276766 | AB119: 247529 | AC119: 19331 | AD119: 44635 | AE119: 17925 | AF119: 12707 | AG119: 33833 | AH119: 13844 | AI119: 16153 | AJ119: 1185028 | AK119: 42683 | AL119: 28469 | AM119: 121820 | AN119: 12074 | AO119: 305076 | AP119: 97095 | AQ119: 65868 | AR119: 200063 | AS119: 178442 | AT119: 15253 | AU119: 35547 | AV119: 15107 | AW119: 11258 | AX119: 29807 | AY119: 12106 | AZ119: 14170 | BA119: 382562 | BB119: 11323 | BC119: 11804 | BD119: 34188 | BE119: 4067 | BF119: 95869 | BG119: 34461 | BH119: 19799 | BI119: 76703 | BJ119: 69087 | BK119: 4078 | BL119: 9088 | BM119: 2818 | BN119: 1449 | BO119: 4026 | BP119: 1738 | BQ119: 1983
A120: mit anerkanntem Berufsabschluss | B120: 19627411 | C120: 611006 | D120: 493389 | E120: 1848906 | F120: 187583 | G120: 3909735 | H120: 1420560 | I120: 892407 | J120: 2757926 | K120: 3362477 | L120: 250265 | M120: 684459 | N120: 561359 | O120: 395946 | P120: 1090354 | Q120: 572491 | R120: 587689 | S120: 3752426 | T120: 133712 | U120: 68797 | V120: 382785 | W120: 28684 | X120: 790964 | Y120: 276341 | Z120: 203127 | AA120: 617366 | AB120: 737967 | AC120: 49107 | AD120: 77720 | AE120: 68790 | AF120: 48721 | AG120: 133003 | AH120: 62723 | AI120: 71806 | AJ120: 1981237 | AK120: 71003 | AL120: 31241 | AM120: 210834 | AN120: 14622 | AO120: 431615 | AP120: 143905 | AQ120: 108138 | AR120: 289489 | AS120: 354797 | AT120: 29349 | AU120: 42167 | AV120: 43954 | AW120: 33020 | AX120: 88109 | AY120: 43249 | AZ120: 45322 | BA120: 1771189 | BB120: 62709 | BC120: 37556 | BD120: 171951 | BE120: 14062 | BF120: 359349 | BG120: 132436 | BH120: 94989 | BI120: 327877 | BJ120: 383170 | BK120: 19758 | BL120: 35553 | BM120: 24836 | BN120: 15701 | BO120: 44894 | BP120: 19474 | BQ120: 26484
A121: mit akad. Abschluss | B121: 4704645 | C121: 96520 | D121: 201161 | E121: 332794 | F121: 50962 | G121: 910867 | H121: 432983 | I121: 148587 | J121: 714316 | K121: 818264 | L121: 41770 | M121: 326308 | N121: 103946 | O121: 69282 | P121: 257963 | Q121: 96399 | R121: 102246 | S121: 533626 | T121: 14473 | U121: 16516 | V121: 46628 | W121: 5636 | X121: 106229 | Y121: 42605 | Z121: 22891 | AA121: 86481 | AB121: 96246 | AC121: 5768 | AD121: 26344 | AE121: 10663 | AF121: 7240 | AG121: 24389 | AH121: 9422 | AI121: 11946 | AJ121: 289411 | AK121: 7844 | AL121: 8328 | AM121: 26992 | AN121: 3144 | AO121: 57136 | AP121: 22338 | AQ121: 12184 | AR121: 44721 | AS121: 49519 | AT121: 3157 | AU121: 14775 | AV121: 6206 | AW121: 4343 | AX121: 15071 | AY121: 6013 | AZ121: 7562 | BA121: 244215 | BB121: 6629 | BC121: 8188 | BD121: 19636 | BE121: 2492 | BF121: 49093 | BG121: 20267 | BH121: 10707 | BI121: 41760 | BJ121: 46727 | BK121: 2611 | BL121: 11569 | BM121: 4457 | BN121: 2897 | BO121: 9318 | BP121: 3409 | BQ121: 4384
A122: keine Angabe | B122: 3347990 | C122: 116438 | D122: 134256 | E122: 305514 | F122: 40955 | G122: 807497 | H122: 298017 | I122: 138505 | J122: 366160 | K122: 508280 | L122: 34548 | M122: 211801 | N122: 95560 | O122: 58127 | P122: 114679 | Q122: 64079 | R122: 53345 | S122: 1902452 | T122: 72992 | U122: 48589 | V122: 206599 | W122: 20709 | X122: 535023 | Y122: 151696 | Z122: 105801 | AA122: 241507 | AB122: 275847 | AC122: 24124 | AD122: 69139 | AE122: 36700 | AF122: 24452 | AG122: 42139 | AH122: 24017 | AI122: 22494 | AJ122: 1685488 | AK122: 64917 | AL122: 38851 | AM122: 186006 | AN122: 17835 | AO122: 478254 | AP122: 131245 | AQ122: 96546 | AR122: 212117 | AS122: 237231 | AT122: 22189 | AU122: 60333 | AV122: 33848 | AW122: 22917 | AX122: 39119 | AY122: 22551 | AZ122: 20974 | BA122: 216964 | BB122: 8075 | BC122: 9738 | BD122: 20593 | BE122: 2874 | BF122: 56769 | BG122: 20451 | BH122: 9255 | BI122: 29390 | BJ122: 38616 | BK122: 1935 | BL122: 8806 | BM122: 2852 | BN122: 1535 | BO122: 3020 | BP122: 1466 | BQ122: 1520

Sheet 1.2 Steuerung (hidden)
C5: Steuerungsblatt - Bitte keine Änderungen vornehmen.
D13: NACH REV | G13: SvB | I13: GB | J13: GB_ausschl. | K13: GB_im_NJ
F14: 1. Vergleich | H14: =MATCH(G$13,'1 Roh-Daten'!$C$14:$BR$14,0) -> 1 | I14: =MATCH(I$13,'1 Roh-Daten'!$C$14:$BR$14,0) -> 18 | J14: =MATCH(J$13,'1 Roh-Daten'!$C$14:$BR$14,0) -> 35 | K14: =MATCH(K$13,'1 Roh-Daten'!$C$14:$BR$14,0) -> 52 | L14: =MATCH('1.2 Steuerung'!G13,'1 Roh-Daten'!#REF!) -> 
F15: 2. Vergleich | H15: =MATCH('1.2 Steuerung'!$C$18,'1 Roh-Daten'!$C$15:$S$15,0) -> 1 | L15: =MATCH('1.2 Steuerung'!$C$18,'1 Roh-Daten'!#REF!,0) -> 
F16: Zeilennum. | H16: mit PG | L16: neue PG
B17: Zuweis.1 Refnm. | H17: =H14+$H$15-1 -> 1 | I17: =I14+$H$15-1 -> 18 | J17: =J14+$H$15-1 -> 35 | K17: =K14+$H$15-1 -> 52 | L17: =L14+L15-1 -> 
B18: =INDEX($B$20:$B$36,B19,1) -> Deutschland | C18: =INDEX(C20:C36,C19,1) -> Deutschland | E18: Insgesamt | F18: 1 | G18: =IFERROR(INDEX('1 Roh-Daten'!$C$58:$S$80,'1.2 Steuerung'!$F18,'1.2 Steuerung'!G$17),"") -> 0 | H18: =IFERROR(INDEX('1 Roh-Daten'!$C$17:$BR$39,'1.2 Steuerung'!$F18,'1.2 Steuerung'!H$17),"") -> 31443318 | I18: =IFERROR(INDEX('1 Roh-Daten'!$C$17:$BR$39,'1.2 Steuerung'!$F18,'1.2 Steuerung'!I$17),"") -> 7763218 | J18: =IFERROR(INDEX('1 Roh-Daten'!$C$17:$BR$39,'1.2 Steuerung'!$F18,'1.2 Steuerung'!J$17),"") -> 5141533 | K18: =IFERROR(INDEX('1 Roh-Daten'!$C$17:$BR$39,'1.2 Steuerung'!$F18,'1.2 Steuerung'!K$17),"") -> 2621685 | L18: =IFERROR(INDEX('1 Roh-Daten'!#REF!,'1.2 Steuerung'!$F18,'1.2 Steuerung'!L$17),"") -> 
B19: 1 | C19: =B19 -> 1 | E19: Männer | F19: 2 | G19: =IFERROR(INDEX('1 Roh-Daten'!$C$58:$S$80,'1.2 Steuerung'!$F19,'1.2 Steuerung'!G$17),"") -> 0 | H19: =IFERROR(INDEX('1 Roh-Daten'!$C$17:$BR$39,'1.2 Steuerung'!$F19,'1.2 Steuerung'!H$17),"") -> 16864227 | I19: =IFERROR(INDEX('1 Roh-Daten'!$C$17:$BR$39,'1.2 Steuerung'!$F19,'1.2 Steuerung'!I$17),"") -> 3092298 | J19: =IFERROR(INDEX('1 Roh-Daten'!$C$17:$BR$39,'1.2 Steuerung'!$F19,'1.2 Steuerung'!J$17),"") -> 1938828 | K19: =IFERROR(INDEX('1 Roh-Daten'!$C$17:$BR$39,'1.2 Steuerung'!$F19,'1.2 Steuerung'!K$17),"") -> 1153470 | L19: =IFERROR(INDEX('1 Roh-Daten'!#REF!,'1.2 Steuerung'!$F19,'1.2 Steuerung'!L$17),"") -> 
B20: Deutschland | C20: Deutschland | E20: Frauen | F20: 3 | G20: =IFERROR(INDEX('1 Roh-Daten'!$C$58:$S$80,'1.2 Steuerung'!$F20,'1.2 Steuerung'!G$17),"") -> 0 | H20: =IFERROR(INDEX('1 Roh-Daten'!$C$17:$BR$39,'1.2 Steuerung'!$F20,'1.2 Steuerung'!H$17),"") -> 14579091 | I20: =IFERROR(INDEX('1 Roh-Daten'!$C$17:$BR$39,'1.2 Steuerung'!$F20,'1.2 Steuerung'!I$17),"") -> 4670920 | J20: =IFERROR(INDEX('1 Roh-Daten'!$C$17:$BR$39,'1.2 Steuerung'!$F20,'1.2 Steuerung'!J$17),"") -> 3202705 | K20: =IFERROR(INDEX('1 Roh-Daten'!$C$17:$BR$39,'1.2 Steuerung'!$F20,'1.2 Steuerung'!K$17),"") -> 1468215 | L20: =IFERROR(INDEX('1 Roh-Daten'!#REF!,'1.2 Steuerung'!$F20,'1.2 Steuerung'!L$17),"") -> 
B21: Schleswig-Holstein | C21: Schleswig-Holstein,01 | E21: U25 | F21: 4 | G21: =IFERROR(INDEX('1 Roh-Daten'!$C$58:$S$80,'1.2 Steuerung'!$F21,'1.2 Steuerung'!G$17),"") -> 0 | H21: =IFERROR(INDEX('1 Roh-Daten'!$C$17:$BR$39,'1.2 Steuerung'!$F21,'1.2 Steuerung'!H$17),"") -> 3088340 | I21: =IFERROR(INDEX('1 Roh-Daten'!$C$17:$BR$39,'1.2 Steuerung'!$F21,'1.2 Steuerung'!I$17),"") -> 1479272 | J21: =IFERROR(INDEX('1 Roh-Daten'!$C$17:$BR$39,'1.2 Steuerung'!$F21,'1.2 Steuerung'!J$17),"") -> 1185624 | K21: =IFERROR(INDEX('1 Roh-Daten'!$C$17:$BR$39,'1.2 Steuerung'!$F21,'1.2 Steuerung'!K$17),"") -> 293648 | L21: =IFERROR(INDEX('1 Roh-Daten'!#REF!,'1.2 Steuerung'!$F21,'1.2 Steuerung'!L$17),"") -> 
B22: Hamburg | C22: Hamburg,02 | E22: 25 - 29 Jahre | F22: 5 | G22: =IFERROR(INDEX('1 Roh-Daten'!$C$58:$S$80,'1.2 Steuerung'!$F22,'1.2 Steuerung'!G$17),"") -> 0 | H22: =IFERROR(INDEX('1 Roh-Daten'!$C$17:$BR$39,'1.2 Steuerung'!$F22,'1.2 Steuerung'!H$17),"") -> 3528397 | I22: =IFERROR(INDEX('1 Roh-Daten'!$C$17:$BR$39,'1.2 Steuerung'!$F22,'1.2 Steuerung'!I$17),"") -> 680376 | J22: =IFERROR(INDEX('1 Roh-Daten'!$C$17:$BR$39,'1.2 Steuerung'!$F22,'1.2 Steuerung'!J$17),"") -> 369723 | K22: =IFERROR(INDEX('1 Roh-Daten'!$C$17:$BR$39,'1.2 Steuerung'!$F22,'1.2 Steuerung'!K$17),"") -> 310653 | L22: =IFERROR(INDEX('1 Roh-Daten'!#REF!,'1.2 Steuerung'!$F22,'1.2 Steuerung'!L$17),"") -> 
B23: Niedersachsen | C23: Niedersachsen,03 | E23: 30 - 34 Jahre | F23: 6 | G23: =IFERROR(INDEX('1 Roh-Daten'!$C$58:$S$80,'1.2 Steuerung'!$F23,'1.2 Steuerung'!G$17),"") -> 0 | H23: =IFERROR(INDEX('1 Roh-Daten'!$C$17:$BR$39,'1.2 Steuerung'!$F23,'1.2 Steuerung'!H$17),"") -> 3546091 | I23: =IFERROR(INDEX('1 Roh-Daten'!$C$17:$BR$39,'1.2 Steuerung'!$F23,'1.2 Steuerung'!I$17),"") -> 547916 | J23: =IFERROR(INDEX('1 Roh-Daten'!$C$17:$BR$39,'1.2 Steuerung'!$F23,'1.2 Steuerung'!J$17),"") -> 266856 | K23: =IFERROR(INDEX('1 Roh-Daten'!$C$17:$BR$39,'1.2 Steuerung'!$F23,'1.2 Steuerung'!K$17),"") -> 281060 | L23: =IFERROR(INDEX('1 Roh-Daten'!#REF!,'1.2 Steuerung'!$F23,'1.2 Steuerung'!L$17),"") -> 
B24: Bremen | C24: Bremen,04 | E24: 35 - 39 Jahre | F24: 7 | G24: =IFERROR(INDEX('1 Roh-Daten'!$C$58:$S$80,'1.2 Steuerung'!$F24,'1.2 Steuerung'!G$17),"") -> 0 | H24: =IFERROR(INDEX('1 Roh-Daten'!$C$17:$BR$39,'1.2 Steuerung'!$F24,'1.2 Steuerung'!H$17),"") -> 3386494 | I24: =IFERROR(INDEX('1 Roh-Daten'!$C$17:$BR$39,'1.2 Steuerung'!$F24,'1.2 Steuerung'!I$17),"") -> 565401 | J24: =IFERROR(INDEX('1 Roh-Daten'!$C$17:$BR$39,'1.2 Steuerung'!$F24,'1.2 Steuerung'!J$17),"") -> 283525 | K24: =IFERROR(INDEX('1 Roh-Daten'!$C$17:$BR$39,'1.2 Steuerung'!$F24,'1.2 Steuerung'!K$17),"") -> 281876 | L24: =IFERROR(INDEX('1 Roh-Daten'!#REF!,'1.2 Steuerung'!$F24,'1.2 Steuerung'!L$17),"") -> 
B25: Nordrhein-Westfalen | C25: Nordrhein-Westfalen,05 | E25: 40 - 44 Jahre | F25: 8 | G25: =IFERROR(INDEX('1 Roh-Daten'!$C$58:$S$80,'1.2 Steuerung'!$F25,'1.2 Steuerung'!G$17),"") -> 0 | H25: =IFERROR(INDEX('1 Roh-Daten'!$C$17:$BR$39,'1.2 Steuerung'!$F25,'1.2 Steuerung'!H$17),"") -> 3264170 | I25: =IFERROR(INDEX('1 Roh-Daten'!$C$17:$BR$39,'1.2 Steuerung'!$F25,'1.2 Steuerung'!I$17),"") -> 600283 | J25: =IFERROR(INDEX('1 Roh-Daten'!$C$17:$BR$39,'1.2 Steuerung'!$F25,'1.2 Steuerung'!J$17),"") -> 302024 | K25: =IFERROR(INDEX('1 Roh-Daten'!$C$17:$BR$39,'1.2 Steuerung'!$F25,'1.2 Steuerung'!K$17),"") -> 298259 | L25: =IFERROR(INDEX('1 Roh-Daten'!#REF!,'1.2 Steuerung'!$F25,'1.2 Steuerung'!L$17),"") -> 
B26: Hessen | C26: Hessen,06 | E26: 45 - 49 Jahre | F26: 9 | G26: =IFERROR(INDEX('1 Roh-Daten'!$C$58:$S$80,'1.2 Steuerung'!$F26,'1.2 Steuerung'!G$17),"") -> 0 | H26: =IFERROR(INDEX('1 Roh-Daten'!$C$17:$BR$39,'1.2 Steuerung'!$F26,'1.2 Steuerung'!H$17),"") -> 4286460 | I26: =IFERROR(INDEX('1 Roh-Daten'!$C$17:$BR$39,'1.2 Steuerung'!$F26,'1.2 Steuerung'!I$17),"") -> 767192 | J26: =IFERROR(INDEX('1 Roh-Daten'!$C$17:$BR$39,'1.2 Steuerung'!$F26,'1.2 Steuerung'!J$17),"") -> 384842 | K26: =IFERROR(INDEX('1 Roh-Daten'!$C$17:$BR$39,'1.2 Steuerung'!$F26,'1.2 Steuerung'!K$17),"") -> 382350 | L26: =IFERROR(INDEX('1 Roh-Daten'!#REF!,'1.2 Steuerung'!$F26,'1.2 Steuerung'!L$17),"") -> 
B27: Rheinland-Pfalz | C27: Rheinland-Pfalz,07 | E27: 50 - 54 Jahre | F27: 10 | G27: =IFERROR(INDEX('1 Roh-Daten'!$C$58:$S$80,'1.2 Steuerung'!$F27,'1.2 Steuerung'!G$17),"") -> 0 | H27: =IFERROR(INDEX('1 Roh-Daten'!$C$17:$BR$39,'1.2 Steuerung'!$F27,'1.2 Steuerung'!H$17),"") -> 4525196 | I27: =IFERROR(INDEX('1 Roh-Daten'!$C$17:$BR$39,'1.2 Steuerung'!$F27,'1.2 Steuerung'!I$17),"") -> 807102 | J27: =IFERROR(INDEX('1 Roh-Daten'!$C$17:$BR$39,'1.2 Steuerung'!$F27,'1.2 Steuerung'!J$17),"") -> 437528 | K27: =IFERROR(INDEX('1 Roh-Daten'!$C$17:$BR$39,'1.2 Steuerung'!$F27,'1.2 Steuerung'!K$17),"") -> 369574 | L27: =IFERROR(INDEX('1 Roh-Daten'!#REF!,'1.2 Steuerung'!$F27,'1.2 Steuerung'!L$17),"") -> 
B28: Baden-Württemberg | C28: Baden-Württemberg,08 | E28: 55 - 59 Jahre | F28: 11 | G28: =IFERROR(INDEX('1 Roh-Daten'!$C$58:$S$80,'1.2 Steuerung'!$F28,'1.2 Steuerung'!G$17),"") -> 0 | H28: =IFERROR(INDEX('1 Roh-Daten'!$C$17:$BR$39,'1.2 Steuerung'!$F28,'1.2 Steuerung'!H$17),"") -> 3601358 | I28: =IFERROR(INDEX('1 Roh-Daten'!$C$17:$BR$39,'1.2 Steuerung'!$F28,'1.2 Steuerung'!I$17),"") -> 678030 | J28: =IFERROR(INDEX('1 Roh-Daten'!$C$17:$BR$39,'1.2 Steuerung'!$F28,'1.2 Steuerung'!J$17),"") -> 424546 | K28: =IFERROR(INDEX('1 Roh-Daten'!$C$17:$BR$39,'1.2 Steuerung'!$F28,'1.2 Steuerung'!K$17),"") -> 253484 | L28: =IFERROR(INDEX('1 Roh-Daten'!#REF!,'1.2 Steuerung'!$F28,'1.2 Steuerung'!L$17),"") -> 
B29: Bayern | C29: Bayern,09 | E29: 60 - 64 Jahre | F29: 12 | G29: =IFERROR(INDEX('1 Roh-Daten'!$C$58:$S$80,'1.2 Steuerung'!$F29,'1.2 Steuerung'!G$17),"") -> 0 | H29: =IFERROR(INDEX('1 Roh-Daten'!$C$17:$BR$39,'1.2 Steuerung'!$F29,'1.2 Steuerung'!H$17),"") -> 1962252 | I29: =IFERROR(INDEX('1 Roh-Daten'!$C$17:$BR$39,'1.2 Steuerung'!$F29,'1.2 Steuerung'!I$17),"") -> 642058 | J29: =IFERROR(INDEX('1 Roh-Daten'!$C$17:$BR$39,'1.2 Steuerung'!$F29,'1.2 Steuerung'!J$17),"") -> 513278 | K29: =IFERROR(INDEX('1 Roh-Daten'!$C$17:$BR$39,'1.2 Steuerung'!$F29,'1.2 Steuerung'!K$17),"") -> 128780 | L29: =IFERROR(INDEX('1 Roh-Daten'!#REF!,'1.2 Steuerung'!$F29,'1.2 Steuerung'!L$17),"") -> 
B30: Saarland | C30: Saarland,10 | E30: 65+ | F30: 13 | G30: =IFERROR(INDEX('1 Roh-Daten'!$C$58:$S$80,'1.2 Steuerung'!$F30,'1.2 Steuerung'!G$17),"") -> 0 | H30: =IFERROR(INDEX('1 Roh-Daten'!$C$17:$BR$39,'1.2 Steuerung'!$F30,'1.2 Steuerung'!H$17),"") -> 254559 | I30: =IFERROR(INDEX('1 Roh-Daten'!$C$17:$BR$39,'1.2 Steuerung'!$F30,'1.2 Steuerung'!I$17),"") -> 995561 | J30: =IFERROR(INDEX('1 Roh-Daten'!$C$17:$BR$39,'1.2 Steuerung'!$F30,'1.2 Steuerung'!J$17),"") -> 973560 | K30: =IFERROR(INDEX('1 Roh-Daten'!$C$17:$BR$39,'1.2 Steuerung'!$F30,'1.2 Steuerung'!K$17),"") -> 22001 | L30: =IFERROR(INDEX('1 Roh-Daten'!#REF!,'1.2 Steuerung'!$F30,'1.2 Steuerung'!L$17),"") -> 
B31: Berlin | C31: Berlin,11 | E31: Deutsche | F31: 14 | G31: =IFERROR(INDEX('1 Roh-Daten'!$C$58:$S$80,'1.2 Steuerung'!$F31,'1.2 Steuerung'!G$17),"") -> 0 | H31: =IFERROR(INDEX('1 Roh-Daten'!$C$17:$BR$39,'1.2 Steuerung'!$F31,'1.2 Steuerung'!H$17),"") -> 28292932 | I31: =IFERROR(INDEX('1 Roh-Daten'!$C$17:$BR$39,'1.2 Steuerung'!$F31,'1.2 Steuerung'!I$17),"") -> 6791093 | J31: =IFERROR(INDEX('1 Roh-Daten'!$C$17:$BR$39,'1.2 Steuerung'!$F31,'1.2 Steuerung'!J$17),"") -> 4467685 | K31: =IFERROR(INDEX('1 Roh-Daten'!$C$17:$BR$39,'1.2 Steuerung'!$F31,'1.2 Steuerung'!K$17),"") -> 2323408 | L31: =IFERROR(INDEX('1 Roh-Daten'!#REF!,'1.2 Steuerung'!$F31,'1.2 Steuerung'!L$17),"") -> 
B32: Brandenburg | C32: Brandenburg,12 | E32: Ausländer | F32: 15 | G32: =IFERROR(INDEX('1 Roh-Daten'!$C$58:$S$80,'1.2 Steuerung'!$F32,'1.2 Steuerung'!G$17),"") -> 0 | H32: =IFERROR(INDEX('1 Roh-Daten'!$C$17:$BR$39,'1.2 Steuerung'!$F32,'1.2 Steuerung'!H$17),"") -> 3133874 | I32: =IFERROR(INDEX('1 Roh-Daten'!$C$17:$BR$39,'1.2 Steuerung'!$F32,'1.2 Steuerung'!I$17),"") -> 953149 | J32: =IFERROR(INDEX('1 Roh-Daten'!$C$17:$BR$39,'1.2 Steuerung'!$F32,'1.2 Steuerung'!J$17),"") -> 655077 | K32: =IFERROR(INDEX('1 Roh-Daten'!$C$17:$BR$39,'1.2 Steuerung'!$F32,'1.2 Steuerung'!K$17),"") -> 298072 | L32: =IFERROR(INDEX('1 Roh-Daten'!#REF!,'1.2 Steuerung'!$F32,'1.2 Steuerung'!L$17),"") -> 
B33: Mecklenburg-Vorpommern | C33: Mecklenburg-Vorpommern,13 | E33: Keine Angabe | F33: 16 | G33: =IFERROR(INDEX('1 Roh-Daten'!$C$58:$S$80,'1.2 Steuerung'!$F33,'1.2 Steuerung'!G$17),"") -> 0 | H33: =IFERROR(INDEX('1 Roh-Daten'!$C$17:$BR$39,'1.2 Steuerung'!$F33,'1.2 Steuerung'!H$17),"") -> 0 | I33: =IFERROR(INDEX('1 Roh-Daten'!$C$17:$BR$39,'1.2 Steuerung'!$F33,'1.2 Steuerung'!I$17),"") -> 0 | J33: =IFERROR(INDEX('1 Roh-Daten'!$C$17:$BR$39,'1.2 Steuerung'!$F33,'1.2 Steuerung'!J$17),"") -> 0 | K33: =IFERROR(INDEX('1 Roh-Daten'!$C$17:$BR$39,'1.2 Steuerung'!$F33,'1.2 Steuerung'!K$17),"") -> 0 | L33: =IFERROR(INDEX('1 Roh-Daten'!#REF!,'1.2 Steuerung'!$F33,'1.2 Steuerung'!L$17),"") -> 
B34: Sachsen | C34: Sachsen,14 | E34: Vollzeitbeschäftigt | F34: 17 | G34: =IFERROR(INDEX('1 Roh-Daten'!$C$58:$S$80,'1.2 Steuerung'!$F34,'1.2 Steuerung'!G$17),"") -> 0 | H34: =IFERROR(INDEX('1 Roh-Daten'!$C$17:$BR$39,'1.2 Steuerung'!$F34,'1.2 Steuerung'!H$17),"") -> 22873969 | I34: =IFERROR(INDEX('1 Roh-Daten'!$C$17:$BR$39,'1.2 Steuerung'!$F34,'1.2 Steuerung'!I$17),"") -> 101871 | J34: =IFERROR(INDEX('1 Roh-Daten'!$C$17:$BR$39,'1.2 Steuerung'!$F34,'1.2 Steuerung'!J$17),"") -> 98678 | K34: =IFERROR(INDEX('1 Roh-Daten'!$C$17:$BR$39,'1.2 Steuerung'!$F34,'1.2 Steuerung'!K$17),"") -> 3193 | L34: =IFERROR(INDEX('1 Roh-Daten'!#REF!,'1.2 Steuerung'!$F34,'1.2 Steuerung'!L$17),"") -> 
B35: Sachsen-Anhalt | C35: Sachsen-Anhalt,15 | E35: Teilzeitbeschäftigt | F35: 18 | G35: =IFERROR(INDEX('1 Roh-Daten'!$C$58:$S$80,'1.2 Steuerung'!$F35,'1.2 Steuerung'!G$17),"") -> 0 | H35: =IFERROR(INDEX('1 Roh-Daten'!$C$17:$BR$39,'1.2 Steuerung'!$F35,'1.2 Steuerung'!H$17),"") -> 8568637 | I35: =IFERROR(INDEX('1 Roh-Daten'!$C$17:$BR$39,'1.2 Steuerung'!$F35,'1.2 Steuerung'!I$17),"") -> 7385588 | J35: =IFERROR(INDEX('1 Roh-Daten'!$C$17:$BR$39,'1.2 Steuerung'!$F35,'1.2 Steuerung'!J$17),"") -> 4848031 | K35: =IFERROR(INDEX('1 Roh-Daten'!$C$17:$BR$39,'1.2 Steuerung'!$F35,'1.2 Steuerung'!K$17),"") -> 2537557 | L35: =IFERROR(INDEX('1 Roh-Daten'!#REF!,'1.2 Steuerung'!$F35,'1.2 Steuerung'!L$17),"") -> 
B36: Thüringen | C36: Thüringen,16 | E36: keine Angabe | F36: 19 | G36: =IFERROR(INDEX('1 Roh-Daten'!$C$58:$S$80,'1.2 Steuerung'!$F36,'1.2 Steuerung'!G$17),"") -> 0 | H36: =IFERROR(INDEX('1 Roh-Daten'!$C$17:$BR$39,'1.2 Steuerung'!$F36,'1.2 Steuerung'!H$17),"") -> 712 | I36: =IFERROR(INDEX('1 Roh-Daten'!$C$17:$BR$39,'1.2 Steuerung'!$F36,'1.2 Steuerung'!I$17),"") -> 275759 | J36: =IFERROR(INDEX('1 Roh-Daten'!$C$17:$BR$39,'1.2 Steuerung'!$F36,'1.2 Steuerung'!J$17),"") -> 194824 | K36: =IFERROR(INDEX('1 Roh-Daten'!$C$17:$BR$39,'1.2 Steuerung'!$F36,'1.2 Steuerung'!K$17),"") -> 80935 | L36: =IFERROR(INDEX('1 Roh-Daten'!#REF!,'1.2 Steuerung'!$F36,'1.2 Steuerung'!L$17),"") -> 
E37: ohne Berufsabschluss | F37: 20 | G37: =IFERROR(INDEX('1 Roh-Daten'!$C$58:$S$80,'1.2 Steuerung'!$F37,'1.2 Steuerung'!G$17),"") -> 0 | H37: =IFERROR(INDEX('1 Roh-Daten'!$C$17:$BR$39,'1.2 Steuerung'!$F37,'1.2 Steuerung'!H$17),"") -> 3699511 | I37: =IFERROR(INDEX('1 Roh-Daten'!$C$17:$BR$39,'1.2 Steuerung'!$F37,'1.2 Steuerung'!I$17),"") -> 1567956 | J37: =IFERROR(INDEX('1 Roh-Daten'!$C$17:$BR$39,'1.2 Steuerung'!$F37,'1.2 Steuerung'!J$17),"") -> 1185028 | K37: =IFERROR(INDEX('1 Roh-Daten'!$C$17:$BR$39,'1.2 Steuerung'!$F37,'1.2 Steuerung'!K$17),"") -> 382928 | L37: =IFERROR(INDEX('1 Roh-Daten'!#REF!,'1.2 Steuerung'!$F37,'1.2 Steuerung'!L$17),"") -> 
E38: mit anerkanntem Berufsabschluss | F38: 21 | G38: =IFERROR(INDEX('1 Roh-Daten'!$C$58:$S$80,'1.2 Steuerung'!$F38,'1.2 Steuerung'!G$17),"") -> 0 | H38: =IFERROR(INDEX('1 Roh-Daten'!$C$17:$BR$39,'1.2 Steuerung'!$F38,'1.2 Steuerung'!H$17),"") -> 19675786 | I38: =IFERROR(INDEX('1 Roh-Daten'!$C$17:$BR$39,'1.2 Steuerung'!$F38,'1.2 Steuerung'!I$17),"") -> 3757097 | J38: =IFERROR(INDEX('1 Roh-Daten'!$C$17:$BR$39,'1.2 Steuerung'!$F38,'1.2 Steuerung'!J$17),"") -> 1980435 | K38: =IFERROR(INDEX('1 Roh-Daten'!$C$17:$BR$39,'1.2 Steuerung'!$F38,'1.2 Steuerung'!K$17),"") -> 1776662 | L38: =IFERROR(INDEX('1 Roh-Daten'!#REF!,'1.2 Steuerung'!$F38,'1.2 Steuerung'!L$17),"") -> 
E39: mit akad. Abschluss | F39: 22 | G39: =IFERROR(INDEX('1 Roh-Daten'!$C$58:$S$80,'1.2 Steuerung'!$F39,'1.2 Steuerung'!G$17),"") -> 0 | H39: =IFERROR(INDEX('1 Roh-Daten'!$C$17:$BR$39,'1.2 Steuerung'!$F39,'1.2 Steuerung'!H$17),"") -> 4713610 | I39: =IFERROR(INDEX('1 Roh-Daten'!$C$17:$BR$39,'1.2 Steuerung'!$F39,'1.2 Steuerung'!I$17),"") -> 534151 | J39: =IFERROR(INDEX('1 Roh-Daten'!$C$17:$BR$39,'1.2 Steuerung'!$F39,'1.2 Steuerung'!J$17),"") -> 289356 | K39: =IFERROR(INDEX('1 Roh-Daten'!$C$17:$BR$39,'1.2 Steuerung'!$F39,'1.2 Steuerung'!K$17),"") -> 244795 | L39: =IFERROR(INDEX('1 Roh-Daten'!#REF!,'1.2 Steuerung'!$F39,'1.2 Steuerung'!L$17),"") -> 
E40: keine Angabe | F40: 23 | G40: =IFERROR(INDEX('1 Roh-Daten'!$C$58:$S$80,'1.2 Steuerung'!$F40,'1.2 Steuerung'!G$17),"") -> 0 | H40: =IFERROR(INDEX('1 Roh-Daten'!$C$17:$BR$39,'1.2 Steuerung'!$F40,'1.2 Steuerung'!H$17),"") -> 3354411 | I40: =IFERROR(INDEX('1 Roh-Daten'!$C$17:$BR$39,'1.2 Steuerung'!$F40,'1.2 Steuerung'!I$17),"") -> 1904014 | J40: =IFERROR(INDEX('1 Roh-Daten'!$C$17:$BR$39,'1.2 Steuerung'!$F40,'1.2 Steuerung'!J$17),"") -> 1686714 | K40: =IFERROR(INDEX('1 Roh-Daten'!$C$17:$BR$39,'1.2 Steuerung'!$F40,'1.2 Steuerung'!K$17),"") -> 217300 | L40: =IFERROR(INDEX('1 Roh-Daten'!#REF!,'1.2 Steuerung'!$F40,'1.2 Steuerung'!L$17),"") -> 
C42: VOR REV | G42: SvB | I42: GB | J42: GB_ausschl. | K42: GB_im_NJ
F43: 1. Vergleich | G43: =MATCH('1.2 Steuerung'!G42,'1 Roh-Daten'!B98:BQ98,0) -> 1 | I43: =MATCH('1.2 Steuerung'!I42,'1 Roh-Daten'!B98:BQ98,0) -> 18 | J43: =MATCH('1.2 Steuerung'!J42,'1 Roh-Daten'!B98:BQ98,0) -> 35 | K43: =MATCH('1.2 Steuerung'!K42,'1 Roh-Daten'!B98:BQ98,0) -> 52
F44: 2. Vergleich | G44: =MATCH('1.2 Steuerung'!$C$18,'1 Roh-Daten'!B99:R99,0) -> 1
F45: Zeilennum. | G45: =G43+$G$44-1 -> 1 | I45: =I43+G44-1 -> 18 | J45: =J43+G44-1 -> 35 | K45: =K43+G44-1 -> 52
E47: Insgesamt | F47: 1 | G47: =IFERROR(INDEX('1 Roh-Daten'!$B$100:$BQ$122,'1.2 Steuerung'!F47,'1.2 Steuerung'!G$45),"") -> 31373691 | I47: =IFERROR(INDEX('1 Roh-Daten'!$B$100:$BQ$122,'1.2 Steuerung'!F47,'1.2 Steuerung'!I$45),"") -> 7756094 | J47: =IFERROR(INDEX('1 Roh-Daten'!$B$100:$BQ$122,'1.2 Steuerung'!F47,'1.2 Steuerung'!J$45),"") -> 5141164 | K47: =IFERROR(INDEX('1 Roh-Daten'!$B$100:$BQ$122,'1.2 Steuerung'!F47,'1.2 Steuerung'!K$45),"") -> 2614930
E48: Männer | F48: 2 | G48: =IFERROR(INDEX('1 Roh-Daten'!$B$100:$BQ$122,'1.2 Steuerung'!F48,'1.2 Steuerung'!G$45),"") -> 16829010 | I48: =IFERROR(INDEX('1 Roh-Daten'!$B$100:$BQ$122,'1.2 Steuerung'!F48,'1.2 Steuerung'!I$45),"") -> 3090276 | J48: =IFERROR(INDEX('1 Roh-Daten'!$B$100:$BQ$122,'1.2 Steuerung'!F48,'1.2 Steuerung'!J$45),"") -> 1939448 | K48: =IFERROR(INDEX('1 Roh-Daten'!$B$100:$BQ$122,'1.2 Steuerung'!F48,'1.2 Steuerung'!K$45),"") -> 1150828
E49: Frauen | F49: 3 | G49: =IFERROR(INDEX('1 Roh-Daten'!$B$100:$BQ$122,'1.2 Steuerung'!F49,'1.2 Steuerung'!G$45),"") -> 14544681 | I49: =IFERROR(INDEX('1 Roh-Daten'!$B$100:$BQ$122,'1.2 Steuerung'!F49,'1.2 Steuerung'!I$45),"") -> 4665818 | J49: =IFERROR(INDEX('1 Roh-Daten'!$B$100:$BQ$122,'1.2 Steuerung'!F49,'1.2 Steuerung'!J$45),"") -> 3201716 | K49: =IFERROR(INDEX('1 Roh-Daten'!$B$100:$BQ$122,'1.2 Steuerung'!F49,'1.2 Steuerung'!K$45),"") -> 1464102
E50: U25 | F50: 4 | G50: =IFERROR(INDEX('1 Roh-Daten'!$B$100:$BQ$122,'1.2 Steuerung'!F50,'1.2 Steuerung'!G$45),"") -> 3084668 | I50: =IFERROR(INDEX('1 Roh-Daten'!$B$100:$BQ$122,'1.2 Steuerung'!F50,'1.2 Steuerung'!I$45),"") -> 1479538 | J50: =IFERROR(INDEX('1 Roh-Daten'!$B$100:$BQ$122,'1.2 Steuerung'!F50,'1.2 Steuerung'!J$45),"") -> 1185883 | K50: =IFERROR(INDEX('1 Roh-Daten'!$B$100:$BQ$122,'1.2 Steuerung'!F50,'1.2 Steuerung'!K$45),"") -> 293655
E51: 25 - 29 Jahre | F51: 5 | G51: =IFERROR(INDEX('1 Roh-Daten'!$B$100:$BQ$122,'1.2 Steuerung'!F51,'1.2 Steuerung'!G$45),"") -> 3521136 | I51: =IFERROR(INDEX('1 Roh-Daten'!$B$100:$BQ$122,'1.2 Steuerung'!F51,'1.2 Steuerung'!I$45),"") -> 680580 | J51: =IFERROR(INDEX('1 Roh-Daten'!$B$100:$BQ$122,'1.2 Steuerung'!F51,'1.2 Steuerung'!J$45),"") -> 370323 | K51: =IFERROR(INDEX('1 Roh-Daten'!$B$100:$BQ$122,'1.2 Steuerung'!F51,'1.2 Steuerung'!K$45),"") -> 310257
E52: 30 - 34 Jahre | F52: 6 | G52: =IFERROR(INDEX('1 Roh-Daten'!$B$100:$BQ$122,'1.2 Steuerung'!F52,'1.2 Steuerung'!G$45),"") -> 3537654 | I52: =IFERROR(INDEX('1 Roh-Daten'!$B$100:$BQ$122,'1.2 Steuerung'!F52,'1.2 Steuerung'!I$45),"") -> 547765 | J52: =IFERROR(INDEX('1 Roh-Daten'!$B$100:$BQ$122,'1.2 Steuerung'!F52,'1.2 Steuerung'!J$45),"") -> 267348 | K52: =IFERROR(INDEX('1 Roh-Daten'!$B$100:$BQ$122,'1.2 Steuerung'!F52,'1.2 Steuerung'!K$45),"") -> 280417
E53: 35 - 39 Jahre | F53: 7 | G53: =IFERROR(INDEX('1 Roh-Daten'!$B$100:$BQ$122,'1.2 Steuerung'!F53,'1.2 Steuerung'!G$45),"") -> 3377884 | I53: =IFERROR(INDEX('1 Roh-Daten'!$B$100:$BQ$122,'1.2 Steuerung'!F53,'1.2 Steuerung'!I$45),"") -> 565000 | J53: =IFERROR(INDEX('1 Roh-Daten'!$B$100:$BQ$122,'1.2 Steuerung'!F53,'1.2 Steuerung'!J$45),"") -> 283911 | K53: =IFERROR(INDEX('1 Roh-Daten'!$B$100:$BQ$122,'1.2 Steuerung'!F53,'1.2 Steuerung'!K$45),"") -> 281089
E54: 40 - 44 Jahre | F54: 8 | G54: =IFERROR(INDEX('1 Roh-Daten'!$B$100:$BQ$122,'1.2 Steuerung'!F54,'1.2 Steuerung'!G$45),"") -> 3255630 | I54: =IFERROR(INDEX('1 Roh-Daten'!$B$100:$BQ$122,'1.2 Steuerung'!F54,'1.2 Steuerung'!I$45),"") -> 599541 | J54: =IFERROR(INDEX('1 Roh-Daten'!$B$100:$BQ$122,'1.2 Steuerung'!F54,'1.2 Steuerung'!J$45),"") -> 302276 | K54: =IFERROR(INDEX('1 Roh-Daten'!$B$100:$BQ$122,'1.2 Steuerung'!F54,'1.2 Steuerung'!K$45),"") -> 297265
E55: 45 - 49 Jahre | F55: 9 | G55: =IFERROR(INDEX('1 Roh-Daten'!$B$100:$BQ$122,'1.2 Steuerung'!F55,'1.2 Steuerung'!G$45),"") -> 4275603 | I55: =IFERROR(INDEX('1 Roh-Daten'!$B$100:$BQ$122,'1.2 Steuerung'!F55,'1.2 Steuerung'!I$45),"") -> 765970 | J55: =IFERROR(INDEX('1 Roh-Daten'!$B$100:$BQ$122,'1.2 Steuerung'!F55,'1.2 Steuerung'!J$45),"") -> 385086 | K55: =IFERROR(INDEX('1 Roh-Daten'!$B$100:$BQ$122,'1.2 Steuerung'!F55,'1.2 Steuerung'!K$45),"") -> 380884
E56: 50 - 54 Jahre | F56: 10 | G56: =IFERROR(INDEX('1 Roh-Daten'!$B$100:$BQ$122,'1.2 Steuerung'!F56,'1.2 Steuerung'!G$45),"") -> 4514736 | I56: =IFERROR(INDEX('1 Roh-Daten'!$B$100:$BQ$122,'1.2 Steuerung'!F56,'1.2 Steuerung'!I$45),"") -> 805814 | J56: =IFERROR(INDEX('1 Roh-Daten'!$B$100:$BQ$122,'1.2 Steuerung'!F56,'1.2 Steuerung'!J$45),"") -> 437596 | K56: =IFERROR(INDEX('1 Roh-Daten'!$B$100:$BQ$122,'1.2 Steuerung'!F56,'1.2 Steuerung'!K$45),"") -> 368218
E57: 55 - 59 Jahre | F57: 11 | G57: =IFERROR(INDEX('1 Roh-Daten'!$B$100:$BQ$122,'1.2 Steuerung'!F57,'1.2 Steuerung'!G$45),"") -> 3593102 | I57: =IFERROR(INDEX('1 Roh-Daten'!$B$100:$BQ$122,'1.2 Steuerung'!F57,'1.2 Steuerung'!I$45),"") -> 676959 | J57: =IFERROR(INDEX('1 Roh-Daten'!$B$100:$BQ$122,'1.2 Steuerung'!F57,'1.2 Steuerung'!J$45),"") -> 424334 | K57: =IFERROR(INDEX('1 Roh-Daten'!$B$100:$BQ$122,'1.2 Steuerung'!F57,'1.2 Steuerung'!K$45),"") -> 252625
E58: 60 - 64 Jahre | F58: 12 | G58: =IFERROR(INDEX('1 Roh-Daten'!$B$100:$BQ$122,'1.2 Steuerung'!F58,'1.2 Steuerung'!G$45),"") -> 1958751 | I58: =IFERROR(INDEX('1 Roh-Daten'!$B$100:$BQ$122,'1.2 Steuerung'!F58,'1.2 Steuerung'!I$45),"") -> 641138 | J58: =IFERROR(INDEX('1 Roh-Daten'!$B$100:$BQ$122,'1.2 Steuerung'!F58,'1.2 Steuerung'!J$45),"") -> 512726 | K58: =IFERROR(INDEX('1 Roh-Daten'!$B$100:$BQ$122,'1.2 Steuerung'!F58,'1.2 Steuerung'!K$45),"") -> 128412
E59: 65+ | F59: 13 | G59: =IFERROR(INDEX('1 Roh-Daten'!$B$100:$BQ$122,'1.2 Steuerung'!F59,'1.2 Steuerung'!G$45),"") -> 254526 | I59: =IFERROR(INDEX('1 Roh-Daten'!$B$100:$BQ$122,'1.2 Steuerung'!F59,'1.2 Steuerung'!I$45),"") -> 993762 | J59: =IFERROR(INDEX('1 Roh-Daten'!$B$100:$BQ$122,'1.2 Steuerung'!F59,'1.2 Steuerung'!J$45),"") -> 971654 | K59: =IFERROR(INDEX('1 Roh-Daten'!$B$100:$BQ$122,'1.2 Steuerung'!F59,'1.2 Steuerung'!K$45),"") -> 22108
E60: Deutsche | F60: 14 | G60: =IFERROR(INDEX('1 Roh-Daten'!$B$100:$BQ$122,'1.2 Steuerung'!F60,'1.2 Steuerung'!G$45),"") -> 28227842 | I60: =IFERROR(INDEX('1 Roh-Daten'!$B$100:$BQ$122,'1.2 Steuerung'!F60,'1.2 Steuerung'!I$45),"") -> 6784024 | J60: =IFERROR(INDEX('1 Roh-Daten'!$B$100:$BQ$122,'1.2 Steuerung'!F60,'1.2 Steuerung'!J$45),"") -> 4466958 | K60: =IFERROR(INDEX('1 Roh-Daten'!$B$100:$BQ$122,'1.2 Steuerung'!F60,'1.2 Steuerung'!K$45),"") -> 2317066
E61: Ausländer | F61: 15 | G61: =IFERROR(INDEX('1 Roh-Daten'!$B$100:$BQ$122,'1.2 Steuerung'!F61,'1.2 Steuerung'!G$45),"") -> 3129357 | I61: =IFERROR(INDEX('1 Roh-Daten'!$B$100:$BQ$122,'1.2 Steuerung'!F61,'1.2 Steuerung'!I$45),"") -> 953077 | J61: =IFERROR(INDEX('1 Roh-Daten'!$B$100:$BQ$122,'1.2 Steuerung'!F61,'1.2 Steuerung'!J$45),"") -> 655420 | K61: =IFERROR(INDEX('1 Roh-Daten'!$B$100:$BQ$122,'1.2 Steuerung'!F61,'1.2 Steuerung'!K$45),"") -> 297657
E62: Keine Angabe | F62: 16 | G62: =IFERROR(INDEX('1 Roh-Daten'!$B$100:$BQ$122,'1.2 Steuerung'!F62,'1.2 Steuerung'!G$45),"") -> 0 | I62: =IFERROR(INDEX('1 Roh-Daten'!$B$100:$BQ$122,'1.2 Steuerung'!F62,'1.2 Steuerung'!I$45),"") -> 0 | J62: =IFERROR(INDEX('1 Roh-Daten'!$B$100:$BQ$122,'1.2 Steuerung'!F62,'1.2 Steuerung'!J$45),"") -> 0 | K62: =IFERROR(INDEX('1 Roh-Daten'!$B$100:$BQ$122,'1.2 Steuerung'!F62,'1.2 Steuerung'!K$45),"") -> 0
E63: Vollzeitbeschäftigt | F63: 17 | G63: =IFERROR(INDEX('1 Roh-Daten'!$B$100:$BQ$122,'1.2 Steuerung'!F63,'1.2 Steuerung'!G$45),"") -> 22825336 | I63: =IFERROR(INDEX('1 Roh-Daten'!$B$100:$BQ$122,'1.2 Steuerung'!F63,'1.2 Steuerung'!I$45),"") -> 101914 | J63: =IFERROR(INDEX('1 Roh-Daten'!$B$100:$BQ$122,'1.2 Steuerung'!F63,'1.2 Steuerung'!J$45),"") -> 98720 | K63: =IFERROR(INDEX('1 Roh-Daten'!$B$100:$BQ$122,'1.2 Steuerung'!F63,'1.2 Steuerung'!K$45),"") -> 3194
E64: Teilzeitbeschäftigt | F64: 18 | G64: =IFERROR(INDEX('1 Roh-Daten'!$B$100:$BQ$122,'1.2 Steuerung'!F64,'1.2 Steuerung'!G$45),"") -> 8547630 | I64: =IFERROR(INDEX('1 Roh-Daten'!$B$100:$BQ$122,'1.2 Steuerung'!F64,'1.2 Steuerung'!I$45),"") -> 7377556 | J64: =IFERROR(INDEX('1 Roh-Daten'!$B$100:$BQ$122,'1.2 Steuerung'!F64,'1.2 Steuerung'!J$45),"") -> 4846612 | K64: =IFERROR(INDEX('1 Roh-Daten'!$B$100:$BQ$122,'1.2 Steuerung'!F64,'1.2 Steuerung'!K$45),"") -> 2530944
E65: keine Angabe | F65: 19 | G65: =IFERROR(INDEX('1 Roh-Daten'!$B$100:$BQ$122,'1.2 Steuerung'!F65,'1.2 Steuerung'!G$45),"") -> 725 | I65: =IFERROR(INDEX('1 Roh-Daten'!$B$100:$BQ$122,'1.2 Steuerung'!F65,'1.2 Steuerung'!I$45),"") -> 276624 | J65: =IFERROR(INDEX('1 Roh-Daten'!$B$100:$BQ$122,'1.2 Steuerung'!F65,'1.2 Steuerung'!J$45),"") -> 195832 | K65: =IFERROR(INDEX('1 Roh-Daten'!$B$100:$BQ$122,'1.2 Steuerung'!F65,'1.2 Steuerung'!K$45),"") -> 80792
E66: ohne Berufsabschluss | F66: 20 | G66: =IFERROR(INDEX('1 Roh-Daten'!$B$100:$BQ$122,'1.2 Steuerung'!F66,'1.2 Steuerung'!G$45),"") -> 3693645 | I66: =IFERROR(INDEX('1 Roh-Daten'!$B$100:$BQ$122,'1.2 Steuerung'!F66,'1.2 Steuerung'!I$45),"") -> 1567590 | J66: =IFERROR(INDEX('1 Roh-Daten'!$B$100:$BQ$122,'1.2 Steuerung'!F66,'1.2 Steuerung'!J$45),"") -> 1185028 | K66: =IFERROR(INDEX('1 Roh-Daten'!$B$100:$BQ$122,'1.2 Steuerung'!F66,'1.2 Steuerung'!K$45),"") -> 382562
E67: mit anerkanntem Berufsabschluss | F67: 21 | G67: =IFERROR(INDEX('1 Roh-Daten'!$B$100:$BQ$122,'1.2 Steuerung'!F67,'1.2 Steuerung'!G$45),"") -> 19627411 | I67: =IFERROR(INDEX('1 Roh-Daten'!$B$100:$BQ$122,'1.2 Steuerung'!F67,'1.2 Steuerung'!I$45),"") -> 3752426 | J67: =IFERROR(INDEX('1 Roh-Daten'!$B$100:$BQ$122,'1.2 Steuerung'!F67,'1.2 Steuerung'!J$45),"") -> 1981237 | K67: =IFERROR(INDEX('1 Roh-Daten'!$B$100:$BQ$122,'1.2 Steuerung'!F67,'1.2 Steuerung'!K$45),"") -> 1771189
E68: mit akad. Abschluss | F68: 22 | G68: =IFERROR(INDEX('1 Roh-Daten'!$B$100:$BQ$122,'1.2 Steuerung'!F68,'1.2 Steuerung'!G$45),"") -> 4704645 | I68: =IFERROR(INDEX('1 Roh-Daten'!$B$100:$BQ$122,'1.2 Steuerung'!F68,'1.2 Steuerung'!I$45),"") -> 533626 | J68: =IFERROR(INDEX('1 Roh-Daten'!$B$100:$BQ$122,'1.2 Steuerung'!F68,'1.2 Steuerung'!J$45),"") -> 289411 | K68: =IFERROR(INDEX('1 Roh-Daten'!$B$100:$BQ$122,'1.2 Steuerung'!F68,'1.2 Steuerung'!K$45),"") -> 244215
E69: keine Angabe | F69: 23 | G69: =IFERROR(INDEX('1 Roh-Daten'!$B$100:$BQ$122,'1.2 Steuerung'!F69,'1.2 Steuerung'!G$45),"") -> 3347990 | I69: =IFERROR(INDEX('1 Roh-Daten'!$B$100:$BQ$122,'1.2 Steuerung'!F69,'1.2 Steuerung'!I$45),"") -> 1902452 | J69: =IFERROR(INDEX('1 Roh-Daten'!$B$100:$BQ$122,'1.2 Steuerung'!F69,'1.2 Steuerung'!J$45),"") -> 1685488 | K69: =IFERROR(INDEX('1 Roh-Daten'!$B$100:$BQ$122,'1.2 Steuerung'!F69,'1.2 Steuerung'!K$45),"") -> 216964

Sheet Steuerung1 (hidden)
B3: 4
B12: Deutschland
B13: 01 Schleswig-Holstein
B14: 02 Hamburg
B15: 03 Niedersachsen
B16: 04 Bremen
B17: 05 Nordrhein-Westfalen
B18: 06 Hessen
B19: 05 Rheinland-Pfalz
B20: 08 Baden-Württemberg
B21: 09 Bayern
B22: 10 Saarland
B23: 11 Berlin
B24: 12 Brandenburg
B25: 13 Mecklenburg-Vorpommern
B26: 14 Sachsen
B27: 15 Sachsen-Anhalt
B28: 16 Thüringen

Sheet 2_Grafik
C1: Beschäftigungsstatistik
A3: Begonnene und beendete sozialversicherungspflichtige Beschäftigungsverhältnisse nach ausgewählten Merkmalen - Veränderung in %
B4: (Arbeitsort)
A5: Berichtsjahr 2016
A7: Merkmale | B7: Begonnene Beschäftigungsverhältnisse | C7: Beendete Beschäftigungsverhältnisse
B8: Daten vor und nach der Revision Veränderung in % (relativ) | C8: Daten vor und nach der Revision Veränderung in % (relativ)
B9: 1 | C9: 2
A10: Insgesamt | B10: =IFERROR('2'!E11,"-") -> 0.1804069929 | C10: ='2'!I11 -> -1.156414966
A11: nach Geschlecht
A12: Männer | B12: =IFERROR('2'!E13,"-") -> 0.1815032178 | C12: ='2'!I13 -> -1.08298759
A13: Frauen | B13: =IFERROR('2'!E14,"-") -> 0.1789824036 | C13: ='2'!I14 -> -1.250245864
A14: nach Alter
A15: unter 25 Jahren | B15: =IFERROR('2'!E16,"-") -> 0.1234408364 | C15: ='2'!I16 -> -0.2242436683
A16: 25 bis unter 30 Jahren | B16: =IFERROR('2'!E17,"-") -> 0.1648756286 | C16: ='2'!I17 -> -0.6322504935
A17: 30 bis unter 35 Jahren | B17: =IFERROR('2'!E18,"-") -> 0.1819703695 | C17: ='2'!I18 -> -0.9417776225
A18: 35 bis unter 40 Jahren | B18: =IFERROR('2'!E19,"-") -> 0.1922598646 | C18: ='2'!I19 -> -1.256912718
A19: 40 bis unter 45 Jahren | B19: =IFERROR('2'!E20,"-") -> 0.2229324495 | C19: ='2'!I20 -> -1.659950222
A20: 45 bis unter 50 Jahren | B20: =IFERROR('2'!E21,"-") -> 0.2410340393 | C20: ='2'!I21 -> -2.125544741
A21: 50 bis unter 55 Jahren | B21: =IFERROR('2'!E22,"-") -> 0.2361785435 | C21: ='2'!I22 -> -2.342415506
A22: 55 bis unter 60 Jahren | B22: =IFERROR('2'!E23,"-") -> 0.2378433939 | C22: ='2'!I23 -> -2.682996829
A23: 60 bis unter 65 Jahren | B23: =IFERROR('2'!E24,"-") -> 0.2088253088 | C23: ='2'!I24 -> -1.302914076
A24: 65 Jahre und älter | B24: =IFERROR('2'!E25,"-") -> 0.1623897146 | C24: ='2'!I25 -> -0.1349724767
A25: nach Nationalität
A26: Deutsche | B26: =IFERROR('2'!E27,"-") -> 0.1950197755 | C26: ='2'!I27 -> -1.338079001
A27: Ausländer | B27: =IFERROR('2'!E28,"-") -> 0.127013584 | C27: ='2'!I28 -> -0.3777337173
A28: nach der Arbeitszeit
A29: Vollzeit | B29: =IFERROR('2'!E30,"-") -> 0.1860606537 | C29: ='2'!I30 -> -1.282547025
A30: Teilzeit | B30: =IFERROR('2'!E31,"-") -> 0.1690683067 | C30: ='2'!I31 -> -0.8949608962
C31: © Statistik der Bundesagentur für Arbeit

Sheet 2
I1: Beschäftigungsstatistik
A3: Begonnene und beendete sozialversicherungspflichtige Beschäftigungsverhältnisse nach ausgewählten Merkmalen
C4: (Arbeitsort)
A5: Berichtsjahr 2016
A7: Merkmale | B7: Begonnene Beschäftigungsverhältnisse | F7: Beendete Beschäftigungsverhältnisse
B8: nach Revision | C8: vor Revision | D8: Veränderung (Spalte 1 zu 2) | F8: nach Revision | G8: vor Revision | H8: Veränderung (Spalte 5 zu 6)
D9: absolut | E9: in % | H9: absolut | I9: in %
B10: 1 | C10: 2 | D10: 3 | E10: 4 | F10: 5 | G10: 6 | H10: 7 | I10: 8
A11: Insgesamt | B11: ='2_BV Steuerung'!H18 -> 10220893 | C11: ='2_BV Steuerung'!G47 -> 10202487 | D11: =B11-C11 -> 18406 | E11: =(D11*100)/C11 -> 0.1804069929 | F11: ='2_BV Steuerung'!I18 -> 9661314 | G11: ='2_BV Steuerung'!I47 -> 9774346 | H11: =F11-G11 -> -113032 | I11: =(H11*100)/G11 -> -1.156414966
A12: nach Geschlecht
A13: Männer | B13: ='2_BV Steuerung'!H19 -> 5776203 | C13: ='2_BV Steuerung'!G48 -> 5765738 | D13: =B13-C13 -> 10465 | E13: =(D13*100)/C13 -> 0.1815032178 | F13: ='2_BV Steuerung'!I19 -> 5423966 | G13: ='2_BV Steuerung'!I48 -> 5483350 | H13: =F13-G13 -> -59384 | I13: =(H13*100)/G13 -> -1.08298759
A14: Frauen | B14: ='2_BV Steuerung'!H20 -> 4444690 | C14: ='2_BV Steuerung'!G49 -> 4436749 | D14: =B14-C14 -> 7941 | E14: =(D14*100)/C14 -> 0.1789824036 | F14: ='2_BV Steuerung'!I20 -> 4237348 | G14: ='2_BV Steuerung'!I49 -> 4290996 | H14: -53648 | I14: -1.250245864
A15: nach Alter
A16: unter 25 Jahren | B16: ='2_BV Steuerung'!H21 -> 2735045 | C16: ='2_BV Steuerung'!G50 -> 2731673 | D16: =B16-C16 -> 3372 | E16: 0.1234408364 | F16: ='2_BV Steuerung'!I21 -> 2109477 | G16: ='2_BV Steuerung'!I50 -> 2114218 | H16: -4741 | I16: -0.2242436683
A17: 25 bis unter 30 Jahren | B17: ='2_BV Steuerung'!H22 -> 1794000 | C17: ='2_BV Steuerung'!G51 -> 1791047 | D17: 2953 | E17: 0.1648756286 | F17: ='2_BV Steuerung'!I22 -> 1598684 | G17: ='2_BV Steuerung'!I51 -> 1608856 | H17: -10172 | I17: -0.6322504935
A18: 30 bis unter 35 Jahren | B18: ='2_BV Steuerung'!H23 -> 1279455 | C18: ='2_BV Steuerung'!G52 -> 1277131 | D18: 2324 | E18: 0.1819703695 | F18: ='2_BV Steuerung'!I23 -> 1219377 | G18: ='2_BV Steuerung'!I52 -> 1230970 | H18: -11593 | I18: -0.9417776225
A19: 35 bis unter 40 Jahren | B19: ='2_BV Steuerung'!H24 -> 1031315 | C19: ='2_BV Steuerung'!G53 -> 1029336 | D19: 1979 | E19: 0.1922598646 | F19: ='2_BV Steuerung'!I24 -> 981686 | G19: ='2_BV Steuerung'!I53 -> 994182 | H19: -12496 | I19: -1.256912718
A20: 40 bis unter 45 Jahren | B20: ='2_BV Steuerung'!H25 -> 863617 | C20: ='2_BV Steuerung'!G54 -> 861696 | D20: 1921 | E20: 0.2229324495 | F20: ='2_BV Steuerung'!I25 -> 809197 | G20: ='2_BV Steuerung'!I54 -> 822856 | H20: -13659 | I20: -1.659950222
A21: 45 bis unter 50 Jahren | B21: ='2_BV Steuerung'!H26 -> 912023 | C21: ='2_BV Steuerung'!G55 -> 909830 | D21: 2193 | E21: =(D21*100)/C21 -> 0.2410340393 | F21: ='2_BV Steuerung'!I26 -> 868488 | G21: ='2_BV Steuerung'!I55 -> 887349 | H21: -18861 | I21: -2.125544741
A22: 50 bis unter 55 Jahren | B22: ='2_BV Steuerung'!H27 -> 800010 | C22: ='2_BV Steuerung'!G56 -> 798125 | D22: 1885 | E22: 0.2361785435 | F22: ='2_BV Steuerung'!I27 -> 791253 | G22: ='2_BV Steuerung'!I56 -> 810232 | H22: -18979 | I22: -2.342415506
A23: 55 bis unter 60 Jahren | B23: ='2_BV Steuerung'!H28 -> 503205 | C23: ='2_BV Steuerung'!G57 -> 502011 | D23: 1194 | E23: =(D23*100)/C23 -> 0.2378433939 | F23: ='2_BV Steuerung'!I28 -> 552709 | G23: ='2_BV Steuerung'!I57 -> 567947 | H23: -15238 | I23: -2.682996829
A24: 60 bis unter 65 Jahren | B24: ='2_BV Steuerung'!H29 -> 205384 | C24: ='2_BV Steuerung'!G58 -> 204956 | D24: 428 | E24: 0.2088253088 | F24: ='2_BV Steuerung'!I29 -> 532151 | G24: ='2_BV Steuerung'!I58 -> 539176 | H24: -7025 | I24: -1.302914076
A25: 65 Jahre und älter | B25: ='2_BV Steuerung'!H30 -> 96838 | C25: ='2_BV Steuerung'!G59 -> 96681 | D25: 157 | E25: 0.1623897146 | F25: ='2_BV Steuerung'!I30 -> 198291 | G25: ='2_BV Steuerung'!I59 -> 198559 | H25: -268 | I25: -0.1349724767
A26: nach Nationalität
A27: Deutsche | B27: ='2_BV Steuerung'!H31 -> 8020954 | C27: ='2_BV Steuerung'!G60 -> 8005342 | D27: =B27-C27 -> 15612 | E27: 0.1950197755 | F27: ='2_BV Steuerung'!I31 -> 7818385 | G27: ='2_BV Steuerung'!I60 -> 7924420 | H27: -106035 | I27: -1.338079001
A28: Ausländer | B28: ='2_BV Steuerung'!H32 -> 2188369 | C28: ='2_BV Steuerung'!G61 -> 2185593 | D28: =B28-C28 -> 2776 | E28: 0.127013584 | F28: ='2_BV Steuerung'!I32 -> 1832443 | G28: ='2_BV Steuerung'!I61 -> 1839391 | H28: -6948 | I28: -0.3777337173
A29: nach der Arbeitszeit
A30: Vollzeit | B30: ='2_BV Steuerung'!H34 -> 6820662 | C30: ='2_BV Steuerung'!G63 -> 6807995 | D30: =B30-C30 -> 12667 | E30: 0.1860606537 | F30: ='2_BV Steuerung'!I34 -> 6510033 | G30: ='2_BV Steuerung'!I63 -> 6594612 | H30: =IFERROR(F30-G30,"-") -> -84579 | I30: =IFERROR((H30*100)/G30,"-") -> -1.282547025
A31: Teilzeit | B31: ='2_BV Steuerung'!H35 -> 3400225 | C31: ='2_BV Steuerung'!G64 -> 3394486 | D31: =B31-C31 -> 5739 | E31: 0.1690683067 | F31: ='2_BV Steuerung'!I35 -> 3149131 | G31: ='2_BV Steuerung'!I64 -> 3177569 | H31: =IFERROR(F31-G31,"-") -> -28438 | I31: =IFERROR((H31*100)/G31,"-") -> -0.8949608962
I32: © Statistik der Bundesagentur für Arbeit

Sheet 2_BV_Roh-Daten (hidden)
A12: NACH REV
A14: 26 | B14: Metriken | C14: begonnene BV | T14: beendete BV
A15: Schleswig-Holstein,01 | B15: D+Länder(AO) | C15: Deutschland | D15: Schleswig-Holstein,01 | E15: Hamburg,02 | F15: Niedersachsen,03 | G15: Bremen,04 | H15: Nordrhein-Westfalen,05 | I15: Hessen,06 | J15: Rheinland-Pfalz,07 | K15: Baden-Württemberg,08 | L15: Bayern,09 | M15: Saarland,10 | N15: Berlin,11 | O15: Brandenburg,12 | P15: Mecklenburg-Vorpommern,13 | Q15: Sachsen,14 | R15: Sachsen-Anhalt,15 | S15: Thüringen,16 | T15: Deutschland | U15: Schleswig-Holstein,01 | V15: Hamburg,02 | W15: Niedersachsen,03 | X15: Bremen,04 | Y15: Nordrhein-Westfalen,05 | Z15: Hessen,06 | AA15: Rheinland-Pfalz,07 | AB15: Baden-Württemberg,08 | AC15: Bayern,09 | AD15: Saarland,10 | AE15: Berlin,11 | AF15: Brandenburg,12 | AG15: Mecklenburg-Vorpommern,13 | AH15: Sachsen,14 | AI15: Sachsen-Anhalt,15 | AJ15: Thüringen,16
A16: Merkmale_1.1
A17: Insgesamt | C17: 10220893 | D17: 322055 | E17: 378831 | F17: 884196 | G17: 139237 | H17: 2119648 | I17: 765759 | J17: 431322 | K17: 1347738 | L17: 1710552 | M17: 109671 | N17: 668078 | O17: 253358 | P17: 179499 | Q17: 452668 | R17: 217761 | S17: 227396 | T17: 9661314 | U17: 302710 | V17: 359824 | W17: 839387 | X17: 133663 | Y17: 2018327 | Z17: 724992 | AA17: 413039 | AB17: 1266609 | AC17: 1598799 | AD17: 107345 | AE17: 618163 | AF17: 241573 | AG17: 173848 | AH17: 432411 | AI17: 209367 | AJ17: 220561
A18: Männer | C18: 5776203 | D18: 177373 | E18: 214310 | F18: 494963 | G18: 88040 | H18: 1210562 | I18: 433739 | J18: 244032 | K18: 753705 | L18: 963291 | M18: 62707 | N18: 370703 | O18: 146261 | P18: 100315 | Q18: 253805 | R18: 124686 | S18: 129733 | T18: 5423966 | U18: 165440 | V18: 202670 | W18: 471636 | X18: 84057 | Y18: 1149960 | Z18: 407521 | AA18: 232436 | AB18: 701419 | AC18: 891796 | AD18: 61784 | AE18: 339282 | AF18: 138527 | AG18: 95664 | AH18: 239441 | AI18: 117790 | AJ18: 124127
A19: Frauen | C19: 4444690 | D19: 144682 | E19: 164521 | F19: 389233 | G19: 51197 | H19: 909086 | I19: 332020 | J19: 187290 | K19: 594033 | L19: 747261 | M19: 46964 | N19: 297375 | O19: 107097 | P19: 79184 | Q19: 198863 | R19: 93075 | S19: 97663 | T19: 4237348 | U19: 137270 | V19: 157154 | W19: 367751 | X19: 49606 | Y19: 868367 | Z19: 317471 | AA19: 180603 | AB19: 565190 | AC19: 707003 | AD19: 45561 | AE19: 278881 | AF19: 103046 | AG19: 78184 | AH19: 192970 | AI19: 91577 | AJ19: 96434
A20: U25 | C20: 2735045 | D20: 88924 | E20: 88116 | F20: 261613 | G20: 37461 | H20: 592028 | I20: 205595 | J20: 126573 | K20: 422198 | L20: 495481 | M20: 32698 | N20: 123473 | O20: 48180 | P20: 33819 | Q20: 86563 | R20: 43636 | S20: 46882 | T20: 2109477 | U20: 69465 | V20: 67032 | W20: 205131 | X20: 30818 | Y20: 454231 | Z20: 156838 | AA20: 100286 | AB20: 329316 | AC20: 382564 | AD20: 25974 | AE20: 93150 | AF20: 36597 | AG20: 26129 | AH20: 63704 | AI20: 32893 | AJ20: 35230
A21: 25 - 29 Jahre | C21: 1794000 | D21: 51058 | E21: 76689 | F21: 143102 | G21: 26844 | H21: 369801 | I21: 141946 | J21: 70238 | K21: 233989 | L21: 295104 | M21: 18215 | N21: 135440 | O21: 42020 | P21: 30627 | Q21: 81857 | R21: 36386 | S21: 38782 | T21: 1598684 | U21: 46280 | V21: 68745 | W21: 130517 | X21: 24709 | Y21: 333581 | Z21: 125361 | AA21: 64804 | AB21: 207302 | AC21: 259684 | AD21: 17091 | AE21: 117276 | AF21: 37332 | AG21: 27542 | AH21: 71678 | AI21: 32050 | AJ21: 34614
A22: 30 - 34 Jahre | C22: 1279455 | D22: 36577 | E22: 55683 | F22: 100473 | G22: 17377 | H22: 254319 | I22: 96875 | J22: 48892 | K22: 155568 | L22: 207529 | M22: 12520 | N22: 103784 | O22: 36237 | P22: 25071 | Q22: 66106 | R22: 29755 | S22: 30967 | T22: 1219377 | U22: 34945 | V22: 54209 | W22: 96369 | X22: 16959 | Y22: 246436 | Z22: 92965 | AA22: 47305 | AB22: 150293 | AC22: 199397 | AD22: 12446 | AE22: 96249 | AF22: 32450 | AG22: 23035 | AH22: 60834 | AI22: 26833 | AJ22: 28560
A23: 35 - 39 Jahre | C23: 1031315 | D23: 30838 | E23: 41547 | F23: 84387 | G23: 13417 | H23: 208949 | I23: 78263 | J23: 40584 | K23: 126722 | L23: 171120 | M23: 10167 | N23: 75410 | O23: 29252 | P23: 19741 | Q23: 51766 | R23: 22981 | S23: 24541 | T23: 981686 | U23: 29163 | V23: 41776 | W23: 79679 | X23: 12923 | Y23: 200970 | Z23: 75403 | AA23: 38956 | AB23: 121407 | AC23: 164192 | AD23: 9814 | AE23: 71540 | AF23: 26530 | AG23: 17997 | AH23: 47426 | AI23: 20989 | AJ23: 22829
A24: 40 - 44 Jahre | C24: 863617 | D24: 27966 | E24: 32985 | F24: 74078 | G24: 11328 | H24: 180617 | I24: 65914 | J24: 36154 | K24: 108794 | L24: 144860 | M24: 9053 | N24: 57983 | O24: 21793 | P24: 14617 | Q24: 39262 | R24: 17902 | S24: 18914 | T24: 809197 | U24: 25934 | V24: 32108 | W24: 69012 | X24: 10655 | Y24: 171423 | Z24: 62874 | AA24: 33888 | AB24: 101026 | AC24: 135209 | AD24: 8669 | AE24: 54763 | AF24: 19905 | AG24: 13413 | AH24: 36417 | AI24: 16371 | AJ24: 17463
A25: 45 - 49 Jahre | C25: 912023 | D25: 31842 | E25: 32483 | F25: 81311 | G25: 11099 | H25: 193936 | I25: 68067 | J25: 39347 | K25: 113062 | L25: 149635 | M25: 9756 | N25: 57804 | O25: 23804 | P25: 16374 | Q25: 40310 | R25: 20794 | S25: 20720 | T25: 868488 | U25: 29851 | V25: 32056 | W25: 77104 | X25: 10725 | Y25: 187734 | Z25: 65808 | AA25: 37226 | AB25: 107158 | AC25: 141872 | AD25: 9412 | AE25: 55500 | AF25: 22086 | AG25: 15273 | AH25: 37894 | AI25: 19332 | AJ25: 19381
A26: 50 - 54 Jahre | C26: 800010 | D26: 27802 | E26: 25755 | F26: 69732 | G26: 9467 | H26: 164712 | I26: 56382 | J26: 34676 | K26: 95472 | L26: 125635 | M26: 8730 | N26: 54605 | O26: 24648 | P26: 18173 | Q26: 39835 | R26: 21196 | S26: 21813 | T26: 791253 | U26: 26937 | V26: 26284 | W26: 69336 | X26: 9551 | Y26: 167325 | Z26: 56745 | AA26: 34214 | AB26: 94157 | AC26: 123890 | AD26: 8957 | AE26: 52933 | AF26: 23643 | AG26: 17495 | AH26: 38300 | AI26: 20499 | AJ26: 20931
A27: 55 - 59 Jahre | C27: 503205 | D27: 16882 | E27: 15502 | F27: 43035 | G27: 7125 | H27: 98590 | I27: 33769 | J27: 21967 | K27: 57725 | L27: 76811 | M27: 5489 | N27: 34274 | O27: 17385 | P27: 13450 | Q27: 28360 | R27: 15876 | S27: 15959 | T27: 552709 | U27: 17831 | V27: 17054 | W27: 47987 | X27: 7813 | Y27: 113151 | Z27: 38746 | AA27: 24556 | AB27: 64056 | AC27: 84366 | AD27: 6374 | AE27: 35055 | AF27: 18489 | AG27: 14320 | AH27: 29422 | AI27: 16370 | AJ27: 17076
A28: 60 - 64 Jahre | C28: 205384 | D28: 6775 | E28: 6139 | F28: 17053 | G28: 3224 | H28: 37727 | I28: 12833 | J28: 8602 | K28: 22311 | L28: 30110 | M28: 2082 | N28: 16828 | O28: 7542 | P28: 5909 | Q28: 13688 | R28: 7204 | S28: 6905 | T28: 532151 | U28: 15401 | V28: 13073 | W28: 45721 | X28: 6287 | Y28: 101628 | Z28: 36396 | AA28: 22865 | AB28: 65112 | AC28: 79172 | AD28: 6336 | AE28: 28106 | AF28: 19585 | AG28: 15174 | AH28: 37650 | AI28: 19510 | AJ28: 20113
A29: 65+ | C29: 96838 | D29: 3391 | E29: 3932 | F29: 9412 | G29: 1895 | H29: 18969 | I29: 6115 | J29: 4289 | K29: 11897 | L29: 14267 | M29: 961 | N29: 8476 | O29: 2497 | P29: 1718 | Q29: 4921 | R29: 2031 | S29: 1913 | T29: 198291 | U29: 6903 | V29: 7487 | W29: 18531 | X29: 3223 | Y29: 41847 | Z29: 13856 | AA29: 8939 | AB29: 26782 | AC29: 28453 | AD29: 2272 | AE29: 13591 | AF29: 4956 | AG29: 3470 | AH29: 9086 | AI29: 4520 | AJ29: 4364
A30: Deutsche | C30: 8020954 | D30: 274790 | E30: 305368 | F30: 721940 | G30: 109828 | H30: 1693124 | I30: 554495 | J30: 330428 | K30: 980832 | L30: 1253219 | M30: 83057 | N30: 527406 | O30: 216923 | P30: 160536 | Q30: 403034 | R30: 197296 | S30: 199227 | T30: 7818385 | U30: 262869 | V30: 298121 | W30: 703258 | X30: 107751 | Y30: 1658638 | Z30: 546222 | AA30: 326032 | AB30: 957068 | AC30: 1214847 | AD30: 83290 | AE30: 502571 | AF30: 212529 | AG30: 159208 | AH30: 393660 | AI30: 193532 | AJ30: 198294
A31: Ausländer | C31: 2188369 | D31: 47008 | E31: 72794 | F31: 161625 | G31: 29323 | H31: 423436 | I31: 210569 | J31: 100540 | K31: 366134 | L31: 456387 | M31: 26563 | N31: 138860 | O31: 36245 | P31: 18864 | Q31: 47966 | R31: 20333 | S31: 28097 | T31: 1832443 | U31: 39631 | V31: 61116 | W31: 135587 | X31: 25819 | Y31: 356966 | Z31: 178069 | AA31: 86701 | AB31: 308797 | AC31: 383064 | AD31: 24008 | AE31: 113951 | AF31: 28900 | AG31: 14559 | AH31: 37135 | AI31: 15720 | AJ31: 22219
A32: Keine Angabe | C32: 11570 | D32: 257 | E32: 669 | F32: 631 | G32: 86 | H32: 3088 | I32: 695 | J32: 354 | K32: 772 | L32: 946 | M32: 51 | N32: 1812 | O32: 190 | P32: 99 | Q32: 1668 | R32: 132 | S32: 72 | T32: 10486 | U32: 210 | V32: 587 | W32: 542 | X32: 93 | Y32: 2723 | Z32: 701 | AA32: 306 | AB32: 744 | AC32: 888 | AD32: 47 | AE32: 1641 | AF32: 144 | AG32: 81 | AH32: 1616 | AI32: 115 | AJ32: 48
A33: Vollzeitbeschäftigt | C33: 6820662 | D33: 212215 | E33: 243850 | F33: 595504 | G33: 70581 | H33: 1392118 | I33: 497973 | J33: 296450 | K33: 964068 | L33: 1195895 | M33: 76385 | N33: 372997 | O33: 161776 | P33: 123331 | Q33: 304491 | R33: 145674 | S33: 159791 | T33: 6510033 | U33: 202472 | V33: 233303 | W33: 575858 | X33: 67060 | Y33: 1344195 | Z33: 474134 | AA33: 286045 | AB33: 908246 | AC33: 1118369 | AD33: 76505 | AE33: 343680 | AF33: 158233 | AG33: 121328 | AH33: 298574 | AI33: 143726 | AJ33: 157890
A34: Teilzeitbeschäftigt | C34: 3400225 | D34: 109840 | E34: 134981 | F34: 288688 | G34: 68656 | H34: 727530 | I34: 267786 | J34: 134872 | K34: 383670 | L34: 514656 | M34: 33286 | N34: 295081 | O34: 91581 | P34: 56168 | Q34: 148177 | R34: 72087 | S34: 67605 | T34: 3149131 | U34: 100170 | V34: 126473 | W34: 263319 | X34: 66588 | Y34: 673586 | Z34: 250745 | AA34: 126896 | AB34: 358065 | AC34: 480209 | AD34: 30809 | AE34: 274395 | AF34: 83262 | AG34: 52442 | AH34: 133726 | AI34: 65584 | AJ34: 62581
A92: VOR REV
B94: begonnene BV | S94: beendete BV
A95: Merkmale_1.1 | B95: Deutschland | C95: Schleswig-Holstein,01 | D95: Hamburg,02 | E95: Niedersachsen,03 | F95: Bremen,04 | G95: Nordrhein-Westfalen,05 | H95: Hessen,06 | I95: Rheinland-Pfalz,07 | J95: Baden-Württemberg,08 | K95: Bayern,09 | L95: Saarland,10 | M95: Berlin,11 | N95: Brandenburg,12 | O95: Mecklenburg-Vorpommern,13 | P95: Sachsen,14 | Q95: Sachsen-Anhalt,15 | R95: Thüringen,16 | S95: Deutschland | T95: Schleswig-Holstein,01 | U95: Hamburg,02 | V95: Niedersachsen,03 | W95: Bremen,04 | X95: Nordrhein-Westfalen,05 | Y95: Hessen,06 | Z95: Rheinland-Pfalz,07 | AA95: Baden-Württemberg,08 | AB95: Bayern,09 | AC95: Saarland,10 | AD95: Berlin,11 | AE95: Brandenburg,12 | AF95: Mecklenburg-Vorpommern,13 | AG95: Sachsen,14 | AH95: Sachsen-Anhalt,15 | AI95: Thüringen,16
A96: Insgesamt | B96: 10202487 | C96: 321730 | D96: 378349 | E96: 879938 | F96: 138990 | G96: 2115879 | H96: 764800 | I96: 430717 | J96: 1345218 | K96: 1707913 | L96: 109356 | M96: 667335 | N96: 253025 | O96: 179347 | P96: 452212 | Q96: 217372 | R96: 227182 | S96: 9774346 | T96: 304981 | U96: 362418 | V96: 865134 | W96: 134608 | X96: 2045020 | Y96: 732948 | Z96: 417788 | AA96: 1278208 | AB96: 1614327 | AC96: 109046 | AD96: 621070 | AE96: 244240 | AF96: 175240 | AG96: 435105 | AH96: 211501 | AI96: 222016
A97: Männer | B97: 5765738 | C97: 177227 | D97: 214037 | E97: 492737 | F97: 87891 | G97: 1208325 | H97: 433209 | I97: 243729 | J97: 752085 | K97: 961818 | L97: 62479 | M97: 370290 | N97: 146074 | O97: 100233 | P97: 253559 | Q97: 124475 | R97: 129592 | S97: 5483350 | T97: 166593 | U97: 203977 | V97: 485837 | W97: 84588 | X97: 1164151 | Y97: 411790 | Z97: 235013 | AA97: 707644 | AB97: 899954 | AC97: 62682 | AD97: 340495 | AE97: 139629 | AF97: 96196 | AG97: 240718 | AH97: 118839 | AI97: 124828
A98: Frauen | B98: 4436749 | C98: 144503 | D98: 164312 | E98: 387201 | F98: 51099 | G98: 907554 | H98: 331591 | I98: 186988 | J98: 593133 | K98: 746095 | L98: 46877 | M98: 297045 | N98: 106951 | O98: 79114 | P98: 198653 | Q98: 92897 | R98: 97590 | S98: 4290996 | T98: 138388 | U98: 158441 | V98: 379297 | W98: 50020 | X98: 880869 | Y98: 321158 | Z98: 182775 | AA98: 570564 | AB98: 714373 | AC98: 46364 | AD98: 280575 | AE98: 104611 | AF98: 79044 | AG98: 194387 | AH98: 92662 | AI98: 97188
A99: U25 | B99: 2731673 | C99: 88876 | D99: 88025 | E99: 260723 | F99: 37413 | G99: 591204 | H99: 205439 | I99: 126462 | J99: 421809 | K99: 494985 | L99: 32648 | M99: 123384 | N99: 48140 | O99: 33806 | P99: 86512 | Q99: 43581 | R99: 46861 | S99: 2114218 | T99: 69545 | U99: 67074 | V99: 206491 | W99: 30842 | X99: 455276 | Y99: 157090 | Z99: 100485 | AA99: 329799 | AB99: 383453 | AC99: 26045 | AD99: 93191 | AE99: 36655 | AF99: 26157 | AG99: 63763 | AH99: 32963 | AI99: 35270
A100: 25 - 29 Jahre | B100: 1791047 | C100: 51005 | D100: 76587 | E100: 142445 | F100: 26801 | G100: 369160 | H100: 141810 | I100: 70123 | J100: 233626 | K100: 294672 | L100: 18171 | M100: 135297 | N100: 41970 | O100: 30604 | P100: 81798 | Q100: 36339 | R100: 38737 | S100: 1608856 | T100: 46468 | U100: 68952 | V100: 132940 | W100: 24814 | X100: 336156 | Y100: 125992 | Z100: 65205 | AA100: 208286 | AB100: 261026 | AC100: 17272 | AD100: 117552 | AE100: 37531 | AF100: 27656 | AG100: 71925 | AH100: 32216 | AI100: 34747
A101: 30 - 34 Jahre | B101: 1277131 | C101: 36542 | D101: 55606 | E101: 99960 | F101: 17340 | G101: 253882 | H101: 96735 | I101: 48837 | J101: 155236 | K101: 207196 | L101: 12500 | M101: 103667 | N101: 36191 | O101: 25049 | P101: 66025 | Q101: 29706 | R101: 30937 | S101: 1230970 | T101: 35178 | U101: 54530 | V101: 98877 | W101: 17082 | X101: 249102 | Y101: 93745 | Z101: 47765 | AA101: 151507 | AB101: 200988 | AC101: 12628 | AD101: 96652 | AE101: 32749 | AF101: 23185 | AG101: 61121 | AH101: 27057 | AI101: 28712
A102: 35 - 39 Jahre | B102: 1029336 | C102: 30809 | D102: 41501 | E102: 83983 | F102: 13395 | G102: 208549 | H102: 78132 | I102: 40519 | J102: 126464 | K102: 170815 | L102: 10128 | M102: 75316 | N102: 29211 | O102: 19723 | P102: 51708 | Q102: 22942 | R102: 24511 | S102: 994182 | T102: 29433 | U102: 42107 | V102: 82257 | W102: 13056 | X102: 203874 | Y102: 76291 | Z102: 39478 | AA102: 122753 | AB102: 165923 | AC102: 10009 | AD102: 71943 | AE102: 26830 | AF102: 18157 | AG102: 47749 | AH102: 21227 | AI102: 23003
A103: 40 - 44 Jahre | B103: 861696 | C103: 27928 | D103: 32931 | E103: 73660 | F103: 11301 | G103: 180247 | H103: 65795 | I103: 36094 | J103: 108546 | K103: 144582 | L103: 8996 | M103: 57912 | N103: 21754 | O103: 14594 | P103: 39208 | Q103: 17865 | R103: 18886 | S103: 822856 | T103: 26208 | U103: 32421 | V103: 71846 | W103: 10774 | X103: 174725 | Y103: 63900 | Z103: 34507 | AA103: 102557 | AB103: 137098 | AC103: 8870 | AD103: 55136 | AE103: 20214 | AF103: 13586 | AG103: 36731 | AH103: 16618 | AI103: 17598
A104: 45 - 49 Jahre | B104: 909830 | C104: 31797 | D104: 32439 | E104: 80807 | F104: 11067 | G104: 193484 | H104: 67972 | I104: 39261 | J104: 112732 | K104: 149320 | L104: 9720 | M104: 57730 | N104: 23763 | O104: 16360 | P104: 40261 | Q104: 20742 | R104: 20696 | S104: 887349 | T104: 30254 | U104: 32523 | V104: 81314 | W104: 10868 | X104: 192475 | Y104: 67281 | Z104: 38094 | AA104: 109003 | AB104: 144376 | AC104: 9657 | AD104: 55914 | AE104: 22494 | AF104: 15465 | AG104: 38290 | AH104: 19668 | AI104: 19597
A105: 50 - 54 Jahre | B105: 798125 | C105: 27765 | D105: 25717 | E105: 69289 | F105: 9449 | G105: 164385 | H105: 56281 | I105: 34611 | J105: 95162 | K105: 125385 | L105: 8685 | M105: 54526 | N105: 24610 | O105: 18161 | P105: 39778 | Q105: 21141 | R105: 21803 | S105: 810232 | T105: 27340 | U105: 26717 | V105: 73573 | W105: 9683 | X105: 171908 | Y105: 58133 | Z105: 35011 | AA105: 96016 | AB105: 126405 | AC105: 9278 | AD105: 53376 | AE105: 24147 | AF105: 17759 | AG105: 38779 | AH105: 20856 | AI105: 21195
A106: 55 - 59 Jahre | B106: 502011 | C106: 16850 | D106: 15487 | E106: 42763 | F106: 7116 | G106: 98370 | H106: 33708 | I106: 21932 | J106: 57520 | K106: 76665 | L106: 5471 | M106: 34233 | N106: 17359 | O106: 13431 | P106: 28321 | Q106: 15840 | R106: 15939 | S106: 567947 | T106: 18111 | U106: 17363 | V106: 51700 | W106: 7927 | X106: 116419 | Y106: 39799 | Z106: 25183 | AA106: 65625 | AB106: 86535 | AC106: 6582 | AD106: 35427 | AE106: 18886 | AF106: 14515 | AG106: 29831 | AH106: 16691 | AI106: 17310
A107: 60 - 64 Jahre | B107: 204956 | C107: 6767 | D107: 6124 | E107: 16931 | F107: 3215 | G107: 37655 | H107: 12817 | I107: 8590 | J107: 22250 | K107: 30058 | L107: 2080 | M107: 16814 | N107: 7531 | O107: 5903 | P107: 13681 | Q107: 7187 | R107: 6901 | S107: 539176 | T107: 15536 | U107: 13239 | V107: 47498 | W107: 6340 | X107: 103175 | Y107: 36845 | Z107: 23112 | AA107: 65861 | AB107: 80047 | AC107: 6430 | AD107: 28289 | AE107: 19778 | AF107: 15292 | AG107: 37820 | AH107: 19679 | AI107: 20213
A108: 65+ | B108: 96681 | C108: 3391 | D108: 3932 | E108: 9377 | F108: 1893 | G108: 18943 | H108: 6111 | I108: 4288 | J108: 11873 | K108: 14235 | L108: 957 | M108: 8455 | N108: 2496 | O108: 1716 | P108: 4920 | Q108: 2029 | R108: 1911 | S108: 198559 | T108: 6908 | U108: 7492 | V108: 18638 | W108: 3222 | X108: 41909 | Y108: 13872 | Z108: 8948 | AA108: 26801 | AB108: 28476 | AC108: 2275 | AD108: 13590 | AE108: 4956 | AF108: 3468 | AG108: 9096 | AH108: 4526 | AI108: 4371
A109: Deutsche | B109: 8005342 | C109: 274488 | D109: 304954 | E109: 718266 | F109: 109612 | G109: 1689877 | H109: 553741 | I109: 329899 | J109: 978732 | K109: 1251130 | L109: 82786 | M109: 526810 | N109: 216617 | O109: 160384 | P109: 402613 | Q109: 196934 | R109: 199048 | S109: 7924420 | T109: 265076 | U109: 300595 | V109: 727532 | W109: 108650 | X109: 1683405 | Y109: 553418 | Z109: 330556 | AA109: 967613 | AB109: 1229438 | AC109: 84882 | AD109: 505296 | AE109: 215147 | AF109: 160594 | AG109: 396336 | AH109: 195651 | AI109: 199736
A110: Ausländer | B110: 2185593 | C110: 46985 | D110: 72733 | E110: 161041 | F110: 29292 | G110: 422915 | H110: 210365 | I110: 100465 | J110: 365715 | K110: 455842 | L110: 26519 | M110: 138715 | N110: 36218 | O110: 18864 | P110: 47931 | Q110: 20306 | R110: 28062 | S110: 1839391 | T110: 39694 | U110: 61233 | V110: 137049 | W110: 25864 | X110: 358881 | Y110: 178824 | Z110: 86923 | AA110: 309846 | AB110: 383999 | AC110: 24116 | AD110: 114130 | AE110: 28946 | AF110: 14565 | AG110: 37153 | AH110: 15734 | AI110: 22233
A111: Keine Angabe | B111: 11552 | C111: 257 | D111: 662 | E111: 631 | F111: 86 | G111: 3087 | H111: 694 | I111: 353 | J111: 771 | K111: 941 | L111: 51 | M111: 1810 | N111: 190 | O111: 99 | P111: 1668 | Q111: 132 | R111: 72 | S111: 10535 | T111: 211 | U111: 590 | V111: 553 | W111: 94 | X111: 2734 | Y111: 706 | Z111: 309 | AA111: 749 | AB111: 890 | AC111: 48 | AD111: 1644 | AE111: 147 | AF111: 81 | AG111: 1616 | AH111: 116 | AI111: 47
A112: Vollzeitbeschäftigt | B112: 6807995 | C112: 212014 | D112: 243484 | E112: 592676 | F112: 70409 | G112: 1389459 | H112: 497306 | I112: 296068 | J112: 962120 | K112: 1194110 | L112: 76135 | M112: 372576 | N112: 161573 | O112: 123243 | P112: 304194 | Q112: 145407 | R112: 159655 | S112: 6594612 | T112: 204131 | U112: 235279 | V112: 594630 | W112: 67790 | X112: 1364398 | Y112: 480267 | Z112: 289629 | AA112: 917230 | AB112: 1130007 | AC112: 77798 | AD112: 345667 | AE112: 160103 | AF112: 122343 | AG112: 300586 | AH112: 145375 | AI112: 158964
A113: Teilzeitbeschäftigt | B113: 3394486 | C113: 109716 | D113: 134865 | E113: 287258 | F113: 68581 | G113: 726420 | H113: 267494 | I113: 134649 | J113: 383098 | K113: 513802 | L113: 33221 | M113: 294759 | N113: 91451 | O113: 56104 | P113: 148018 | Q113: 71965 | R113: 67527 | S113: 3177569 | T113: 100782 | U113: 127091 | V113: 270289 | W113: 66803 | X113: 680073 | Y113: 252567 | Z113: 128060 | AA113: 360679 | AB113: 484098 | AC113: 31217 | AD113: 275315 | AE113: 84059 | AF113: 52819 | AG113: 134406 | AH113: 66069 | AI113: 62961

Sheet 2_BV Steuerung (hidden)
C5: Steuerungsblatt - Bitte keine Änderungen vornehmen.
D13: NACH REV | G13: begonnene BV | I13: beendete BV
F14: 1. Vergleich | H14: =MATCH(G$13,'2_BV_Roh-Daten'!$C$14:$BR$14,0) -> 1 | I14: =MATCH(I$13,'2_BV_Roh-Daten'!$C$14:$BR$14,0) -> 18
F15: 2. Vergleich | H15: =MATCH('2_BV Steuerung'!$C$18,'2_BV_Roh-Daten'!$C$15:$S$15,0) -> 1
F16: Zeilennum. | H16: mit PG
B17: Zuweis.1 Refnm. | H17: =H14+$H$15-1 -> 1 | I17: =I14+$H$15-1 -> 18
B18: =INDEX($B$20:$B$36,B19,1) -> Deutschland | C18: =INDEX(C20:C36,C19,1) -> Deutschland | E18: Insgesamt | F18: 1 | G18: =IFERROR(INDEX('2_BV_Roh-Daten'!$C$58:$S$80,'2_BV Steuerung'!$F18,'2_BV Steuerung'!G$17),"") -> 0 | H18: =IFERROR(INDEX('2_BV_Roh-Daten'!$C$17:$BR$39,'2_BV Steuerung'!$F18,'2_BV Steuerung'!H$17),"") -> 10220893 | I18: =IFERROR(INDEX('2_BV_Roh-Daten'!$C$17:$BR$39,'2_BV Steuerung'!$F18,'2_BV Steuerung'!I$17),"") -> 9661314
B19: 1 | C19: =B19 -> 1 | E19: Männer | F19: 2 | G19: =IFERROR(INDEX('2_BV_Roh-Daten'!$C$58:$S$80,'2_BV Steuerung'!$F19,'2_BV Steuerung'!G$17),"") -> 0 | H19: =IFERROR(INDEX('2_BV_Roh-Daten'!$C$17:$BR$39,'2_BV Steuerung'!$F19,'2_BV Steuerung'!H$17),"") -> 5776203 | I19: =IFERROR(INDEX('2_BV_Roh-Daten'!$C$17:$BR$39,'2_BV Steuerung'!$F19,'2_BV Steuerung'!I$17),"") -> 5423966
B20: Deutschland | C20: Deutschland | E20: Frauen | F20: 3 | G20: =IFERROR(INDEX('2_BV_Roh-Daten'!$C$58:$S$80,'2_BV Steuerung'!$F20,'2_BV Steuerung'!G$17),"") -> 0 | H20: =IFERROR(INDEX('2_BV_Roh-Daten'!$C$17:$BR$39,'2_BV Steuerung'!$F20,'2_BV Steuerung'!H$17),"") -> 4444690 | I20: =IFERROR(INDEX('2_BV_Roh-Daten'!$C$17:$BR$39,'2_BV Steuerung'!$F20,'2_BV Steuerung'!I$17),"") -> 4237348
B21: Schleswig-Holstein | C21: Schleswig-Holstein,01 | E21: U25 | F21: 4 | G21: =IFERROR(INDEX('2_BV_Roh-Daten'!$C$58:$S$80,'2_BV Steuerung'!$F21,'2_BV Steuerung'!G$17),"") -> 0 | H21: =IFERROR(INDEX('2_BV_Roh-Daten'!$C$17:$BR$39,'2_BV Steuerung'!$F21,'2_BV Steuerung'!H$17),"") -> 2735045 | I21: =IFERROR(INDEX('2_BV_Roh-Daten'!$C$17:$BR$39,'2_BV Steuerung'!$F21,'2_BV Steuerung'!I$17),"") -> 2109477
B22: Hamburg | C22: Hamburg,02 | E22: 25 - 29 Jahre | F22: 5 | G22: =IFERROR(INDEX('2_BV_Roh-Daten'!$C$58:$S$80,'2_BV Steuerung'!$F22,'2_BV Steuerung'!G$17),"") -> 0 | H22: =IFERROR(INDEX('2_BV_Roh-Daten'!$C$17:$BR$39,'2_BV Steuerung'!$F22,'2_BV Steuerung'!H$17),"") -> 1794000 | I22: =IFERROR(INDEX('2_BV_Roh-Daten'!$C$17:$BR$39,'2_BV Steuerung'!$F22,'2_BV Steuerung'!I$17),"") -> 1598684
B23: Niedersachsen | C23: Niedersachsen,03 | E23: 30 - 34 Jahre | F23: 6 | G23: =IFERROR(INDEX('2_BV_Roh-Daten'!$C$58:$S$80,'2_BV Steuerung'!$F23,'2_BV Steuerung'!G$17),"") -> 0 | H23: =IFERROR(INDEX('2_BV_Roh-Daten'!$C$17:$BR$39,'2_BV Steuerung'!$F23,'2_BV Steuerung'!H$17),"") -> 1279455 | I23: =IFERROR(INDEX('2_BV_Roh-Daten'!$C$17:$BR$39,'2_BV Steuerung'!$F23,'2_BV Steuerung'!I$17),"") -> 1219377
B24: Bremen | C24: Bremen,04 | E24: 35 - 39 Jahre | F24: 7 | G24: =IFERROR(INDEX('2_BV_Roh-Daten'!$C$58:$S$80,'2_BV Steuerung'!$F24,'2_BV Steuerung'!G$17),"") -> 0 | H24: =IFERROR(INDEX('2_BV_Roh-Daten'!$C$17:$BR$39,'2_BV Steuerung'!$F24,'2_BV Steuerung'!H$17),"") -> 1031315 | I24: =IFERROR(INDEX('2_BV_Roh-Daten'!$C$17:$BR$39,'2_BV Steuerung'!$F24,'2_BV Steuerung'!I$17),"") -> 981686
B25: Nordrhein-Westfalen | C25: Nordrhein-Westfalen,05 | E25: 40 - 44 Jahre | F25: 8 | G25: =IFERROR(INDEX('2_BV_Roh-Daten'!$C$58:$S$80,'2_BV Steuerung'!$F25,'2_BV Steuerung'!G$17),"") -> 0 | H25: =IFERROR(INDEX('2_BV_Roh-Daten'!$C$17:$BR$39,'2_BV Steuerung'!$F25,'2_BV Steuerung'!H$17),"") -> 863617 | I25: =IFERROR(INDEX('2_BV_Roh-Daten'!$C$17:$BR$39,'2_BV Steuerung'!$F25,'2_BV Steuerung'!I$17),"") -> 809197
B26: Hessen | C26: Hessen,06 | E26: 45 - 49 Jahre | F26: 9 | G26: =IFERROR(INDEX('2_BV_Roh-Daten'!$C$58:$S$80,'2_BV Steuerung'!$F26,'2_BV Steuerung'!G$17),"") -> 0 | H26: =IFERROR(INDEX('2_BV_Roh-Daten'!$C$17:$BR$39,'2_BV Steuerung'!$F26,'2_BV Steuerung'!H$17),"") -> 912023 | I26: =IFERROR(INDEX('2_BV_Roh-Daten'!$C$17:$BR$39,'2_BV Steuerung'!$F26,'2_BV Steuerung'!I$17),"") -> 868488
B27: Rheinland-Pfalz | C27: Rheinland-Pfalz,07 | E27: 50 - 54 Jahre | F27: 10 | G27: =IFERROR(INDEX('2_BV_Roh-Daten'!$C$58:$S$80,'2_BV Steuerung'!$F27,'2_BV Steuerung'!G$17),"") -> 0 | H27: =IFERROR(INDEX('2_BV_Roh-Daten'!$C$17:$BR$39,'2_BV Steuerung'!$F27,'2_BV Steuerung'!H$17),"") -> 800010 | I27: =IFERROR(INDEX('2_BV_Roh-Daten'!$C$17:$BR$39,'2_BV Steuerung'!$F27,'2_BV Steuerung'!I$17),"") -> 791253
B28: Baden-Württemberg | C28: Baden-Württemberg,08 | E28: 55 - 59 Jahre | F28: 11 | G28: =IFERROR(INDEX('2_BV_Roh-Daten'!$C$58:$S$80,'2_BV Steuerung'!$F28,'2_BV Steuerung'!G$17),"") -> 0 | H28: =IFERROR(INDEX('2_BV_Roh-Daten'!$C$17:$BR$39,'2_BV Steuerung'!$F28,'2_BV Steuerung'!H$17),"") -> 503205 | I28: =IFERROR(INDEX('2_BV_Roh-Daten'!$C$17:$BR$39,'2_BV Steuerung'!$F28,'2_BV Steuerung'!I$17),"") -> 552709
B29: Bayern | C29: Bayern,09 | E29: 60 - 64 Jahre | F29: 12 | G29: =IFERROR(INDEX('2_BV_Roh-Daten'!$C$58:$S$80,'2_BV Steuerung'!$F29,'2_BV Steuerung'!G$17),"") -> 0 | H29: =IFERROR(INDEX('2_BV_Roh-Daten'!$C$17:$BR$39,'2_BV Steuerung'!$F29,'2_BV Steuerung'!H$17),"") -> 205384 | I29: =IFERROR(INDEX('2_BV_Roh-Daten'!$C$17:$BR$39,'2_BV Steuerung'!$F29,'2_BV Steuerung'!I$17),"") -> 532151
B30: Saarland | C30: Saarland,10 | E30: 65+ | F30: 13 | G30: =IFERROR(INDEX('2_BV_Roh-Daten'!$C$58:$S$80,'2_BV Steuerung'!$F30,'2_BV Steuerung'!G$17),"") -> 0 | H30: =IFERROR(INDEX('2_BV_Roh-Daten'!$C$17:$BR$39,'2_BV Steuerung'!$F30,'2_BV Steuerung'!H$17),"") -> 96838 | I30: =IFERROR(INDEX('2_BV_Roh-Daten'!$C$17:$BR$39,'2_BV Steuerung'!$F30,'2_BV Steuerung'!I$17),"") -> 198291
B31: Berlin | C31: Berlin,11 | E31: Deutsche | F31: 14 | G31: =IFERROR(INDEX('2_BV_Roh-Daten'!$C$58:$S$80,'2_BV Steuerung'!$F31,'2_BV Steuerung'!G$17),"") -> 0 | H31: =IFERROR(INDEX('2_BV_Roh-Daten'!$C$17:$BR$39,'2_BV Steuerung'!$F31,'2_BV Steuerung'!H$17),"") -> 8020954 | I31: =IFERROR(INDEX('2_BV_Roh-Daten'!$C$17:$BR$39,'2_BV Steuerung'!$F31,'2_BV Steuerung'!I$17),"") -> 7818385
B32: Brandenburg | C32: Brandenburg,12 | E32: Ausländer | F32: 15 | G32: =IFERROR(INDEX('2_BV_Roh-Daten'!$C$58:$S$80,'2_BV Steuerung'!$F32,'2_BV Steuerung'!G$17),"") -> 0 | H32: =IFERROR(INDEX('2_BV_Roh-Daten'!$C$17:$BR$39,'2_BV Steuerung'!$F32,'2_BV Steuerung'!H$17),"") -> 2188369 | I32: =IFERROR(INDEX('2_BV_Roh-Daten'!$C$17:$BR$39,'2_BV Steuerung'!$F32,'2_BV Steuerung'!I$17),"") -> 1832443
B33: Mecklenburg-Vorpommern | C33: Mecklenburg-Vorpommern,13 | E33: Keine Angabe | F33: 16 | G33: =IFERROR(INDEX('2_BV_Roh-Daten'!$C$58:$S$80,'2_BV Steuerung'!$F33,'2_BV Steuerung'!G$17),"") -> 0 | H33: =IFERROR(INDEX('2_BV_Roh-Daten'!$C$17:$BR$39,'2_BV Steuerung'!$F33,'2_BV Steuerung'!H$17),"") -> 11570 | I33: =IFERROR(INDEX('2_BV_Roh-Daten'!$C$17:$BR$39,'2_BV Steuerung'!$F33,'2_BV Steuerung'!I$17),"") -> 10486
B34: Sachsen | C34: Sachsen,14 | E34: Vollzeitbeschäftigt | F34: 17 | G34: =IFERROR(INDEX('2_BV_Roh-Daten'!$C$58:$S$80,'2_BV Steuerung'!$F34,'2_BV Steuerung'!G$17),"") -> 0 | H34: =IFERROR(INDEX('2_BV_Roh-Daten'!$C$17:$BR$39,'2_BV Steuerung'!$F34,'2_BV Steuerung'!H$17),"") -> 6820662 | I34: =IFERROR(INDEX('2_BV_Roh-Daten'!$C$17:$BR$39,'2_BV Steuerung'!$F34,'2_BV Steuerung'!I$17),"") -> 6510033
B35: Sachsen-Anhalt | C35: Sachsen-Anhalt,15 | E35: Teilzeitbeschäftigt | F35: 18 | G35: =IFERROR(INDEX('2_BV_Roh-Daten'!$C$58:$S$80,'2_BV Steuerung'!$F35,'2_BV Steuerung'!G$17),"") -> 0 | H35: =IFERROR(INDEX('2_BV_Roh-Daten'!$C$17:$BR$39,'2_BV Steuerung'!$F35,'2_BV Steuerung'!H$17),"") -> 3400225 | I35: =IFERROR(INDEX('2_BV_Roh-Daten'!$C$17:$BR$39,'2_BV Steuerung'!$F35,'2_BV Steuerung'!I$17),"") -> 3149131
B36: Thüringen | C36: Thüringen,16 | E36: keine Angabe | F36: 19 | G36: =IFERROR(INDEX('2_BV_Roh-Daten'!$C$58:$S$80,'2_BV Steuerung'!$F36,'2_BV Steuerung'!G$17),"") -> 0 | H36: =IFERROR(INDEX('2_BV_Roh-Daten'!$C$17:$BR$39,'2_BV Steuerung'!$F36,'2_BV Steuerung'!H$17),"") -> 0 | I36: =IFERROR(INDEX('2_BV_Roh-Daten'!$C$17:$BR$39,'2_BV Steuerung'!$F36,'2_BV Steuerung'!I$17),"") -> 0
E37: ohne Berufsabschluss | F37: 20 | G37: =IFERROR(INDEX('2_BV_Roh-Daten'!$C$58:$S$80,'2_BV Steuerung'!$F37,'2_BV Steuerung'!G$17),"") -> 0 | H37: =IFERROR(INDEX('2_BV_Roh-Daten'!$C$17:$BR$39,'2_BV Steuerung'!$F37,'2_BV Steuerung'!H$17),"") -> 0 | I37: =IFERROR(INDEX('2_BV_Roh-Daten'!$C$17:$BR$39,'2_BV Steuerung'!$F37,'2_BV Steuerung'!I$17),"") -> 0
E38: mit anerkanntem Berufsabschluss | F38: 21 | G38: =IFERROR(INDEX('2_BV_Roh-Daten'!$C$58:$S$80,'2_BV Steuerung'!$F38,'2_BV Steuerung'!G$17),"") -> 0 | H38: =IFERROR(INDEX('2_BV_Roh-Daten'!$C$17:$BR$39,'2_BV Steuerung'!$F38,'2_BV Steuerung'!H$17),"") -> 0 | I38: =IFERROR(INDEX('2_BV_Roh-Daten'!$C$17:$BR$39,'2_BV Steuerung'!$F38,'2_BV Steuerung'!I$17),"") -> 0
E39: mit akad. Abschluss | F39: 22 | G39: =IFERROR(INDEX('2_BV_Roh-Daten'!$C$58:$S$80,'2_BV Steuerung'!$F39,'2_BV Steuerung'!G$17),"") -> 0 | H39: =IFERROR(INDEX('2_BV_Roh-Daten'!$C$17:$BR$39,'2_BV Steuerung'!$F39,'2_BV Steuerung'!H$17),"") -> 0 | I39: =IFERROR(INDEX('2_BV_Roh-Daten'!$C$17:$BR$39,'2_BV Steuerung'!$F39,'2_BV Steuerung'!I$17),"") -> 0
E40: keine Angabe | F40: 23 | G40: =IFERROR(INDEX('2_BV_Roh-Daten'!$C$58:$S$80,'2_BV Steuerung'!$F40,'2_BV Steuerung'!G$17),"") -> 0 | H40: =IFERROR(INDEX('2_BV_Roh-Daten'!$C$17:$BR$39,'2_BV Steuerung'!$F40,'2_BV Steuerung'!H$17),"") -> 0 | I40: =IFERROR(INDEX('2_BV_Roh-Daten'!$C$17:$BR$39,'2_BV Steuerung'!$F40,'2_BV Steuerung'!I$17),"") -> 0
C42: VOR REV | G42: begonnene BV | I42: beendete BV
F43: 1. Vergleich | G43: =MATCH('2_BV Steuerung'!G42,'2_BV_Roh-Daten'!B94:BQ94,0) -> 1 | I43: =MATCH('2_BV Steuerung'!I42,'2_BV_Roh-Daten'!B94:BQ94,0) -> 18
F44: 2. Vergleich | G44: =MATCH('2_BV Steuerung'!$C$18,'2_BV_Roh-Daten'!B95:R95,0) -> 1
F45: Zeilennum. | G45: =G43+$G$44-1 -> 1 | I45: =I43+G44-1 -> 18
E47: Insgesamt | F47: 1 | G47: =IFERROR(INDEX('2_BV_Roh-Daten'!$B$96:$BQ$114,'2_BV Steuerung'!F47,'2_BV Steuerung'!G$45),"") -> 10202487 | I47: =IFERROR(INDEX('2_BV_Roh-Daten'!$B$96:$BQ$114,'2_BV Steuerung'!F47,'2_BV Steuerung'!I$45),"") -> 9774346
E48: Männer | F48: 2 | G48: =IFERROR(INDEX('2_BV_Roh-Daten'!$B$96:$BQ$114,'2_BV Steuerung'!F48,'2_BV Steuerung'!G$45),"") -> 5765738 | I48: =IFERROR(INDEX('2_BV_Roh-Daten'!$B$96:$BQ$114,'2_BV Steuerung'!F48,'2_BV Steuerung'!I$45),"") -> 5483350
E49: Frauen | F49: 3 | G49: =IFERROR(INDEX('2_BV_Roh-Daten'!$B$96:$BQ$114,'2_BV Steuerung'!F49,'2_BV Steuerung'!G$45),"") -> 4436749 | I49: =IFERROR(INDEX('2_BV_Roh-Daten'!$B$96:$BQ$114,'2_BV Steuerung'!F49,'2_BV Steuerung'!I$45),"") -> 4290996
E50: U25 | F50: 4 | G50: =IFERROR(INDEX('2_BV_Roh-Daten'!$B$96:$BQ$114,'2_BV Steuerung'!F50,'2_BV Steuerung'!G$45),"") -> 2731673 | I50: =IFERROR(INDEX('2_BV_Roh-Daten'!$B$96:$BQ$114,'2_BV Steuerung'!F50,'2_BV Steuerung'!I$45),"") -> 2114218
E51: 25 - 29 Jahre | F51: 5 | G51: =IFERROR(INDEX('2_BV_Roh-Daten'!$B$96:$BQ$114,'2_BV Steuerung'!F51,'2_BV Steuerung'!G$45),"") -> 1791047 | I51: =IFERROR(INDEX('2_BV_Roh-Daten'!$B$96:$BQ$114,'2_BV Steuerung'!F51,'2_BV Steuerung'!I$45),"") -> 1608856
E52: 30 - 34 Jahre | F52: 6 | G52: =IFERROR(INDEX('2_BV_Roh-Daten'!$B$96:$BQ$114,'2_BV Steuerung'!F52,'2_BV Steuerung'!G$45),"") -> 1277131 | I52: =IFERROR(INDEX('2_BV_Roh-Daten'!$B$96:$BQ$114,'2_BV Steuerung'!F52,'2_BV Steuerung'!I$45),"") -> 1230970
E53: 35 - 39 Jahre | F53: 7 | G53: =IFERROR(INDEX('2_BV_Roh-Daten'!$B$96:$BQ$114,'2_BV Steuerung'!F53,'2_BV Steuerung'!G$45),"") -> 1029336 | I53: =IFERROR(INDEX('2_BV_Roh-Daten'!$B$96:$BQ$114,'2_BV Steuerung'!F53,'2_BV Steuerung'!I$45),"") -> 994182
E54: 40 - 44 Jahre | F54: 8 | G54: =IFERROR(INDEX('2_BV_Roh-Daten'!$B$96:$BQ$114,'2_BV Steuerung'!F54,'2_BV Steuerung'!G$45),"") -> 861696 | I54: =IFERROR(INDEX('2_BV_Roh-Daten'!$B$96:$BQ$114,'2_BV Steuerung'!F54,'2_BV Steuerung'!I$45),"") -> 822856
E55: 45 - 49 Jahre | F55: 9 | G55: =IFERROR(INDEX('2_BV_Roh-Daten'!$B$96:$BQ$114,'2_BV Steuerung'!F55,'2_BV Steuerung'!G$45),"") -> 909830 | I55: =IFERROR(INDEX('2_BV_Roh-Daten'!$B$96:$BQ$114,'2_BV Steuerung'!F55,'2_BV Steuerung'!I$45),"") -> 887349
E56: 50 - 54 Jahre | F56: 10 | G56: =IFERROR(INDEX('2_BV_Roh-Daten'!$B$96:$BQ$114,'2_BV Steuerung'!F56,'2_BV Steuerung'!G$45),"") -> 798125 | I56: =IFERROR(INDEX('2_BV_Roh-Daten'!$B$96:$BQ$114,'2_BV Steuerung'!F56,'2_BV Steuerung'!I$45),"") -> 810232
E57: 55 - 59 Jahre | F57: 11 | G57: =IFERROR(INDEX('2_BV_Roh-Daten'!$B$96:$BQ$114,'2_BV Steuerung'!F57,'2_BV Steuerung'!G$45),"") -> 502011 | I57: =IFERROR(INDEX('2_BV_Roh-Daten'!$B$96:$BQ$114,'2_BV Steuerung'!F57,'2_BV Steuerung'!I$45),"") -> 567947
E58: 60 - 64 Jahre | F58: 12 | G58: =IFERROR(INDEX('2_BV_Roh-Daten'!$B$96:$BQ$114,'2_BV Steuerung'!F58,'2_BV Steuerung'!G$45),"") -> 204956 | I58: =IFERROR(INDEX('2_BV_Roh-Daten'!$B$96:$BQ$114,'2_BV Steuerung'!F58,'2_BV Steuerung'!I$45),"") -> 539176
E59: 65+ | F59: 13 | G59: =IFERROR(INDEX('2_BV_Roh-Daten'!$B$96:$BQ$114,'2_BV Steuerung'!F59,'2_BV Steuerung'!G$45),"") -> 96681 | I59: =IFERROR(INDEX('2_BV_Roh-Daten'!$B$96:$BQ$114,'2_BV Steuerung'!F59,'2_BV Steuerung'!I$45),"") -> 198559
E60: Deutsche | F60: 14 | G60: =IFERROR(INDEX('2_BV_Roh-Daten'!$B$96:$BQ$114,'2_BV Steuerung'!F60,'2_BV Steuerung'!G$45),"") -> 8005342 | I60: =IFERROR(INDEX('2_BV_Roh-Daten'!$B$96:$BQ$114,'2_BV Steuerung'!F60,'2_BV Steuerung'!I$45),"") -> 7924420
E61: Ausländer | F61: 15 | G61: =IFERROR(INDEX('2_BV_Roh-Daten'!$B$96:$BQ$114,'2_BV Steuerung'!F61,'2_BV Steuerung'!G$45),"") -> 2185593 | I61: =IFERROR(INDEX('2_BV_Roh-Daten'!$B$96:$BQ$114,'2_BV Steuerung'!F61,'2_BV Steuerung'!I$45),"") -> 1839391
E62: Keine Angabe | F62: 16 | G62: =IFERROR(INDEX('2_BV_Roh-Daten'!$B$96:$BQ$114,'2_BV Steuerung'!F62,'2_BV Steuerung'!G$45),"") -> 11552 | I62: =IFERROR(INDEX('2_BV_Roh-Daten'!$B$96:$BQ$114,'2_BV Steuerung'!F62,'2_BV Steuerung'!I$45),"") -> 10535
E63: Vollzeitbeschäftigt | F63: 17 | G63: =IFERROR(INDEX('2_BV_Roh-Daten'!$B$96:$BQ$114,'2_BV Steuerung'!F63,'2_BV Steuerung'!G$45),"") -> 6807995 | I63: =IFERROR(INDEX('2_BV_Roh-Daten'!$B$96:$BQ$114,'2_BV Steuerung'!F63,'2_BV Steuerung'!I$45),"") -> 6594612
E64: Teilzeitbeschäftigt | F64: 18 | G64: =IFERROR(INDEX('2_BV_Roh-Daten'!$B$96:$BQ$114,'2_BV Steuerung'!F64,'2_BV Steuerung'!G$45),"") -> 3394486 | I64: =IFERROR(INDEX('2_BV_Roh-Daten'!$B$96:$BQ$114,'2_BV Steuerung'!F64,'2_BV Steuerung'!I$45),"") -> 3177569
E65: keine Angabe | F65: 19 | G65: =IFERROR(INDEX('2_BV_Roh-Daten'!$B$96:$BQ$114,'2_BV Steuerung'!F65,'2_BV Steuerung'!G$45),"") -> 0 | I65: =IFERROR(INDEX('2_BV_Roh-Daten'!$B$96:$BQ$114,'2_BV Steuerung'!F65,'2_BV Steuerung'!I$45),"") -> 0
E66: ohne Berufsabschluss | F66: 20 | G66: =IFERROR(INDEX('1 Roh-Daten'!$B$100:$BQ$122,'2_BV Steuerung'!F66,'2_BV Steuerung'!G$45),"") -> 3693645 | I66: =IFERROR(INDEX('1 Roh-Daten'!$B$100:$BQ$122,'2_BV Steuerung'!F66,'2_BV Steuerung'!I$45),"") -> 1567590
E67: mit anerkanntem Berufsabschluss | F67: 21 | G67: =IFERROR(INDEX('1 Roh-Daten'!$B$100:$BQ$122,'2_BV Steuerung'!F67,'2_BV Steuerung'!G$45),"") -> 19627411 | I67: =IFERROR(INDEX('1 Roh-Daten'!$B$100:$BQ$122,'2_BV Steuerung'!F67,'2_BV Steuerung'!I$45),"") -> 3752426
E68: mit akad. Abschluss | F68: 22 | G68: =IFERROR(INDEX('1 Roh-Daten'!$B$100:$BQ$122,'2_BV Steuerung'!F68,'2_BV Steuerung'!G$45),"") -> 4704645 | I68: =IFERROR(INDEX('1 Roh-Daten'!$B$100:$BQ$122,'2_BV Steuerung'!F68,'2_BV Steuerung'!I$45),"") -> 533626
E69: keine Angabe | F69: 23 | G69: =IFERROR(INDEX('1 Roh-Daten'!$B$100:$BQ$122,'2_BV Steuerung'!F69,'2_BV Steuerung'!G$45),"") -> 3347990 | I69: =IFERROR(INDEX('1 Roh-Daten'!$B$100:$BQ$122,'2_BV Steuerung'!F69,'2_BV Steuerung'!I$45),"") -> 1902452

Sheet 3_Grafik
E1: Beschäftigungsstatistik
A3: Sozialversicherungspflichtig Beschäftigte und geringfügig Beschäftigte nach Wirtschaftsabteilungen (WZ 2008) - Veränderung in %
B4: (Arbeitsort)
A5: Stichtag: 30.06.2016
A7: Wirtschaftszweige (WZ 2008) | B7: sozialversicherungspflichtig Beschäftigte | C7: geringfügig Beschäftigte (GB) | D7: davon
D8: ausschließlich GB | E8: im Nebenjob GB
B9: Daten vor und nach der Revision Veränderung in % (relativ) | C9: Daten vor und nach der Revision Veränderung in % (relativ) | D9: Daten vor und nach der Revision Veränderung in % (relativ) | E9: Daten vor und nach der Revision Veränderung in % (relativ)
B10: 1 | C10: 2 | D10: 3 | E10: 4
A11: Insgesamt | B11: ='3'!E12 -> 0.2219279842 | C11: ='3'!I12 -> 0.09185035664 | D11: ='3'!M12 -> 0.007177362947 | E11: ='3'!Q12 -> 0.2583243146
A12: davon
A13: 01 Landwirtsch., Jagd u.damit verb. Tätigk. | B13: ='3'!E14 -> 0.1509255879 | C13: ='3'!I14 -> 0.0684909168 | D13: ='3'!M14 -> -0.009062012046 | E13: ='3'!Q14 -> 0.3431251543
A14: 02 Forstwirtschaft und Holzeinschlag | B14: ='3'!E15 -> 0.1420753526 | C14: ='3'!I15 -> 0.08350730689 | D14: ='3'!M15 -> 0.02374732843 | E14: ='3'!Q15 -> 0.1681237391
A15: 03 Fischerei und Aquakultur | B15: ='3'!E16 -> 0.1613553852 | C15: ='3'!I16 -> 0.1677852349 | D15: ='3'!M16 -> 0.1248439451 | E15: ='3'!Q16 -> 0.2557544757
A16: 05 Kohlenbergbau | B16: ='3'!E17 -> 0 | C16: ='3'!I17 -> 0 | D16: ='3'!M17 -> 0 | E16: ='3'!Q17 -> 0
A17: 06 Gewinnung von Erdöl und Erdgas | B17: ='3'!E18 -> 0.2955665025 | C17: ='3'!I18 -> 0 | D17: ='3'!M18 -> 0 | E17: ='3'!Q18 -> 0
A18: 07 Erzbergbau | B18: ='3'!E19 -> 1.046511628 | C18: ='3'!I19 -> 0 | D18: ='3'!M19 -> 0 | E18: ='3'!Q19 -> 0
A19: 08 Gewinn. v.Steinen u.Erden,sonst.Bergbau | B19: ='3'!E20 -> 0.1816649992 | C19: ='3'!I20 -> 0.0481000481 | D19: ='3'!M20 -> -0.1061946903 | E19: ='3'!Q20 -> 0.3750937734
A20: 09 DL f.Bergbau u.Gew.v.Steine u.Erden | B20: ='3'!E21 -> 0.2029159778 | C20: ='3'!I21 -> 0 | D20: ='3'!M21 -> 0 | E20: ='3'!Q21 -> 0
A21: 10 Hrst. von Nahrungs- und Futtermitteln | B21: ='3'!E22 -> 0.2040064186 | C21: ='3'!I22 -> 0.1050420168 | D21: ='3'!M22 -> 0.1062532338 | E21: ='3'!Q22 -> 0.1013513514
A22: 11 Getränkeherstellung | B22: ='3'!E23 -> 0.1673602986 | C22: ='3'!I23 -> 0.100712179 | D22: ='3'!M23 -> 0.04146366746 | E22: ='3'!Q23 -> 0.2350728726
A23: 12 Tabakverarbeitung | B23: ='3'!E24 -> 0.0311009745 | C23: ='3'!I24 -> 0.6944444444 | D23: ='3'!M24 -> 0 | E23: ='3'!Q24 -> 2.702702703
A24: 13 Herstellung von Textilien | B24: ='3'!E25 -> 0.1612609202 | C24: ='3'!I25 -> 0.2029181563 | D24: ='3'!M25 -> 0.1869158879 | E24: ='3'!Q25 -> 0.2448408534
A25: 14 Herstellung von Bekleidung | B25: ='3'!E26 -> 0.2065432915 | C25: ='3'!I26 -> 0.1295966305 | D25: ='3'!M26 -> 0.1268498943 | E25: ='3'!Q26 -> 0.1386001386
A26: 15 Herstellung v.Leder,Lederwaren u.Schuhen | B26: ='3'!E27 -> 0.3398058252 | C26: ='3'!I27 -> -0.1901140684 | D26: ='3'!M27 -> -0.2786809104 | E26: ='3'!Q27 -> 0
A27: 16 Hrst.v.Holz-,Korb-,Korkwaren(ohne Möbel) | B27: ='3'!E28 -> 0.2260203605 | C27: ='3'!I28 -> 0.06532066508 | D27: ='3'!M28 -> 0.03544214071 | E27: ='3'!Q28 -> 0.1260352899
A28: 17 Hrst. v. Papier, Pappe u. Waren daraus | B28: ='3'!E29 -> 0.144764616 | C28: ='3'!I29 -> 0.1069391635 | D28: ='3'!M29 -> -0.03428767358 | E28: ='3'!Q29 -> 0.4258614015
A29: 18 Druckgewerbe u. Vervielältigung | B29: ='3'!E30 -> 0.1868103224 | C29: ='3'!I30 -> 0.08457412477 | D29: ='3'!M30 -> -0.03445683498 | E29: ='3'!Q30 -> 0.3767202276
A30: 19 Kokerei und Mineralölverarbeitung | B30: ='3'!E31 -> 0.1880526547 | C30: ='3'!I31 -> -0.7792207792 | D30: ='3'!M31 -> -0.3937007874 | E30: ='3'!Q31 -> -1.526717557
A31: 20 Herstellung von chemischen Erzeugnissen | B31: ='3'!E32 -> 0.3127141344 | C31: ='3'!I32 -> 0.1403227423 | D31: ='3'!M32 -> -0.01404494382 | E31: ='3'!Q32 -> 0.5250262513
A32: 21 Herstellung v. pharmazeut. Erzeugnissen | B32: ='3'!E33 -> 0.6319632074 | C32: ='3'!I33 -> -0.1341081806 | D32: ='3'!M33 -> 0 | E32: ='3'!Q33 -> -0.4746835443
A33: 22 Herstellung v. Gummi- u. Kunststoffwaren | B33: ='3'!E34 -> 0.2484355346 | C33: ='3'!I34 -> 0.02772002772 | D33: ='3'!M34 -> -0.07171029043 | E33: ='3'!Q34 -> 0.23562172
A34: 23 Hrst.v.Glas,Keramik,Verarb.Steine+Erden | B34: ='3'!E35 -> 0.2229716126 | C34: ='3'!I35 -> 0.07703247215 | D34: ='3'!M35 -> 0 | E34: ='3'!Q35 -> 0.2499038831
A35: 24 Metallerzeugung und -bearbeitung | B35: ='3'!E36 -> 0.3869546907 | C35: ='3'!I36 -> 0.0313283208 | D35: ='3'!M36 -> -0.1066747943 | E35: ='3'!Q36 -> 0.3317850033
A36: 25 Herstellung von Metallerzeugnissen | B36: ='3'!E37 -> 0.2311733624 | C36: ='3'!I37 -> 0.09195402299 | D36: ='3'!M37 -> -0.04644394216 | E36: ='3'!Q37 -> 0.3165351957
A37: 26 Hrst. v.DV-Gerät., elektr.u.opt.Erzeugn. | B37: ='3'!E38 -> 0.1708972471 | C37: ='3'!I38 -> 0.09450803318 | D37: ='3'!M38 -> 0.05342695772 | E37: ='3'!Q38 -> 0.1850605653
A38: 27 Herstellung v. elektrischen Ausrüstungen | B38: ='3'!E39 -> 0.1872116543 | C38: ='3'!I39 -> 0.2361350437 | D38: ='3'!M39 -> 0.1429660694 | E38: ='3'!Q39 -> 0.4249565385
A39: 28 Maschinenbau | B39: ='3'!E40 -> 0.2538750249 | C39: ='3'!I40 -> 0.09153420254 | D39: ='3'!M40 -> 0.006626027034 | E39: ='3'!Q40 -> 0.2669769989
A40: 29 Hrst. v. Kraftwagen u. Kraftwagenteilen | B40: ='3'!E41 -> 0.1789981395 | C40: ='3'!I41 -> 0.09849305624 | D40: ='3'!M41 -> 0 | E40: ='3'!Q41 -> 0.4472271914
A41: 30 Sonstiger Fahrzeugbau | B41: ='3'!E42 -> 0.1357192477 | C41: ='3'!I42 -> 0.03837298542 | D41: ='3'!M42 -> 0 | E41: ='3'!Q42 -> 0.1222493888
A42: 31 Herstellung von Möbeln | B42: ='3'!E43 -> 0.1876485185 | C42: ='3'!I43 -> 0.1456496742 | D42: ='3'!M43 -> 0.09015100293 | E42: ='3'!Q43 -> 0.2637257252
A43: 32 Herstellung von sonstigen Waren | B43: ='3'!E44 -> 0.2267901551 | C43: ='3'!I44 -> 0.3574845174 | D43: ='3'!M44 -> 0.3065445413 | E43: ='3'!Q44 -> 0.466550688
A44: 33 Rep. u.Install. v. Masch. u.Ausrüstungen | B44: ='3'!E45 -> 0.2523811886 | C44: ='3'!I45 -> 0.1307922272 | D44: ='3'!M45 -> 0.01376746747 | E44: ='3'!Q45 -> 0.2697621189
A45: 35 Energieversorgung | B45: ='3'!E46 -> 0.1594769509 | C45: ='3'!I46 -> 0.1743027888 | D45: ='3'!M46 -> -0.01572574304 | E45: ='3'!Q46 -> 0.386711197
A46: 36 Wasserversorgung | B46: ='3'!E47 -> 0.2137966496 | C46: ='3'!I47 -> 0 | D46: ='3'!M47 -> 0 | E46: ='3'!Q47 -> 0
A47: 37 Abwasserentsorgung | B47: ='3'!E48 -> 0.2220625694 | C47: ='3'!I48 -> 0.1249219238 | D47: ='3'!M48 -> 0.1066666667 | E47: ='3'!Q48 -> 0.1507159005
A48: 38 Sammlung,Abfallbeseitigung,Rückgewinnung | B48: ='3'!E49 -> 0.2173599769 | C48: ='3'!I49 -> 0.03748125937 | D48: ='3'!M49 -> 0.009759906305 | E48: ='3'!Q49 -> 0.0867754252
A49: 39 Beseitig. v.UW-Verschm. u.sonst.Entsorg. | B49: ='3'!E50 -> 0.5229160258 | C49: ='3'!I50 -> -0.3289473684 | D49: ='3'!M50 -> -0.5154639175 | E49: ='3'!Q50 -> 0
A50: 41 Hochbau | B50: ='3'!E51 -> 0.08024121854 | C50: ='3'!I51 -> 0.04450844351 | D50: ='3'!M51 -> -0.1349858878 | E50: ='3'!Q51 -> 0.3636892639
A51: 42 Tiefbau | B51: ='3'!E52 -> 0.04652666223 | C51: ='3'!I52 -> 0.0264096131 | D51: ='3'!M52 -> -0.1085883514 | E51: ='3'!Q52 -> 0.2990430622
A52: 43 Vorber.Baust.arb.,Bauinst.,so.Ausbaugew. | B52: ='3'!E53 -> 0.1404375077 | C52: ='3'!I53 -> 0.09068496592 | D52: ='3'!M53 -> 0.004337910862 | E52: ='3'!Q53 -> 0.2399314482
A53: 45 Handel m. Kfz; Inst.halt. u. Rep. v. Kfz | B53: ='3'!E54 -> 0.2693038186 | C53: ='3'!I54 -> 0.1872175597 | D53: ='3'!M54 -> 0.1285254408 | E53: ='3'!Q54 -> 0.3073669716
A54: 46 Großhandel (ohne Handel mit Kfz) | B54: ='3'!E55 -> 0.3222589611 | C54: ='3'!I55 -> 0.1569482649 | D54: ='3'!M55 -> 0.09262175129 | E54: ='3'!Q55 -> 0.2868939366
A55: 47 Einzelhandel (ohne Handel mit Kfz) | B55: ='3'!E56 -> 0.363584041 | C55: ='3'!I56 -> 0.1200280435 | D55: ='3'!M56 -> 0.1084637111 | E55: ='3'!Q56 -> 0.1550422233
A56: 49 Landverkehr u.Transp.i.Rohrfernleitungen | B56: ='3'!E57 -> 0.176491581 | C56: ='3'!I57 -> 0.04654133514 | D56: ='3'!M57 -> -0.05208532802 | E56: ='3'!Q57 -> 0.2268399238
A57: 50 Schifffahrt | B57: ='3'!E58 -> 0.1884691168 | C57: ='3'!I58 -> 0.03374957813 | D57: ='3'!M58 -> 0 | E57: ='3'!Q58 -> 0.09718172983
A58: 51 Luftfahrt | B58: ='3'!E59 -> 0.09086351673 | C58: ='3'!I59 -> 0.1436781609 | D58: ='3'!M59 -> -0.5464480874 | E58: ='3'!Q59 -> 0.9090909091
A59: 52 Lagerei u. Erbr.v. sonst. DL f.d.Verkehr | B59: ='3'!E60 -> 0.2267939386 | C59: ='3'!I60 -> 0.06426735219 | D59: ='3'!M60 -> -0.08044281856 | E59: ='3'!Q60 -> 0.2806012885
A60: 53 Post-, Kurier- und Expressdienste | B60: ='3'!E61 -> 0.05468797472 | C60: ='3'!I61 -> -0.01423510925 | D60: ='3'!M61 -> -0.09930255471 | E60: ='3'!Q61 -> 0.1897745032
A61: 55 Beherbergung | B61: ='3'!E62 -> 0.2274950748 | C61: ='3'!I62 -> 0.03583444486 | D61: ='3'!M62 -> -0.04140619477 | E61: ='3'!Q62 -> 0.1838448736
A62: 56 Gastronomie | B62: ='3'!E63 -> 0.145074275 | C62: ='3'!I63 -> -0.006333322778 | D62: ='3'!M63 -> -0.08301215535 | E62: ='3'!Q63 -> 0.1280851934
A63: 58 Verlagswesen | B63: ='3'!E64 -> 0.2035479642 | C63: ='3'!I64 -> 0.01254670161 | D63: ='3'!M64 -> -0.0662539989 | E63: ='3'!Q64 -> 0.2327426607
A64: 59 Film, TV, Kino u. Tonstudio | B64: ='3'!E65 -> 0.1589976032 | C64: ='3'!I65 -> 0.04338394794 | D64: ='3'!M65 -> -0.08248968879 | E64: ='3'!Q65 -> 0.2699055331
A65: 60 Rundfunkveranstalter | B65: ='3'!E66 -> 0.06802489711 | C65: ='3'!I66 -> 0.1231021748 | D65: ='3'!M66 -> -0.1696832579 | E65: ='3'!Q66 -> 0.8968609865
A66: 61 Telekommunikation | B66: ='3'!E67 -> 0.1615316602 | C66: ='3'!I67 -> 0.3015454203 | D66: ='3'!M67 -> 0.2206287921 | E66: ='3'!Q67 -> 0.4761904762
A67: 62 DL der Informationstechnologie | B67: ='3'!E68 -> 0.2299494959 | C67: ='3'!I68 -> 0.2053518503 | D67: ='3'!M68 -> 0.06619055914 | E67: ='3'!Q68 -> 0.4209163024
A68: 63 Informationsdienstleistungen | B68: ='3'!E69 -> 0.1535576892 | C68: ='3'!I69 -> 0.02925901543 | D68: ='3'!M69 -> 0 | E68: ='3'!Q69 -> 0.07468259895
A69: 64 Erbringung von Finanzdienstleistungen | B69: ='3'!E70 -> 0.4805880283 | C69: ='3'!I70 -> 0.06731217315 | D69: ='3'!M70 -> -0.1386428406 | E69: ='3'!Q70 -> 0.4897314376
A70: 65 Versicherungen u.Pensionskassen | B70: ='3'!E71 -> 0.111229523 | C70: ='3'!I71 -> 0 | D70: ='3'!M71 -> 0.06523157208 | E70: ='3'!Q71 -> -0.1526717557
A71: 66 M.Finanz-u.Versicherungs-DL verb.Tätigk. | B71: ='3'!E72 -> 0.489617511 | C71: ='3'!I72 -> 0.3336501717 | D71: ='3'!M72 -> 0.1945140446 | E71: ='3'!Q72 -> 0.5325415901
A72: 68 Grundstücks- und Wohnungswesen | B72: ='3'!E73 -> 0.1778778088 | C72: ='3'!I73 -> 0.3183064859 | D72: ='3'!M73 -> 0.1102994735 | E72: ='3'!Q73 -> 0.5796874047
A73: 69 Rechts-,Steuerberatung, Wirtsch.-prüfung | B73: ='3'!E74 -> 0.3055215465 | C73: ='3'!I74 -> 0.4165719297 | D73: ='3'!M74 -> 0.3625328965 | E73: ='3'!Q74 -> 0.499260355
A74: 70 Verw.u.Führ. v.Untern.u.Betr.;Unt.berat. | B74: ='3'!E75 -> 0.2196689411 | C74: ='3'!I75 -> 0.1554038145 | D74: ='3'!M75 -> 0.04531465363 | E74: ='3'!Q75 -> 0.3377427526
A75: 71 Architektur-, Ingenieurbüros; Labore | B75: ='3'!E76 -> 0.3026229184 | C75: ='3'!I76 -> 0.3743840143 | D75: ='3'!M76 -> 0.3068721834 | E75: ='3'!Q76 -> 0.4960192089
A76: 72 Forschung und Entwicklung | B76: ='3'!E77 -> 0.1940072241 | C76: ='3'!I77 -> 0.0754944889 | D76: ='3'!M77 -> 0.06497725796 | E76: ='3'!Q77 -> 0.1116320607
A77: 73 Werbung und Marktforschung | B77: ='3'!E78 -> 0.1932876472 | C77: ='3'!I78 -> 0.06349977121 | D77: ='3'!M78 -> -0.02665076082 | E77: ='3'!Q78 -> 0.3145987982
A78: 74 Sonst.freiberufl., wiss.u.techn. Tätigk. | B78: ='3'!E79 -> 0.2105808793 | C78: ='3'!I79 -> 0.04971414367 | D78: ='3'!M79 -> -0.05858230814 | E78: ='3'!Q79 -> 0.2163916689
A79: 75 Veterinärwesen | B79: ='3'!E80 -> 0.2217371722 | C79: ='3'!I80 -> 0.4096593359 | D79: ='3'!M80 -> 0.4495825305 | E79: ='3'!Q80 -> 0.3280839895
A80: 77 Vermietung von beweglichen Sachen | B80: ='3'!E81 -> 0.2262872457 | C80: ='3'!I81 -> 0.1395903657 | D80: ='3'!M81 -> -0.03064798599 | E80: ='3'!Q81 -> 0.3743735282
A81: 78 Vermittl. u.Überlassung v.Arbeitskräften | B81: ='3'!E82 -> 0.07831989993 | C81: ='3'!I82 -> -0.006743867897 | D81: ='3'!M82 -> -0.06555520791 | E81: ='3'!Q82 -> 0.1008751602
A82: 79 Reisebüros,-veranst.u.son.Reservier.-DL | B82: ='3'!E83 -> 0.3309273458 | C82: ='3'!I83 -> 0.1167624118 | D82: ='3'!M83 -> -0.02087827963 | E82: ='3'!Q83 -> 0.3976143141
A83: 80 Wach- u.Sicherh.dienste sowie Detekteien | B83: ='3'!E84 -> 0.07272605215 | C83: ='3'!I84 -> -0.02539424566 | D83: ='3'!M84 -> -0.2177956147 | E83: ='3'!Q84 -> 0.1820868739
A84: 81 Gebäudebetreuung;Garten-u.Landschaftsbau | B84: ='3'!E85 -> 0.07052679675 | C84: ='3'!I85 -> 0.02016306668 | D84: ='3'!M85 -> -0.137558455 | E84: ='3'!Q85 -> 0.2348291188
A85: 82 Dienstleistg.f.Untern.u.Privatpers.ang | B85: ='3'!E86 -> 0.2346879514 | C85: ='3'!I86 -> -0.02056929479 | D85: ='3'!M86 -> -0.1530878949 | E85: ='3'!Q86 -> 0.2106131666
A86: 84 Öffentl. Verwalt.,Verteidigung;Soz.vers. | B86: ='3'!E87 -> 0.2542592473 | C86: ='3'!I87 -> -0.01040391187 | D86: ='3'!M87 -> -0.08579717998 | E86: ='3'!Q87 -> 0.1732101617
A87: 85 Erziehung und Unterricht | B87: ='3'!E88 -> 0.138012176 | C87: ='3'!I88 -> 0.06662063786 | D87: ='3'!M88 -> 0.02611470624 | E87: ='3'!Q88 -> 0.2045972104
A88: 86 Gesundheitswesen | B88: ='3'!E89 -> 0.1963212497 | C88: ='3'!I89 -> 0.3683657808 | D88: ='3'!M89 -> 0.3451734718 | E88: ='3'!Q89 -> 0.4071636119
A89: 87 Heime (ohne Erholungs- und Ferienheime) | B89: ='3'!E90 -> 0.2275316299 | C89: ='3'!I90 -> 0.09093998879 | D89: ='3'!M90 -> 0.0342244863 | E89: ='3'!Q90 -> 0.2219249711
A90: 88 Sozialwesen (ohne Heime) | B90: ='3'!E91 -> 0.184852906 | C90: ='3'!I91 -> 0.06470017351 | D90: ='3'!M91 -> -0.01882249602 | E90: ='3'!Q91 -> 0.2038922508
A91: 90 Kreative, künstler.u.unterhalt. Tätigk. | B91: ='3'!E92 -> 0.1655036679 | C91: ='3'!I92 -> 0.05106382979 | D91: ='3'!M92 -> -0.06881838827 | E91: ='3'!Q92 -> 0.2452893299
A92: 91 Bibl.,Archive,Museen,zoolog.u.ä.Gärten | B92: ='3'!E93 -> 0.1609858999 | C92: ='3'!I93 -> 0.08411439558 | D92: ='3'!M93 -> 0.09177118385 | E92: ='3'!Q93 -> 0.05605381166
A93: 92 Spiel-, Wett- und Lotteriewesen | B93: ='3'!E94 -> 0.2142844493 | C93: ='3'!I94 -> 0.1447233119 | D93: ='3'!M94 -> 0.102805999 | E93: ='3'!Q94 -> 0.2160271577
A94: 93 DL d.Sports,d.Unterhaltg.u.d.Erholung | B94: ='3'!E95 -> 0.1490236382 | C94: ='3'!I95 -> 0.06860465116 | D94: ='3'!M95 -> -0.08041271565 | E94: ='3'!Q95 -> 0.2557578301
A95: 94 Interessenvertr.,kirchl.u.sonst.Verein | B95: ='3'!E96 -> 0.1625398298 | C95: ='3'!I96 -> 0.05912640733 | D95: ='3'!M96 -> -0.05520287055 | E95: ='3'!Q96 -> 0.2906435146
A96: 95 Reparatur v.DV-Geräten u.Gebrauchsgütern | B96: ='3'!E97 -> 0.3031772981 | C96: ='3'!I97 -> 0.1724137931 | D96: ='3'!M97 -> 0.1903794898 | E96: ='3'!Q97 -> 0.1273479784
A97: 96 Sonstige überwieg. persönliche DL | B97: ='3'!E98 -> 0.1846780467 | C97: ='3'!I98 -> 0.1456618113 | D97: ='3'!M98 -> 0.1101984297 | E97: ='3'!Q98 -> 0.2405571614
A98: 97 Private Haushalte mit Hauspersonal | B98: ='3'!E99 -> 0.075807029 | C98: ='3'!I99 -> -0.2578416578 | D98: ='3'!M99 -> -0.4563425618 | E98: ='3'!Q99 -> 0.2137411832
A99: 98 H.v.Waren,Dienstl.d.priv. Haushalte oaS | B99: ='3'!E100 -> 0.7407407407 | C99: ='3'!I100 -> -0.2548853016 | D99: ='3'!M100 -> -0.4958677686 | E99: ='3'!Q100 -> 0
A100: 99 Exterritoriale Organisat. u. Körpersch. | B100: ='3'!E101 -> 0.02555322737 | C100: ='3'!I101 -> 1.123595506 | D100: ='3'!M101 -> 2.702702703 | E100: ='3'!Q101 -> -6.666666667
E101: © Statistik der Bundesagentur für Arbeit

Sheet 3
Q1: Beschäftigungsstatistik
A3: Sozialversicherungspflichtig Beschäftigte und geringfügig Beschäftigte nach Wirtschaftsabteilungen (WZ 2008)
B4: (Arbeitsort)
A5: Stichtag: 30.06.2016
A7: Wirtschaftszweige (WZ 2008) | B7: sozialversicherungspflichtig Beschäftigte | F7: geringfügig Beschäftigte | J7: davon
J8: ausschließlich GB | N8: im Nebenjob GB
B9: nach Revision | C9: vor Revision | D9: Veränderung (Spalte 1 zu 2) | F9: nach Revision | G9: vor Revision | H9: Veränderung (Spalte 5 zu 6) | J9: nach Revision | K9: vor Revision | L9: Veränderung (Spalte 9 zu 10) | N9: nach Revision | O9: vor Revision | P9: Veränderung (Spalte 13 zu 14)
D10: absolut | E10: in % | H10: absolut | I10: in % | L10: absolut | M10: in % | P10: absolut | Q10: in %
B11: 1 | C11: 2 | D11: 3 | E11: 4 | F11: 5 | G11: 6 | H11: 7 | I11: 8 | J11: 9 | K11: 10 | L11: 11 | M11: 12 | N11: 13 | O11: 14 | P11: 15 | Q11: 16
A12: Insgesamt | B12: ='3 Steuerung'!G7 -> 31443318 | C12: ='3 Steuerung'!P8 -> 31373691 | D12: =IFERROR(B12-C12,"x") -> 69627 | E12: =IFERROR((D12*100)/C12,"x") -> 0.2219279842 | F12: ='3 Steuerung'!H7 -> 7763218 | G12: ='3 Steuerung'!Q8 -> 7756094 | H12: =IFERROR(F12-G12,"x") -> 7124 | I12: =IFERROR((H12*100)/G12,"x") -> 0.09185035664 | J12: ='3 Steuerung'!I7 -> 5141533 | K12: ='3 Steuerung'!R8 -> 5141164 | L12: =IFERROR(J12-K12,"x") -> 369 | M12: =IFERROR((L12*100)/K12,"x") -> 0.007177362947 | N12: ='3 Steuerung'!J7 -> 2621685 | O12: ='3 Steuerung'!S8 -> 2614930 | P12: =IFERROR(N12-O12,"x") -> 6755 | Q12: =IFERROR((P12*100)/O12,"x") -> 0.2583243146
A13: davon
A14: 01 Landwirtsch., Jagd u.damit verb. Tätigk. | B14: ='3 Steuerung'!G8 -> 224953 | C14: ='3 Steuerung'!P9 -> 224614 | D14: =IFERROR(B14-C14,"x") -> 339 | E14: =IFERROR((D14*100)/C14,"x") -> 0.1509255879 | F14: ='3 Steuerung'!H8 -> 184092 | G14: ='3 Steuerung'!Q9 -> 183966 | H14: =IFERROR(F14-G14,"x") -> 126 | I14: =IFERROR((H14*100)/G14,"x") -> 0.0684909168 | J14: ='3 Steuerung'!I8 -> 143443 | K14: ='3 Steuerung'!R9 -> 143456 | L14: =IFERROR(J14-K14,"x") -> -13 | M14: =IFERROR((L14*100)/K14,"x") -> -0.009062012046 | N14: ='3 Steuerung'!J8 -> 40649 | O14: ='3 Steuerung'!S9 -> 40510 | P14: =IFERROR(N14-O14,"x") -> 139 | Q14: =IFERROR((P14*100)/O14,"x") -> 0.3431251543
A15: 02 Forstwirtschaft und Holzeinschlag | B15: ='3 Steuerung'!G9 -> 19031 | C15: ='3 Steuerung'!P10 -> 19004 | D15: 27 | E15: 0.1420753526 | F15: ='3 Steuerung'!H9 -> 7191 | G15: ='3 Steuerung'!Q10 -> 7185 | H15: 6 | I15: 0.08350730689 | J15: ='3 Steuerung'!I9 -> 4212 | K15: ='3 Steuerung'!R10 -> 4211 | L15: 1 | M15: 0.02374732843 | N15: ='3 Steuerung'!J9 -> 2979 | O15: ='3 Steuerung'!S10 -> 2974 | P15: 5 | Q15: 0.1681237391
A16: 03 Fischerei und Aquakultur | B16: ='3 Steuerung'!G10 -> 2483 | C16: ='3 Steuerung'!P11 -> 2479 | D16: 4 | E16: 0.1613553852 | F16: ='3 Steuerung'!H10 -> 1194 | G16: ='3 Steuerung'!Q11 -> 1192 | H16: 2 | I16: 0.1677852349 | J16: ='3 Steuerung'!I10 -> 802 | K16: ='3 Steuerung'!R11 -> 801 | L16: 1 | M16: 0.1248439451 | N16: ='3 Steuerung'!J10 -> 392 | O16: ='3 Steuerung'!S11 -> 391 | P16: 1 | Q16: 0.2557544757
A17: 05 Kohlenbergbau | B17: ='3 Steuerung'!G11 -> 15881 | C17: ='3 Steuerung'!P12 -> 15881 | D17: 0 | E17: 0 | F17: ='3 Steuerung'!H11 -> 215 | G17: ='3 Steuerung'!Q12 -> 215 | H17: 0 | I17: 0 | J17: ='3 Steuerung'!I11 -> 170 | K17: ='3 Steuerung'!R12 -> 170 | L17: 0 | M17: 0 | N17: ='3 Steuerung'!J11 -> 45 | O17: ='3 Steuerung'!S12 -> 45 | P17: 0 | Q17: 0
A18: 06 Gewinnung von Erdöl und Erdgas | B18: ='3 Steuerung'!G12 -> 3054 | C18: ='3 Steuerung'!P13 -> 3045 | D18: 9 | E18: 0.2955665025 | F18: ='3 Steuerung'!H12 -> 11 | G18: ='3 Steuerung'!Q13 -> 11 | H18: 0 | I18: 0 | J18: ='3 Steuerung'!I12 -> 7 | K18: ='3 Steuerung'!R13 -> 7 | L18: 0 | M18: 0 | N18: ='3 Steuerung'!J12 -> 4 | O18: ='3 Steuerung'!S13 -> 4 | P18: 0 | Q18: 0
A19: 07 Erzbergbau | B19: ='3 Steuerung'!G13 -> 869 | C19: ='3 Steuerung'!P14 -> 860 | D19: 9 | E19: 1.046511628 | F19: ='3 Steuerung'!H13 -> 31 | G19: ='3 Steuerung'!Q14 -> 31 | H19: 0 | I19: 0 | J19: ='3 Steuerung'!I13 -> 22 | K19: ='3 Steuerung'!R14 -> 22 | L19: 0 | M19: 0 | N19: ='3 Steuerung'!J13 -> 9 | O19: ='3 Steuerung'!S14 -> 9 | P19: 0 | Q19: 0
A20: 08 Gewinn. v.Steinen u.Erden,sonst.Bergbau | B20: ='3 Steuerung'!G14 -> 38051 | C20: ='3 Steuerung'!P15 -> 37982 | D20: 69 | E20: 0.1816649992 | F20: ='3 Steuerung'!H14 -> 4160 | G20: ='3 Steuerung'!Q15 -> 4158 | H20: 2 | I20: 0.0481000481 | J20: ='3 Steuerung'!I14 -> 2822 | K20: ='3 Steuerung'!R15 -> 2825 | L20: -3 | M20: -0.1061946903 | N20: ='3 Steuerung'!J14 -> 1338 | O20: ='3 Steuerung'!S15 -> 1333 | P20: 5 | Q20: 0.3750937734
A21: 09 DL f.Bergbau u.Gew.v.Steine u.Erden | B21: ='3 Steuerung'!G15 -> 13333 | C21: ='3 Steuerung'!P16 -> 13306 | D21: 27 | E21: 0.2029159778 | F21: ='3 Steuerung'!H15 -> 327 | G21: ='3 Steuerung'!Q16 -> 327 | H21: 0 | I21: 0 | J21: ='3 Steuerung'!I15 -> 207 | K21: ='3 Steuerung'!R16 -> 207 | L21: 0 | M21: 0 | N21: ='3 Steuerung'!J15 -> 120 | O21: ='3 Steuerung'!S16 -> 120 | P21: 0 | Q21: 0
A22: 10 Hrst. von Nahrungs- und Futtermitteln | B22: ='3 Steuerung'!G16 -> 614467 | C22: ='3 Steuerung'!P17 -> 613216 | D22: 1251 | E22: 0.2040064186 | F22: ='3 Steuerung'!H16 -> 143903 | G22: ='3 Steuerung'!Q17 -> 143752 | H22: 151 | I22: 0.1050420168 | J22: ='3 Steuerung'!I16 -> 108347 | K22: ='3 Steuerung'!R17 -> 108232 | L22: 115 | M22: 0.1062532338 | N22: ='3 Steuerung'!J16 -> 35556 | O22: ='3 Steuerung'!S17 -> 35520 | P22: 36 | Q22: 0.1013513514
A23: 11 Getränkeherstellung | B23: ='3 Steuerung'!G17 -> 67632 | C23: ='3 Steuerung'!P18 -> 67519 | D23: 113 | E23: 0.1673602986 | F23: ='3 Steuerung'!H17 -> 13915 | G23: ='3 Steuerung'!Q18 -> 13901 | H23: 14 | I23: 0.100712179 | J23: ='3 Steuerung'!I17 -> 9651 | K23: ='3 Steuerung'!R18 -> 9647 | L23: 4 | M23: 0.04146366746 | N23: ='3 Steuerung'!J17 -> 4264 | O23: ='3 Steuerung'!S18 -> 4254 | P23: 10 | Q23: 0.2350728726
A24: 12 Tabakverarbeitung | B24: ='3 Steuerung'!G18 -> 9649 | C24: ='3 Steuerung'!P19 -> 9646 | D24: 3 | E24: 0.0311009745 | F24: ='3 Steuerung'!H18 -> 145 | G24: ='3 Steuerung'!Q19 -> 144 | H24: 1 | I24: 0.6944444444 | J24: ='3 Steuerung'!I18 -> 107 | K24: ='3 Steuerung'!R19 -> 107 | L24: 0 | M24: 0 | N24: ='3 Steuerung'!J18 -> 38 | O24: ='3 Steuerung'!S19 -> 37 | P24: 1 | Q24: 2.702702703
A25: 13 Herstellung von Textilien | B25: ='3 Steuerung'!G19 -> 71428 | C25: ='3 Steuerung'!P20 -> 71313 | D25: 115 | E25: 0.1612609202 | F25: ='3 Steuerung'!H19 -> 10370 | G25: ='3 Steuerung'!Q20 -> 10349 | H25: 21 | I25: 0.2029181563 | J25: ='3 Steuerung'!I19 -> 7504 | K25: ='3 Steuerung'!R20 -> 7490 | L25: 14 | M25: 0.1869158879 | N25: ='3 Steuerung'!J19 -> 2866 | O25: ='3 Steuerung'!S20 -> 2859 | P25: 7 | Q25: 0.2448408534
A26: 14 Herstellung von Bekleidung | B26: ='3 Steuerung'!G20 -> 36387 | C26: ='3 Steuerung'!P21 -> 36312 | D26: 75 | E26: 0.2065432915 | F26: ='3 Steuerung'!H20 -> 6181 | G26: ='3 Steuerung'!Q21 -> 6173 | H26: 8 | I26: 0.1295966305 | J26: ='3 Steuerung'!I20 -> 4736 | K26: ='3 Steuerung'!R21 -> 4730 | L26: 6 | M26: 0.1268498943 | N26: ='3 Steuerung'!J20 -> 1445 | O26: ='3 Steuerung'!S21 -> 1443 | P26: 2 | Q26: 0.1386001386
A27: 15 Herstellung v.Leder,Lederwaren u.Schuhen | B27: ='3 Steuerung'!G21 -> 16536 | C27: ='3 Steuerung'!P22 -> 16480 | D27: 56 | E27: 0.3398058252 | F27: ='3 Steuerung'!H21 -> 3150 | G27: ='3 Steuerung'!Q22 -> 3156 | H27: -6 | I27: -0.1901140684 | J27: ='3 Steuerung'!I21 -> 2147 | K27: ='3 Steuerung'!R22 -> 2153 | L27: -6 | M27: -0.2786809104 | N27: ='3 Steuerung'!J21 -> 1003 | O27: ='3 Steuerung'!S22 -> 1003 | P27: 0 | Q27: 0
A28: 16 Hrst.v.Holz-,Korb-,Korkwaren(ohne Möbel) | B28: ='3 Steuerung'!G22 -> 107312 | C28: ='3 Steuerung'!P23 -> 107070 | D28: 242 | E28: 0.2260203605 | F28: ='3 Steuerung'!H22 -> 16851 | G28: ='3 Steuerung'!Q23 -> 16840 | H28: 11 | I28: 0.06532066508 | J28: ='3 Steuerung'!I22 -> 11290 | K28: ='3 Steuerung'!R23 -> 11286 | L28: 4 | M28: 0.03544214071 | N28: ='3 Steuerung'!J22 -> 5561 | O28: ='3 Steuerung'!S23 -> 5554 | P28: 7 | Q28: 0.1260352899
A29: 17 Hrst. v. Papier, Pappe u. Waren daraus | B29: ='3 Steuerung'!G23 -> 123828 | C29: ='3 Steuerung'!P24 -> 123649 | D29: 179 | E29: 0.144764616 | F29: ='3 Steuerung'!H23 -> 8425 | G29: ='3 Steuerung'!Q24 -> 8416 | H29: 9 | I29: 0.1069391635 | J29: ='3 Steuerung'!I23 -> 5831 | K29: ='3 Steuerung'!R24 -> 5833 | L29: -2 | M29: -0.03428767358 | N29: ='3 Steuerung'!J23 -> 2594 | O29: ='3 Steuerung'!S24 -> 2583 | P29: 11 | Q29: 0.4258614015
A30: 18 Druckgewerbe u. Vervielältigung | B30: ='3 Steuerung'!G24 -> 138366 | C30: ='3 Steuerung'!P25 -> 138108 | D30: 258 | E30: 0.1868103224 | F30: ='3 Steuerung'!H24 -> 44969 | G30: ='3 Steuerung'!Q25 -> 44931 | H30: 38 | I30: 0.08457412477 | J30: ='3 Steuerung'!I24 -> 31913 | K30: ='3 Steuerung'!R25 -> 31924 | L30: -11 | M30: -0.03445683498 | N30: ='3 Steuerung'!J24 -> 13056 | O30: ='3 Steuerung'!S25 -> 13007 | P30: 49 | Q30: 0.3767202276
A31: 19 Kokerei und Mineralölverarbeitung | B31: ='3 Steuerung'!G25 -> 25040 | C31: ='3 Steuerung'!P26 -> 24993 | D31: 47 | E31: 0.1880526547 | F31: ='3 Steuerung'!H25 -> 382 | G31: ='3 Steuerung'!Q26 -> 385 | H31: -3 | I31: -0.7792207792 | J31: ='3 Steuerung'!I25 -> 253 | K31: ='3 Steuerung'!R26 -> 254 | L31: -1 | M31: -0.3937007874 | N31: ='3 Steuerung'!J25 -> 129 | O31: ='3 Steuerung'!S26 -> 131 | P31: -2 | Q31: -1.526717557
A32: 20 Herstellung von chemischen Erzeugnissen | B32: ='3 Steuerung'!G26 -> 322064 | C32: ='3 Steuerung'!P27 -> 321060 | D32: 1004 | E32: 0.3127141344 | F32: ='3 Steuerung'!H26 -> 9991 | G32: ='3 Steuerung'!Q27 -> 9977 | H32: 14 | I32: 0.1403227423 | J32: ='3 Steuerung'!I26 -> 7119 | K32: ='3 Steuerung'!R27 -> 7120 | L32: -1 | M32: -0.01404494382 | N32: ='3 Steuerung'!J26 -> 2872 | O32: ='3 Steuerung'!S27 -> 2857 | P32: 15 | Q32: 0.5250262513
A33: 21 Herstellung v. pharmazeut. Erzeugnissen | B33: ='3 Steuerung'!G27 -> 153823 | C33: ='3 Steuerung'!P28 -> 152857 | D33: 966 | E33: 0.6319632074 | F33: ='3 Steuerung'!H27 -> 2234 | G33: ='3 Steuerung'!Q28 -> 2237 | H33: -3 | I33: -0.1341081806 | J33: ='3 Steuerung'!I27 -> 1605 | K33: ='3 Steuerung'!R28 -> 1605 | L33: 0 | M33: 0 | N33: ='3 Steuerung'!J27 -> 629 | O33: ='3 Steuerung'!S28 -> 632 | P33: -3 | Q33: -0.4746835443
A34: 22 Herstellung v. Gummi- u. Kunststoffwaren | B34: ='3 Steuerung'!G28 -> 384150 | C34: ='3 Steuerung'!P29 -> 383198 | D34: 952 | E34: 0.2484355346 | F34: ='3 Steuerung'!H28 -> 28868 | G34: ='3 Steuerung'!Q29 -> 28860 | H34: 8 | I34: 0.02772002772 | J34: ='3 Steuerung'!I28 -> 19509 | K34: ='3 Steuerung'!R29 -> 19523 | L34: -14 | M34: -0.07171029043 | N34: ='3 Steuerung'!J28 -> 9359 | O34: ='3 Steuerung'!S29 -> 9337 | P34: 22 | Q34: 0.23562172
A35: 23 Hrst.v.Glas,Keramik,Verarb.Steine+Erden | B35: ='3 Steuerung'!G29 -> 199123 | C35: ='3 Steuerung'!P30 -> 198680 | D35: 443 | E35: 0.2229716126 | F35: ='3 Steuerung'!H29 -> 16889 | G35: ='3 Steuerung'!Q30 -> 16876 | H35: 13 | I35: 0.07703247215 | J35: ='3 Steuerung'!I29 -> 11674 | K35: ='3 Steuerung'!R30 -> 11674 | L35: 0 | M35: 0 | N35: ='3 Steuerung'!J29 -> 5215 | O35: ='3 Steuerung'!S30 -> 5202 | P35: 13 | Q35: 0.2499038831
A36: 24 Metallerzeugung und -bearbeitung | B36: ='3 Steuerung'!G30 -> 290819 | C36: ='3 Steuerung'!P31 -> 289698 | D36: 1121 | E36: 0.3869546907 | F36: ='3 Steuerung'!H30 -> 9579 | G36: ='3 Steuerung'!Q31 -> 9576 | H36: 3 | I36: 0.0313283208 | J36: ='3 Steuerung'!I30 -> 6555 | K36: ='3 Steuerung'!R31 -> 6562 | L36: -7 | M36: -0.1066747943 | N36: ='3 Steuerung'!J30 -> 3024 | O36: ='3 Steuerung'!S31 -> 3014 | P36: 10 | Q36: 0.3317850033
A37: 25 Herstellung von Metallerzeugnissen | B37: ='3 Steuerung'!G31 -> 795178 | C37: ='3 Steuerung'!P32 -> 793344 | D37: 1834 | E37: 0.2311733624 | F37: ='3 Steuerung'!H31 -> 104496 | G37: ='3 Steuerung'!Q32 -> 104400 | H37: 96 | I37: 0.09195402299 | J37: ='3 Steuerung'!I31 -> 64564 | K37: ='3 Steuerung'!R32 -> 64594 | L37: -30 | M37: -0.04644394216 | N37: ='3 Steuerung'!J31 -> 39932 | O37: ='3 Steuerung'!S32 -> 39806 | P37: 126 | Q37: 0.3165351957
A38: 26 Hrst. v.DV-Gerät., elektr.u.opt.Erzeugn. | B38: ='3 Steuerung'!G32 -> 410889 | C38: ='3 Steuerung'!P33 -> 410188 | D38: 701 | E38: 0.1708972471 | F38: ='3 Steuerung'!H32 -> 19064 | G38: ='3 Steuerung'!Q33 -> 19046 | H38: 18 | I38: 0.09450803318 | J38: ='3 Steuerung'!I32 -> 13109 | K38: ='3 Steuerung'!R33 -> 13102 | L38: 7 | M38: 0.05342695772 | N38: ='3 Steuerung'!J32 -> 5955 | O38: ='3 Steuerung'!S33 -> 5944 | P38: 11 | Q38: 0.1850605653
A39: 27 Herstellung v. elektrischen Ausrüstungen | B39: ='3 Steuerung'!G33 -> 352667 | C39: ='3 Steuerung'!P34 -> 352008 | D39: 659 | E39: 0.1872116543 | F39: ='3 Steuerung'!H33 -> 15706 | G39: ='3 Steuerung'!Q34 -> 15669 | H39: 37 | I39: 0.2361350437 | J39: ='3 Steuerung'!I33 -> 10507 | K39: ='3 Steuerung'!R34 -> 10492 | L39: 15 | M39: 0.1429660694 | N39: ='3 Steuerung'!J33 -> 5199 | O39: ='3 Steuerung'!S34 -> 5177 | P39: 22 | Q39: 0.4249565385
A40: 28 Maschinenbau | B40: ='3 Steuerung'!G34 -> 1022777 | C40: ='3 Steuerung'!P35 -> 1020187 | D40: 2590 | E40: 0.2538750249 | F40: ='3 Steuerung'!H34 -> 44833 | G40: ='3 Steuerung'!Q35 -> 44792 | H40: 41 | I40: 0.09153420254 | J40: ='3 Steuerung'!I34 -> 30186 | K40: ='3 Steuerung'!R35 -> 30184 | L40: 2 | M40: 0.006626027034 | N40: ='3 Steuerung'!J34 -> 14647 | O40: ='3 Steuerung'!S35 -> 14608 | P40: 39 | Q40: 0.2669769989
A41: 29 Hrst. v. Kraftwagen u. Kraftwagenteilen | B41: ='3 Steuerung'!G35 -> 908896 | C41: ='3 Steuerung'!P36 -> 907272 | D41: 1624 | E41: 0.1789981395 | F41: ='3 Steuerung'!H35 -> 10163 | G41: ='3 Steuerung'!Q36 -> 10153 | H41: 10 | I41: 0.09849305624 | J41: ='3 Steuerung'!I35 -> 7917 | K41: ='3 Steuerung'!R36 -> 7917 | L41: 0 | M41: 0 | N41: ='3 Steuerung'!J35 -> 2246 | O41: ='3 Steuerung'!S36 -> 2236 | P41: 10 | Q41: 0.4472271914
A42: 30 Sonstiger Fahrzeugbau | B42: ='3 Steuerung'!G36 -> 155679 | C42: ='3 Steuerung'!P37 -> 155468 | D42: 211 | E42: 0.1357192477 | F42: ='3 Steuerung'!H36 -> 2607 | G42: ='3 Steuerung'!Q37 -> 2606 | H42: 1 | I42: 0.03837298542 | J42: ='3 Steuerung'!I36 -> 1788 | K42: ='3 Steuerung'!R37 -> 1788 | L42: 0 | M42: 0 | N42: ='3 Steuerung'!J36 -> 819 | O42: ='3 Steuerung'!S37 -> 818 | P42: 1 | Q42: 0.1222493888
A43: 31 Herstellung von Möbeln | B43: ='3 Steuerung'!G37 -> 114257 | C43: ='3 Steuerung'!P38 -> 114043 | D43: 214 | E43: 0.1876485185 | F43: ='3 Steuerung'!H37 -> 13064 | G43: ='3 Steuerung'!Q38 -> 13045 | H43: 19 | I43: 0.1456496742 | J43: ='3 Steuerung'!I37 -> 8882 | K43: ='3 Steuerung'!R38 -> 8874 | L43: 8 | M43: 0.09015100293 | N43: ='3 Steuerung'!J37 -> 4182 | O43: ='3 Steuerung'!S38 -> 4171 | P43: 11 | Q43: 0.2637257252
A44: 32 Herstellung von sonstigen Waren | B44: ='3 Steuerung'!G38 -> 242623 | C44: ='3 Steuerung'!P39 -> 242074 | D44: 549 | E44: 0.2267901551 | F44: ='3 Steuerung'!H38 -> 39864 | G44: ='3 Steuerung'!Q39 -> 39722 | H44: 142 | I44: 0.3574845174 | J44: ='3 Steuerung'!I38 -> 27159 | K44: ='3 Steuerung'!R39 -> 27076 | L44: 83 | M44: 0.3065445413 | N44: ='3 Steuerung'!J38 -> 12705 | O44: ='3 Steuerung'!S39 -> 12646 | P44: 59 | Q44: 0.466550688
A45: 33 Rep. u.Install. v. Masch. u.Ausrüstungen | B45: ='3 Steuerung'!G39 -> 161671 | C45: ='3 Steuerung'!P40 -> 161264 | D45: 407 | E45: 0.2523811886 | F45: ='3 Steuerung'!H39 -> 26795 | G45: ='3 Steuerung'!Q40 -> 26760 | H45: 35 | I45: 0.1307922272 | J45: ='3 Steuerung'!I39 -> 14529 | K45: ='3 Steuerung'!R40 -> 14527 | L45: 2 | M45: 0.01376746747 | N45: ='3 Steuerung'!J39 -> 12266 | O45: ='3 Steuerung'!S40 -> 12233 | P45: 33 | Q45: 0.2697621189
A46: 35 Energieversorgung | B46: ='3 Steuerung'!G40 -> 226726 | C46: ='3 Steuerung'!P41 -> 226365 | D46: 361 | E46: 0.1594769509 | F46: ='3 Steuerung'!H40 -> 12069 | G46: ='3 Steuerung'!Q41 -> 12048 | H46: 21 | I46: 0.1743027888 | J46: ='3 Steuerung'!I40 -> 6358 | K46: ='3 Steuerung'!R41 -> 6359 | L46: -1 | M46: -0.01572574304 | N46: ='3 Steuerung'!J40 -> 5711 | O46: ='3 Steuerung'!S41 -> 5689 | P46: 22 | Q46: 0.386711197
A47: 36 Wasserversorgung | B47: ='3 Steuerung'!G41 -> 37030 | C47: ='3 Steuerung'!P42 -> 36951 | D47: 79 | E47: 0.2137966496 | F47: ='3 Steuerung'!H41 -> 2079 | G47: ='3 Steuerung'!Q42 -> 2079 | H47: 0 | I47: 0 | J47: ='3 Steuerung'!I41 -> 1342 | K47: ='3 Steuerung'!R42 -> 1342 | L47: 0 | M47: 0 | N47: ='3 Steuerung'!J41 -> 737 | O47: ='3 Steuerung'!S42 -> 737 | P47: 0 | Q47: 0
A48: 37 Abwasserentsorgung | B48: ='3 Steuerung'!G42 -> 30690 | C48: ='3 Steuerung'!P43 -> 30622 | D48: 68 | E48: 0.2220625694 | F48: ='3 Steuerung'!H42 -> 3206 | G48: ='3 Steuerung'!Q43 -> 3202 | H48: 4 | I48: 0.1249219238 | J48: ='3 Steuerung'!I42 -> 1877 | K48: ='3 Steuerung'!R43 -> 1875 | L48: 2 | M48: 0.1066666667 | N48: ='3 Steuerung'!J42 -> 1329 | O48: ='3 Steuerung'!S43 -> 1327 | P48: 2 | Q48: 0.1507159005
A49: 38 Sammlung,Abfallbeseitigung,Rückgewinnung | B49: ='3 Steuerung'!G43 -> 166906 | C49: ='3 Steuerung'!P44 -> 166544 | D49: 362 | E49: 0.2173599769 | F49: ='3 Steuerung'!H43 -> 16014 | G49: ='3 Steuerung'!Q44 -> 16008 | H49: 6 | I49: 0.03748125937 | J49: ='3 Steuerung'!I43 -> 10247 | K49: ='3 Steuerung'!R44 -> 10246 | L49: 1 | M49: 0.009759906305 | N49: ='3 Steuerung'!J43 -> 5767 | O49: ='3 Steuerung'!S44 -> 5762 | P49: 5 | Q49: 0.0867754252
A50: 39 Beseitig. v.UW-Verschm. u.sonst.Entsorg. | B50: ='3 Steuerung'!G44 -> 3268 | C50: ='3 Steuerung'!P45 -> 3251 | D50: 17 | E50: 0.5229160258 | F50: ='3 Steuerung'!H44 -> 303 | G50: ='3 Steuerung'!Q45 -> 304 | H50: -1 | I50: -0.3289473684 | J50: ='3 Steuerung'!I44 -> 193 | K50: ='3 Steuerung'!R45 -> 194 | L50: -1 | M50: -0.5154639175 | N50: ='3 Steuerung'!J44 -> 110 | O50: ='3 Steuerung'!S45 -> 110 | P50: 0 | Q50: 0
A51: 41 Hochbau | B51: ='3 Steuerung'!G45 -> 283124 | C51: ='3 Steuerung'!P46 -> 282897 | D51: 227 | E51: 0.08024121854 | F51: ='3 Steuerung'!H45 -> 38212 | G51: ='3 Steuerung'!Q46 -> 38195 | H51: 17 | I51: 0.04450844351 | J51: ='3 Steuerung'!I45 -> 24414 | K51: ='3 Steuerung'!R46 -> 24447 | L51: -33 | M51: -0.1349858878 | N51: ='3 Steuerung'!J45 -> 13798 | O51: ='3 Steuerung'!S46 -> 13748 | P51: 50 | Q51: 0.3636892639
A52: 42 Tiefbau | B52: ='3 Steuerung'!G46 -> 204279 | C52: ='3 Steuerung'!P47 -> 204184 | D52: 95 | E52: 0.04652666223 | F52: ='3 Steuerung'!H46 -> 15150 | G52: ='3 Steuerung'!Q47 -> 15146 | H52: 4 | I52: 0.0264096131 | J52: ='3 Steuerung'!I46 -> 10119 | K52: ='3 Steuerung'!R47 -> 10130 | L52: -11 | M52: -0.1085883514 | N52: ='3 Steuerung'!J46 -> 5031 | O52: ='3 Steuerung'!S47 -> 5016 | P52: 15 | Q52: 0.2990430622
A53: 43 Vorber.Baust.arb.,Bauinst.,so.Ausbaugew. | B53: ='3 Steuerung'!G47 -> 1261404 | C53: ='3 Steuerung'!P48 -> 1259635 | D53: 1769 | E53: 0.1404375077 | F53: ='3 Steuerung'!H47 -> 254959 | G53: ='3 Steuerung'!Q48 -> 254728 | H53: 231 | I53: 0.09068496592 | J53: ='3 Steuerung'!I47 -> 161375 | K53: ='3 Steuerung'!R48 -> 161368 | L53: 7 | M53: 0.004337910862 | N53: ='3 Steuerung'!J47 -> 93584 | O53: ='3 Steuerung'!S48 -> 93360 | P53: 224 | Q53: 0.2399314482
A54: 45 Handel m. Kfz; Inst.halt. u. Rep. v. Kfz | B54: ='3 Steuerung'!G48 -> 630351 | C54: ='3 Steuerung'!P49 -> 628658 | D54: 1693 | E54: 0.2693038186 | F54: ='3 Steuerung'!H48 -> 124152 | G54: ='3 Steuerung'!Q49 -> 123920 | H54: 232 | I54: 0.1872175597 | J54: ='3 Steuerung'!I48 -> 83359 | K54: ='3 Steuerung'!R49 -> 83252 | L54: 107 | M54: 0.1285254408 | N54: ='3 Steuerung'!J48 -> 40793 | O54: ='3 Steuerung'!S49 -> 40668 | P54: 125 | Q54: 0.3073669716
A55: 46 Großhandel (ohne Handel mit Kfz) | B55: ='3 Steuerung'!G49 -> 1351083 | C55: ='3 Steuerung'!P50 -> 1346743 | D55: 4340 | E55: 0.3222589611 | F55: ='3 Steuerung'!H49 -> 242498 | G55: ='3 Steuerung'!Q50 -> 242118 | H55: 380 | I55: 0.1569482649 | J55: ='3 Steuerung'!I49 -> 162099 | K55: ='3 Steuerung'!R50 -> 161949 | L55: 150 | M55: 0.09262175129 | N55: ='3 Steuerung'!J49 -> 80399 | O55: ='3 Steuerung'!S50 -> 80169 | P55: 230 | Q55: 0.2868939366
A56: 47 Einzelhandel (ohne Handel mit Kfz) | B56: ='3 Steuerung'!G50 -> 2336675 | C56: ='3 Steuerung'!P51 -> 2328210 | D56: 8465 | E56: 0.363584041 | F56: ='3 Steuerung'!H50 -> 902538 | G56: ='3 Steuerung'!Q51 -> 901456 | H56: 1082 | I56: 0.1200280435 | J56: ='3 Steuerung'!I50 -> 678381 | K56: ='3 Steuerung'!R51 -> 677646 | L56: 735 | M56: 0.1084637111 | N56: ='3 Steuerung'!J50 -> 224157 | O56: ='3 Steuerung'!S51 -> 223810 | P56: 347 | Q56: 0.1550422233
A57: 49 Landverkehr u.Transp.i.Rohrfernleitungen | B57: ='3 Steuerung'!G51 -> 617548 | C57: ='3 Steuerung'!P52 -> 616460 | D57: 1088 | E57: 0.176491581 | F57: ='3 Steuerung'!H51 -> 202065 | G57: ='3 Steuerung'!Q52 -> 201971 | H57: 94 | I57: 0.04654133514 | J57: ='3 Steuerung'!I51 -> 130487 | K57: ='3 Steuerung'!R52 -> 130555 | L57: -68 | M57: -0.05208532802 | N57: ='3 Steuerung'!J51 -> 71578 | O57: ='3 Steuerung'!S52 -> 71416 | P57: 162 | Q57: 0.2268399238
A58: 50 Schifffahrt | B58: ='3 Steuerung'!G52 -> 23390 | C58: ='3 Steuerung'!P53 -> 23346 | D58: 44 | E58: 0.1884691168 | F58: ='3 Steuerung'!H52 -> 2964 | G58: ='3 Steuerung'!Q53 -> 2963 | H58: 1 | I58: 0.03374957813 | J58: ='3 Steuerung'!I52 -> 1934 | K58: ='3 Steuerung'!R53 -> 1934 | L58: 0 | M58: 0 | N58: ='3 Steuerung'!J52 -> 1030 | O58: ='3 Steuerung'!S53 -> 1029 | P58: 1 | Q58: 0.09718172983
A59: 51 Luftfahrt | B59: ='3 Steuerung'!G53 -> 63890 | C59: ='3 Steuerung'!P54 -> 63832 | D59: 58 | E59: 0.09086351673 | F59: ='3 Steuerung'!H53 -> 697 | G59: ='3 Steuerung'!Q54 -> 696 | H59: 1 | I59: 0.1436781609 | J59: ='3 Steuerung'!I53 -> 364 | K59: ='3 Steuerung'!R54 -> 366 | L59: -2 | M59: -0.5464480874 | N59: ='3 Steuerung'!J53 -> 333 | O59: ='3 Steuerung'!S54 -> 330 | P59: 3 | Q59: 0.9090909091
A60: 52 Lagerei u. Erbr.v. sonst. DL f.d.Verkehr | B60: ='3 Steuerung'!G54 -> 689851 | C60: ='3 Steuerung'!P55 -> 688290 | D60: 1561 | E60: 0.2267939386 | F60: ='3 Steuerung'!H54 -> 87192 | G60: ='3 Steuerung'!Q55 -> 87136 | H60: 56 | I60: 0.06426735219 | J60: ='3 Steuerung'!I54 -> 52169 | K60: ='3 Steuerung'!R55 -> 52211 | L60: -42 | M60: -0.08044281856 | N60: ='3 Steuerung'!J54 -> 35023 | O60: ='3 Steuerung'!S55 -> 34925 | P60: 98 | Q60: 0.2806012885
A61: 53 Post-, Kurier- und Expressdienste | B61: ='3 Steuerung'!G55 -> 263456 | C61: ='3 Steuerung'!P56 -> 263312 | D61: 144 | E61: 0.05468797472 | F61: ='3 Steuerung'!H55 -> 182621 | G61: ='3 Steuerung'!Q56 -> 182647 | H61: -26 | I61: -0.01423510925 | J61: ='3 Steuerung'!I55 -> 128771 | K61: ='3 Steuerung'!R56 -> 128899 | L61: -128 | M61: -0.09930255471 | N61: ='3 Steuerung'!J55 -> 53850 | O61: ='3 Steuerung'!S56 -> 53748 | P61: 102 | Q61: 0.1897745032
A62: 55 Beherbergung | B62: ='3 Steuerung'!G56 -> 299147 | C62: ='3 Steuerung'!P57 -> 298468 | D62: 679 | E62: 0.2274950748 | F62: ='3 Steuerung'!H56 -> 150747 | G62: ='3 Steuerung'!Q57 -> 150693 | H62: 54 | I62: 0.03583444486 | J62: ='3 Steuerung'!I56 -> 98978 | K62: ='3 Steuerung'!R57 -> 99019 | L62: -41 | M62: -0.04140619477 | N62: ='3 Steuerung'!J56 -> 51769 | O62: ='3 Steuerung'!S57 -> 51674 | P62: 95 | Q62: 0.1838448736
A63: 56 Gastronomie | B63: ='3 Steuerung'!G57 -> 728959 | C63: ='3 Steuerung'!P58 -> 727903 | D63: 1056 | E63: 0.145074275 | F63: ='3 Steuerung'!H57 -> 821002 | G63: ='3 Steuerung'!Q58 -> 821054 | H63: -52 | I63: -0.006333322778 | J63: ='3 Steuerung'!I57 -> 522381 | K63: ='3 Steuerung'!R58 -> 522815 | L63: -434 | M63: -0.08301215535 | N63: ='3 Steuerung'!J57 -> 298621 | O63: ='3 Steuerung'!S58 -> 298239 | P63: 382 | Q63: 0.1280851934
A64: 58 Verlagswesen | B64: ='3 Steuerung'!G58 -> 138332 | C64: ='3 Steuerung'!P59 -> 138051 | D64: 281 | E64: 0.2035479642 | F64: ='3 Steuerung'!H58 -> 71741 | G64: ='3 Steuerung'!Q59 -> 71732 | H64: 9 | I64: 0.01254670161 | J64: ='3 Steuerung'!I58 -> 52792 | K64: ='3 Steuerung'!R59 -> 52827 | L64: -35 | M64: -0.0662539989 | N64: ='3 Steuerung'!J58 -> 18949 | O64: ='3 Steuerung'!S59 -> 18905 | P64: 44 | Q64: 0.2327426607
A65: 59 Film, TV, Kino u. Tonstudio | B65: ='3 Steuerung'!G59 -> 42206 | C65: ='3 Steuerung'!P60 -> 42139 | D65: 67 | E65: 0.1589976032 | F65: ='3 Steuerung'!H59 -> 20754 | G65: ='3 Steuerung'!Q60 -> 20745 | H65: 9 | I65: 0.04338394794 | J65: ='3 Steuerung'!I59 -> 13324 | K65: ='3 Steuerung'!R60 -> 13335 | L65: -11 | M65: -0.08248968879 | N65: ='3 Steuerung'!J59 -> 7430 | O65: ='3 Steuerung'!S60 -> 7410 | P65: 20 | Q65: 0.2699055331
A66: 60 Rundfunkveranstalter | B66: ='3 Steuerung'!G60 -> 58842 | C66: ='3 Steuerung'!P61 -> 58802 | D66: 40 | E66: 0.06802489711 | F66: ='3 Steuerung'!H60 -> 2440 | G66: ='3 Steuerung'!Q61 -> 2437 | H66: 3 | I66: 0.1231021748 | J66: ='3 Steuerung'!I60 -> 1765 | K66: ='3 Steuerung'!R61 -> 1768 | L66: -3 | M66: -0.1696832579 | N66: ='3 Steuerung'!J60 -> 675 | O66: ='3 Steuerung'!S61 -> 669 | P66: 6 | Q66: 0.8968609865
A67: 61 Telekommunikation | B67: ='3 Steuerung'!G61 -> 58907 | C67: ='3 Steuerung'!P62 -> 58812 | D67: 95 | E67: 0.1615316602 | F67: ='3 Steuerung'!H61 -> 2661 | G67: ='3 Steuerung'!Q62 -> 2653 | H67: 8 | I67: 0.3015454203 | J67: ='3 Steuerung'!I61 -> 1817 | K67: ='3 Steuerung'!R62 -> 1813 | L67: 4 | M67: 0.2206287921 | N67: ='3 Steuerung'!J61 -> 844 | O67: ='3 Steuerung'!S62 -> 840 | P67: 4 | Q67: 0.4761904762
A68: 62 DL der Informationstechnologie | B68: ='3 Steuerung'!G62 -> 615024 | C68: ='3 Steuerung'!P63 -> 613613 | D68: 1411 | E68: 0.2299494959 | F68: ='3 Steuerung'!H62 -> 47333 | G68: ='3 Steuerung'!Q63 -> 47236 | H68: 97 | I68: 0.2053518503 | J68: ='3 Steuerung'!I62 -> 28724 | K68: ='3 Steuerung'!R63 -> 28705 | L68: 19 | M68: 0.06619055914 | N68: ='3 Steuerung'!J62 -> 18609 | O68: ='3 Steuerung'!S63 -> 18531 | P68: 78 | Q68: 0.4209163024
A69: 63 Informationsdienstleistungen | B69: ='3 Steuerung'!G63 -> 61961 | C69: ='3 Steuerung'!P64 -> 61866 | D69: 95 | E69: 0.1535576892 | F69: ='3 Steuerung'!H63 -> 13675 | G69: ='3 Steuerung'!Q64 -> 13671 | H69: 4 | I69: 0.02925901543 | J69: ='3 Steuerung'!I63 -> 8315 | K69: ='3 Steuerung'!R64 -> 8315 | L69: 0 | M69: 0 | N69: ='3 Steuerung'!J63 -> 5360 | O69: ='3 Steuerung'!S64 -> 5356 | P69: 4 | Q69: 0.07468259895
A70: 64 Erbringung von Finanzdienstleistungen | B70: ='3 Steuerung'!G64 -> 642498 | C70: ='3 Steuerung'!P65 -> 639425 | D70: 3073 | E70: 0.4805880283 | F70: ='3 Steuerung'!H64 -> 19326 | G70: ='3 Steuerung'!Q65 -> 19313 | H70: 13 | I70: 0.06731217315 | J70: ='3 Steuerung'!I64 -> 12965 | K70: ='3 Steuerung'!R65 -> 12983 | L70: -18 | M70: -0.1386428406 | N70: ='3 Steuerung'!J64 -> 6361 | O70: ='3 Steuerung'!S65 -> 6330 | P70: 31 | Q70: 0.4897314376
A71: 65 Versicherungen u.Pensionskassen | B71: ='3 Steuerung'!G65 -> 171908 | C71: ='3 Steuerung'!P66 -> 171717 | D71: 191 | E71: 0.111229523 | F71: ='3 Steuerung'!H65 -> 2188 | G71: ='3 Steuerung'!Q66 -> 2188 | H71: 0 | I71: 0 | J71: ='3 Steuerung'!I65 -> 1534 | K71: ='3 Steuerung'!R66 -> 1533 | L71: 1 | M71: 0.06523157208 | N71: ='3 Steuerung'!J65 -> 654 | O71: ='3 Steuerung'!S66 -> 655 | P71: -1 | Q71: -0.1526717557
A72: 66 M.Finanz-u.Versicherungs-DL verb.Tätigk. | B72: ='3 Steuerung'!G66 -> 177944 | C72: ='3 Steuerung'!P67 -> 177077 | D72: 867 | E72: 0.489617511 | F72: ='3 Steuerung'!H66 -> 51723 | G72: ='3 Steuerung'!Q67 -> 51551 | H72: 172 | I72: 0.3336501717 | J72: ='3 Steuerung'!I66 -> 30391 | K72: ='3 Steuerung'!R67 -> 30332 | L72: 59 | M72: 0.1945140446 | N72: ='3 Steuerung'!J66 -> 21332 | O72: ='3 Steuerung'!S67 -> 21219 | P72: 113 | Q72: 0.5325415901
A73: 68 Grundstücks- und Wohnungswesen | B73: ='3 Steuerung'!G67 -> 248364 | C73: ='3 Steuerung'!P68 -> 247923 | D73: 441 | E73: 0.1778778088 | F73: ='3 Steuerung'!H67 -> 259694 | G73: ='3 Steuerung'!Q68 -> 258870 | H73: 824 | I73: 0.3183064859 | J73: ='3 Steuerung'!I67 -> 144312 | K73: ='3 Steuerung'!R68 -> 144153 | L73: 159 | M73: 0.1102994735 | N73: ='3 Steuerung'!J67 -> 115382 | O73: ='3 Steuerung'!S68 -> 114717 | P73: 665 | Q73: 0.5796874047
A74: 69 Rechts-,Steuerberatung, Wirtsch.-prüfung | B74: ='3 Steuerung'!G68 -> 448142 | C74: ='3 Steuerung'!P69 -> 446777 | D74: 1365 | E74: 0.3055215465 | F74: ='3 Steuerung'!H68 -> 123661 | G74: ='3 Steuerung'!Q69 -> 123148 | H74: 513 | I74: 0.4165719297 | J74: ='3 Steuerung'!I68 -> 74746 | K74: ='3 Steuerung'!R69 -> 74476 | L74: 270 | M74: 0.3625328965 | N74: ='3 Steuerung'!J68 -> 48915 | O74: ='3 Steuerung'!S69 -> 48672 | P74: 243 | Q74: 0.499260355
A75: 70 Verw.u.Führ. v.Untern.u.Betr.;Unt.berat. | B75: ='3 Steuerung'!G69 -> 631423 | C75: ='3 Steuerung'!P70 -> 630039 | D75: 1384 | E75: 0.2196689411 | F75: ='3 Steuerung'!H69 -> 85072 | G75: ='3 Steuerung'!Q70 -> 84940 | H75: 132 | I75: 0.1554038145 | J75: ='3 Steuerung'!I69 -> 52987 | K75: ='3 Steuerung'!R70 -> 52963 | L75: 24 | M75: 0.04531465363 | N75: ='3 Steuerung'!J69 -> 32085 | O75: ='3 Steuerung'!S70 -> 31977 | P75: 108 | Q75: 0.3377427526
A76: 71 Architektur-, Ingenieurbüros; Labore | B76: ='3 Steuerung'!G70 -> 537934 | C76: ='3 Steuerung'!P71 -> 536311 | D76: 1623 | E76: 0.3026229184 | F76: ='3 Steuerung'!H70 -> 89011 | G76: ='3 Steuerung'!Q71 -> 88679 | H76: 332 | I76: 0.3743840143 | J76: ='3 Steuerung'!I70 -> 57202 | K76: ='3 Steuerung'!R71 -> 57027 | L76: 175 | M76: 0.3068721834 | N76: ='3 Steuerung'!J70 -> 31809 | O76: ='3 Steuerung'!S71 -> 31652 | P76: 157 | Q76: 0.4960192089
A77: 72 Forschung und Entwicklung | B77: ='3 Steuerung'!G71 -> 205545 | C77: ='3 Steuerung'!P72 -> 205147 | D77: 398 | E77: 0.1940072241 | F77: ='3 Steuerung'!H71 -> 19884 | G77: ='3 Steuerung'!Q72 -> 19869 | H77: 15 | I77: 0.0754944889 | J77: ='3 Steuerung'!I71 -> 15400 | K77: ='3 Steuerung'!R72 -> 15390 | L77: 10 | M77: 0.06497725796 | N77: ='3 Steuerung'!J71 -> 4484 | O77: ='3 Steuerung'!S72 -> 4479 | P77: 5 | Q77: 0.1116320607
A78: 73 Werbung und Marktforschung | B78: ='3 Steuerung'!G72 -> 136848 | C78: ='3 Steuerung'!P73 -> 136584 | D78: =IFERROR(B78-C78,"x") -> 264 | E78: =IFERROR((D78*100)/C78,"x") -> 0.1932876472 | F78: ='3 Steuerung'!H72 -> 107155 | G78: ='3 Steuerung'!Q73 -> 107087 | H78: =IFERROR(F78-G78,"x") -> 68 | I78: =IFERROR((H78*100)/G78,"x") -> 0.06349977121 | J78: ='3 Steuerung'!I72 -> 78776 | K78: ='3 Steuerung'!R73 -> 78797 | L78: =IFERROR(J78-K78,"x") -> -21 | M78: =IFERROR((L78*100)/K78,"x") -> -0.02665076082 | N78: ='3 Steuerung'!J72 -> 28379 | O78: ='3 Steuerung'!S73 -> 28290 | P78: =IFERROR(N78-O78,"x") -> 89 | Q78: =IFERROR((P78*100)/O78,"x") -> 0.3145987982
A79: 74 Sonst.freiberufl., wiss.u.techn. Tätigk. | B79: ='3 Steuerung'!G73 -> 61864 | C79: ='3 Steuerung'!P74 -> 61734 | D79: 130 | E79: 0.2105808793 | F79: ='3 Steuerung'!H73 -> 28175 | G79: ='3 Steuerung'!Q74 -> 28161 | H79: 14 | I79: 0.04971414367 | J79: ='3 Steuerung'!I73 -> 17060 | K79: ='3 Steuerung'!R74 -> 17070 | L79: -10 | M79: -0.05858230814 | N79: ='3 Steuerung'!J73 -> 11115 | O79: ='3 Steuerung'!S74 -> 11091 | P79: 24 | Q79: 0.2163916689
A80: 75 Veterinärwesen | B80: ='3 Steuerung'!G74 -> 28927 | C80: ='3 Steuerung'!P75 -> 28863 | D80: 64 | E80: 0.2217371722 | F80: ='3 Steuerung'!H74 -> 9314 | G80: ='3 Steuerung'!Q75 -> 9276 | H80: 38 | I80: 0.4096593359 | J80: ='3 Steuerung'!I74 -> 6256 | K80: ='3 Steuerung'!R75 -> 6228 | L80: 28 | M80: 0.4495825305 | N80: ='3 Steuerung'!J74 -> 3058 | O80: ='3 Steuerung'!S75 -> 3048 | P80: 10 | Q80: 0.3280839895
A81: 77 Vermietung von beweglichen Sachen | B81: ='3 Steuerung'!G75 -> 79282 | C81: ='3 Steuerung'!P76 -> 79103 | D81: 179 | E81: 0.2262872457 | F81: ='3 Steuerung'!H75 -> 39456 | G81: ='3 Steuerung'!Q76 -> 39401 | H81: 55 | I81: 0.1395903657 | J81: ='3 Steuerung'!I75 -> 22833 | K81: ='3 Steuerung'!R76 -> 22840 | L81: -7 | M81: -0.03064798599 | N81: ='3 Steuerung'!J75 -> 16623 | O81: ='3 Steuerung'!S76 -> 16561 | P81: 62 | Q81: 0.3743735282
A82: 78 Vermittl. u.Überlassung v.Arbeitskräften | B82: ='3 Steuerung'!G76 -> 868914 | C82: ='3 Steuerung'!P77 -> 868234 | D82: 680 | E82: 0.07831989993 | F82: ='3 Steuerung'!H76 -> 103791 | G82: ='3 Steuerung'!Q77 -> 103798 | H82: -7 | I82: -0.006743867897 | J82: ='3 Steuerung'!I76 -> 67075 | K82: ='3 Steuerung'!R77 -> 67119 | L82: -44 | M82: -0.06555520791 | N82: ='3 Steuerung'!J76 -> 36716 | O82: ='3 Steuerung'!S77 -> 36679 | P82: 37 | Q82: 0.1008751602
A83: 79 Reisebüros,-veranst.u.son.Reservier.-DL | B83: ='3 Steuerung'!G77 -> 80343 | C83: ='3 Steuerung'!P78 -> 80078 | D83: 265 | E83: 0.3309273458 | F83: ='3 Steuerung'!H77 -> 21436 | G83: ='3 Steuerung'!Q78 -> 21411 | H83: 25 | I83: 0.1167624118 | J83: ='3 Steuerung'!I77 -> 14366 | K83: ='3 Steuerung'!R78 -> 14369 | L83: -3 | M83: -0.02087827963 | N83: ='3 Steuerung'!J77 -> 7070 | O83: ='3 Steuerung'!S78 -> 7042 | P83: 28 | Q83: 0.3976143141
A84: 80 Wach- u.Sicherh.dienste sowie Detekteien | B84: ='3 Steuerung'!G78 -> 178883 | C84: ='3 Steuerung'!P79 -> 178753 | D84: 130 | E84: 0.07272605215 | F84: ='3 Steuerung'!H78 -> 78738 | G84: ='3 Steuerung'!Q79 -> 78758 | H84: -20 | I84: -0.02539424566 | J84: ='3 Steuerung'!I78 -> 40775 | K84: ='3 Steuerung'!R79 -> 40864 | L84: -89 | M84: -0.2177956147 | N84: ='3 Steuerung'!J78 -> 37963 | O84: ='3 Steuerung'!S79 -> 37894 | P84: 69 | Q84: 0.1820868739
A85: 81 Gebäudebetreuung;Garten-u.Landschaftsbau | B85: ='3 Steuerung'!G79 -> 729315 | C85: ='3 Steuerung'!P80 -> 728801 | D85: 514 | E85: 0.07052679675 | F85: ='3 Steuerung'!H79 -> 590307 | G85: ='3 Steuerung'!Q80 -> 590188 | H85: 119 | I85: 0.02016306668 | J85: ='3 Steuerung'!I79 -> 339751 | K85: ='3 Steuerung'!R80 -> 340219 | L85: -468 | M85: -0.137558455 | N85: ='3 Steuerung'!J79 -> 250556 | O85: ='3 Steuerung'!S80 -> 249969 | P85: 587 | Q85: 0.2348291188
A86: 82 Dienstleistg.f.Untern.u.Privatpers.ang | B86: ='3 Steuerung'!G80 -> 336553 | C86: ='3 Steuerung'!P81 -> 335765 | D86: 788 | E86: 0.2346879514 | F86: ='3 Steuerung'!H80 -> 126376 | G86: ='3 Steuerung'!Q81 -> 126402 | H86: -26 | I86: -0.02056929479 | J86: ='3 Steuerung'!I80 -> 80223 | K86: ='3 Steuerung'!R81 -> 80346 | L86: -123 | M86: -0.1530878949 | N86: ='3 Steuerung'!J80 -> 46153 | O86: ='3 Steuerung'!S81 -> 46056 | P86: 97 | Q86: 0.2106131666
A87: 84 Öffentl. Verwalt.,Verteidigung;Soz.vers. | B87: ='3 Steuerung'!G81 -> 1733340 | C87: ='3 Steuerung'!P82 -> 1728944 | D87: 4396 | E87: 0.2542592473 | F87: ='3 Steuerung'!H81 -> 124940 | G87: ='3 Steuerung'!Q82 -> 124953 | H87: -13 | I87: -0.01040391187 | J87: ='3 Steuerung'!I81 -> 88505 | K87: ='3 Steuerung'!R82 -> 88581 | L87: -76 | M87: -0.08579717998 | N87: ='3 Steuerung'!J81 -> 36435 | O87: ='3 Steuerung'!S82 -> 36372 | P87: 63 | Q87: 0.1732101617
A88: 85 Erziehung und Unterricht | B88: ='3 Steuerung'!G82 -> 1205178 | C88: ='3 Steuerung'!P83 -> 1203517 | D88: 1661 | E88: 0.138012176 | F88: ='3 Steuerung'!H82 -> 247836 | G88: ='3 Steuerung'!Q83 -> 247671 | H88: 165 | I88: 0.06662063786 | J88: ='3 Steuerung'!I82 -> 191513 | K88: ='3 Steuerung'!R83 -> 191463 | L88: 50 | M88: 0.02611470624 | N88: ='3 Steuerung'!J82 -> 56323 | O88: ='3 Steuerung'!S83 -> 56208 | P88: 115 | Q88: 0.2045972104
A89: 86 Gesundheitswesen | B89: ='3 Steuerung'!G83 -> 2347188 | C89: ='3 Steuerung'!P84 -> 2342589 | D89: 4599 | E89: 0.1963212497 | F89: ='3 Steuerung'!H83 -> 434861 | G89: ='3 Steuerung'!Q84 -> 433265 | H89: 1596 | I89: 0.3683657808 | J89: ='3 Steuerung'!I83 -> 272104 | K89: ='3 Steuerung'!R84 -> 271168 | L89: 936 | M89: 0.3451734718 | N89: ='3 Steuerung'!J83 -> 162757 | O89: ='3 Steuerung'!S84 -> 162097 | P89: 660 | Q89: 0.4071636119
A90: 87 Heime (ohne Erholungs- und Ferienheime) | B90: ='3 Steuerung'!G84 -> 993326 | C90: ='3 Steuerung'!P85 -> 991071 | D90: 2255 | E90: 0.2275316299 | F90: ='3 Steuerung'!H84 -> 108962 | G90: ='3 Steuerung'!Q85 -> 108863 | H90: 99 | I90: 0.09093998879 | J90: ='3 Steuerung'!I84 -> 75995 | K90: ='3 Steuerung'!R85 -> 75969 | L90: 26 | M90: 0.0342244863 | N90: ='3 Steuerung'!J84 -> 32967 | O90: ='3 Steuerung'!S85 -> 32894 | P90: 73 | Q90: 0.2219249711
A91: 88 Sozialwesen (ohne Heime) | B91: ='3 Steuerung'!G85 -> 1201007 | C91: ='3 Steuerung'!P86 -> 1198791 | D91: 2216 | E91: 0.184852906 | F91: ='3 Steuerung'!H85 -> 204150 | G91: ='3 Steuerung'!Q86 -> 204018 | H91: 132 | I91: 0.06470017351 | J91: ='3 Steuerung'!I85 -> 127483 | K91: ='3 Steuerung'!R86 -> 127507 | L91: -24 | M91: -0.01882249602 | N91: ='3 Steuerung'!J85 -> 76667 | O91: ='3 Steuerung'!S86 -> 76511 | P91: 156 | Q91: 0.2038922508
A92: 90 Kreative, künstler.u.unterhalt. Tätigk. | B92: ='3 Steuerung'!G86 -> 67179 | C92: ='3 Steuerung'!P87 -> 67068 | D92: 111 | E92: 0.1655036679 | F92: ='3 Steuerung'!H86 -> 23512 | G92: ='3 Steuerung'!Q87 -> 23500 | H92: 12 | I92: 0.05106382979 | J92: ='3 Steuerung'!I86 -> 14521 | K92: ='3 Steuerung'!R87 -> 14531 | L92: -10 | M92: -0.06881838827 | N92: ='3 Steuerung'!J86 -> 8991 | O92: ='3 Steuerung'!S87 -> 8969 | P92: 22 | Q92: 0.2452893299
A93: 91 Bibl.,Archive,Museen,zoolog.u.ä.Gärten | B93: ='3 Steuerung'!G87 -> 36086 | C93: ='3 Steuerung'!P88 -> 36028 | D93: 58 | E93: 0.1609858999 | F93: ='3 Steuerung'!H87 -> 8329 | G93: ='3 Steuerung'!Q88 -> 8322 | H93: 7 | I93: 0.08411439558 | J93: ='3 Steuerung'!I87 -> 6544 | K93: ='3 Steuerung'!R88 -> 6538 | L93: 6 | M93: 0.09177118385 | N93: ='3 Steuerung'!J87 -> 1785 | O93: ='3 Steuerung'!S88 -> 1784 | P93: 1 | Q93: 0.05605381166
A94: 92 Spiel-, Wett- und Lotteriewesen | B94: ='3 Steuerung'!G88 -> 56588 | C94: ='3 Steuerung'!P89 -> 56467 | D94: 121 | E94: 0.2142844493 | F94: ='3 Steuerung'!H88 -> 26295 | G94: ='3 Steuerung'!Q89 -> 26257 | H94: 38 | I94: 0.1447233119 | J94: ='3 Steuerung'!I88 -> 16553 | K94: ='3 Steuerung'!R89 -> 16536 | L94: 17 | M94: 0.102805999 | N94: ='3 Steuerung'!J88 -> 9742 | O94: ='3 Steuerung'!S89 -> 9721 | P94: 21 | Q94: 0.2160271577
A95: 93 DL d.Sports,d.Unterhaltg.u.d.Erholung | B95: ='3 Steuerung'!G89 -> 116934 | C95: ='3 Steuerung'!P90 -> 116760 | D95: 174 | E95: 0.1490236382 | F95: ='3 Steuerung'!H89 -> 172118 | G95: ='3 Steuerung'!Q90 -> 172000 | H95: 118 | I95: 0.06860465116 | J95: ='3 Steuerung'!I89 -> 95679 | K95: ='3 Steuerung'!R90 -> 95756 | L95: -77 | M95: -0.08041271565 | N95: ='3 Steuerung'!J89 -> 76439 | O95: ='3 Steuerung'!S90 -> 76244 | P95: 195 | Q95: 0.2557578301
A96: 94 Interessenvertr.,kirchl.u.sonst.Verein | B96: ='3 Steuerung'!G90 -> 466489 | C96: ='3 Steuerung'!P91 -> 465732 | D96: 757 | E96: 0.1625398298 | F96: ='3 Steuerung'!H90 -> 162460 | G96: ='3 Steuerung'!Q91 -> 162364 | H96: 96 | I96: 0.05912640733 | J96: ='3 Steuerung'!I90 -> 108630 | K96: ='3 Steuerung'!R91 -> 108690 | L96: -60 | M96: -0.05520287055 | N96: ='3 Steuerung'!J90 -> 53830 | O96: ='3 Steuerung'!S91 -> 53674 | P96: 156 | Q96: 0.2906435146
A97: 95 Reparatur v.DV-Geräten u.Gebrauchsgütern | B97: ='3 Steuerung'!G91 -> 33084 | C97: ='3 Steuerung'!P92 -> 32984 | D97: 100 | E97: 0.3031772981 | F97: ='3 Steuerung'!H91 -> 11039 | G97: ='3 Steuerung'!Q92 -> 11020 | H97: 19 | I97: 0.1724137931 | J97: ='3 Steuerung'!I91 -> 7894 | K97: ='3 Steuerung'!R92 -> 7879 | L97: 15 | M97: 0.1903794898 | N97: ='3 Steuerung'!J91 -> 3145 | O97: ='3 Steuerung'!S92 -> 3141 | P97: 4 | Q97: 0.1273479784
A98: 96 Sonstige überwieg. persönliche DL | B98: ='3 Steuerung'!G92 -> 316810 | C98: ='3 Steuerung'!P93 -> 316226 | D98: 584 | E98: 0.1846780467 | F98: ='3 Steuerung'!H92 -> 189756 | G98: ='3 Steuerung'!Q93 -> 189480 | H98: 276 | I98: 0.1456618113 | J98: ='3 Steuerung'!I92 -> 138085 | K98: ='3 Steuerung'!R93 -> 137933 | L98: 152 | M98: 0.1101984297 | N98: ='3 Steuerung'!J92 -> 51671 | O98: ='3 Steuerung'!S93 -> 51547 | P98: 124 | Q98: 0.2405571614
A99: 97 Private Haushalte mit Hauspersonal | B99: ='3 Steuerung'!G93 -> 47525 | C99: ='3 Steuerung'!P94 -> 47489 | D99: 36 | E99: 0.075807029 | F99: ='3 Steuerung'!H93 -> 283550 | G99: ='3 Steuerung'!Q94 -> 284283 | H99: -733 | I99: -0.2578416578 | J99: ='3 Steuerung'!I93 -> 199156 | K99: ='3 Steuerung'!R94 -> 200069 | L99: -913 | M99: -0.4563425618 | N99: ='3 Steuerung'!J93 -> 84394 | O99: ='3 Steuerung'!S94 -> 84214 | P99: 180 | Q99: 0.2137411832
A100: 98 H.v.Waren,Dienstl.d.priv. Haushalte oaS | B100: ='3 Steuerung'!G94 -> 680 | C100: ='3 Steuerung'!P95 -> 675 | D100: 5 | E100: 0.7407407407 | F100: ='3 Steuerung'!H94 -> 1174 | G100: ='3 Steuerung'!Q95 -> 1177 | H100: -3 | I100: -0.2548853016 | J100: ='3 Steuerung'!I94 -> 602 | K100: ='3 Steuerung'!R95 -> 605 | L100: -3 | M100: -0.4958677686 | N100: ='3 Steuerung'!J94 -> 572 | O100: ='3 Steuerung'!S95 -> 572 | P100: 0 | Q100: 0
A101: 99 Exterritoriale Organisat. u. Körpersch. | B101: ='3 Steuerung'!G95 -> 19572 | C101: ='3 Steuerung'!P96 -> 19567 | D101: 5 | E101: 0.02555322737 | F101: ='3 Steuerung'!H95 -> 90 | G101: ='3 Steuerung'!Q96 -> 89 | H101: 1 | I101: 1.123595506 | J101: ='3 Steuerung'!I95 -> 76 | K101: ='3 Steuerung'!R96 -> 74 | L101: 2 | M101: 2.702702703 | N101: ='3 Steuerung'!J95 -> 14 | O101: ='3 Steuerung'!S96 -> 15 | P101: -1 | Q101: -6.666666667
A102: x) Anzeige nicht sinnvoll | Q102: © Statistik der Bundesagentur für Arbeit

Sheet 3 Roh-Daten (hidden)
C3: VOR REV
E8: SvB | F8: SvB | G8: SvB | H8: SvB | I8: SvB | J8: SvB | K8: SvB | L8: SvB | M8: SvB | N8: SvB | O8: SvB | P8: SvB | Q8: SvB | R8: SvB | S8: SvB | T8: SvB | U8: SvB | V8: GB | W8: GB | X8: GB | Y8: GB | Z8: GB | AA8: GB | AB8: GB | AC8: GB | AD8: GB | AE8: GB | AF8: GB | AG8: GB | AH8: GB | AI8: GB | AJ8: GB | AK8: GB | AL8: GB | AM8: GB_ausschl. | AN8: GB_ausschl. | AO8: GB_ausschl. | AP8: GB_ausschl. | AQ8: GB_ausschl. | AR8: GB_ausschl. | AS8: GB_ausschl. | AT8: GB_ausschl. | AU8: GB_ausschl. | AV8: GB_ausschl. | AW8: GB_ausschl. | AX8: GB_ausschl. | AY8: GB_ausschl. | AZ8: GB_ausschl. | BA8: GB_ausschl. | BB8: GB_ausschl. | BC8: GB_ausschl. | BD8: GB_im_NJ | BE8: GB_im_NJ | BF8: GB_im_NJ | BG8: GB_im_NJ | BH8: GB_im_NJ | BI8: GB_im_NJ | BJ8: GB_im_NJ | BK8: GB_im_NJ | BL8: GB_im_NJ | BM8: GB_im_NJ | BN8: GB_im_NJ | BO8: GB_im_NJ | BP8: GB_im_NJ | BQ8: GB_im_NJ | BR8: GB_im_NJ | BS8: GB_im_NJ | BT8: GB_im_NJ
E9: Deutschland | F9: Schleswig-Holstein,01 | G9: Hamburg,02 | H9: Niedersachsen,03 | I9: Bremen,04 | J9: Nordrhein-Westfalen,05 | K9: Hessen,06 | L9: Rheinland-Pfalz,07 | M9: Baden-Württemberg,08 | N9: Bayern,09 | O9: Saarland,10 | P9: Berlin,11 | Q9: Brandenburg,12 | R9: Mecklenburg-Vorpommern,13 | S9: Sachsen,14 | T9: Sachsen-Anhalt,15 | U9: Thüringen,16 | V9: Deutschland | W9: Schleswig-Holstein,01 | X9: Hamburg,02 | Y9: Niedersachsen,03 | Z9: Bremen,04 | AA9: Nordrhein-Westfalen,05 | AB9: Hessen,06 | AC9: Rheinland-Pfalz,07 | AD9: Baden-Württemberg,08 | AE9: Bayern,09 | AF9: Saarland,10 | AG9: Berlin,11 | AH9: Brandenburg,12 | AI9: Mecklenburg-Vorpommern,13 | AJ9: Sachsen,14 | AK9: Sachsen-Anhalt,15 | AL9: Thüringen,16 | AM9: Deutschland | AN9: Schleswig-Holstein,01 | AO9: Hamburg,02 | AP9: Niedersachsen,03 | AQ9: Bremen,04 | AR9: Nordrhein-Westfalen,05 | AS9: Hessen,06 | AT9: Rheinland-Pfalz,07 | AU9: Baden-Württemberg,08 | AV9: Bayern,09 | AW9: Saarland,10 | AX9: Berlin,11 | AY9: Brandenburg,12 | AZ9: Mecklenburg-Vorpommern,13 | BA9: Sachsen,14 | BB9: Sachsen-Anhalt,15 | BC9: Thüringen,16 | BD9: Deutschland | BE9: Schleswig-Holstein,01 | BF9: Hamburg,02 | BG9: Niedersachsen,03 | BH9: Bremen,04 | BI9: Nordrhein-Westfalen,05 | BJ9: Hessen,06 | BK9: Rheinland-Pfalz,07 | BL9: Baden-Württemberg,08 | BM9: Bayern,09 | BN9: Saarland,10 | BO9: Berlin,11 | BP9: Brandenburg,12 | BQ9: Mecklenburg-Vorpommern,13 | BR9: Sachsen,14 | BS9: Sachsen-Anhalt,15 | BT9: Thüringen,16
B10: 1 | C10: Gesamt | E10: 31373691 | F10: 939248 | G10: 932219 | H10: 2820257 | I10: 319041 | J10: 6532721 | K10: 2457858 | L10: 1361894 | M10: 4451187 | N10: 5308747 | O10: 378477 | P10: 1365639 | Q10: 816778 | R10: 559531 | S10: 1553509 | T10: 782541 | U10: 792509 | V10: 7756094 | W10: 275183 | X10: 174175 | Y10: 792020 | Z10: 71170 | AA10: 1833161 | AB10: 602198 | AC10: 417486 | AD10: 1222120 | AE10: 1357589 | AF10: 98330 | AG10: 217838 | AH10: 134078 | AI10: 93120 | AJ10: 233364 | AK10: 110006 | AL10: 122399 | AM10: 5141164 | AN10: 186447 | AO10: 106889 | AP10: 545652 | AQ10: 47675 | AR10: 1272081 | AS10: 394583 | AT10: 282736 | AU10: 746390 | AV10: 819989 | AW10: 69948 | AX10: 152822 | AY10: 99115 | AZ10: 71538 | BA10: 172106 | BB10: 83919 | BC10: 88028 | BD10: 2614930 | BE10: 88736 | BF10: 67286 | BG10: 246368 | BH10: 23495 | BI10: 561080 | BJ10: 207615 | BK10: 134750 | BL10: 475730 | BM10: 537600 | BN10: 28382 | BO10: 65016 | BP10: 34963 | BQ10: 21582 | BR10: 61258 | BS10: 26087 | BT10: 34371
B11: 2 | C11: 01 | D11: Landwirtsch., Jagd u.damit verb. Tätigk. | E11: 224614 | F11: 12940 | G11: 959 | H11: 35887 | I11: 164 | J11: 30055 | K11: 7708 | L11: 12114 | M11: 16290 | N11: 24878 | O11: 695 | P11: 370 | Q11: 19731 | R11: 15238 | S11: 19239 | T11: 14469 | U11: 13845 | V11: 183966 | W11: 11212 | X11: 590 | Y11: 38235 | Z11: 136 | AA11: 33596 | AB11: 9287 | AC11: 16366 | AD11: 24819 | AE11: 25952 | AF11: 601 | AG11: 118 | AH11: 6817 | AI11: 5257 | AJ11: 4337 | AK11: 3814 | AL11: 2825 | AM11: 143456 | AN11: 8415 | AO11: 452 | AP11: 29005 | AQ11: 87 | AR11: 25839 | AS11: 7642 | AT11: 13757 | AU11: 19373 | AV11: 18544 | AW11: 434 | AX11: 98 | AY11: 6012 | AZ11: 4577 | BA11: 3710 | BB11: 3107 | BC11: 2401 | BD11: 40510 | BE11: 2797 | BF11: 138 | BG11: 9230 | BH11: 49 | BI11: 7757 | BJ11: 1645 | BK11: 2609 | BL11: 5446 | BM11: 7408 | BN11: 167 | BO11: 20 | BP11: 805 | BQ11: 680 | BR11: 627 | BS11: 707 | BT11: 424
B12: 3 | C12: 02 | D12: Forstwirtschaft und Holzeinschlag | E12: 19004 | F12: 565 | G12: * | H12: 1442 | I12: * | J12: 2352 | K12: 1534 | L12: 1166 | M12: 2254 | N12: 4299 | O12: 195 | P12: 19 | Q12: 1455 | R12: 609 | S12: 1151 | T12: 1281 | U12: 673 | V12: 7185 | W12: 160 | X12: * | Y12: 879 | Z12: * | AA12: 1268 | AB12: 502 | AC12: 505 | AD12: 1257 | AE12: 1594 | AF12: 78 | AG12: 9 | AH12: 254 | AI12: 131 | AJ12: 221 | AK12: 129 | AL12: 193 | AM12: 4211 | AN12: 96 | AO12: * | AP12: 597 | AQ12: * | AR12: 740 | AS12: 309 | AT12: 269 | AU12: 666 | AV12: 824 | AW12: 43 | AX12: * | AY12: 185 | AZ12: 91 | BA12: 175 | BB12: 92 | BC12: 115 | BD12: 2974 | BE12: 64 | BG12: 282 | BH12: * | BI12: 528 | BJ12: 193 | BK12: 236 | BL12: 591 | BM12: 770 | BN12: 35 | BO12: * | BP12: 69 | BQ12: 40 | BR12: 46 | BS12: 37 | BT12: 78
B13: 4 | C13: 03 | D13: Fischerei und Aquakultur | E13: 2479 | F13: 264 | G13: * | H13: 435 | I13: * | J13: 109 | K13: 97 | L13: 46 | M13: 114 | N13: 313 | O13: * | P13: * | Q13: 205 | R13: 533 | S13: 161 | T13: 54 | U13: 72 | V13: 1192 | W13: 97 | Y13: 127 | Z13: * | AA13: 137 | AB13: 86 | AC13: 56 | AD13: 117 | AE13: 294 | AF13: * | AG13: * | AH13: 52 | AI13: 117 | AJ13: 49 | AK13: 22 | AL13: 33 | AM13: 801 | AN13: 69 | AP13: 86 | AQ13: * | AR13: 77 | AS13: 46 | AT13: 42 | AU13: 81 | AV13: 170 | AW13: * | AX13: * | AY13: 44 | AZ13: 102 | BA13: 39 | BB13: 14 | BC13: * | BD13: 391 | BE13: 28 | BG13: 41 | BI13: 60 | BJ13: 40 | BK13: 14 | BL13: 36 | BM13: 124 | BN13: * | BP13: 8 | BQ13: 15 | BR13: 10 | BS13: 8 | BT13: *
B14: 5 | C14: 05 | D14: Kohlenbergbau | E14: 15881 | H14: * | J14: 9585 | K14: * | M14: * | O14: * | P14: * | Q14: * | S14: * | T14: * | U14: * | V14: 215 | AA14: 200 | AB14: * | AF14: * | AH14: * | AJ14: * | AK14: * | AL14: * | AM14: 170 | AR14: 160 | AS14: * | AW14: * | AY14: * | BA14: * | BB14: * | BD14: 45 | BI14: 40 | BJ14: * | BN14: * | BT14: *
B15: 6 | C15: 06 | D15: Gewinnung von Erdöl und Erdgas | E15: 3045 | F15: * | G15: * | H15: 1903 | J15: * | K15: * | L15: * | M15: * | N15: * | P15: * | Q15: * | R15: * | T15: * | U15: * | V15: 11 | Y15: * | AB15: * | AC15: * | AE15: * | AG15: * | AK15: * | AM15: 7 | AP15: * | AS15: * | AT15: * | AX15: * | BB15: * | BD15: 4 | BJ15: * | BM15: *
B16: 7 | C16: 07 | D16: Erzbergbau | E16: 860 | H16: * | J16: * | L16: * | M16: * | N16: * | S16: 72 | U16: * | V16: 31 | Y16: * | AA16: * | AB16: * | AC16: * | AD16: * | AJ16: 4 | AM16: 22 | AP16: * | AR16: * | AS16: * | AT16: * | BA16: * | BD16: 9 | BI16: * | BK16: * | BL16: * | BR16: *
B17: 8 | C17: 08 | D17: Gewinn. v.Steinen u.Erden,sonst.Bergbau | E17: 37982 | F17: 785 | G17: * | H17: 3404 | I17: * | J17: 4411 | K17: 5831 | L17: 2799 | M17: 4165 | N17: 7767 | O17: 257 | P17: 39 | Q17: 393 | R17: 573 | S17: 1829 | T17: 3782 | U17: 1833 | V17: 4158 | W17: 137 | X17: * | Y17: 561 | Z17: * | AA17: 516 | AB17: 331 | AC17: 351 | AD17: 612 | AE17: 1226 | AF17: 27 | AG17: 3 | AH17: 35 | AI17: 42 | AJ17: 123 | AK17: 95 | AL17: 96 | AM17: 2825 | AN17: 92 | AO17: * | AP17: 374 | AR17: 386 | AS17: 208 | AT17: 247 | AU17: 387 | AV17: 792 | AW17: 19 | AX17: * | AY17: 24 | AZ17: * | BA17: 97 | BB17: 83 | BC17: 76 | BD17: 1333 | BE17: 45 | BF17: * | BG17: 187 | BH17: * | BI17: 130 | BJ17: 123 | BK17: 104 | BL17: 225 | BM17: 434 | BN17: 8 | BO17: * | BP17: 11 | BQ17: * | BR17: 26 | BS17: 12 | BT17: 20
B18: 9 | C18: 09 | D18: DL f.Bergbau u.Gew.v.Steine u.Erden | E18: 13306 | F18: * | G18: * | H18: 4337 | I18: * | J18: 4516 | K18: * | L18: * | M18: * | N18: 623 | O18: * | P18: * | Q18: * | S18: * | T18: * | U18: * | V18: 327 | W18: * | X18: * | Y18: 84 | AA18: 39 | AB18: * | AC18: * | AD18: * | AE18: 80 | AG18: * | AH18: * | AJ18: * | AK18: * | AL18: * | AM18: 207 | AP18: 57 | AR18: * | AS18: * | AT18: * | AU18: * | AV18: 54 | AX18: * | AY18: * | BA18: * | BB18: * | BC18: * | BD18: 120 | BE18: * | BF18: * | BG18: 27 | BI18: * | BK18: * | BL18: * | BM18: 26 | BP18: * | BR18: * | BS18: * | BT18: *
B19: 10 | C19: 10 | D19: Hrst. von Nahrungs- und Futtermitteln | E19: 613216 | F19: 21525 | G19: 7710 | H19: 84086 | I19: 6351 | J19: 121288 | K19: 35441 | L19: 27038 | M19: 75755 | N19: 111333 | O19: 7838 | P19: 11275 | Q19: 15673 | R19: 16401 | S19: 30775 | T19: 21190 | U19: 19537 | V19: 143752 | W19: 3998 | X19: 1252 | Y19: 15057 | Z19: 607 | AA19: 28202 | AB19: 10678 | AC19: 9845 | AD19: 28185 | AE19: 32121 | AF19: 2557 | AG19: 1410 | AH19: 2007 | AI19: 1169 | AJ19: 3839 | AK19: 1116 | AL19: 1709 | AM19: 108232 | AN19: 3165 | AO19: 942 | AP19: 11424 | AQ19: 440 | AR19: 22112 | AS19: 8307 | AT19: 7651 | AU19: 19673 | AV19: 23152 | AW19: 2003 | AX19: 1176 | AY19: 1699 | AZ19: 958 | BA19: 3162 | BB19: 936 | BC19: 1432 | BD19: 35520 | BE19: 833 | BF19: 310 | BG19: 3633 | BH19: 167 | BI19: 6090 | BJ19: 2371 | BK19: 2194 | BL19: 8512 | BM19: 8969 | BN19: 554 | BO19: 234 | BP19: 308 | BQ19: 211 | BR19: 677 | BS19: 180 | BT19: 277
B20: 11 | C20: 11 | D20: Getränkeherstellung | E20: 67519 | F20: 1119 | G20: 750 | H20: 4319 | I20: * | J20: 9686 | K20: 5851 | L20: 8882 | M20: 9909 | N20: 16639 | O20: * | P20: 824 | Q20: 1426 | R20: 776 | S20: 2336 | T20: 1932 | U20: 1405 | V20: 13901 | W20: 84 | X20: 27 | Y20: 618 | Z20: * | AA20: 971 | AB20: 1235 | AC20: 2324 | AD20: 3061 | AE20: 4773 | AF20: * | AG20: 33 | AH20: 45 | AI20: 56 | AJ20: 295 | AK20: 166 | AL20: 142 | AM20: 9647 | AN20: 57 | AO20: 19 | AP20: 446 | AQ20: * | AR20: 745 | AS20: 805 | AT20: 1707 | AU20: 2080 | AV20: 3165 | AW20: * | AX20: 24 | AY20: 36 | AZ20: 50 | BA20: 241 | BB20: 118 | BC20: 105 | BD20: 4254 | BE20: 27 | BF20: 8 | BG20: 172 | BH20: * | BI20: 226 | BJ20: 430 | BK20: 617 | BL20: 981 | BM20: 1608 | BN20: * | BO20: 9 | BP20: 9 | BQ20: 6 | BR20: 54 | BS20: 48 | BT20: 37
B21: 12 | C21: 12 | D21: Tabakverarbeitung | E21: 9646 | F21: * | G21: * | H21: * | I21: * | J21: 714 | K21: * | L21: * | M21: * | N21: * | P21: * | Q21: * | R21: * | S21: * | U21: * | V21: 144 | W21: * | X21: * | Y21: * | Z21: * | AA21: 47 | AB21: * | AC21: * | AD21: * | AE21: * | AG21: * | AI21: * | AL21: * | AM21: 107 | AN21: * | AO21: * | AP21: * | AQ21: * | AR21: 39 | AS21: * | AT21: * | AU21: * | AV21: * | AX21: * | AZ21: * | BD21: 37 | BE21: * | BG21: * | BH21: * | BI21: 8 | BJ21: * | BL21: * | BM21: * | BT21: *
B22: 13 | C22: 13 | D22: Herstellung von Textilien | E22: 71313 | F22: 848 | G22: 287 | H22: 4587 | I22: 550 | J22: 18476 | K22: 3196 | L22: 1457 | M22: 14787 | N22: 13995 | O22: 108 | P22: 604 | Q22: 267 | R22: 770 | S22: 8575 | T22: 782 | U22: 2024 | V22: 10349 | W22: 252 | X22: 89 | Y22: 847 | Z22: 102 | AA22: 2687 | AB22: 576 | AC22: 362 | AD22: 2306 | AE22: 1949 | AF22: 39 | AG22: 93 | AH22: 36 | AI22: 89 | AJ22: 616 | AK22: 99 | AL22: 207 | AM22: 7490 | AN22: 177 | AO22: 63 | AP22: 636 | AQ22: 82 | AR22: 2043 | AS22: 418 | AT22: 249 | AU22: 1560 | AV22: 1342 | AW22: 25 | AX22: 68 | AY22: 23 | AZ22: 70 | BA22: 488 | BB22: 87 | BC22: 159 | BD22: 2859 | BE22: 75 | BF22: 26 | BG22: 211 | BH22: 20 | BI22: 644 | BJ22: 158 | BK22: 113 | BL22: 746 | BM22: 607 | BN22: 14 | BO22: 25 | BP22: 13 | BQ22: 19 | BR22: 128 | BS22: 12 | BT22: 48
B23: 14 | C23: 14 | D23: Herstellung von Bekleidung | E23: 36312 | F23: 246 | G23: 171 | H23: 2110 | I23: * | J23: 6453 | K23: 1088 | L23: 688 | M23: 6793 | N23: 15835 | O23: * | P23: 419 | Q23: 191 | R23: 105 | S23: 1427 | T23: 66 | U23: 336 | V23: 6173 | W23: 68 | X23: 93 | Y23: 487 | Z23: * | AA23: 1355 | AB23: 317 | AC23: 166 | AD23: 1120 | AE23: 2051 | AF23: * | AG23: 104 | AH23: 43 | AI23: 19 | AJ23: 218 | AK23: 24 | AL23: 57 | AM23: 4730 | AN23: 51 | AO23: 59 | AP23: 370 | AQ23: * | AR23: 1046 | AS23: 262 | AT23: 129 | AU23: 837 | AV23: 1547 | AW23: * | AX23: 82 | AY23: 40 | AZ23: 16 | BA23: 183 | BB23: 16 | BC23: 47 | BD23: 1443 | BE23: 17 | BF23: 34 | BG23: 117 | BH23: * | BI23: 309 | BJ23: 55 | BK23: 37 | BL23: 283 | BM23: 504 | BN23: * | BO23: 22 | BP23: 3 | BQ23: 3 | BR23: 35 | BS23: 8 | BT23: 10
B24: 15 | C24: 15 | D24: Herstellung v.Leder,Lederwaren u.Schuhen | E24: 16480 | F24: 68 | G24: 52 | H24: 1299 | I24: * | J24: 2835 | K24: 1362 | L24: 2710 | M24: 1928 | N24: 3900 | O24: * | P24: 131 | Q24: 260 | R24: 40 | S24: 1332 | T24: 104 | U24: 446 | V24: 3156 | W24: 26 | X24: 28 | Y24: 116 | Z24: * | AA24: 388 | AB24: 212 | AC24: 263 | AD24: 469 | AE24: 1416 | AF24: * | AG24: 28 | AH24: 22 | AI24: 8 | AJ24: 91 | AK24: 17 | AL24: 54 | AM24: 2153 | AN24: 16 | AO24: 24 | AP24: 83 | AQ24: * | AR24: 306 | AS24: 160 | AT24: 180 | AU24: 292 | AV24: 903 | AW24: * | AX24: 17 | AY24: * | AZ24: 8 | BA24: 74 | BB24: 12 | BC24: 46 | BD24: 1003 | BE24: 10 | BF24: 4 | BG24: 33 | BH24: * | BI24: 82 | BJ24: 52 | BK24: 83 | BL24: 177 | BM24: 513 | BO24: 11 | BP24: * | BR24: 17 | BS24: 5 | BT24: 8
B25: 16 | C25: 16 | D25: Hrst.v.Holz-,Korb-,Korkwaren(ohne Möbel) | E25: 107070 | F25: 1675 | G25: 210 | H25: 7070 | I25: 244 | J25: 21731 | K25: 6481 | L25: 6711 | M25: 17625 | N25: 24053 | O25: 1027 | P25: 460 | Q25: 4150 | R25: 3006 | S25: 5694 | T25: 2538 | U25: 4395 | V25: 16840 | W25: 308 | X25: 44 | Y25: 1124 | Z25: 25 | AA25: 3401 | AB25: 1272 | AC25: 1200 | AD25: 3735 | AE25: 4098 | AF25: 155 | AG25: 53 | AH25: 192 | AI25: 116 | AJ25: 572 | AK25: 190 | AL25: 355 | AM25: 11286 | AN25: 195 | AO25: 27 | AP25: 834 | AQ25: 20 | AR25: 2287 | AS25: 878 | AT25: 821 | AU25: 2304 | AV25: 2637 | AW25: 115 | AX25: 37 | AY25: 145 | AZ25: 98 | BA25: 445 | BB25: 157 | BC25: 286 | BD25: 5554 | BE25: 113 | BF25: 17 | BG25: 290 | BH25: 5 | BI25: 1114 | BJ25: 394 | BK25: 379 | BL25: 1431 | BM25: 1461 | BN25: 40 | BO25: 16 | BP25: 47 | BQ25: 18 | BR25: 127 | BS25: 33 | BT25: 69
B26: 17 | C26: 17 | D26: Hrst. v. Papier, Pappe u. Waren daraus | E26: 123649 | F26: 4145 | G26: 365 | H26: 13981 | I26: * | J26: 27652 | K26: 7931 | L26: 8719 | M26: 21780 | N26: 20615 | O26: * | P26: 744 | Q26: 3334 | R26: 701 | S26: 6661 | T26: 2832 | U26: 3817 | V26: 8416 | W26: 215 | X26: 27 | Y26: 1223 | Z26: * | AA26: 2181 | AB26: 525 | AC26: 580 | AD26: 1284 | AE26: 1452 | AF26: * | AG26: 59 | AH26: 218 | AI26: 47 | AJ26: 337 | AK26: 67 | AL26: 165 | AM26: 5833 | AN26: 139 | AO26: 16 | AP26: 712 | AQ26: * | AR26: 1583 | AS26: 369 | AT26: 417 | AU26: 879 | AV26: 972 | AW26: * | AX26: 44 | AY26: 142 | AZ26: 38 | BA26: 305 | BB26: 53 | BC26: 141 | BD26: 2583 | BE26: 76 | BF26: 11 | BG26: 511 | BH26: * | BI26: 598 | BJ26: 156 | BK26: 163 | BL26: 405 | BM26: 480 | BN26: * | BO26: 15 | BP26: 76 | BQ26: 9 | BR26: 32 | BS26: 14 | BT26: 24
B27: 18 | C27: 18 | D27: Druckgewerbe u. Vervielältigung | E27: 138108 | F27: 5489 | G27: 2381 | H27: 11296 | I27: 558 | J27: 30272 | K27: 8387 | L27: 5464 | M27: 22392 | N27: 28371 | O27: 791 | P27: 6160 | Q27: 1810 | R27: 2139 | S27: 6773 | T27: 2254 | U27: 3571 | V27: 44931 | W27: 1767 | X27: 661 | Y27: 4365 | Z27: 161 | AA27: 8473 | AB27: 4010 | AC27: 1638 | AD27: 12440 | AE27: 7763 | AF27: 395 | AG27: 543 | AH27: 407 | AI27: 216 | AJ27: 1119 | AK27: 367 | AL27: 606 | AM27: 31924 | AN27: 1254 | AO27: 420 | AP27: 3238 | AQ27: 93 | AR27: 6243 | AS27: 2932 | AT27: 1138 | AU27: 8766 | AV27: 5097 | AW27: 290 | AX27: 378 | AY27: 310 | AZ27: 171 | BA27: 879 | BB27: 274 | BC27: 441 | BD27: 13007 | BE27: 513 | BF27: 241 | BG27: 1127 | BH27: 68 | BI27: 2230 | BJ27: 1078 | BK27: 500 | BL27: 3674 | BM27: 2666 | BN27: 105 | BO27: 165 | BP27: 97 | BQ27: 45 | BR27: 240 | BS27: 93 | BT27: 165
B28: 19 | C28: 19 | D28: Kokerei und Mineralölverarbeitung | E28: 24993 | F28: 877 | G28: 3274 | H28: 1577 | J28: 10026 | K28: 408 | L28: * | M28: 2899 | N28: 2489 | O28: * | P28: * | Q28: * | R28: 164 | S28: 169 | T28: 1209 | U28: 26 | V28: 385 | W28: 37 | X28: 7 | Y28: 27 | AA28: 98 | AB28: 34 | AC28: * | AD28: 62 | AE28: 42 | AF28: * | AG28: * | AH28: * | AI28: 5 | AJ28: 38 | AK28: 3 | AL28: * | AM28: 254 | AN28: 9 | AO28: * | AP28: * | AR28: 69 | AS28: 21 | AT28: * | AU28: 45 | AV28: 28 | AW28: * | AX28: * | AY28: * | AZ28: 5 | BA28: 29 | BB28: 3 | BC28: * | BD28: 131 | BE28: 28 | BF28: * | BG28: * | BI28: 29 | BJ28: 13 | BK28: * | BL28: 17 | BM28: 14 | BN28: * | BO28: * | BR28: 9
B29: 20 | C29: 20 | D29: Herstellung von chemischen Erzeugnissen | E29: 321060 | F29: 6960 | G29: 7516 | H29: 23672 | I29: 1114 | J29: 96029 | K29: 27446 | L29: 48707 | M29: 31284 | N29: 45374 | O29: 489 | P29: 2493 | Q29: 5155 | R29: 1366 | S29: 7477 | T29: 11905 | U29: 4073 | V29: 9977 | W29: 366 | X29: 83 | Y29: 847 | Z29: 92 | AA29: 2689 | AB29: 724 | AC29: 749 | AD29: 1766 | AE29: 1740 | AF29: 69 | AG29: 85 | AH29: 128 | AI29: 45 | AJ29: 218 | AK29: 175 | AL29: 201 | AM29: 7120 | AN29: 251 | AO29: 53 | AP29: 634 | AQ29: 57 | AR29: 1977 | AS29: 548 | AT29: 533 | AU29: 1164 | AV29: 1153 | AW29: 53 | AX29: 72 | AY29: 100 | AZ29: 27 | BA29: 180 | BB29: 142 | BC29: 176 | BD29: 2857 | BE29: 115 | BF29: 30 | BG29: 213 | BH29: 35 | BI29: 712 | BJ29: 176 | BK29: 216 | BL29: 602 | BM29: 587 | BN29: 16 | BO29: 13 | BP29: 28 | BQ29: 18 | BR29: 38 | BS29: 33 | BT29: 25
B30: 21 | C30: 21 | D30: Herstellung v. pharmazeut. Erzeugnissen | E30: 152857 | F30: 6886 | G30: 1429 | H30: 5701 | I30: * | J30: 16688 | K30: 31227 | L30: 11512 | M30: 35351 | N30: 20421 | O30: 1245 | P30: 10337 | Q30: 1132 | R30: * | S30: 3162 | T30: 5124 | U30: 1928 | V30: 2237 | W30: 68 | X30: 11 | Y30: 303 | Z30: * | AA30: 339 | AB30: 288 | AC30: 111 | AD30: 405 | AE30: 345 | AF30: 64 | AG30: 81 | AH30: 19 | AI30: * | AJ30: 82 | AK30: 45 | AL30: 63 | AM30: 1605 | AN30: 52 | AO30: * | AP30: 235 | AQ30: * | AR30: 215 | AS30: 235 | AT30: 74 | AU30: 299 | AV30: 219 | AW30: 48 | AX30: 58 | AY30: 13 | AZ30: * | BA30: 62 | BB30: 41 | BC30: 36 | BD30: 632 | BE30: 16 | BF30: * | BG30: 68 | BH30: * | BI30: 124 | BJ30: 53 | BK30: 37 | BL30: 106 | BM30: 126 | BN30: 16 | BO30: 23 | BP30: 6 | BR30: 20 | BS30: 4 | BT30: 27
B31: 22 | C31: 22 | D31: Herstellung v. Gummi- u. Kunststoffwaren | E31: 383198 | F31: 5969 | G31: 2686 | H31: 44823 | I31: 351 | J31: 83248 | K31: 35036 | L31: 20007 | M31: 62200 | N31: 74496 | O31: 3293 | P31: 2225 | Q31: 7557 | R31: 2128 | S31: 14294 | T31: 8749 | U31: 16136 | V31: 28860 | W31: 550 | X31: 58 | Y31: 2904 | Z31: 39 | AA31: 7291 | AB31: 2320 | AC31: 1298 | AD31: 6670 | AE31: 5157 | AF31: 296 | AG31: 123 | AH31: 244 | AI31: 138 | AJ31: 635 | AK31: 326 | AL31: 811 | AM31: 19523 | AN31: 323 | AO31: 38 | AP31: 2050 | AQ31: 31 | AR31: 5195 | AS31: 1527 | AT31: 927 | AU31: 4045 | AV31: 3361 | AW31: 196 | AX31: 102 | AY31: 202 | AZ31: 117 | BA31: 496 | BB31: 272 | BC31: 641 | BD31: 9337 | BE31: 227 | BF31: 20 | BG31: 854 | BH31: 8 | BI31: 2096 | BJ31: 793 | BK31: 371 | BL31: 2625 | BM31: 1796 | BN31: 100 | BO31: 21 | BP31: 42 | BQ31: 21 | BR31: 139 | BS31: 54 | BT31: 170
B32: 23 | C32: 23 | D32: Hrst.v.Glas,Keramik,Verarb.Steine+Erden | E32: 198680 | F32: 4137 | G32: 656 | H32: 19146 | I32: 595 | J32: 29930 | K32: 9957 | L32: 15306 | M32: 22553 | N32: 49695 | O32: 3544 | P32: 2083 | Q32: 6426 | R32: 2750 | S32: 12645 | T32: 8785 | U32: 10472 | V32: 16876 | W32: 382 | X32: 84 | Y32: 1580 | Z32: 62 | AA32: 2881 | AB32: 1094 | AC32: 1502 | AD32: 2833 | AE32: 3951 | AF32: 283 | AG32: 117 | AH32: 347 | AI32: 138 | AJ32: 627 | AK32: 351 | AL32: 644 | AM32: 11674 | AN32: 275 | AO32: 52 | AP32: 1146 | AQ32: 45 | AR32: 2061 | AS32: 774 | AT32: 1034 | AU32: 1696 | AV32: 2548 | AW32: 205 | AX32: 93 | AY32: 280 | AZ32: 111 | BA32: 511 | BB32: 304 | BC32: 539 | BD32: 5202 | BE32: 107 | BF32: 32 | BG32: 434 | BH32: 17 | BI32: 820 | BJ32: 320 | BK32: 468 | BL32: 1137 | BM32: 1403 | BN32: 78 | BO32: 24 | BP32: 67 | BQ32: 27 | BR32: 116 | BS32: 47 | BT32: 105
B33: 24 | C33: 24 | D33: Metallerzeugung und -bearbeitung | E33: 289698 | F33: 1446 | G33: 4712 | H33: 23495 | I33: 3755 | J33: 117873 | K33: 16921 | L33: 10029 | M33: 33631 | N33: 25627 | O33: 14402 | P33: 1338 | Q33: 7225 | R33: 2052 | S33: 12956 | T33: 7713 | U33: 6523 | V33: 9576 | W33: 111 | X33: 27 | Y33: 469 | Z33: 48 | AA33: 3445 | AB33: 592 | AC33: 489 | AD33: 2164 | AE33: 1313 | AF33: 104 | AG33: 36 | AH33: 103 | AI33: 44 | AJ33: 313 | AK33: 123 | AL33: 195 | AM33: 6562 | AN33: 44 | AO33: 18 | AP33: 339 | AQ33: 38 | AR33: 2385 | AS33: 450 | AT33: 305 | AU33: 1407 | AV33: 817 | AW33: 84 | AX33: 27 | AY33: 79 | AZ33: 37 | BA33: 277 | BB33: 99 | BC33: 156 | BD33: 3014 | BE33: 67 | BF33: 9 | BG33: 130 | BH33: 10 | BI33: 1060 | BJ33: 142 | BK33: 184 | BL33: 757 | BM33: 496 | BN33: 20 | BO33: 9 | BP33: 24 | BQ33: 7 | BR33: 36 | BS33: 24 | BT33: 39
B34: 25 | C34: 25 | D34: Herstellung von Metallerzeugnissen | E34: 793344 | F34: 11644 | G34: 3597 | H34: 54713 | I34: 3283 | J34: 202698 | K34: 46272 | L34: 34077 | M34: 173211 | N34: 117164 | O34: 13098 | P34: 9998 | Q34: 15501 | R34: 8754 | S34: 49099 | T34: 20177 | U34: 30058 | V34: 104400 | W34: 1877 | X34: 453 | Y34: 6921 | Z34: 401 | AA34: 28080 | AB34: 6585 | AC34: 5022 | AD34: 28443 | AE34: 15652 | AF34: 1264 | AG34: 617 | AH34: 1214 | AI34: 686 | AJ34: 3524 | AK34: 1354 | AL34: 2307 | AM34: 64594 | AN34: 1166 | AO34: 291 | AP34: 4562 | AQ34: 266 | AR34: 18068 | AS34: 4194 | AT34: 3097 | AU34: 15798 | AV34: 8897 | AW34: 826 | AX34: 462 | AY34: 917 | AZ34: 524 | BA34: 2813 | BB34: 1015 | BC34: 1698 | BD34: 39806 | BE34: 711 | BF34: 162 | BG34: 2359 | BH34: 135 | BI34: 10012 | BJ34: 2391 | BK34: 1925 | BL34: 12645 | BM34: 6755 | BN34: 438 | BO34: 155 | BP34: 297 | BQ34: 162 | BR34: 711 | BS34: 339 | BT34: 609
B35: 26 | C35: 26 | D35: Hrst. v.DV-Gerät., elektr.u.opt.Erzeugn. | E35: 410188 | F35: 10891 | G35: 9133 | H35: 23388 | I35: 3026 | J35: 53351 | K35: 29685 | L35: 7139 | M35: 97101 | N35: 113837 | O35: 1411 | P35: 10232 | Q35: 4571 | R35: 2133 | S35: 21930 | T35: 4218 | U35: 18142 | V35: 19046 | W35: 519 | X35: 199 | Y35: 1028 | Z35: 102 | AA35: 3496 | AB35: 1731 | AC35: 587 | AD35: 4868 | AE35: 4088 | AF35: 132 | AG35: 413 | AH35: 266 | AI35: 149 | AJ35: 599 | AK35: 145 | AL35: 724 | AM35: 13102 | AN35: 352 | AO35: 125 | AP35: 698 | AQ35: 62 | AR35: 2452 | AS35: 1192 | AT35: 414 | AU35: 3229 | AV35: 2680 | AW35: 95 | AX35: 316 | AY35: 200 | AZ35: 115 | BA35: 483 | BB35: 113 | BC35: 576 | BD35: 5944 | BE35: 167 | BF35: 74 | BG35: 330 | BH35: 40 | BI35: 1044 | BJ35: 539 | BK35: 173 | BL35: 1639 | BM35: 1408 | BN35: 37 | BO35: 97 | BP35: 66 | BQ35: 34 | BR35: 116 | BS35: 32 | BT35: 148
B36: 27 | C36: 27 | D36: Herstellung v. elektrischen Ausrüstungen | E36: 352008 | F36: 4308 | G36: 2045 | H36: 16638 | I36: 1718 | J36: 79319 | K36: 19254 | L36: 7791 | M36: 83464 | N36: 84355 | O36: 2365 | P36: 17420 | Q36: 2961 | R36: 2789 | S36: 16963 | T36: 3892 | U36: 6726 | V36: 15669 | W36: 221 | X36: 68 | Y36: 993 | Z36: 89 | AA36: 3590 | AB36: 1244 | AC36: 635 | AD36: 3999 | AE36: 3321 | AF36: 136 | AG36: 166 | AH36: 112 | AI36: 83 | AJ36: 566 | AK36: 142 | AL36: 304 | AM36: 10492 | AN36: 156 | AO36: 45 | AP36: 707 | AQ36: 64 | AR36: 2466 | AS36: 811 | AT36: 438 | AU36: 2430 | AV36: 2207 | AW36: 108 | AX36: 116 | AY36: 84 | AZ36: 71 | BA36: 446 | BB36: 109 | BC36: 234 | BD36: 5177 | BE36: 65 | BF36: 23 | BG36: 286 | BH36: 25 | BI36: 1124 | BJ36: 433 | BK36: 197 | BL36: 1569 | BM36: 1114 | BN36: 28 | BO36: 50 | BP36: 28 | BQ36: 12 | BR36: 120 | BS36: 33 | BT36: 70
B37: 28 | C37: 28 | D37: Maschinenbau | E37: 1020187 | F37: 22037 | G37: 12700 | H37: 64123 | I37: 5465 | J37: 215209 | K37: 47883 | L37: 41044 | M37: 275646 | N37: 219971 | O37: 14474 | P37: 6759 | Q37: 8916 | R37: 6387 | S37: 39402 | T37: 16134 | U37: 24037 | V37: 44792 | W37: 853 | X37: 185 | Y37: 3570 | Z37: 141 | AA37: 11006 | AB37: 3118 | AC37: 2251 | AD37: 11597 | AE37: 7957 | AF37: 561 | AG37: 248 | AH37: 299 | AI37: 211 | AJ37: 1496 | AK37: 480 | AL37: 819 | AM37: 30184 | AN37: 601 | AO37: 132 | AP37: 2429 | AQ37: 103 | AR37: 7534 | AS37: 2072 | AT37: 1527 | AU37: 7440 | AV37: 5050 | AW37: 408 | AX37: 204 | AY37: 242 | AZ37: 178 | BA37: 1229 | BB37: 383 | BC37: 652 | BD37: 14608 | BE37: 252 | BF37: 53 | BG37: 1141 | BH37: 38 | BI37: 3472 | BJ37: 1046 | BK37: 724 | BL37: 4157 | BM37: 2907 | BN37: 153 | BO37: 44 | BP37: 57 | BQ37: 33 | BR37: 267 | BS37: 97 | BT37: 167
B38: 29 | C38: 29 | D38: Hrst. v. Kraftwagen u. Kraftwagenteilen | E38: 907272 | F38: 3614 | G38: 3222 | H38: 137608 | I38: * | J38: 88153 | K38: 63114 | L38: 34017 | M38: 215050 | N38: 248543 | O38: 25952 | P38: 4350 | Q38: 4639 | R38: * | S38: 37023 | T38: 3989 | U38: 18204 | V38: 10153 | W38: 111 | X38: 64 | Y38: 901 | Z38: * | AA38: 1548 | AB38: 384 | AC38: 646 | AD38: 2461 | AE38: 2523 | AF38: 135 | AG38: 47 | AH38: 74 | AI38: * | AJ38: 440 | AK38: 98 | AL38: 224 | AM38: 7917 | AN38: 90 | AO38: 52 | AP38: 694 | AQ38: * | AR38: 1166 | AS38: 315 | AT38: 511 | AU38: 1851 | AV38: 2000 | AW38: 106 | AX38: 36 | AY38: 57 | AZ38: * | BA38: 322 | BB38: 81 | BC38: 179 | BD38: 2236 | BE38: 21 | BF38: 12 | BG38: 207 | BH38: * | BI38: 382 | BJ38: 69 | BK38: 135 | BL38: 610 | BM38: 523 | BN38: 29 | BO38: 11 | BP38: 17 | BQ38: * | BR38: 118 | BS38: 17 | BT38: 45
B39: 30 | C39: 30 | D39: Sonstiger Fahrzeugbau | E39: 155468 | F39: 7640 | G39: 25455 | H39: 19051 | I39: 5321 | J39: 12433 | K39: 8583 | L39: 3120 | M39: 12363 | N39: 36446 | O39: 188 | P39: 3853 | Q39: 7270 | R39: 3848 | S39: 6020 | T39: 2801 | U39: 1076 | V39: 2606 | W39: 150 | X39: 121 | Y39: 210 | Z39: 45 | AA39: 624 | AB39: 102 | AC39: 152 | AD39: 437 | AE39: 468 | AF39: 14 | AG39: 21 | AH39: 54 | AI39: 58 | AJ39: 68 | AK39: 35 | AL39: 47 | AM39: 1788 | AN39: 106 | AO39: 91 | AP39: 159 | AQ39: 38 | AR39: 423 | AS39: 67 | AT39: 93 | AU39: 270 | AV39: 305 | AW39: 7 | AX39: 17 | AY39: 42 | AZ39: 50 | BA39: 57 | BB39: 24 | BC39: 39 | BD39: 818 | BE39: 44 | BF39: 30 | BG39: 51 | BH39: 7 | BI39: 201 | BJ39: 35 | BK39: 59 | BL39: 167 | BM39: 163 | BN39: 7 | BO39: 4 | BP39: 12 | BQ39: 8 | BR39: 11 | BS39: 11 | BT39: 8
B40: 31 | C40: 31 | D40: Herstellung von Möbeln | E40: 114043 | F40: 2058 | G40: 753 | H40: 10790 | I40: 288 | J40: 34184 | K40: 5419 | L40: 3471 | M40: 18376 | N40: 22221 | O40: 674 | P40: 1116 | Q40: 1801 | R40: 1428 | S40: 5706 | T40: 2593 | U40: 3165 | V40: 13045 | W40: 285 | X40: 137 | Y40: 1277 | Z40: 68 | AA40: 3820 | AB40: 681 | AC40: 474 | AD40: 2192 | AE40: 2727 | AF40: 120 | AG40: 149 | AH40: 154 | AI40: 111 | AJ40: 423 | AK40: 184 | AL40: 243 | AM40: 8874 | AN40: 185 | AO40: 85 | AP40: 924 | AQ40: 51 | AR40: 2679 | AS40: 474 | AT40: 316 | AU40: 1372 | AV40: 1727 | AW40: 97 | AX40: 106 | AY40: 119 | AZ40: 84 | BA40: 327 | BB40: 149 | BC40: 179 | BD40: 4171 | BE40: 100 | BF40: 52 | BG40: 353 | BH40: 17 | BI40: 1141 | BJ40: 207 | BK40: 158 | BL40: 820 | BM40: 1000 | BN40: 23 | BO40: 43 | BP40: 35 | BQ40: 27 | BR40: 96 | BS40: 35 | BT40: 64
B41: 32 | C41: 32 | D41: Herstellung von sonstigen Waren | E41: 242074 | F41: 10154 | G41: 5964 | H41: 13892 | I41: 1618 | J41: 31783 | K41: 19544 | L41: 10038 | M41: 57495 | N41: 47581 | O41: 3126 | P41: 9671 | Q41: 5077 | R41: 3534 | S41: 11097 | T41: 3461 | U41: 8039 | V41: 39722 | W41: 1179 | X41: 749 | Y41: 3033 | Z41: 263 | AA41: 8908 | AB41: 2854 | AC41: 2530 | AD41: 8370 | AE41: 7355 | AF41: 448 | AG41: 790 | AH41: 490 | AI41: 372 | AJ41: 1152 | AK41: 456 | AL41: 773 | AM41: 27076 | AN41: 867 | AO41: 503 | AP41: 2155 | AQ41: 192 | AR41: 6235 | AS41: 1952 | AT41: 1725 | AU41: 5303 | AV41: 4813 | AW41: 329 | AX41: 525 | AY41: 365 | AZ41: 281 | BA41: 899 | BB41: 337 | BC41: 595 | BD41: 12646 | BE41: 312 | BF41: 246 | BG41: 878 | BH41: 71 | BI41: 2673 | BJ41: 902 | BK41: 805 | BL41: 3067 | BM41: 2542 | BN41: 119 | BO41: 265 | BP41: 125 | BQ41: 91 | BR41: 253 | BS41: 119 | BT41: 178
B42: 33 | C42: 33 | D42: Rep. u.Install. v. Masch. u.Ausrüstungen | E42: 161264 | F42: 5537 | G42: 3592 | H42: 17066 | I42: 3131 | J42: 32254 | K42: 12901 | L42: 5583 | M42: 24315 | N42: 23794 | O42: 1835 | P42: 2676 | Q42: 6700 | R42: 3289 | S42: 8491 | T42: 4885 | U42: 5215 | V42: 26760 | W42: 771 | X42: 341 | Y42: 2610 | Z42: 248 | AA42: 6018 | AB42: 1886 | AC42: 1292 | AD42: 5215 | AE42: 4930 | AF42: 368 | AG42: 339 | AH42: 477 | AI42: 274 | AJ42: 955 | AK42: 389 | AL42: 647 | AM42: 14527 | AN42: 494 | AO42: 190 | AP42: 1571 | AQ42: 162 | AR42: 3350 | AS42: 913 | AT42: 737 | AU42: 2472 | AV42: 2294 | AW42: 259 | AX42: 225 | AY42: 325 | AZ42: 197 | BA42: 630 | BB42: 293 | BC42: 415 | BD42: 12233 | BE42: 277 | BF42: 151 | BG42: 1039 | BH42: 86 | BI42: 2668 | BJ42: 973 | BK42: 555 | BL42: 2743 | BM42: 2636 | BN42: 109 | BO42: 114 | BP42: 152 | BQ42: 77 | BR42: 325 | BS42: 96 | BT42: 232
B43: 34 | C43: 35 | D43: Energieversorgung | E43: 226365 | F43: 8419 | G43: 7204 | H43: 21632 | I43: 2097 | J43: 52641 | K43: 16109 | L43: 8899 | M43: 26883 | N43: 35260 | O43: 3168 | P43: 7675 | Q43: 8361 | R43: 4856 | S43: 11804 | T43: 6492 | U43: 4865 | V43: 12048 | W43: 727 | X43: 80 | Y43: 1692 | Z43: 32 | AA43: 1632 | AB43: 943 | AC43: 404 | AD43: 1952 | AE43: 3186 | AF43: 86 | AG43: 69 | AH43: 240 | AI43: 209 | AJ43: 366 | AK43: 244 | AL43: 186 | AM43: 6359 | AN43: 363 | AO43: 51 | AP43: 828 | AQ43: 20 | AR43: 909 | AS43: 521 | AT43: 223 | AU43: 1062 | AV43: 1525 | AW43: 51 | AX43: 55 | AY43: 138 | AZ43: 101 | BA43: 253 | BB43: 134 | BC43: 125 | BD43: 5689 | BE43: 364 | BF43: 29 | BG43: 864 | BH43: 12 | BI43: 723 | BJ43: 422 | BK43: 181 | BL43: 890 | BM43: 1661 | BN43: 35 | BO43: 14 | BP43: 102 | BQ43: 108 | BR43: 113 | BS43: 110 | BT43: 61
B44: 35 | C44: 36 | D44: Wasserversorgung | E44: 36951 | F44: 443 | G44: * | H44: 2590 | J44: 8222 | K44: 1683 | L44: 1511 | M44: 3755 | N44: 2681 | O44: 297 | P44: * | Q44: 1837 | R44: 1479 | S44: 2957 | T44: 2070 | U44: 2079 | V44: 2079 | W44: 95 | X44: * | Y44: 159 | AA44: 453 | AB44: 89 | AC44: 135 | AD44: 465 | AE44: 443 | AF44: 16 | AG44: * | AH44: 29 | AI44: 23 | AJ44: 47 | AK44: 18 | AL44: 83 | AM44: 1342 | AN44: 44 | AO44: * | AP44: 109 | AR44: 286 | AS44: 60 | AT44: 101 | AU44: 273 | AV44: 262 | AW44: 9 | AX44: * | AY44: * | AZ44: * | BA44: 37 | BB44: 18 | BC44: 72 | BD44: 737 | BE44: 51 | BG44: 50 | BI44: 167 | BJ44: 29 | BK44: 34 | BL44: 192 | BM44: 181 | BN44: 7 | BP44: * | BQ44: * | BR44: 10 | BT44: 11
B45: 36 | C45: 37 | D45: Abwasserentsorgung | E45: 30622 | F45: 1297 | G45: * | H45: 2830 | I45: 525 | J45: 6827 | K45: 2261 | L45: 1302 | M45: 2685 | N45: 4519 | O45: 704 | P45: * | Q45: 1072 | R45: 590 | S45: 1984 | T45: 1159 | U45: 1185 | V45: 3202 | W45: 160 | X45: * | Y45: 202 | Z45: 20 | AA45: 577 | AB45: 361 | AC45: 141 | AD45: 571 | AE45: 669 | AF45: 40 | AG45: * | AH45: 84 | AI45: 55 | AJ45: 89 | AK45: 63 | AL45: 94 | AM45: 1875 | AN45: 75 | AO45: * | AP45: 118 | AQ45: 17 | AR45: 336 | AS45: 202 | AT45: 88 | AU45: 319 | AV45: 376 | AW45: 24 | AX45: * | AY45: 63 | AZ45: 51 | BA45: 56 | BB45: 50 | BC45: 62 | BD45: 1327 | BE45: 85 | BF45: * | BG45: 84 | BH45: 3 | BI45: 241 | BJ45: 159 | BK45: 53 | BL45: 252 | BM45: 293 | BN45: 16 | BO45: * | BP45: 21 | BQ45: 4 | BR45: 33 | BS45: 13 | BT45: 32
B46: 37 | C46: 38 | D46: Sammlung,Abfallbeseitigung,Rückgewinnung | E46: 166544 | F46: 5074 | G46: 5461 | H46: 16434 | I46: 2376 | J46: 39524 | K46: 12160 | L46: 7706 | M46: 14262 | N46: 20504 | O46: 1651 | P46: 8811 | Q46: 6883 | R46: 3768 | S46: 9794 | T46: 7344 | U46: 4792 | V46: 16008 | W46: 436 | X46: 200 | Y46: 1571 | Z46: 171 | AA46: 3175 | AB46: 1027 | AC46: 934 | AD46: 2744 | AE46: 3328 | AF46: 236 | AG46: 251 | AH46: 433 | AI46: 184 | AJ46: 612 | AK46: 412 | AL46: 294 | AM46: 10246 | AN46: 264 | AO46: 115 | AP46: 1055 | AQ46: 121 | AR46: 2096 | AS46: 599 | AT46: 552 | AU46: 1541 | AV46: 2011 | AW46: 146 | AX46: 215 | AY46: 336 | AZ46: 144 | BA46: 498 | BB46: 334 | BC46: 219 | BD46: 5762 | BE46: 172 | BF46: 85 | BG46: 516 | BH46: 50 | BI46: 1079 | BJ46: 428 | BK46: 382 | BL46: 1203 | BM46: 1317 | BN46: 90 | BO46: 36 | BP46: 97 | BQ46: 40 | BR46: 114 | BS46: 78 | BT46: 75
B47: 38 | C47: 39 | D47: Beseitig. v.UW-Verschm. u.sonst.Entsorg. | E47: 3251 | F47: 66 | G47: 200 | H47: 206 | I47: * | J47: 862 | K47: 118 | L47: 36 | M47: 118 | N47: 168 | O47: * | P47: 99 | Q47: 367 | R47: 37 | S47: 705 | T47: 142 | U47: 89 | V47: 304 | W47: 5 | X47: 23 | Y47: 21 | Z47: * | AA47: 80 | AB47: 29 | AC47: 6 | AD47: 26 | AE47: 42 | AF47: * | AG47: 6 | AH47: 17 | AI47: 5 | AJ47: 12 | AK47: 9 | AL47: 13 | AM47: 194 | AN47: * | AO47: 7 | AP47: 13 | AQ47: * | AR47: 60 | AS47: 20 | AT47: * | AU47: 12 | AV47: 18 | AW47: * | AX47: * | AY47: 12 | AZ47: * | BA47: * | BB47: * | BC47: 10 | BD47: 110 | BE47: * | BF47: 16 | BG47: 8 | BI47: 20 | BJ47: 9 | BK47: * | BL47: 14 | BM47: 24 | BN47: * | BO47: * | BP47: 5 | BQ47: * | BR47: * | BS47: * | BT47: 3
B48: 39 | C48: 41 | D48: Hochbau | E48: 282897 | F48: 9060 | G48: 4548 | H48: 30960 | I48: 1578 | J48: 41464 | K48: 20681 | L48: 11651 | M48: 38697 | N48: 64032 | O48: 2434 | P48: 9076 | Q48: 9757 | R48: 6347 | S48: 15960 | T48: 8503 | U48: 8149 | V48: 38195 | W48: 1123 | X48: 327 | Y48: 4575 | Z48: 219 | AA48: 7430 | AB48: 2474 | AC48: 1939 | AD48: 6248 | AE48: 8120 | AF48: 514 | AG48: 924 | AH48: 908 | AI48: 556 | AJ48: 1498 | AK48: 740 | AL48: 600 | AM48: 24447 | AN48: 754 | AO48: 226 | AP48: 3110 | AQ48: 169 | AR48: 4880 | AS48: 1595 | AT48: 1203 | AU48: 3546 | AV48: 4878 | AW48: 348 | AX48: 671 | AY48: 645 | AZ48: 395 | BA48: 1079 | BB48: 528 | BC48: 420 | BD48: 13748 | BE48: 369 | BF48: 101 | BG48: 1465 | BH48: 50 | BI48: 2550 | BJ48: 879 | BK48: 736 | BL48: 2702 | BM48: 3242 | BN48: 166 | BO48: 253 | BP48: 263 | BQ48: 161 | BR48: 419 | BS48: 212 | BT48: 180
B49: 40 | C49: 42 | D49: Tiefbau | E49: 204184 | F49: 7037 | G49: 2816 | H49: 23704 | I49: 1709 | J49: 34111 | K49: 11516 | L49: 11320 | M49: 23693 | N49: 29552 | O49: 2885 | P49: 5299 | Q49: 10774 | R49: 5158 | S49: 15550 | T49: 10543 | U49: 8517 | V49: 15146 | W49: 493 | X49: 113 | Y49: 1612 | Z49: 101 | AA49: 3226 | AB49: 1013 | AC49: 1075 | AD49: 2177 | AE49: 2481 | AF49: 251 | AG49: 214 | AH49: 618 | AI49: 264 | AJ49: 670 | AK49: 454 | AL49: 384 | AM49: 10130 | AN49: 334 | AO49: 76 | AP49: 1125 | AQ49: 60 | AR49: 2189 | AS49: 639 | AT49: 725 | AU49: 1374 | AV49: 1517 | AW49: 181 | AX49: 167 | AY49: 415 | AZ49: 189 | BA49: 514 | BB49: 336 | BC49: 289 | BD49: 5016 | BE49: 159 | BF49: 37 | BG49: 487 | BH49: 41 | BI49: 1037 | BJ49: 374 | BK49: 350 | BL49: 803 | BM49: 964 | BN49: 70 | BO49: 47 | BP49: 203 | BQ49: 75 | BR49: 156 | BS49: 118 | BT49: 95
B50: 41 | C50: 43 | D50: Vorber.Baust.arb.,Bauinst.,so.Ausbaugew. | E50: 1259635 | F50: 47137 | G50: 23933 | H50: 123379 | I50: 9178 | J50: 242325 | K50: 87256 | L50: 62146 | M50: 168478 | N50: 208584 | O50: 14306 | P50: 46473 | Q50: 43979 | R50: 30012 | S50: 73047 | T50: 40089 | U50: 39313 | V50: 254728 | W50: 8319 | X50: 3159 | Y50: 24017 | Z50: 1532 | AA50: 55336 | AB50: 17385 | AC50: 14466 | AD50: 42921 | AE50: 46731 | AF50: 3755 | AG50: 6476 | AH50: 6538 | AI50: 3558 | AJ50: 10301 | AK50: 4803 | AL50: 5431 | AM50: 161368 | AN50: 5439 | AO50: 2008 | AP50: 16035 | AQ50: 1096 | AR50: 37574 | AS50: 11250 | AT50: 8981 | AU50: 24184 | AV50: 26134 | AW50: 2638 | AX50: 4646 | AY50: 4510 | AZ50: 2527 | BA50: 7272 | BB50: 3474 | BC50: 3600 | BD50: 93360 | BE50: 2880 | BF50: 1151 | BG50: 7982 | BH50: 436 | BI50: 17762 | BJ50: 6135 | BK50: 5485 | BL50: 18737 | BM50: 20597 | BN50: 1117 | BO50: 1830 | BP50: 2028 | BQ50: 1031 | BR50: 3029 | BS50: 1329 | BT50: 1831
B51: 42 | C51: 45 | D51: Handel m. Kfz; Inst.halt. u. Rep. v. Kfz | E51: 628658 | F51: 22236 | G51: 14680 | H51: 61464 | I51: 4982 | J51: 124817 | K51: 48269 | L51: 33889 | M51: 84047 | N51: 110295 | O51: 7260 | P51: 18670 | Q51: 18890 | R51: 11816 | S51: 34041 | T51: 16125 | U51: 17177 | V51: 123920 | W51: 4535 | X51: 1686 | Y51: 13417 | Z51: 782 | AA51: 28127 | AB51: 8872 | AC51: 7980 | AD51: 20231 | AE51: 23071 | AF51: 1684 | AG51: 1805 | AH51: 2201 | AI51: 1387 | AJ51: 4030 | AK51: 1971 | AL51: 2141 | AM51: 83252 | AN51: 3194 | AO51: 1138 | AP51: 9531 | AQ51: 581 | AR51: 20090 | AS51: 5911 | AT51: 5506 | AU51: 12035 | AV51: 13839 | AW51: 1218 | AX51: 1336 | AY51: 1651 | AZ51: 1081 | BA51: 3029 | BB51: 1560 | BC51: 1552 | BD51: 40668 | BE51: 1341 | BF51: 548 | BG51: 3886 | BH51: 201 | BI51: 8037 | BJ51: 2961 | BK51: 2474 | BL51: 8196 | BM51: 9232 | BN51: 466 | BO51: 469 | BP51: 550 | BQ51: 306 | BR51: 1001 | BS51: 411 | BT51: 589
B52: 43 | C52: 46 | D52: Großhandel (ohne Handel mit Kfz) | E52: 1346743 | F52: 53547 | G52: 55875 | H52: 116222 | I52: 14266 | J52: 337772 | K52: 120424 | L52: 51618 | M52: 202852 | N52: 222839 | O52: 15396 | P52: 33959 | Q52: 22840 | R52: 14423 | S52: 44524 | T52: 20658 | U52: 19528 | V52: 242118 | W52: 8037 | X52: 5530 | Y52: 23453 | Z52: 1918 | AA52: 63638 | AB52: 18567 | AC52: 13447 | AD52: 41358 | AE52: 41741 | AF52: 2693 | AG52: 3312 | AH52: 3577 | AI52: 2951 | AJ52: 7230 | AK52: 2072 | AL52: 2594 | AM52: 161949 | AN52: 5298 | AO52: 3585 | AP52: 16210 | AQ52: 1316 | AR52: 44192 | AS52: 12636 | AT52: 9562 | AU52: 25415 | AV52: 25804 | AW52: 1919 | AX52: 2320 | AY52: 2607 | AZ52: 2435 | BA52: 5329 | BB52: 1533 | BC52: 1788 | BD52: 80169 | BE52: 2739 | BF52: 1945 | BG52: 7243 | BH52: 602 | BI52: 19446 | BJ52: 5931 | BK52: 3885 | BL52: 15943 | BM52: 15937 | BN52: 774 | BO52: 992 | BP52: 970 | BQ52: 516 | BR52: 1901 | BS52: 539 | BT52: 806
B53: 44 | C53: 47 | D53: Einzelhandel (ohne Handel mit Kfz) | E53: 2328210 | F53: 89411 | G53: 67085 | H53: 226201 | I53: 20203 | J53: 485496 | K53: 167461 | L53: 104643 | M53: 298907 | N53: 387934 | O53: 30694 | P53: 112057 | Q53: 63844 | R53: 45054 | S53: 109960 | T53: 61155 | U53: 58105 | V53: 901456 | W53: 38477 | X53: 23356 | Y53: 95543 | Z53: 7839 | AA53: 225870 | AB53: 72690 | AC53: 44440 | AD53: 125598 | AE53: 151689 | AF53: 11702 | AG53: 26774 | AH53: 14384 | AI53: 11315 | AJ53: 24462 | AK53: 13140 | AL53: 14177 | AM53: 677646 | AN53: 30213 | AO53: 17135 | AP53: 75363 | AQ53: 6071 | AR53: 176873 | AS53: 54489 | AT53: 33179 | AU53: 86166 | AV53: 104274 | AW53: 9209 | AX53: 21542 | AY53: 11622 | AZ53: 9524 | BA53: 19509 | BB53: 11083 | BC53: 11394 | BD53: 223810 | BE53: 8264 | BF53: 6221 | BG53: 20180 | BH53: 1768 | BI53: 48997 | BJ53: 18201 | BK53: 11261 | BL53: 39432 | BM53: 47415 | BN53: 2493 | BO53: 5232 | BP53: 2762 | BQ53: 1791 | BR53: 4953 | BS53: 2057 | BT53: 2783
B54: 45 | C54: 49 | D54: Landverkehr u.Transp.i.Rohrfernleitungen | E54: 616460 | F54: 21502 | G54: 20404 | H54: 53864 | I54: 6596 | J54: 131018 | K54: 44697 | L54: 25657 | M54: 70863 | N54: 89870 | O54: 6431 | P54: 37884 | Q54: 21873 | R54: 12207 | S54: 37457 | T54: 20361 | U54: 15776 | V54: 201971 | W54: 6015 | X54: 2474 | Y54: 22211 | Z54: 1511 | AA54: 55454 | AB54: 16008 | AC54: 10305 | AD54: 28314 | AE54: 34118 | AF54: 3341 | AG54: 4236 | AH54: 3377 | AI54: 1903 | AJ54: 5976 | AK54: 3535 | AL54: 3193 | AM54: 130555 | AN54: 3716 | AO54: 1256 | AP54: 14382 | AQ54: 1098 | AR54: 38880 | AS54: 10315 | AT54: 6426 | AU54: 16014 | AV54: 19417 | AW54: 2528 | AX54: 3051 | AY54: 2498 | AZ54: 1483 | BA54: 4327 | BB54: 2879 | BC54: 2285 | BD54: 71416 | BE54: 2299 | BF54: 1218 | BG54: 7829 | BH54: 413 | BI54: 16574 | BJ54: 5693 | BK54: 3879 | BL54: 12300 | BM54: 14701 | BN54: 813 | BO54: 1185 | BP54: 879 | BQ54: 420 | BR54: 1649 | BS54: 656 | BT54: 908
B55: 46 | C55: 50 | D55: Schifffahrt | E55: 23346 | F55: 2453 | G55: 8571 | H55: 3909 | I55: 1639 | J55: 951 | K55: 347 | L55: 507 | M55: 670 | N55: 1005 | O55: 8 | P55: 564 | Q55: 366 | R55: 1968 | S55: 153 | T55: 218 | U55: 17 | V55: 2963 | W55: 392 | X55: 218 | Y55: 466 | Z55: 127 | AA55: 435 | AB55: 119 | AC55: 267 | AD55: 146 | AE55: 441 | AF55: 14 | AG55: 85 | AH55: 81 | AI55: 127 | AJ55: 13 | AK55: 29 | AL55: 3 | AM55: 1934 | AN55: 273 | AO55: 130 | AP55: 303 | AQ55: 89 | AR55: 281 | AS55: 78 | AT55: 181 | AU55: 98 | AV55: 245 | AW55: * | AX55: 57 | AY55: 52 | AZ55: 103 | BA55: * | BB55: 20 | BC55: 3 | BD55: 1029 | BE55: 119 | BF55: 88 | BG55: 163 | BH55: 38 | BI55: 154 | BJ55: 41 | BK55: 86 | BL55: 48 | BM55: 196 | BN55: * | BO55: 28 | BP55: 29 | BQ55: 24 | BR55: * | BS55: 9
B56: 47 | C56: 51 | D56: Luftfahrt | E56: 63832 | F56: * | G56: 1937 | H56: 2118 | I56: * | J56: 6797 | K56: 32783 | L56: 22 | M56: 1721 | N56: 10667 | O56: * | P56: 5469 | Q56: 862 | R56: 9 | S56: 1164 | T56: * | U56: * | V56: 696 | W56: * | X56: 46 | Y56: 73 | Z56: * | AA56: 92 | AB56: 71 | AC56: 23 | AD56: 151 | AE56: 113 | AF56: * | AG56: 15 | AH56: 14 | AI56: 5 | AJ56: 8 | AK56: * | AL56: * | AM56: 366 | AN56: * | AO56: 37 | AP56: 27 | AR56: 55 | AS56: 36 | AT56: 13 | AU56: 69 | AV56: 61 | AX56: 12 | AY56: 9 | AZ56: * | BA56: 5 | BB56: * | BC56: * | BD56: 330 | BE56: * | BF56: 9 | BG56: 46 | BH56: * | BI56: 37 | BJ56: 35 | BK56: 10 | BL56: 82 | BM56: 52 | BN56: * | BO56: 3 | BP56: 5 | BQ56: * | BR56: 3 | BS56: * | BT56: *
B57: 48 | C57: 52 | D57: Lagerei u. Erbr.v. sonst. DL f.d.Verkehr | E57: 688290 | F57: 15624 | G57: 43972 | H57: 65599 | I57: 23585 | J57: 147272 | K57: 68686 | L57: 24526 | M57: 77146 | N57: 101921 | O57: 5805 | P57: 13060 | Q57: 25438 | R57: 10701 | S57: 31717 | T57: 17858 | U57: 15380 | V57: 87136 | W57: 2693 | X57: 2569 | Y57: 9696 | Z57: 1759 | AA57: 22296 | AB57: 7564 | AC57: 3556 | AD57: 13718 | AE57: 15108 | AF57: 964 | AG57: 892 | AH57: 1335 | AI57: 1024 | AJ57: 1712 | AK57: 874 | AL57: 1376 | AM57: 52211 | AN57: 1661 | AO57: 1572 | AP57: 6071 | AQ57: 1193 | AR57: 14609 | AS57: 4191 | AT57: 1976 | AU57: 7043 | AV57: 8133 | AW57: 625 | AX57: 610 | AY57: 915 | AZ57: 781 | BA57: 1234 | BB57: 624 | BC57: 973 | BD57: 34925 | BE57: 1032 | BF57: 997 | BG57: 3625 | BH57: 566 | BI57: 7687 | BJ57: 3373 | BK57: 1580 | BL57: 6675 | BM57: 6975 | BN57: 339 | BO57: 282 | BP57: 420 | BQ57: 243 | BR57: 478 | BS57: 250 | BT57: 403
B58: 49 | C58: 53 | D58: Post-, Kurier- und Expressdienste | E58: 263312 | F58: 8303 | G58: 7188 | H58: 22233 | I58: 2913 | J58: 57210 | K58: 23047 | L58: 12320 | M58: 32980 | N58: 36935 | O58: 3528 | P58: 10479 | Q58: 10286 | R58: 6234 | S58: 14615 | T58: 8648 | U58: 6393 | V58: 182647 | W58: 7225 | X58: 1713 | Y58: 20136 | Z58: 1463 | AA58: 38123 | AB58: 11720 | AC58: 13291 | AD58: 31014 | AE58: 25092 | AF58: 1538 | AG58: 4110 | AH58: 4073 | AI58: 4157 | AJ58: 12058 | AK58: 4995 | AL58: 1939 | AM58: 128899 | AN58: 5107 | AO58: 1059 | AP58: 14652 | AQ58: 884 | AR58: 27693 | AS58: 7750 | AT58: 9041 | AU58: 20598 | AV58: 16736 | AW58: 1126 | AX58: 3156 | AY58: 3217 | AZ58: 3095 | BA58: 9471 | BB58: 3889 | BC58: 1425 | BD58: 53748 | BE58: 2118 | BF58: 654 | BG58: 5484 | BH58: 579 | BI58: 10430 | BJ58: 3970 | BK58: 4250 | BL58: 10416 | BM58: 8356 | BN58: 412 | BO58: 954 | BP58: 856 | BQ58: 1062 | BR58: 2587 | BS58: 1106 | BT58: 514
B59: 50 | C59: 55 | D59: Beherbergung | E59: 298468 | F59: 13625 | G59: 8982 | H59: 25440 | I59: 1995 | J59: 35481 | K59: 20706 | L59: 14549 | M59: 36395 | N59: 65368 | O59: 1899 | P59: 18058 | Q59: 9345 | R59: 20154 | S59: 13599 | T59: 6462 | U59: 6410 | V59: 150693 | W59: 6825 | X59: 2189 | Y59: 18082 | Z59: 841 | AA59: 24025 | AB59: 9587 | AC59: 11165 | AD59: 21941 | AE59: 34945 | AF59: 1189 | AG59: 3027 | AH59: 2940 | AI59: 4605 | AJ59: 4361 | AK59: 2330 | AL59: 2641 | AM59: 99019 | AN59: 4481 | AO59: 1288 | AP59: 12181 | AQ59: 604 | AR59: 16369 | AS59: 6532 | AT59: 7702 | AU59: 13729 | AV59: 20741 | AW59: 851 | AX59: 2236 | AY59: 2193 | AZ59: 3451 | BA59: 3132 | BB59: 1681 | BC59: 1848 | BD59: 51674 | BE59: 2344 | BF59: 901 | BG59: 5901 | BH59: 237 | BI59: 7656 | BJ59: 3055 | BK59: 3463 | BL59: 8212 | BM59: 14204 | BN59: 338 | BO59: 791 | BP59: 747 | BQ59: 1154 | BR59: 1229 | BS59: 649 | BT59: 793
B60: 51 | C60: 56 | D60: Gastronomie | E60: 727903 | F60: 26577 | G60: 28637 | H60: 58419 | I60: 7749 | J60: 133804 | K60: 60185 | L60: 30255 | M60: 92206 | N60: 121602 | O60: 7579 | P60: 53823 | Q60: 20064 | R60: 16526 | S60: 38414 | T60: 16216 | U60: 15847 | V60: 821054 | W60: 30816 | X60: 23339 | Y60: 85033 | Z60: 9534 | AA60: 189039 | AB60: 54451 | AC60: 42526 | AD60: 127551 | AE60: 145128 | AF60: 11107 | AG60: 32918 | AH60: 12247 | AI60: 9169 | AJ60: 24548 | AK60: 11606 | AL60: 12042 | AM60: 522815 | AN60: 20427 | AO60: 14290 | AP60: 55109 | AQ60: 6440 | AR60: 128916 | AS60: 35721 | AT60: 28309 | AU60: 73309 | AV60: 77831 | AW60: 7753 | AX60: 24920 | AY60: 8964 | AZ60: 6864 | BA60: 17228 | BB60: 8561 | BC60: 8173 | BD60: 298239 | BE60: 10389 | BF60: 9049 | BG60: 29924 | BH60: 3094 | BI60: 60123 | BJ60: 18730 | BK60: 14217 | BL60: 54242 | BM60: 67297 | BN60: 3354 | BO60: 7998 | BP60: 3283 | BQ60: 2305 | BR60: 7320 | BS60: 3045 | BT60: 3869
B61: 52 | C61: 58 | D61: Verlagswesen | E61: 138051 | F61: 2820 | G61: 9388 | H61: 9593 | I61: 1515 | J61: 22682 | K61: 12593 | L61: 4100 | M61: 23004 | N61: 30024 | O61: 689 | P61: 12578 | Q61: 1169 | R61: 1223 | S61: 3578 | T61: 1063 | U61: 2032 | V61: 71732 | W61: 3996 | X61: 573 | Y61: 8865 | Z61: 1882 | AA61: 15609 | AB61: 6009 | AC61: 6052 | AD61: 8957 | AE61: 13258 | AF61: 301 | AG61: 624 | AH61: 967 | AI61: 354 | AJ61: 450 | AK61: 872 | AL61: 2963 | AM61: 52827 | AN61: 3308 | AO61: 378 | AP61: 6763 | AQ61: 1532 | AR61: 11441 | AS61: 4298 | AT61: 4734 | AU61: 5799 | AV61: 9855 | AW61: 206 | AX61: 421 | AY61: 683 | AZ61: 289 | BA61: 337 | BB61: 621 | BC61: 2162 | BD61: 18905 | BE61: 688 | BF61: 195 | BG61: 2102 | BH61: 350 | BI61: 4168 | BJ61: 1711 | BK61: 1318 | BL61: 3158 | BM61: 3403 | BN61: 95 | BO61: 203 | BP61: 284 | BQ61: 65 | BR61: 113 | BS61: 251 | BT61: 801
B62: 53 | C62: 59 | D62: Film, TV, Kino u. Tonstudio | E62: 42139 | F62: 582 | G62: 4109 | H62: 1496 | I62: 249 | J62: 10117 | K62: 2143 | L62: 746 | M62: 2776 | N62: 8962 | O62: 196 | P62: 7472 | Q62: 925 | R62: 187 | S62: 1200 | T62: 475 | U62: 504 | V62: 20745 | W62: 650 | X62: 656 | Y62: 1911 | Z62: 234 | AA62: 3909 | AB62: 1364 | AC62: 1007 | AD62: 2871 | AE62: 4428 | AF62: 220 | AG62: 1618 | AH62: 310 | AI62: 279 | AJ62: 738 | AK62: 212 | AL62: 338 | AM62: 13335 | AN62: 448 | AO62: 413 | AP62: 1306 | AQ62: 143 | AR62: 2567 | AS62: 862 | AT62: 690 | AU62: 1591 | AV62: 2732 | AW62: 137 | AX62: 1103 | AY62: 205 | AZ62: 212 | BA62: 502 | BB62: 162 | BC62: 262 | BD62: 7410 | BE62: 202 | BF62: 243 | BG62: 605 | BH62: 91 | BI62: 1342 | BJ62: 502 | BK62: 317 | BL62: 1280 | BM62: 1696 | BN62: 83 | BO62: 515 | BP62: 105 | BQ62: 67 | BR62: 236 | BS62: 50 | BT62: 76
B63: 54 | C63: 60 | D63: Rundfunkveranstalter | E63: 58802 | F63: 592 | G63: 4982 | H63: 1010 | I63: 644 | J63: 11742 | K63: 2696 | L63: 7058 | M63: 6496 | N63: 12741 | O63: * | P63: 4475 | Q63: 815 | R63: 502 | S63: 3041 | T63: 620 | U63: * | V63: 2437 | W63: 71 | X63: 66 | Y63: 56 | Z63: 16 | AA63: 333 | AB63: 90 | AC63: 299 | AD63: 378 | AE63: 403 | AF63: * | AG63: 217 | AH63: 19 | AI63: 103 | AJ63: 112 | AK63: 80 | AL63: * | AM63: 1768 | AN63: 49 | AO63: 50 | AP63: 38 | AQ63: 9 | AR63: 268 | AS63: 74 | AT63: 231 | AU63: 222 | AV63: 239 | AW63: * | AX63: 180 | AY63: 13 | AZ63: 88 | BA63: 73 | BB63: 74 | BC63: * | BD63: 669 | BE63: 22 | BF63: 16 | BG63: 18 | BH63: 7 | BI63: 65 | BJ63: 16 | BK63: 68 | BL63: 156 | BM63: 164 | BN63: * | BO63: 37 | BP63: 6 | BQ63: 15 | BR63: 39 | BS63: 6 | BT63: *
B64: 55 | C64: 61 | D64: Telekommunikation | E64: 58812 | F64: 2343 | G64: 2054 | H64: 4210 | I64: 680 | J64: 14606 | K64: 5341 | L64: 2187 | M64: 5008 | N64: 9664 | O64: 486 | P64: 3132 | Q64: 1876 | R64: 620 | S64: 3407 | T64: 1200 | U64: 1998 | V64: 2653 | W64: 126 | X64: 120 | Y64: 187 | Z64: 34 | AA64: 604 | AB64: 255 | AC64: 127 | AD64: 256 | AE64: 453 | AF64: 38 | AG64: 276 | AH64: 30 | AI64: 24 | AJ64: 57 | AK64: 38 | AL64: 28 | AM64: 1813 | AN64: 80 | AO64: 80 | AP64: 117 | AQ64: 28 | AR64: 427 | AS64: 156 | AT64: 103 | AU64: 169 | AV64: 267 | AW64: 34 | AX64: 234 | AY64: 17 | AZ64: 17 | BA64: 39 | BB64: 32 | BC64: 13 | BD64: 840 | BE64: 46 | BF64: 40 | BG64: 70 | BH64: 6 | BI64: 177 | BJ64: 99 | BK64: 24 | BL64: 87 | BM64: 186 | BN64: 4 | BO64: 42 | BP64: 13 | BQ64: 7 | BR64: 18 | BS64: 6 | BT64: 15
B65: 56 | C65: 62 | D65: DL der Informationstechnologie | E65: 613613 | F65: 10626 | G65: 32840 | H65: 33794 | I65: 6027 | J65: 127041 | K65: 59467 | L65: 15959 | M65: 106646 | N65: 124359 | O65: 5775 | P65: 42685 | Q65: 5972 | R65: 4359 | S65: 24150 | T65: 6464 | U65: 7449 | V65: 47236 | W65: 1537 | X65: 1702 | Y65: 3251 | Z65: 451 | AA65: 10628 | AB65: 4200 | AC65: 1914 | AD65: 8303 | AE65: 9107 | AF65: 620 | AG65: 2070 | AH65: 653 | AI65: 385 | AJ65: 1450 | AK65: 388 | AL65: 577 | AM65: 28705 | AN65: 1022 | AO65: 1014 | AP65: 2046 | AQ65: 282 | AR65: 6785 | AS65: 2528 | AT65: 1151 | AU65: 4788 | AV65: 5065 | AW65: 404 | AX65: 1334 | AY65: 422 | AZ65: 249 | BA65: 989 | BB65: 251 | BC65: 375 | BD65: 18531 | BE65: 515 | BF65: 688 | BG65: 1205 | BH65: 169 | BI65: 3843 | BJ65: 1672 | BK65: 763 | BL65: 3515 | BM65: 4042 | BN65: 216 | BO65: 736 | BP65: 231 | BQ65: 136 | BR65: 461 | BS65: 137 | BT65: 202
B66: 57 | C66: 63 | D66: Informationsdienstleistungen | E66: 61866 | F66: 862 | G66: 4227 | H66: 1972 | I66: 235 | J66: 11422 | K66: 6913 | L66: 1255 | M66: 6138 | N66: 9798 | O66: 200 | P66: 11691 | Q66: 931 | R66: 393 | S66: 3107 | T66: 975 | U66: 1747 | V66: 13671 | W66: 569 | X66: 497 | Y66: 845 | Z66: 62 | AA66: 2852 | AB66: 1119 | AC66: 553 | AD66: 2052 | AE66: 2775 | AF66: 142 | AG66: 610 | AH66: 320 | AI66: 130 | AJ66: 618 | AK66: 289 | AL66: 238 | AM66: 8315 | AN66: 362 | AO66: 289 | AP66: 501 | AQ66: 43 | AR66: 1767 | AS66: 660 | AT66: 332 | AU66: 1222 | AV66: 1532 | AW66: 91 | AX66: 391 | AY66: 236 | AZ66: 96 | BA66: 440 | BB66: 197 | BC66: 156 | BD66: 5356 | BE66: 207 | BF66: 208 | BG66: 344 | BH66: 19 | BI66: 1085 | BJ66: 459 | BK66: 221 | BL66: 830 | BM66: 1243 | BN66: 51 | BO66: 219 | BP66: 84 | BQ66: 34 | BR66: 178 | BS66: 92 | BT66: 82
B67: 58 | C67: 64 | D67: Erbringung von Finanzdienstleistungen | E67: 639425 | F67: 17784 | G67: 23221 | H67: 52677 | I67: 4875 | J67: 133447 | K67: 98484 | L67: 26869 | M67: 93002 | N67: 112618 | O67: 7373 | P67: 19794 | Q67: 8867 | R67: 5557 | S67: 17037 | T67: 8565 | U67: 9255 | V67: 19313 | W67: 611 | X67: 255 | Y67: 1921 | Z67: 90 | AA67: 3526 | AB67: 1437 | AC67: 915 | AD67: 3422 | AE67: 5785 | AF67: 254 | AG67: 330 | AH67: 124 | AI67: 97 | AJ67: 220 | AK67: 169 | AL67: 157 | AM67: 12983 | AN67: 404 | AO67: 142 | AP67: 1364 | AQ67: 55 | AR67: 2510 | AS67: 1040 | AT67: 642 | AU67: 2125 | AV67: 3809 | AW67: 186 | AX67: 183 | AY67: 72 | AZ67: 72 | BA67: 149 | BB67: 128 | BC67: 102 | BD67: 6330 | BE67: 207 | BF67: 113 | BG67: 557 | BH67: 35 | BI67: 1016 | BJ67: 397 | BK67: 273 | BL67: 1297 | BM67: 1976 | BN67: 68 | BO67: 147 | BP67: 52 | BQ67: 25 | BR67: 71 | BS67: 41 | BT67: 55
B68: 59 | C68: 65 | D68: Versicherungen u.Pensionskassen | E68: 171717 | F68: 2242 | G68: 13625 | H68: 12781 | I68: 1150 | J68: 44996 | K68: 17086 | L68: 4792 | M68: 21654 | N68: 40875 | O68: 2588 | P68: 3526 | Q68: 959 | R68: 717 | S68: 2869 | T68: 929 | U68: 928 | V68: 2188 | W68: 125 | X68: 114 | Y68: 221 | Z68: 27 | AA68: 624 | AB68: 162 | AC68: 40 | AD68: 258 | AE68: 370 | AF68: 54 | AG68: 48 | AH68: 29 | AI68: 8 | AJ68: 65 | AK68: 31 | AL68: 12 | AM68: 1533 | AN68: 84 | AO68: 74 | AP68: 152 | AQ68: 24 | AR68: 443 | AS68: 119 | AT68: 34 | AU68: 171 | AV68: 250 | AW68: 42 | AX68: 27 | AY68: 24 | AZ68: 5 | BA68: 48 | BB68: 27 | BC68: 9 | BD68: 655 | BE68: 41 | BF68: 40 | BG68: 69 | BH68: 3 | BI68: 181 | BJ68: 43 | BK68: 6 | BL68: 87 | BM68: 120 | BN68: 12 | BO68: 21 | BP68: 5 | BQ68: 3 | BR68: 17 | BS68: 4 | BT68: 3
B69: 60 | C69: 66 | D69: M.Finanz-u.Versicherungs-DL verb.Tätigk. | E69: 177077 | F69: 4214 | G69: 10088 | H69: 12996 | I69: 2098 | J69: 37581 | K69: 23511 | L69: 4684 | M69: 19301 | N69: 33360 | O69: 2038 | P69: 10658 | Q69: 2703 | R69: 1824 | S69: 6871 | T69: 2556 | U69: 2594 | V69: 51551 | W69: 1798 | X69: 1189 | Y69: 4814 | Z69: 387 | AA69: 12232 | AB69: 4120 | AC69: 2479 | AD69: 7763 | AE69: 10427 | AF69: 745 | AG69: 1034 | AH69: 853 | AI69: 516 | AJ69: 1531 | AK69: 781 | AL69: 882 | AM69: 30332 | AN69: 1052 | AO69: 657 | AP69: 3008 | AQ69: 232 | AR69: 7732 | AS69: 2478 | AT69: 1485 | AU69: 4167 | AV69: 5664 | AW69: 490 | AX69: 624 | AY69: 515 | AZ69: 322 | BA69: 915 | BB69: 486 | BC69: 505 | BD69: 21219 | BE69: 746 | BF69: 532 | BG69: 1806 | BH69: 155 | BI69: 4500 | BJ69: 1642 | BK69: 994 | BL69: 3596 | BM69: 4763 | BN69: 255 | BO69: 410 | BP69: 338 | BQ69: 194 | BR69: 616 | BS69: 295 | BT69: 377
B70: 61 | C70: 68 | D70: Grundstücks- und Wohnungswesen | E70: 247923 | F70: 8115 | G70: 14016 | H70: 16620 | I70: 3962 | J70: 46772 | K70: 24272 | L70: 6029 | M70: 21957 | N70: 32917 | O70: 1551 | P70: 28025 | Q70: 7964 | R70: 6604 | S70: 16191 | T70: 6735 | U70: 6193 | V70: 258870 | W70: 10420 | X70: 7288 | Y70: 20660 | Z70: 2333 | AA70: 65533 | AB70: 18397 | AC70: 11790 | AD70: 42330 | AE70: 46460 | AF70: 2806 | AG70: 11640 | AH70: 3577 | AI70: 2587 | AJ70: 7273 | AK70: 2907 | AL70: 2869 | AM70: 144153 | AN70: 6065 | AO70: 4080 | AP70: 12365 | AQ70: 1438 | AR70: 38123 | AS70: 9953 | AT70: 6424 | AU70: 20133 | AV70: 23718 | AW70: 1704 | AX70: 7257 | AY70: 2374 | AZ70: 1816 | BA70: 4782 | BB70: 2048 | BC70: 1873 | BD70: 114717 | BE70: 4355 | BF70: 3208 | BG70: 8295 | BH70: 895 | BI70: 27410 | BJ70: 8444 | BK70: 5366 | BL70: 22197 | BM70: 22742 | BN70: 1102 | BO70: 4383 | BP70: 1203 | BQ70: 771 | BR70: 2491 | BS70: 859 | BT70: 996
B71: 62 | C71: 69 | D71: Rechts-,Steuerberatung, Wirtsch.-prüfung | E71: 446777 | F71: 13043 | G71: 21096 | H71: 36287 | I71: 5004 | J71: 99790 | K71: 44312 | L71: 16616 | M71: 55239 | N71: 78018 | O71: 4628 | P71: 27439 | Q71: 6991 | R71: 5590 | S71: 17971 | T71: 7196 | U71: 7557 | V71: 123148 | W71: 3591 | X71: 3824 | Y71: 10128 | Z71: 1134 | AA71: 29662 | AB71: 10751 | AC71: 6088 | AD71: 16579 | AE71: 25388 | AF71: 1674 | AG71: 5176 | AH71: 1835 | AI71: 1024 | AJ71: 3129 | AK71: 1503 | AL71: 1662 | AM71: 74476 | AN71: 2101 | AO71: 2273 | AP71: 6280 | AQ71: 721 | AR71: 18834 | AS71: 6467 | AT71: 3651 | AU71: 9417 | AV71: 14956 | AW71: 1073 | AX71: 3168 | AY71: 1015 | AZ71: 622 | BA71: 1909 | BB71: 939 | BC71: 1050 | BD71: 48672 | BE71: 1490 | BF71: 1551 | BG71: 3848 | BH71: 413 | BI71: 10828 | BJ71: 4284 | BK71: 2437 | BL71: 7162 | BM71: 10432 | BN71: 601 | BO71: 2008 | BP71: 820 | BQ71: 402 | BR71: 1220 | BS71: 564 | BT71: 612
B72: 63 | C72: 70 | D72: Verw.u.Führ. v.Untern.u.Betr.;Unt.berat. | E72: 630039 | F72: 15830 | G72: 34209 | H72: 42555 | I72: 6782 | J72: 166817 | K72: 68082 | L72: 13759 | M72: 99184 | N72: 106503 | O72: 5980 | P72: 37133 | Q72: 5537 | R72: 2525 | S72: 13936 | T72: 5788 | U72: 5419 | V72: 84940 | W72: 2416 | X72: 4128 | Y72: 5795 | Z72: 484 | AA72: 23379 | AB72: 6694 | AC72: 3678 | AD72: 14561 | AE72: 13405 | AF72: 765 | AG72: 3795 | AH72: 1106 | AI72: 548 | AJ72: 2514 | AK72: 862 | AL72: 810 | AM72: 52963 | AN72: 1471 | AO72: 2468 | AP72: 3488 | AQ72: 300 | AR72: 15048 | AS72: 4019 | AT72: 2272 | AU72: 9773 | AV72: 7737 | AW72: 461 | AX72: 2314 | AY72: 690 | AZ72: 341 | BA72: 1579 | BB72: 553 | BC72: 449 | BD72: 31977 | BE72: 945 | BF72: 1660 | BG72: 2307 | BH72: 184 | BI72: 8331 | BJ72: 2675 | BK72: 1406 | BL72: 4788 | BM72: 5668 | BN72: 304 | BO72: 1481 | BP72: 416 | BQ72: 207 | BR72: 935 | BS72: 309 | BT72: 361
B73: 64 | C73: 71 | D73: Architektur-, Ingenieurbüros; Labore | E73: 536311 | F73: 10536 | G73: 22117 | H73: 49727 | I73: 7656 | J73: 96343 | K73: 42236 | L73: 19398 | M73: 94058 | N73: 95312 | O73: 5165 | P73: 27764 | Q73: 11066 | R73: 6692 | S73: 29140 | T73: 9258 | U73: 9843 | V73: 88679 | W73: 2466 | X73: 1809 | Y73: 7590 | Z73: 708 | AA73: 19870 | AB73: 7492 | AC73: 4582 | AD73: 15221 | AE73: 15039 | AF73: 1415 | AG73: 3199 | AH73: 1830 | AI73: 973 | AJ73: 3555 | AK73: 1309 | AL73: 1621 | AM73: 57027 | AN73: 1632 | AO73: 1187 | AP73: 4965 | AQ73: 480 | AR73: 13418 | AS73: 4842 | AT73: 2936 | AU73: 9144 | AV73: 9024 | AW73: 948 | AX73: 2208 | AY73: 1160 | AZ73: 655 | BA73: 2493 | BB73: 883 | BC73: 1052 | BD73: 31652 | BE73: 834 | BF73: 622 | BG73: 2625 | BH73: 228 | BI73: 6452 | BJ73: 2650 | BK73: 1646 | BL73: 6077 | BM73: 6015 | BN73: 467 | BO73: 991 | BP73: 670 | BQ73: 318 | BR73: 1062 | BS73: 426 | BT73: 569
B74: 65 | C74: 72 | D74: Forschung und Entwicklung | E74: 205147 | F74: 3515 | G74: 5841 | H74: 14205 | I74: 3100 | J74: 32563 | K74: 15275 | L74: 7786 | M74: 38180 | N74: 29549 | O74: 2484 | P74: 21712 | Q74: 6467 | R74: 4320 | S74: 11851 | T74: 3786 | U74: 4513 | V74: 19869 | W74: 386 | X74: 461 | Y74: 1190 | Z74: 481 | AA74: 2397 | AB74: 1228 | AC74: 687 | AD74: 5522 | AE74: 2656 | AF74: 383 | AG74: 1091 | AH74: 446 | AI74: 614 | AJ74: 1401 | AK74: 410 | AL74: 516 | AM74: 15390 | AN74: 299 | AO74: 313 | AP74: 898 | AQ74: 405 | AR74: 1704 | AS74: 848 | AT74: 499 | AU74: 4646 | AV74: 1928 | AW74: 312 | AX74: 844 | AY74: 344 | AZ74: 506 | BA74: 1111 | BB74: 329 | BC74: 404 | BD74: 4479 | BE74: 87 | BF74: 148 | BG74: 292 | BH74: 76 | BI74: 693 | BJ74: 380 | BK74: 188 | BL74: 876 | BM74: 728 | BN74: 71 | BO74: 247 | BP74: 102 | BQ74: 108 | BR74: 290 | BS74: 81 | BT74: 112
B75: 66 | C75: 73 | D75: Werbung und Marktforschung | E75: 136584 | F75: 1956 | G75: 15007 | H75: 7610 | I75: 1140 | J75: 31308 | K75: 14110 | L75: 3742 | M75: 14469 | N75: 26127 | O75: 798 | P75: 11516 | Q75: 1643 | R75: 1043 | S75: 3873 | T75: 908 | U75: 1334 | V75: 107087 | W75: 1356 | X75: 2370 | Y75: 5579 | Z75: 789 | AA75: 27846 | AB75: 12209 | AC75: 3557 | AD75: 18657 | AE75: 21322 | AF75: 353 | AG75: 1805 | AH75: 2613 | AI75: 780 | AJ75: 3776 | AK75: 2769 | AL75: 1306 | AM75: 78797 | AN75: 940 | AO75: 1659 | AP75: 3936 | AQ75: 471 | AR75: 21991 | AS75: 8338 | AT75: 2311 | AU75: 14284 | AV75: 15231 | AW75: 233 | AX75: 1287 | AY75: 1916 | AZ75: 608 | BA75: 2581 | BB75: 2101 | BC75: 910 | BD75: 28290 | BE75: 416 | BF75: 711 | BG75: 1643 | BH75: 318 | BI75: 5855 | BJ75: 3871 | BK75: 1246 | BL75: 4373 | BM75: 6091 | BN75: 120 | BO75: 518 | BP75: 697 | BQ75: 172 | BR75: 1195 | BS75: 668 | BT75: 396
B76: 67 | C76: 74 | D76: Sonst.freiberufl., wiss.u.techn. Tätigk. | E76: 61734 | F76: 1153 | G76: 4187 | H76: 4383 | I76: 743 | J76: 13140 | K76: 4429 | L76: 1688 | M76: 8117 | N76: 11738 | O76: 342 | P76: 4951 | Q76: 999 | R76: 593 | S76: 3406 | T76: 931 | U76: 934 | V76: 28161 | W76: 614 | X76: 1632 | Y76: 2363 | Z76: 476 | AA76: 7219 | AB76: 1912 | AC76: 1226 | AD76: 3917 | AE76: 4667 | AF76: 254 | AG76: 1771 | AH76: 363 | AI76: 220 | AJ76: 1010 | AK76: 270 | AL76: 247 | AM76: 17070 | AN76: 378 | AO76: 944 | AP76: 1399 | AQ76: 309 | AR76: 4541 | AS76: 1226 | AT76: 723 | AU76: 2117 | AV76: 2640 | AW76: 182 | AX76: 1258 | AY76: 236 | AZ76: 135 | BA76: 647 | BB76: 181 | BC76: 154 | BD76: 11091 | BE76: 236 | BF76: 688 | BG76: 964 | BH76: 167 | BI76: 2678 | BJ76: 686 | BK76: 503 | BL76: 1800 | BM76: 2027 | BN76: 72 | BO76: 513 | BP76: 127 | BQ76: 85 | BR76: 363 | BS76: 89 | BT76: 93
B77: 68 | C77: 75 | D77: Veterinärwesen | E77: 28863 | F77: 1510 | G77: 368 | H77: 4365 | I77: 233 | J77: 6555 | K77: 2135 | L77: 1449 | M77: 3200 | N77: 4364 | O77: 348 | P77: 782 | Q77: 1038 | R77: 505 | S77: 973 | T77: 515 | U77: 523 | V77: 9276 | W77: 466 | X77: 97 | Y77: 1331 | Z77: 34 | AA77: 1889 | AB77: 772 | AC77: 528 | AD77: 1092 | AE77: 1919 | AF77: 123 | AG77: 187 | AH77: 213 | AI77: 94 | AJ77: 239 | AK77: 169 | AL77: 123 | AM77: 6228 | AN77: 311 | AO77: 77 | AP77: 901 | AQ77: 23 | AR77: 1294 | AS77: 499 | AT77: 372 | AU77: 694 | AV77: 1270 | AW77: 96 | AX77: 127 | AY77: 139 | AZ77: 64 | BA77: 164 | BB77: 120 | BC77: 77 | BD77: 3048 | BE77: 155 | BF77: 20 | BG77: 430 | BH77: 11 | BI77: 595 | BJ77: 273 | BK77: 156 | BL77: 398 | BM77: 649 | BN77: 27 | BO77: 60 | BP77: 74 | BQ77: 30 | BR77: 75 | BS77: 49 | BT77: 46
B78: 69 | C78: 77 | D78: Vermietung von beweglichen Sachen | E78: 79103 | F78: 3115 | G78: 4411 | H78: 6501 | I78: 683 | J78: 16116 | K78: 8272 | L78: 2441 | M78: 7888 | N78: 13137 | O78: 764 | P78: 4484 | Q78: 2785 | R78: 2228 | S78: 3012 | T78: 1909 | U78: 1357 | V78: 39401 | W78: 1436 | X78: 1795 | Y78: 3912 | Z78: 345 | AA78: 9038 | AB78: 3299 | AC78: 1717 | AD78: 5097 | AE78: 7088 | AF78: 534 | AG78: 1356 | AH78: 837 | AI78: 734 | AJ78: 991 | AK78: 523 | AL78: 699 | AM78: 22840 | AN78: 865 | AO78: 1111 | AP78: 2390 | AQ78: 206 | AR78: 5415 | AS78: 1893 | AT78: 985 | AU78: 2492 | AV78: 3664 | AW78: 323 | AX78: 911 | AY78: 563 | AZ78: 530 | BA78: 662 | BB78: 388 | BC78: 442 | BD78: 16561 | BE78: 571 | BF78: 684 | BG78: 1522 | BH78: 139 | BI78: 3623 | BJ78: 1406 | BK78: 732 | BL78: 2605 | BM78: 3424 | BN78: 211 | BO78: 445 | BP78: 274 | BQ78: 204 | BR78: 329 | BS78: 135 | BT78: 257
B79: 70 | C79: 78 | D79: Vermittl. u.Überlassung v.Arbeitskräften | E79: 868234 | F79: 18107 | G79: 29707 | H79: 88378 | I79: 15184 | J79: 199558 | K79: 58963 | L79: 33973 | M79: 107912 | N79: 135335 | O79: 11618 | P79: 33232 | Q79: 18150 | R79: 10514 | S79: 50910 | T79: 24132 | U79: 32561 | V79: 103798 | W79: 2246 | X79: 4546 | Y79: 12172 | Z79: 1466 | AA79: 31681 | AB79: 6087 | AC79: 3562 | AD79: 9942 | AE79: 12451 | AF79: 1048 | AG79: 9297 | AH79: 1451 | AI79: 1097 | AJ79: 4026 | AK79: 1140 | AL79: 1586 | AM79: 67119 | AN79: 1351 | AO79: 2408 | AP79: 8027 | AQ79: 809 | AR79: 21994 | AS79: 3594 | AT79: 2294 | AU79: 6057 | AV79: 6728 | AW79: 777 | AX79: 6054 | AY79: 1003 | AZ79: 896 | BA79: 3178 | BB79: 793 | BC79: 1156 | BD79: 36679 | BE79: 895 | BF79: 2138 | BG79: 4145 | BH79: 657 | BI79: 9687 | BJ79: 2493 | BK79: 1268 | BL79: 3885 | BM79: 5723 | BN79: 271 | BO79: 3243 | BP79: 448 | BQ79: 201 | BR79: 848 | BS79: 347 | BT79: 430
B80: 71 | C80: 79 | D80: Reisebüros,-veranst.u.son.Reservier.-DL | E80: 80078 | F80: 2087 | G80: 3638 | H80: 6434 | I80: 1123 | J80: 17649 | K80: 11014 | L80: 2619 | M80: 8048 | N80: 13537 | O80: 507 | P80: 5203 | Q80: 1096 | R80: 988 | S80: 3486 | T80: 1339 | U80: 1310 | V80: 21411 | W80: 769 | X80: 583 | Y80: 2046 | Z80: 145 | AA80: 5442 | AB80: 1622 | AC80: 1169 | AD80: 2818 | AE80: 3702 | AF80: 238 | AG80: 766 | AH80: 367 | AI80: 308 | AJ80: 829 | AK80: 346 | AL80: 261 | AM80: 14369 | AN80: 551 | AO80: 405 | AP80: 1383 | AQ80: 99 | AR80: 3935 | AS80: 1039 | AT80: 800 | AU80: 1691 | AV80: 2248 | AW80: 164 | AX80: 534 | AY80: 279 | AZ80: 232 | BA80: 614 | BB80: 218 | BC80: 177 | BD80: 7042 | BE80: 218 | BF80: 178 | BG80: 663 | BH80: 46 | BI80: 1507 | BJ80: 583 | BK80: 369 | BL80: 1127 | BM80: 1454 | BN80: 74 | BO80: 232 | BP80: 88 | BQ80: 76 | BR80: 215 | BS80: 128 | BT80: 84
B81: 72 | C81: 80 | D81: Wach- u.Sicherh.dienste sowie Detekteien | E81: 178753 | F81: 8609 | G81: 8211 | H81: 11506 | I81: 2002 | J81: 34623 | K81: 21196 | L81: 3539 | M81: 16385 | N81: 22638 | O81: 1389 | P81: 16402 | Q81: 7581 | R81: 3873 | S81: 11768 | T81: 5419 | U81: 3612 | V81: 78758 | W81: 2561 | X81: 1890 | Y81: 6720 | Z81: 1381 | AA81: 18226 | AB81: 6629 | AC81: 3051 | AD81: 10607 | AE81: 12488 | AF81: 1100 | AG81: 4244 | AH81: 1822 | AI81: 1448 | AJ81: 3574 | AK81: 1072 | AL81: 1945 | AM81: 40864 | AN81: 1346 | AO81: 1004 | AP81: 3416 | AQ81: 616 | AR81: 9895 | AS81: 3421 | AT81: 1598 | AU81: 4370 | AV81: 4945 | AW81: 647 | AX81: 3000 | AY81: 1238 | AZ81: 1041 | BA81: 2405 | BB81: 807 | BC81: 1115 | BD81: 37894 | BE81: 1215 | BF81: 886 | BG81: 3304 | BH81: 765 | BI81: 8331 | BJ81: 3208 | BK81: 1453 | BL81: 6237 | BM81: 7543 | BN81: 453 | BO81: 1244 | BP81: 584 | BQ81: 407 | BR81: 1169 | BS81: 265 | BT81: 830
B82: 73 | C82: 81 | D82: Gebäudebetreuung;Garten-u.Landschaftsbau | E82: 728801 | F82: 24865 | G82: 30700 | H82: 60374 | I82: 7083 | J82: 153719 | K82: 66333 | L82: 24393 | M82: 77790 | N82: 110147 | O82: 9595 | P82: 45768 | Q82: 23638 | R82: 14756 | S82: 40651 | T82: 22496 | U82: 16493 | V82: 590188 | W82: 17057 | X82: 18664 | Y82: 52757 | Z82: 7581 | AA82: 155510 | AB82: 56776 | AC82: 20730 | AD82: 92132 | AE82: 97575 | AF82: 8619 | AG82: 13673 | AH82: 8747 | AI82: 6164 | AJ82: 16816 | AK82: 9156 | AL82: 8231 | AM82: 340219 | AN82: 9977 | AO82: 8896 | AP82: 32178 | AQ82: 4413 | AR82: 97679 | AS82: 31027 | AT82: 12556 | AU82: 45202 | AV82: 46719 | AW82: 5935 | AX82: 8704 | AY82: 6373 | AZ82: 4776 | BA82: 12726 | BB82: 7011 | BC82: 6047 | BD82: 249969 | BE82: 7080 | BF82: 9768 | BG82: 20579 | BH82: 3168 | BI82: 57831 | BJ82: 25749 | BK82: 8174 | BL82: 46930 | BM82: 50856 | BN82: 2684 | BO82: 4969 | BP82: 2374 | BQ82: 1388 | BR82: 4090 | BS82: 2145 | BT82: 2184
B83: 74 | C83: 82 | D83: Dienstleistg.f.Untern.u.Privatpers.ang | E83: 335765 | F83: 10042 | G83: 10694 | H83: 22060 | I83: 4240 | J83: 80196 | K83: 24431 | L83: 10120 | M83: 30807 | N83: 36112 | O83: 4245 | P83: 28832 | Q83: 17697 | R83: 14992 | S83: 19017 | T83: 15541 | U83: 6739 | V83: 126402 | W83: 3954 | X83: 2733 | Y83: 11784 | Z83: 1508 | AA83: 28082 | AB83: 11966 | AC83: 5662 | AD83: 22679 | AE83: 18062 | AF83: 1537 | AG83: 4701 | AH83: 5823 | AI83: 1091 | AJ83: 3603 | AK83: 1784 | AL83: 1433 | AM83: 80346 | AN83: 2390 | AO83: 1625 | AP83: 7562 | AQ83: 925 | AR83: 18363 | AS83: 7610 | AT83: 3718 | AU83: 13387 | AV83: 10846 | AW83: 837 | AX83: 3029 | AY83: 4523 | AZ83: 758 | BA83: 2440 | BB83: 1384 | BC83: 949 | BD83: 46056 | BE83: 1564 | BF83: 1108 | BG83: 4222 | BH83: 583 | BI83: 9719 | BJ83: 4356 | BK83: 1944 | BL83: 9292 | BM83: 7216 | BN83: 700 | BO83: 1672 | BP83: 1300 | BQ83: 333 | BR83: 1163 | BS83: 400 | BT83: 484
B84: 75 | C84: 84 | D84: Öffentl. Verwalt.,Verteidigung;Soz.vers. | E84: 1728944 | F84: 59594 | G84: 40939 | H84: 168436 | I84: 13291 | J84: 330781 | K84: 132968 | L84: 84381 | M84: 231166 | N84: 243700 | O84: 23003 | P84: 82014 | Q84: 70977 | R84: 41034 | S84: 93288 | T84: 60842 | U84: 52489 | V84: 124953 | W84: 5195 | X84: 984 | Y84: 10312 | Z84: 285 | AA84: 11542 | AB84: 10987 | AC84: 12798 | AD84: 28100 | AE84: 29914 | AF84: 1594 | AG84: 919 | AH84: 1924 | AI84: 2242 | AJ84: 3217 | AK84: 1840 | AL84: 3095 | AM84: 88581 | AN84: 3453 | AO84: 738 | AP84: 7501 | AQ84: 236 | AR84: 8204 | AS84: 7841 | AT84: 8624 | AU84: 20021 | AV84: 20507 | AW84: 1139 | AX84: 686 | AY84: 1606 | AZ84: 1736 | BA84: 2493 | BB84: 1499 | BC84: 2293 | BD84: 36372 | BE84: 1742 | BF84: 246 | BG84: 2811 | BH84: 49 | BI84: 3338 | BJ84: 3146 | BK84: 4174 | BL84: 8079 | BM84: 9407 | BN84: 455 | BO84: 233 | BP84: 318 | BQ84: 506 | BR84: 724 | BS84: 341 | BT84: 802
B85: 76 | C85: 85 | D85: Erziehung und Unterricht | E85: 1203517 | F85: 30663 | G85: 32448 | H85: 103314 | I85: 13074 | J85: 243061 | K85: 90301 | L85: 57310 | M85: 142627 | N85: 178035 | O85: 12814 | P85: 90118 | Q85: 26576 | R85: 28973 | S85: 84006 | T85: 37381 | U85: 32810 | V85: 247671 | W85: 7064 | X85: 7330 | Y85: 31019 | Z85: 2683 | AA85: 56784 | AB85: 20468 | AC85: 11622 | AD85: 37968 | AE85: 43680 | AF85: 2423 | AG85: 6205 | AH85: 3567 | AI85: 2948 | AJ85: 7061 | AK85: 3422 | AL85: 3426 | AM85: 191463 | AN85: 5342 | AO85: 5345 | AP85: 24504 | AQ85: 2187 | AR85: 45000 | AS85: 16087 | AT85: 8926 | AU85: 28595 | AV85: 31799 | AW85: 1927 | AX85: 4521 | AY85: 2918 | AZ85: 2523 | BA85: 5934 | BB85: 2896 | BC85: 2958 | BD85: 56208 | BE85: 1722 | BF85: 1985 | BG85: 6515 | BH85: 496 | BI85: 11784 | BJ85: 4381 | BK85: 2696 | BL85: 9373 | BM85: 11881 | BN85: 496 | BO85: 1684 | BP85: 649 | BQ85: 425 | BR85: 1127 | BS85: 526 | BT85: 468
B86: 77 | C86: 86 | D86: Gesundheitswesen | E86: 2342589 | F86: 72774 | G86: 62159 | H86: 217497 | I86: 22314 | J86: 509942 | K86: 165841 | L86: 112803 | M86: 311629 | N86: 386028 | O86: 31325 | P86: 101747 | Q86: 60559 | R86: 48412 | S86: 117538 | T86: 61442 | U86: 60579 | V86: 433265 | W86: 14966 | X86: 10120 | Y86: 41569 | Z86: 3234 | AA86: 101946 | AB86: 34906 | AC86: 23507 | AD86: 65994 | AE86: 79091 | AF86: 6331 | AG86: 13089 | AH86: 6347 | AI86: 5070 | AJ86: 14061 | AK86: 6281 | AL86: 6753 | AM86: 271168 | AN86: 9392 | AO86: 5494 | AP86: 27121 | AQ86: 2023 | AR86: 66776 | AS86: 21117 | AT86: 14858 | AU86: 39179 | AV86: 46677 | AW86: 4345 | AX86: 7975 | AY86: 4063 | AZ86: 3519 | BA86: 9629 | BB86: 4468 | BC86: 4532 | BD86: 162097 | BE86: 5574 | BF86: 4626 | BG86: 14448 | BH86: 1211 | BI86: 35170 | BJ86: 13789 | BK86: 8649 | BL86: 26815 | BM86: 32414 | BN86: 1986 | BO86: 5114 | BP86: 2284 | BQ86: 1551 | BR86: 4432 | BS86: 1813 | BT86: 2221
B87: 78 | C87: 87 | D87: Heime (ohne Erholungs- und Ferienheime) | E87: 991071 | F87: 42112 | G87: 18923 | H87: 113282 | I87: 6566 | J87: 232750 | K87: 62687 | L87: 49038 | M87: 122452 | N87: 152939 | O87: 13975 | P87: 33906 | Q87: 26152 | R87: 17822 | S87: 44986 | T87: 27837 | U87: 25644 | V87: 108863 | W87: 6099 | X87: 2547 | Y87: 15924 | Z87: 953 | AA87: 27445 | AB87: 8237 | AC87: 5616 | AD87: 15998 | AE87: 14855 | AF87: 1354 | AG87: 2577 | AH87: 1485 | AI87: 886 | AJ87: 2204 | AK87: 1345 | AL87: 1338 | AM87: 75969 | AN87: 4124 | AO87: 1509 | AP87: 11358 | AQ87: 607 | AR87: 20143 | AS87: 5331 | AT87: 3967 | AU87: 10456 | AV87: 9668 | AW87: 1083 | AX87: 1777 | AY87: 1143 | AZ87: 744 | BA87: 1863 | BB87: 1121 | BC87: 1075 | BD87: 32894 | BE87: 1975 | BF87: 1038 | BG87: 4566 | BH87: 346 | BI87: 7302 | BJ87: 2906 | BK87: 1649 | BL87: 5542 | BM87: 5187 | BN87: 271 | BO87: 800 | BP87: 342 | BQ87: 142 | BR87: 341 | BS87: 224 | BT87: 263
B88: 79 | C88: 88 | D88: Sozialwesen (ohne Heime) | E88: 1198791 | F88: 43360 | G88: 28995 | H88: 107643 | I88: 14422 | J88: 283396 | K88: 86775 | L88: 48750 | M88: 121794 | N88: 149059 | O88: 14051 | P88: 74581 | Q88: 46182 | R88: 34450 | S88: 71405 | T88: 37100 | U88: 36815 | V88: 204018 | W88: 7360 | X88: 6365 | Y88: 20296 | Z88: 2639 | AA88: 55194 | AB88: 18127 | AC88: 8583 | AD88: 25210 | AE88: 31520 | AF88: 2784 | AG88: 9164 | AH88: 3852 | AI88: 2908 | AJ88: 5029 | AK88: 2115 | AL88: 2872 | AM88: 127507 | AN88: 4861 | AO88: 3440 | AP88: 12854 | AQ88: 1477 | AR88: 35655 | AS88: 11104 | AT88: 5304 | AU88: 15153 | AV88: 18404 | AW88: 2037 | AX88: 5022 | AY88: 2607 | AZ88: 2218 | BA88: 3737 | BB88: 1640 | BC88: 1994 | BD88: 76511 | BE88: 2499 | BF88: 2925 | BG88: 7442 | BH88: 1162 | BI88: 19539 | BJ88: 7023 | BK88: 3279 | BL88: 10057 | BM88: 13116 | BN88: 747 | BO88: 4142 | BP88: 1245 | BQ88: 690 | BR88: 1292 | BS88: 475 | BT88: 878
B89: 80 | C89: 90 | D89: Kreative, künstler.u.unterhalt. Tätigk. | E89: 67068 | F89: 1631 | G89: 3976 | H89: 3932 | I89: * | J89: 12893 | K89: 4588 | L89: 1844 | M89: 7548 | N89: 8839 | O89: * | P89: 7270 | Q89: 1500 | R89: 1517 | S89: 6134 | T89: 1393 | U89: 2484 | V89: 23500 | W89: 525 | X89: 1266 | Y89: 1381 | Z89: * | AA89: 5557 | AB89: 1710 | AC89: 843 | AD89: 3537 | AE89: 3736 | AF89: * | AG89: 1503 | AH89: 417 | AI89: 318 | AJ89: 1250 | AK89: 308 | AL89: 500 | AM89: 14531 | AN89: 355 | AO89: 764 | AP89: 861 | AQ89: * | AR89: 3374 | AS89: 1091 | AT89: 487 | AU89: 2033 | AV89: 2024 | AW89: * | AX89: 1044 | AY89: 301 | AZ89: 253 | BA89: 919 | BB89: 232 | BC89: 359 | BD89: 8969 | BE89: 170 | BF89: 502 | BG89: 520 | BH89: * | BI89: 2183 | BJ89: 619 | BK89: 356 | BL89: 1504 | BM89: 1712 | BN89: * | BO89: 459 | BP89: 116 | BQ89: 65 | BR89: 331 | BS89: 76 | BT89: 141
B90: 81 | C90: 91 | D90: Bibl.,Archive,Museen,zoolog.u.ä.Gärten | E90: 36028 | F90: 1175 | G90: 1509 | H90: 3420 | I90: 587 | J90: 5325 | K90: 2778 | L90: 943 | M90: 3815 | N90: 4269 | O90: 169 | P90: 4605 | Q90: 1164 | R90: 1350 | S90: 3013 | T90: 845 | U90: 1061 | V90: 8322 | W90: 284 | X90: 245 | Y90: 1399 | Z90: 187 | AA90: 1479 | AB90: 500 | AC90: 290 | AD90: 1159 | AE90: 1409 | AF90: 66 | AG90: 260 | AH90: 124 | AI90: 209 | AJ90: 402 | AK90: 157 | AL90: 152 | AM90: 6538 | AN90: 213 | AO90: 188 | AP90: 1112 | AQ90: 165 | AR90: 1128 | AS90: 374 | AT90: 221 | AU90: 893 | AV90: 1107 | AW90: 50 | AX90: 205 | AY90: 102 | AZ90: 186 | BA90: 324 | BB90: 144 | BC90: 126 | BD90: 1784 | BE90: 71 | BF90: 57 | BG90: 287 | BH90: 22 | BI90: 351 | BJ90: 126 | BK90: 69 | BL90: 266 | BM90: 302 | BN90: 16 | BO90: 55 | BP90: 22 | BQ90: 23 | BR90: 78 | BS90: 13 | BT90: 26
B91: 82 | C91: 92 | D91: Spiel-, Wett- und Lotteriewesen | E91: 56467 | F91: 1993 | G91: 1895 | H91: 5808 | I91: 636 | J91: 12989 | K91: 4497 | L91: 2750 | M91: 8000 | N91: 8008 | O91: 1264 | P91: 2862 | Q91: 1000 | R91: 821 | S91: 1483 | T91: 1265 | U91: 1196 | V91: 26257 | W91: 749 | X91: 688 | Y91: 2378 | Z91: 304 | AA91: 8208 | AB91: 2037 | AC91: 1067 | AD91: 3895 | AE91: 3856 | AF91: 376 | AG91: 777 | AH91: 352 | AI91: 212 | AJ91: 532 | AK91: 409 | AL91: 417 | AM91: 16536 | AN91: 455 | AO91: 442 | AP91: 1541 | AQ91: 216 | AR91: 5892 | AS91: 1262 | AT91: 649 | AU91: 1787 | AV91: 2059 | AW91: 251 | AX91: 606 | AY91: 262 | AZ91: 154 | BA91: 362 | BB91: 310 | BC91: 288 | BD91: 9721 | BE91: 294 | BF91: 246 | BG91: 837 | BH91: 88 | BI91: 2316 | BJ91: 775 | BK91: 418 | BL91: 2108 | BM91: 1797 | BN91: 125 | BO91: 171 | BP91: 90 | BQ91: 58 | BR91: 170 | BS91: 99 | BT91: 129
B92: 83 | C92: 93 | D92: DL d.Sports,d.Unterhaltg.u.d.Erholung | E92: 116760 | F92: 4694 | G92: 4353 | H92: 11539 | I92: 1611 | J92: 24486 | K92: 7898 | L92: 5284 | M92: 15422 | N92: 17392 | O92: 1221 | P92: 6032 | Q92: 4044 | R92: 2031 | S92: 5874 | T92: 2325 | U92: 2554 | V92: 172000 | W92: 6810 | X92: 3878 | Y92: 18524 | Z92: 1534 | AA92: 41012 | AB92: 12945 | AC92: 9951 | AD92: 27068 | AE92: 29420 | AF92: 2320 | AG92: 4373 | AH92: 3110 | AI92: 1779 | AJ92: 4918 | AK92: 2202 | AL92: 2156 | AM92: 95756 | AN92: 4151 | AO92: 2221 | AP92: 10703 | AQ92: 920 | AR92: 24102 | AS92: 6998 | AT92: 5602 | AU92: 13487 | AV92: 14655 | AW92: 1372 | AX92: 2837 | AY92: 1980 | AZ92: 1129 | BA92: 3009 | BB92: 1354 | BC92: 1236 | BD92: 76244 | BE92: 2659 | BF92: 1657 | BG92: 7821 | BH92: 614 | BI92: 16910 | BJ92: 5947 | BK92: 4349 | BL92: 13581 | BM92: 14765 | BN92: 948 | BO92: 1536 | BP92: 1130 | BQ92: 650 | BR92: 1909 | BS92: 848 | BT92: 920
B93: 84 | C93: 94 | D93: Interessenvertr.,kirchl.u.sonst.Verein | E93: 465732 | F93: 17426 | G93: 12029 | H93: 35884 | I93: 7378 | J93: 101748 | K93: 38571 | L93: 20662 | M93: 55656 | N93: 72761 | O93: 3468 | P93: 39325 | Q93: 11817 | R93: 7462 | S93: 23073 | T93: 8160 | U93: 10312 | V93: 162364 | W93: 5502 | X93: 2567 | Y93: 16014 | Z93: 1632 | AA93: 36012 | AB93: 16871 | AC93: 10852 | AD93: 26348 | AE93: 28738 | AF93: 2048 | AG93: 4594 | AH93: 2138 | AI93: 1578 | AJ93: 3804 | AK93: 1838 | AL93: 1827 | AM93: 108690 | AN93: 3521 | AO93: 1625 | AP93: 10894 | AQ93: 1107 | AR93: 24881 | AS93: 11041 | AT93: 7048 | AU93: 16539 | AV93: 19078 | AW93: 1366 | AX93: 3273 | AY93: 1642 | AZ93: 1249 | BA93: 2673 | BB93: 1428 | BC93: 1324 | BD93: 53674 | BE93: 1981 | BF93: 942 | BG93: 5120 | BH93: 525 | BI93: 11131 | BJ93: 5830 | BK93: 3804 | BL93: 9809 | BM93: 9660 | BN93: 682 | BO93: 1321 | BP93: 496 | BQ93: 329 | BR93: 1131 | BS93: 410 | BT93: 503
B94: 85 | C94: 95 | D94: Reparatur v.DV-Geräten u.Gebrauchsgütern | E94: 32984 | F94: 1331 | G94: 1203 | H94: 3398 | I94: 192 | J94: 7128 | K94: 2173 | L94: 1547 | M94: 2920 | N94: 5479 | O94: 501 | P94: 1440 | Q94: 930 | R94: 875 | S94: 2287 | T94: 651 | U94: 929 | V94: 11020 | W94: 362 | X94: 227 | Y94: 1223 | Z94: 103 | AA94: 2726 | AB94: 761 | AC94: 573 | AD94: 1503 | AE94: 1712 | AF94: 186 | AG94: 410 | AH94: 214 | AI94: 168 | AJ94: 454 | AK94: 261 | AL94: 137 | AM94: 7879 | AN94: 248 | AO94: 165 | AP94: 903 | AQ94: 76 | AR94: 2078 | AS94: 541 | AT94: 406 | AU94: 975 | AV94: 1104 | AW94: 138 | AX94: 336 | AY94: 148 | AZ94: 136 | BA94: 331 | BB94: 196 | BC94: 98 | BD94: 3141 | BE94: 114 | BF94: 62 | BG94: 320 | BH94: 27 | BI94: 648 | BJ94: 220 | BK94: 167 | BL94: 528 | BM94: 608 | BN94: 48 | BO94: 74 | BP94: 66 | BQ94: 32 | BR94: 123 | BS94: 65 | BT94: 39
B95: 86 | C95: 96 | D95: Sonstige überwieg. persönliche DL | E95: 316226 | F95: 10284 | G95: 8445 | H95: 30372 | I95: 3185 | J95: 65549 | K95: 21871 | L95: 16559 | M95: 37251 | N95: 47673 | O95: 3566 | P95: 15116 | Q95: 10409 | R95: 7851 | S95: 17642 | T95: 10420 | U95: 10031 | V95: 189480 | W95: 6621 | X95: 2930 | Y95: 21399 | Z95: 1996 | AA95: 45662 | AB95: 13620 | AC95: 14277 | AD95: 24058 | AE95: 27222 | AF95: 4442 | AG95: 5893 | AH95: 4815 | AI95: 1673 | AJ95: 5926 | AK95: 2139 | AL95: 6807 | AM95: 137933 | AN95: 4956 | AO95: 2044 | AP95: 16196 | AQ95: 1232 | AR95: 35245 | AS95: 9996 | AT95: 10806 | AU95: 16319 | AV95: 17840 | AW95: 3351 | AX95: 4341 | AY95: 3632 | AZ95: 1253 | BA95: 4422 | BB95: 1642 | BC95: 4658 | BD95: 51547 | BE95: 1665 | BF95: 886 | BG95: 5203 | BH95: 764 | BI95: 10417 | BJ95: 3624 | BK95: 3471 | BL95: 7739 | BM95: 9382 | BN95: 1091 | BO95: 1552 | BP95: 1183 | BQ95: 420 | BR95: 1504 | BS95: 497 | BT95: 2149
B96: 87 | C96: 97 | D96: Private Haushalte mit Hauspersonal | E96: 47489 | F96: 1376 | G96: 1736 | H96: 3736 | I96: 257 | J96: 10883 | K96: 3847 | L96: 2922 | M96: 7063 | N96: 11121 | O96: 436 | P96: 1936 | Q96: 463 | R96: 334 | S96: 717 | T96: 357 | U96: 305 | V96: 284283 | W96: 12131 | X96: 5557 | Y96: 31960 | Z96: 2143 | AA96: 76769 | AB96: 20657 | AC96: 18402 | AD96: 37568 | AE96: 50134 | AF96: 3732 | AG96: 7640 | AH96: 4173 | AI96: 2392 | AJ96: 5553 | AK96: 2859 | AL96: 2613 | AM96: 200069 | AN96: 8486 | AO96: 3650 | AP96: 23104 | AQ96: 1528 | AR96: 56993 | AS96: 14288 | AT96: 13070 | AU96: 24636 | AV96: 32783 | AW96: 2883 | AX96: 5644 | AY96: 3079 | AZ96: 1773 | BA96: 4055 | BB96: 2195 | BC96: 1902 | BD96: 84214 | BE96: 3645 | BF96: 1907 | BG96: 8856 | BH96: 615 | BI96: 19776 | BJ96: 6369 | BK96: 5332 | BL96: 12932 | BM96: 17351 | BN96: 849 | BO96: 1996 | BP96: 1094 | BQ96: 619 | BR96: 1498 | BS96: 664 | BT96: 711
B97: 88 | C97: 98 | D97: H.v.Waren,Dienstl.d.priv. Haushalte oaS | E97: 675 | F97: 27 | G97: 5 | H97: 51 | I97: * | J97: 150 | K97: 58 | L97: 69 | M97: 88 | N97: 131 | O97: 5 | P97: 30 | Q97: 12 | R97: 10 | S97: 15 | T97: * | U97: 12 | V97: 1177 | W97: 53 | X97: 7 | Y97: 112 | Z97: * | AA97: 309 | AB97: 93 | AC97: 126 | AD97: 184 | AE97: 200 | AF97: 8 | AG97: 9 | AH97: 10 | AI97: 14 | AJ97: 16 | AK97: * | AL97: 18 | AM97: 605 | AN97: 27 | AO97: * | AP97: 68 | AQ97: * | AR97: 152 | AS97: 63 | AT97: 74 | AU97: 86 | AV97: 65 | AW97: 5 | AX97: 5 | AY97: * | AZ97: 9 | BA97: 10 | BB97: * | BC97: 11 | BD97: 572 | BE97: 26 | BF97: * | BG97: 44 | BI97: 157 | BJ97: 30 | BK97: 52 | BL97: 98 | BM97: 135 | BN97: 3 | BO97: 4 | BP97: * | BQ97: 5 | BR97: 6 | BS97: * | BT97: 7
B98: 89 | C98: 99 | D98: Exterritoriale Organisat. u. Körpersch. | E98: 19567 | F98: * | G98: 141 | H98: 33 | I98: * | J98: 2347 | K98: 1814 | L98: 7061 | M98: 815 | N98: 5199 | O98: * | P98: 2075 | Q98: 12 | S98: 21 | T98: * | V98: 89 | W98: * | X98: 5 | Z98: * | AA98: * | AB98: 7 | AD98: 4 | AE98: 21 | AG98: 12 | AM98: 74 | AO98: * | AQ98: * | AR98: 34 | AS98: * | AU98: * | AV98: * | AX98: * | BD98: 15 | BE98: * | BF98: * | BH98: * | BI98: * | BJ98: * | BL98: * | BM98: * | BO98: *
B99: 90 | C99: XX | D99: Keine Zuordnung möglich | E99: 1680 | F99: 5 | G99: 6 | H99: 16 | I99: * | J99: 63 | K99: 17 | L99: 8 | M99: 29 | N99: 48 | O99: * | P99: 9 | Q99: 7 | R99: * | S99: * | T99: 9 | U99: 17 | V99: 2103 | W99: 14 | X99: 9 | Y99: 34 | Z99: * | AA99: 71 | AB99: 18 | AC99: 24 | AD99: 33 | AE99: 41 | AF99: * | AG99: * | AH99: 4 | AI99: * | AJ99: * | AK99: 5 | AL99: 0 | AM99: 1393 | AN99: 7 | AO99: 5 | AP99: 19 | AQ99: * | AR99: 49 | AS99: 8 | AT99: 15 | AU99: 22 | AV99: 22 | AW99: * | AX99: * | AY99: * | AZ99: * | BA99: * | BB99: * | BC99: 0 | BD99: 710 | BE99: 7 | BF99: 4 | BG99: 15 | BH99: * | BI99: 22 | BJ99: 10 | BK99: 9 | BL99: 11 | BM99: 19 | BN99: * | BO99: 0 | BP99: * | BQ99: * | BR99: * | BS99: * | BT99: 0
C103: NACH REV
F113: SvB | W113: GB | AN113: GB_ausschl. | BE113: GB_im_NJ
F114: Deutschland | G114: Schleswig-Holstein,01 | H114: Hamburg,02 | I114: Niedersachsen,03 | J114: Bremen,04 | K114: Nordrhein-Westfalen,05 | L114: Hessen,06 | M114: Rheinland-Pfalz,07 | N114: Baden-Württemberg,08 | O114: Bayern,09 | P114: Saarland,10 | Q114: Berlin,11 | R114: Brandenburg,12 | S114: Mecklenburg-Vorpommern,13 | T114: Sachsen,14 | U114: Sachsen-Anhalt,15 | V114: Thüringen,16 | W114: Deutschland | X114: Schleswig-Holstein,01 | Y114: Hamburg,02 | Z114: Niedersachsen,03 | AA114: Bremen,04 | AB114: Nordrhein-Westfalen,05 | AC114: Hessen,06 | AD114: Rheinland-Pfalz,07 | AE114: Baden-Württemberg,08 | AF114: Bayern,09 | AG114: Saarland,10 | AH114: Berlin,11 | AI114: Brandenburg,12 | AJ114: Mecklenburg-Vorpommern,13 | AK114: Sachsen,14 | AL114: Sachsen-Anhalt,15 | AM114: Thüringen,16 | AN114: Deutschland | AO114: Schleswig-Holstein,01 | AP114: Hamburg,02 | AQ114: Niedersachsen,03 | AR114: Bremen,04 | AS114: Nordrhein-Westfalen,05 | AT114: Hessen,06 | AU114: Rheinland-Pfalz,07 | AV114: Baden-Württemberg,08 | AW114: Bayern,09 | AX114: Saarland,10 | AY114: Berlin,11 | AZ114: Brandenburg,12 | BA114: Mecklenburg-Vorpommern,13 | BB114: Sachsen,14 | BC114: Sachsen-Anhalt,15 | BD114: Thüringen,16 | BE114: Deutschland | BF114: Schleswig-Holstein,01 | BG114: Hamburg,02 | BH114: Niedersachsen,03 | BI114: Bremen,04 | BJ114: Nordrhein-Westfalen,05 | BK114: Hessen,06 | BL114: Rheinland-Pfalz,07 | BM114: Baden-Württemberg,08 | BN114: Bayern,09 | BO114: Saarland,10 | BP114: Berlin,11 | BQ114: Brandenburg,12 | BR114: Mecklenburg-Vorpommern,13 | BS114: Sachsen,14 | BT114: Sachsen-Anhalt,15 | BU114: Thüringen,16
B115: 1 | C115: Gesamt | F115: 31443318 | G115: 940613 | H115: 933846 | I115: 2836091 | J115: 319681 | K115: 6549350 | L115: 2462605 | M115: 1364682 | N115: 4458706 | O115: 5317529 | P115: 379591 | Q115: 1367680 | R115: 818474 | S115: 560372 | T115: 1555300 | U115: 783900 | V115: 793363 | W115: 7763218 | X115: 275474 | Y115: 174263 | Z115: 792707 | AA115: 71241 | AB115: 1835199 | AC115: 602787 | AD115: 417903 | AE115: 1223207 | AF115: 1358722 | AG115: 98481 | AH115: 217952 | AI115: 134126 | AJ115: 93184 | AK115: 233512 | AL115: 110120 | AM115: 122484 | AN115: 5141533 | AO115: 186563 | AP115: 106917 | AQ115: 544874 | AR115: 47677 | AS115: 1272586 | AT115: 394720 | AU115: 282822 | AV115: 746314 | AW115: 820010 | AX115: 70006 | AY115: 152868 | AZ115: 99132 | BA115: 71588 | BB115: 172186 | BC115: 83977 | BD115: 88050 | BE115: 2621685 | BF115: 88911 | BG115: 67346 | BH115: 247833 | BI115: 23564 | BJ115: 562613 | BK115: 208067 | BL115: 135081 | BM115: 476893 | BN115: 538712 | BO115: 28475 | BP115: 65084 | BQ115: 34994 | BR115: 21596 | BS115: 61326 | BT115: 26143 | BU115: 34434
B116: 2 | C116: 01 | D116: Landwirtsch., Jagd u.damit verb. Tätigk. | F116: 224953 | G116: 12929 | H116: 959 | I116: 36035 | J116: 165 | K116: 30130 | L116: 7718 | M116: 12131 | N116: 16302 | O116: 24884 | P116: 696 | Q116: 371 | R116: 19748 | S116: 15249 | T116: 19256 | U116: 14483 | V116: 13865 | W116: 184092 | X116: 11234 | Y116: 585 | Z116: 38246 | AA116: 137 | AB116: 33648 | AC116: 9287 | AD116: 16375 | AE116: 24831 | AF116: 25964 | AG116: 603 | AH116: 118 | AI116: 6817 | AJ116: 5262 | AK116: 4340 | AL116: 3816 | AM116: 2825 | AN116: 143443 | AO116: 8428 | AP116: 448 | AQ116: 28954 | AR116: 88 | AS116: 25866 | AT116: 7642 | AU116: 13760 | AV116: 19367 | AW116: 18544 | AX116: 435 | AY116: 98 | AZ116: 6013 | BA116: 4579 | BB116: 3710 | BC116: 3106 | BD116: 2402 | BE116: 40649 | BF116: 2806 | BG116: 137 | BH116: 9292 | BI116: 49 | BJ116: 7782 | BK116: 1645 | BL116: 2615 | BM116: 5464 | BN116: 7420 | BO116: 168 | BP116: 20 | BQ116: 804 | BR116: 683 | BS116: 630 | BT116: 710 | BU116: 423
B117: 3 | C117: 02 | D117: Forstwirtschaft und Holzeinschlag | F117: 19031 | G117: 565 | H117: * | I117: 1451 | J117: * | K117: 2354 | L117: 1537 | M117: 1166 | N117: 2255 | O117: 4305 | P117: 195 | Q117: 19 | R117: 1455 | S117: 611 | T117: 1151 | U117: 1283 | V117: 675 | W117: 7191 | X117: 159 | Y117: * | Z117: 878 | AA117: * | AB117: 1269 | AC117: 503 | AD117: 505 | AE117: 1259 | AF117: 1595 | AG117: 80 | AH117: 9 | AI117: 255 | AJ117: 132 | AK117: 221 | AL117: 129 | AM117: 192 | AN117: 4212 | AO117: 95 | AP117: * | AQ117: 597 | AR117: * | AS117: 741 | AT117: 310 | AU117: 268 | AV117: 665 | AW117: 823 | AX117: 45 | AY117: 5 | AZ117: 184 | BA117: 92 | BB117: 175 | BC117: 92 | BD117: 116 | BE117: 2979 | BF117: 64 | BH117: 281 | BI117: * | BJ117: 528 | BK117: 193 | BL117: 237 | BM117: 594 | BN117: 772 | BO117: 35 | BP117: 4 | BQ117: 71 | BR117: 40 | BS117: 46 | BT117: 37 | BU117: 76
B118: 4 | C118: 03 | D118: Fischerei und Aquakultur | F118: 2483 | G118: 264 | H118: * | I118: 436 | J118: * | K118: 109 | L118: 97 | M118: 46 | N118: 114 | O118: 313 | P118: * | Q118: * | R118: 207 | S118: 534 | T118: 160 | U118: 54 | V118: 72 | W118: 1194 | X118: 98 | Z118: 127 | AA118: * | AB118: 137 | AC118: 86 | AD118: 56 | AE118: 118 | AF118: 294 | AG118: * | AH118: * | AI118: 52 | AJ118: 117 | AK118: 49 | AL118: 22 | AM118: 33 | AN118: 802 | AO118: 70 | AQ118: 86 | AR118: * | AS118: 77 | AT118: 46 | AU118: 42 | AV118: 82 | AW118: 169 | AX118: * | AY118: * | AZ118: 44 | BA118: 102 | BB118: 39 | BC118: 14 | BD118: 27 | BE118: 392 | BF118: 28 | BH118: 41 | BJ118: 60 | BK118: 40 | BL118: 14 | BM118: 36 | BN118: 125 | BO118: * | BQ118: 8 | BR118: 15 | BS118: 10 | BT118: 8 | BU118: 6
B119: 5 | C119: 05 | D119: Kohlenbergbau | F119: 15881 | I119: * | K119: 9585 | L119: * | N119: * | P119: * | Q119: * | R119: * | T119: * | U119: * | V119: * | W119: 215 | X119: - | Y119: - | AA119: - | AB119: 200 | AC119: * | AD119: - | AF119: - | AG119: * | AI119: * | AJ119: - | AK119: * | AL119: * | AM119: * | AN119: 170 | AO119: - | AP119: - | AR119: - | AS119: 160 | AT119: * | AU119: - | AW119: - | AX119: * | AZ119: * | BA119: - | BB119: * | BC119: * | BE119: 45 | BF119: - | BG119: - | BI119: - | BJ119: 40 | BK119: * | BL119: - | BN119: - | BO119: * | BR119: - | BU119: *
B120: 6 | C120: 06 | D120: Gewinnung von Erdöl und Erdgas | F120: 3054 | G120: * | H120: * | I120: 1911 | K120: * | L120: * | M120: * | N120: * | O120: * | Q120: * | R120: * | S120: * | U120: * | V120: * | W120: 11 | Z120: * | AA120: - | AC120: * | AD120: * | AF120: * | AG120: - | AH120: * | AK120: - | AL120: * | AN120: 7 | AQ120: * | AR120: - | AT120: * | AU120: * | AX120: - | AY120: * | BB120: - | BC120: * | BE120: 4 | BI120: - | BK120: * | BN120: * | BO120: - | BS120: -
B121: 7 | C121: 07 | D121: Erzbergbau | F121: 869 | I121: * | K121: * | M121: * | N121: * | O121: * | T121: 72 | V121: * | W121: 31 | X121: - | Y121: - | Z121: * | AA121: - | AB121: * | AC121: * | AD121: * | AE121: * | AG121: - | AH121: - | AI121: - | AJ121: - | AK121: * | AL121: - | AN121: 22 | AO121: - | AP121: - | AQ121: * | AR121: - | AS121: * | AT121: * | AU121: * | AX121: - | AY121: - | AZ121: - | BA121: - | BB121: * | BC121: - | BE121: 9 | BF121: - | BG121: - | BI121: - | BJ121: * | BL121: * | BM121: * | BO121: - | BP121: - | BQ121: - | BR121: - | BS121: * | BT121: -
B122: 8 | C122: 08 | D122: Gewinn. v.Steinen u.Erden,sonst.Bergbau | F122: 38051 | G122: 786 | H122: * | I122: 3435 | J122: * | K122: 4416 | L122: 5839 | M122: 2807 | N122: 4168 | O122: 7775 | P122: 257 | Q122: 39 | R122: 393 | S122: 573 | T122: 1832 | U122: 3782 | V122: 1834 | W122: 4160 | X122: 137 | Y122: * | Z122: 561 | AA122: * | AB122: 518 | AC122: 331 | AD122: 351 | AE122: 612 | AF122: 1226 | AG122: 27 | AH122: * | AI122: 35 | AJ122: 42 | AK122: 123 | AL122: 95 | AM122: 96 | AN122: 2822 | AO122: 92 | AP122: * | AQ122: 372 | AS122: 387 | AT122: 208 | AU122: 247 | AV122: 386 | AW122: 791 | AX122: 19 | AY122: * | AZ122: 24 | BA122: 37 | BB122: 97 | BC122: 83 | BD122: 76 | BE122: 1338 | BF122: 45 | BG122: * | BH122: 189 | BI122: * | BJ122: 131 | BK122: 123 | BL122: 104 | BM122: 226 | BN122: 435 | BO122: 8 | BP122: * | BQ122: 11 | BR122: 5 | BS122: 26 | BT122: 12 | BU122: 20
B123: 9 | C123: 09 | D123: DL f.Bergbau u.Gew.v.Steine u.Erden | F123: 13333 | G123: * | H123: * | I123: 4363 | J123: * | K123: 4516 | L123: * | M123: * | N123: * | O123: 623 | P123: * | Q123: * | R123: * | T123: * | U123: * | V123: * | W123: 327 | X123: * | Y123: * | Z123: 84 | AB123: 39 | AC123: * | AD123: * | AE123: * | AF123: 80 | AH123: * | AI123: * | AJ123: - | AK123: * | AL123: * | AM123: * | AN123: 207 | AQ123: 57 | AS123: * | AT123: * | AU123: * | AV123: * | AW123: 54 | AY123: * | AZ123: * | BA123: - | BB123: * | BC123: * | BD123: * | BE123: 120 | BF123: * | BG123: * | BH123: 27 | BJ123: 20 | BL123: * | BM123: * | BN123: 26 | BQ123: * | BR123: - | BS123: * | BT123: * | BU123: *
B124: 10 | C124: 10 | D124: Hrst. von Nahrungs- und Futtermitteln | F124: 614467 | G124: 21560 | H124: 7732 | I124: 84493 | J124: 6363 | K124: 121469 | L124: 35509 | M124: 27098 | N124: 75856 | O124: 111522 | P124: 7864 | Q124: 11295 | R124: 15689 | S124: 16418 | T124: 30798 | U124: 21239 | V124: 19562 | W124: 143903 | X124: 4003 | Y124: 1252 | Z124: 15052 | AA124: 608 | AB124: 28237 | AC124: 10705 | AD124: 9859 | AE124: 28218 | AF124: 32156 | AG124: 2561 | AH124: 1412 | AI124: 2003 | AJ124: 1170 | AK124: 3843 | AL124: 1116 | AM124: 1708 | AN124: 108347 | AO124: 3169 | AP124: 943 | AQ124: 11412 | AR124: 440 | AS124: 22129 | AT124: 8332 | AU124: 7665 | AV124: 19700 | AW124: 23178 | AX124: 2008 | AY124: 1177 | AZ124: 1704 | BA124: 958 | BB124: 3164 | BC124: 936 | BD124: 1432 | BE124: 35556 | BF124: 834 | BG124: 309 | BH124: 3640 | BI124: 168 | BJ124: 6108 | BK124: 2373 | BL124: 2194 | BM124: 8518 | BN124: 8978 | BO124: 553 | BP124: 235 | BQ124: 299 | BR124: 212 | BS124: 679 | BT124: 180 | BU124: 276
B125: 11 | C125: 11 | D125: Getränkeherstellung | F125: 67632 | G125: 1121 | H125: 756 | I125: 4332 | J125: * | K125: 9704 | L125: 5860 | M125: 8891 | N125: 9925 | O125: 16666 | P125: * | Q125: 825 | R125: 1427 | S125: 778 | T125: 2338 | U125: 1933 | V125: 1406 | W125: 13915 | X125: 86 | Y125: 27 | Z125: 619 | AA125: * | AB125: 975 | AC125: 1237 | AD125: 2326 | AE125: 3060 | AF125: 4776 | AG125: * | AH125: 33 | AI125: 45 | AJ125: 56 | AK125: 296 | AL125: 166 | AM125: 142 | AN125: 9651 | AO125: 59 | AP125: 19 | AQ125: 445 | AR125: * | AS125: 749 | AT125: 807 | AU125: 1709 | AV125: 2076 | AW125: 3164 | AX125: * | AY125: 24 | AZ125: 36 | BA125: 50 | BB125: 241 | BC125: 118 | BD125: 105 | BE125: 4264 | BF125: 27 | BG125: 8 | BH125: 174 | BI125: * | BJ125: 226 | BK125: 430 | BL125: 617 | BM125: 984 | BN125: 1612 | BO125: * | BP125: 9 | BQ125: 9 | BR125: 6 | BS125: 55 | BT125: 48 | BU125: 37
B126: 12 | C126: 12 | D126: Tabakverarbeitung | F126: 9649 | G126: * | H126: * | I126: * | J126: * | K126: 714 | L126: * | M126: * | N126: * | O126: * | Q126: * | R126: * | S126: * | T126: * | V126: * | W126: 145 | X126: * | Y126: * | Z126: * | AA126: * | AB126: 47 | AC126: * | AD126: * | AE126: * | AF126: * | AG126: - | AH126: * | AJ126: * | AL126: - | AM126: * | AN126: 107 | AO126: * | AP126: * | AQ126: * | AR126: * | AS126: 39 | AT126: * | AU126: * | AV126: * | AW126: * | AX126: - | AY126: * | BA126: * | BC126: - | BE126: 38 | BF126: * | BH126: * | BI126: * | BJ126: 8 | BK126: * | BM126: * | BN126: * | BO126: - | BT126: - | BU126: *
B127: 13 | C127: 13 | D127: Herstellung von Textilien | F127: 71428 | G127: 846 | H127: 288 | I127: 4612 | J127: 554 | K127: 18502 | L127: 3199 | M127: 1460 | N127: 14797 | O127: 14020 | P127: 110 | Q127: 605 | R127: 267 | S127: 770 | T127: 8584 | U127: 782 | V127: 2032 | W127: 10370 | X127: 254 | Y127: 91 | Z127: 850 | AA127: 101 | AB127: 2696 | AC127: 576 | AD127: 364 | AE127: 2307 | AF127: 1950 | AG127: 39 | AH127: 93 | AI127: 36 | AJ127: 90 | AK127: 617 | AL127: 99 | AM127: 207 | AN127: 7504 | AO127: 178 | AP127: 65 | AQ127: 636 | AR127: 81 | AS127: 2050 | AT127: 418 | AU127: 251 | AV127: 1559 | AW127: 1344 | AX127: 25 | AY127: 68 | AZ127: 23 | BA127: 71 | BB127: 489 | BC127: 87 | BD127: 159 | BE127: 2866 | BF127: 76 | BG127: 26 | BH127: 214 | BI127: 20 | BJ127: 646 | BK127: 158 | BL127: 113 | BM127: 748 | BN127: 606 | BO127: 14 | BP127: 25 | BQ127: 13 | BR127: 19 | BS127: 128 | BT127: 12 | BU127: 48
B128: 14 | C128: 14 | D128: Herstellung von Bekleidung | F128: 36387 | G128: 246 | H128: 170 | I128: 2136 | J128: * | K128: 6460 | L128: 1090 | M128: 688 | N128: 6811 | O128: 15856 | P128: * | Q128: 419 | R128: 191 | S128: 105 | T128: 1429 | U128: 66 | V128: 336 | W128: 6181 | X128: 68 | Y128: 92 | Z128: 486 | AA128: * | AB128: 1355 | AC128: 318 | AD128: 166 | AE128: 1120 | AF128: 2057 | AG128: * | AH128: 105 | AI128: 43 | AJ128: 19 | AK128: 219 | AL128: 24 | AM128: 58 | AN128: 4736 | AO128: 51 | AP128: 59 | AQ128: 370 | AR128: * | AS128: 1045 | AT128: 264 | AU128: 129 | AV128: 836 | AW128: 1551 | AX128: * | AY128: 83 | AZ128: 40 | BA128: 16 | BB128: 184 | BC128: 16 | BD128: 47 | BE128: 1445 | BF128: 17 | BG128: 33 | BH128: 116 | BI128: * | BJ128: 310 | BK128: 54 | BL128: 37 | BM128: 284 | BN128: 506 | BO128: * | BP128: 22 | BQ128: 3 | BR128: 3 | BS128: 35 | BT128: 8 | BU128: 11
B129: 15 | C129: 15 | D129: Herstellung v.Leder,Lederwaren u.Schuhen | F129: 16536 | G129: 68 | H129: 52 | I129: 1318 | J129: * | K129: 2834 | L129: 1369 | M129: 2717 | N129: 1936 | O129: 3903 | P129: * | Q129: 131 | R129: 264 | S129: 40 | T129: 1337 | U129: 105 | V129: 449 | W129: 3150 | X129: 26 | Y129: 27 | Z129: 116 | AA129: * | AB129: 388 | AC129: 209 | AD129: 263 | AE129: 468 | AF129: 1416 | AG129: * | AH129: 28 | AI129: 21 | AJ129: 8 | AK129: 91 | AL129: 17 | AM129: 54 | AN129: 2147 | AO129: 16 | AP129: 23 | AQ129: 83 | AR129: * | AS129: 306 | AT129: 158 | AU129: 180 | AV129: 292 | AW129: 900 | AX129: * | AY129: 17 | AZ129: 21 | BA129: 8 | BB129: 74 | BC129: 12 | BD129: 46 | BE129: 1003 | BF129: 10 | BG129: 4 | BH129: 33 | BI129: * | BJ129: 82 | BK129: 51 | BL129: 83 | BM129: 176 | BN129: 516 | BP129: 11 | BS129: 17 | BT129: 5 | BU129: 8
B130: 16 | C130: 16 | D130: Hrst.v.Holz-,Korb-,Korkwaren(ohne Möbel) | F130: 107312 | G130: 1675 | H130: 209 | I130: 7111 | J130: 246 | K130: 21784 | L130: 6485 | M130: 6722 | N130: 17633 | O130: 24111 | P130: 1041 | Q130: 460 | R130: 4173 | S130: 3006 | T130: 5702 | U130: 2555 | V130: 4399 | W130: 16851 | X130: 308 | Y130: 44 | Z130: 1126 | AA130: 25 | AB130: 3402 | AC130: 1275 | AD130: 1201 | AE130: 3737 | AF130: 4098 | AG130: 155 | AH130: 54 | AI130: 192 | AJ130: 116 | AK130: 573 | AL130: 191 | AM130: 354 | AN130: 11290 | AO130: 195 | AP130: 27 | AQ130: 834 | AR130: 20 | AS130: 2287 | AT130: 880 | AU130: 821 | AV130: 2302 | AW130: 2639 | AX130: 115 | AY130: 38 | AZ130: 145 | BA130: 98 | BB130: 445 | BC130: 159 | BD130: 285 | BE130: 5561 | BF130: 113 | BG130: 17 | BH130: 292 | BI130: 5 | BJ130: 1115 | BK130: 395 | BL130: 380 | BM130: 1435 | BN130: 1459 | BO130: 40 | BP130: 16 | BQ130: 47 | BR130: 18 | BS130: 128 | BT130: 32 | BU130: 69
B131: 17 | C131: 17 | D131: Hrst. v. Papier, Pappe u. Waren daraus | F131: 123828 | G131: 4150 | H131: 365 | I131: 14037 | J131: * | K131: 27697 | L131: 7941 | M131: 8729 | N131: 21800 | O131: 20632 | P131: * | Q131: 745 | R131: 3339 | S131: 703 | T131: 6664 | U131: 2836 | V131: 3818 | W131: 8425 | X131: 214 | Y131: 26 | Z131: 1232 | AA131: * | AB131: 2180 | AC131: 525 | AD131: 579 | AE131: 1287 | AF131: 1453 | AG131: * | AH131: 59 | AI131: 218 | AJ131: 47 | AK131: 337 | AL131: 67 | AM131: 165 | AN131: 5831 | AO131: 138 | AP131: 16 | AQ131: 712 | AR131: * | AS131: 1581 | AT131: 369 | AU131: 417 | AV131: 881 | AW131: 973 | AX131: * | AY131: 44 | AZ131: 141 | BA131: 38 | BB131: 305 | BC131: 52 | BD131: 141 | BE131: 2594 | BF131: 76 | BG131: 10 | BH131: 520 | BI131: * | BJ131: 599 | BK131: 156 | BL131: 162 | BM131: 406 | BN131: 480 | BO131: * | BP131: 15 | BQ131: 77 | BR131: 9 | BS131: 32 | BT131: 15 | BU131: 24
B132: 18 | C132: 18 | D132: Druckgewerbe u. Vervielältigung | F132: 138366 | G132: 5493 | H132: 2385 | I132: 11370 | J132: 559 | K132: 30325 | L132: 8394 | M132: 5484 | N132: 22417 | O132: 28412 | P132: 799 | Q132: 6164 | R132: 1818 | S132: 2143 | T132: 6777 | U132: 2255 | V132: 3571 | W132: 44969 | X132: 1767 | Y132: 663 | Z132: 4373 | AA132: 163 | AB132: 8481 | AC132: 4017 | AD132: 1642 | AE132: 12446 | AF132: 7770 | AG132: 392 | AH132: 545 | AI132: 407 | AJ132: 216 | AK132: 1120 | AL132: 365 | AM132: 602 | AN132: 31913 | AO132: 1253 | AP132: 421 | AQ132: 3230 | AR132: 94 | AS132: 6243 | AT132: 2938 | AU132: 1138 | AV132: 8759 | AW132: 5099 | AX132: 289 | AY132: 377 | AZ132: 310 | BA132: 171 | BB132: 881 | BC132: 273 | BD132: 437 | BE132: 13056 | BF132: 514 | BG132: 242 | BH132: 1143 | BI132: 69 | BJ132: 2238 | BK132: 1079 | BL132: 504 | BM132: 3687 | BN132: 2671 | BO132: 103 | BP132: 168 | BQ132: 97 | BR132: 45 | BS132: 239 | BT132: 92 | BU132: 165
B133: 19 | C133: 19 | D133: Kokerei und Mineralölverarbeitung | F133: 25040 | G133: 877 | H133: 3281 | I133: 1583 | K133: 10045 | L133: 414 | M133: * | N133: 2906 | O133: 2492 | P133: * | Q133: * | R133: * | S133: 164 | T133: 169 | U133: 1209 | V133: 26 | W133: 382 | X133: 37 | Y133: 7 | Z133: 27 | AA133: - | AB133: 98 | AC133: 34 | AD133: * | AE133: 59 | AF133: 42 | AG133: * | AH133: * | AI133: * | AJ133: 5 | AK133: 38 | AL133: 3 | AM133: * | AN133: 253 | AO133: 9 | AP133: 6 | AQ133: 22 | AR133: - | AS133: 69 | AT133: 21 | AU133: * | AV133: 44 | AW133: 28 | AX133: * | AY133: * | AZ133: * | BA133: 5 | BB133: 29 | BC133: 3 | BD133: * | BE133: 129 | BF133: 28 | BG133: * | BH133: 5 | BI133: - | BJ133: 29 | BK133: 13 | BL133: * | BM133: 15 | BN133: 14 | BO133: * | BP133: * | BS133: 9
B134: 20 | C134: 20 | D134: Herstellung von chemischen Erzeugnissen | F134: 322064 | G134: 6973 | H134: 7535 | I134: 23817 | J134: 1114 | K134: 96237 | L134: 27534 | M134: 48973 | N134: 31349 | O134: 45478 | P134: 489 | Q134: 2493 | R134: 5174 | S134: 1366 | T134: 7498 | U134: 11954 | V134: 4080 | W134: 9991 | X134: 366 | Y134: 83 | Z134: 848 | AA134: 91 | AB134: 2686 | AC134: 728 | AD134: 749 | AE134: 1765 | AF134: 1754 | AG134: 70 | AH134: 85 | AI134: 127 | AJ134: 45 | AK134: 218 | AL134: 175 | AM134: 201 | AN134: 7119 | AO134: 251 | AP134: 53 | AQ134: 632 | AR134: 56 | AS134: 1975 | AT134: 547 | AU134: 532 | AV134: 1162 | AW134: 1160 | AX134: 54 | AY134: 72 | AZ134: 100 | BA134: 27 | BB134: 180 | BC134: 142 | BD134: 176 | BE134: 2872 | BF134: 115 | BG134: 30 | BH134: 216 | BI134: 35 | BJ134: 711 | BK134: 181 | BL134: 217 | BM134: 603 | BN134: 594 | BO134: 16 | BP134: 13 | BQ134: 27 | BR134: 18 | BS134: 38 | BT134: 33 | BU134: 25
B135: 21 | C135: 21 | D135: Herstellung v. pharmazeut. Erzeugnissen | F135: 153823 | G135: 6889 | H135: 1430 | I135: 5781 | J135: * | K135: 16700 | L135: 31893 | M135: 11517 | N135: 35469 | O135: 20481 | P135: 1245 | Q135: 10344 | R135: 1134 | S135: * | T135: 3163 | U135: 5134 | V135: 1929 | W135: 2234 | X135: 69 | Y135: 11 | Z135: 304 | AA135: * | AB135: 338 | AC135: 288 | AD135: 110 | AE135: 405 | AF135: 343 | AG135: 64 | AH135: 81 | AI135: 19 | AJ135: * | AK135: 82 | AL135: 44 | AM135: 63 | AN135: 1605 | AO135: 53 | AP135: 8 | AQ135: 236 | AR135: * | AS135: 215 | AT135: 235 | AU135: 73 | AV135: 299 | AW135: 219 | AX135: 48 | AY135: 58 | AZ135: 13 | BA135: * | BB135: 62 | BC135: 40 | BD135: 36 | BE135: 629 | BF135: 16 | BG135: 3 | BH135: 68 | BI135: * | BJ135: 123 | BK135: 53 | BL135: 37 | BM135: 106 | BN135: 124 | BO135: 16 | BP135: 23 | BQ135: 6 | BS135: 20 | BT135: 4 | BU135: 27
B136: 22 | C136: 22 | D136: Herstellung v. Gummi- u. Kunststoffwaren | F136: 384150 | G136: 5978 | H136: 2690 | I136: 45080 | J136: 355 | K136: 83472 | L136: 35090 | M136: 20036 | N136: 62333 | O136: 74658 | P136: 3298 | Q136: 2236 | R136: 7560 | S136: 2133 | T136: 14319 | U136: 8760 | V136: 16152 | W136: 28868 | X136: 550 | Y136: 58 | Z136: 2904 | AA136: 40 | AB136: 7291 | AC136: 2323 | AD136: 1298 | AE136: 6675 | AF136: 5157 | AG136: 297 | AH136: 124 | AI136: 246 | AJ136: 138 | AK136: 633 | AL136: 324 | AM136: 810 | AN136: 19509 | AO136: 323 | AP136: 38 | AQ136: 2044 | AR136: 32 | AS136: 5184 | AT136: 1530 | AU136: 927 | AV136: 4049 | AW136: 3358 | AX136: 197 | AY136: 102 | AZ136: 203 | BA136: 117 | BB136: 494 | BC136: 271 | BD136: 640 | BE136: 9359 | BF136: 227 | BG136: 20 | BH136: 860 | BI136: 8 | BJ136: 2107 | BK136: 793 | BL136: 371 | BM136: 2626 | BN136: 1799 | BO136: 100 | BP136: 22 | BQ136: 43 | BR136: 21 | BS136: 139 | BT136: 53 | BU136: 170
B137: 23 | C137: 23 | D137: Hrst.v.Glas,Keramik,Verarb.Steine+Erden | F137: 199123 | G137: 4150 | H137: 656 | I137: 19230 | J137: 595 | K137: 29973 | L137: 9980 | M137: 15343 | N137: 22614 | O137: 49756 | P137: 3546 | Q137: 2087 | R137: 6444 | S137: 2756 | T137: 12686 | U137: 8815 | V137: 10492 | W137: 16889 | X137: 383 | Y137: 84 | Z137: 1583 | AA137: 61 | AB137: 2887 | AC137: 1095 | AD137: 1503 | AE137: 2833 | AF137: 3950 | AG137: 284 | AH137: 117 | AI137: 348 | AJ137: 139 | AK137: 628 | AL137: 350 | AM137: 644 | AN137: 11674 | AO137: 276 | AP137: 52 | AQ137: 1146 | AR137: 45 | AS137: 2065 | AT137: 774 | AU137: 1032 | AV137: 1694 | AW137: 2545 | AX137: 205 | AY137: 93 | AZ137: 281 | BA137: 112 | BB137: 513 | BC137: 303 | BD137: 538 | BE137: 5215 | BF137: 107 | BG137: 32 | BH137: 437 | BI137: 16 | BJ137: 822 | BK137: 321 | BL137: 471 | BM137: 1139 | BN137: 1405 | BO137: 79 | BP137: 24 | BQ137: 67 | BR137: 27 | BS137: 115 | BT137: 47 | BU137: 106
B138: 24 | C138: 24 | D138: Metallerzeugung und -bearbeitung | F138: 290819 | G138: 1446 | H138: 4727 | I138: 23974 | J138: 3768 | K138: 118301 | L138: 16930 | M138: 10040 | N138: 33700 | O138: 25657 | P138: 14411 | Q138: 1340 | R138: 7227 | S138: 2054 | T138: 12996 | U138: 7722 | V138: 6526 | W138: 9579 | X138: 111 | Y138: 27 | Z138: 469 | AA138: 48 | AB138: 3450 | AC138: 590 | AD138: 487 | AE138: 2165 | AF138: 1314 | AG138: 104 | AH138: 36 | AI138: 103 | AJ138: 44 | AK138: 313 | AL138: 123 | AM138: 195 | AN138: 6555 | AO138: 44 | AP138: 18 | AQ138: 337 | AR138: 38 | AS138: 2384 | AT138: 450 | AU138: 304 | AV138: 1405 | AW138: 816 | AX138: 84 | AY138: 27 | AZ138: 79 | BA138: 37 | BB138: 277 | BC138: 99 | BD138: 156 | BE138: 3024 | BF138: 67 | BG138: 9 | BH138: 132 | BI138: 10 | BJ138: 1066 | BK138: 140 | BL138: 183 | BM138: 760 | BN138: 498 | BO138: 20 | BP138: 9 | BQ138: 24 | BR138: 7 | BS138: 36 | BT138: 24 | BU138: 39
B139: 25 | C139: 25 | D139: Herstellung von Metallerzeugnissen | F139: 795178 | G139: 11657 | H139: 3605 | I139: 55028 | J139: 3295 | K139: 203273 | L139: 46357 | M139: 34133 | N139: 173471 | O139: 117406 | P139: 13135 | Q139: 10003 | R139: 15552 | S139: 8774 | T139: 49135 | U139: 20247 | V139: 30107 | W139: 104496 | X139: 1876 | Y139: 452 | Z139: 6934 | AA139: 402 | AB139: 28099 | AC139: 6593 | AD139: 5026 | AE139: 28472 | AF139: 15663 | AG139: 1266 | AH139: 620 | AI139: 1214 | AJ139: 685 | AK139: 3529 | AL139: 1356 | AM139: 2309 | AN139: 64564 | AO139: 1164 | AP139: 291 | AQ139: 4549 | AR139: 266 | AS139: 18066 | AT139: 4192 | AU139: 3093 | AV139: 15787 | AW139: 8900 | AX139: 826 | AY139: 464 | AZ139: 916 | BA139: 524 | BB139: 2816 | BC139: 1016 | BD139: 1694 | BE139: 39932 | BF139: 712 | BG139: 161 | BH139: 2385 | BI139: 136 | BJ139: 10033 | BK139: 2401 | BL139: 1933 | BM139: 12685 | BN139: 6763 | BO139: 440 | BP139: 156 | BQ139: 298 | BR139: 161 | BS139: 713 | BT139: 340 | BU139: 615
B140: 26 | C140: 26 | D140: Hrst. v.DV-Gerät., elektr.u.opt.Erzeugn. | F140: 410889 | G140: 10907 | H140: 9141 | I140: 23498 | J140: 3036 | K140: 53571 | L140: 29740 | M140: 7154 | N140: 97141 | O140: 113975 | P140: 1415 | Q140: 10243 | R140: 4581 | S140: 2141 | T140: 21960 | U140: 4240 | V140: 18146 | W140: 19064 | X140: 519 | Y140: 198 | Z140: 1021 | AA140: 102 | AB140: 3501 | AC140: 1738 | AD140: 587 | AE140: 4880 | AF140: 4093 | AG140: 132 | AH140: 409 | AI140: 265 | AJ140: 149 | AK140: 598 | AL140: 145 | AM140: 727 | AN140: 13109 | AO140: 352 | AP140: 125 | AQ140: 691 | AR140: 62 | AS140: 2454 | AT140: 1197 | AU140: 414 | AV140: 3240 | AW140: 2676 | AX140: 95 | AY140: 315 | AZ140: 199 | BA140: 115 | BB140: 482 | BC140: 113 | BD140: 579 | BE140: 5955 | BF140: 167 | BG140: 73 | BH140: 330 | BI140: 40 | BJ140: 1047 | BK140: 541 | BL140: 173 | BM140: 1640 | BN140: 1417 | BO140: 37 | BP140: 94 | BQ140: 66 | BR140: 34 | BS140: 116 | BT140: 32 | BU140: 148
B141: 27 | C141: 27 | D141: Herstellung v. elektrischen Ausrüstungen | F141: 352667 | G141: 4314 | H141: 2045 | I141: 16750 | J141: 1721 | K141: 79520 | L141: 19286 | M141: 7795 | N141: 83653 | O141: 84423 | P141: 2369 | Q141: 17423 | R141: 2968 | S141: 2795 | T141: 16978 | U141: 3899 | V141: 6728 | W141: 15706 | X141: 221 | Y141: 68 | Z141: 995 | AA141: 88 | AB141: 3601 | AC141: 1252 | AD141: 637 | AE141: 4005 | AF141: 3329 | AG141: 135 | AH141: 167 | AI141: 112 | AJ141: 83 | AK141: 567 | AL141: 142 | AM141: 304 | AN141: 10507 | AO141: 156 | AP141: 45 | AQ141: 707 | AR141: 63 | AS141: 2471 | AT141: 814 | AU141: 440 | AV141: 2430 | AW141: 2213 | AX141: 107 | AY141: 117 | AZ141: 84 | BA141: 71 | BB141: 447 | BC141: 108 | BD141: 234 | BE141: 5199 | BF141: 65 | BG141: 23 | BH141: 288 | BI141: 25 | BJ141: 1130 | BK141: 438 | BL141: 197 | BM141: 1575 | BN141: 1116 | BO141: 28 | BP141: 50 | BQ141: 28 | BR141: 12 | BS141: 120 | BT141: 34 | BU141: 70
B142: 28 | C142: 28 | D142: Maschinenbau | F142: 1022777 | G142: 22078 | H142: 12709 | I142: 64677 | J142: 5479 | K142: 215969 | L142: 47977 | M142: 41125 | N142: 276165 | O142: 220276 | P142: 14507 | Q142: 6770 | R142: 8943 | S142: 6414 | T142: 39443 | U142: 16168 | V142: 24077 | W142: 44833 | X142: 856 | Y142: 187 | Z142: 3569 | AA142: 141 | AB142: 11021 | AC142: 3127 | AD142: 2254 | AE142: 11597 | AF142: 7968 | AG142: 563 | AH142: 248 | AI142: 299 | AJ142: 211 | AK142: 1492 | AL142: 481 | AM142: 819 | AN142: 30186 | AO142: 602 | AP142: 134 | AQ142: 2422 | AR142: 103 | AS142: 7536 | AT142: 2079 | AU142: 1532 | AV142: 7434 | AW142: 5054 | AX142: 409 | AY142: 203 | AZ142: 240 | BA142: 178 | BB142: 1227 | BC142: 382 | BD142: 651 | BE142: 14647 | BF142: 254 | BG142: 53 | BH142: 1147 | BI142: 38 | BJ142: 3485 | BK142: 1048 | BL142: 722 | BM142: 4163 | BN142: 2914 | BO142: 154 | BP142: 45 | BQ142: 59 | BR142: 33 | BS142: 265 | BT142: 99 | BU142: 168
B143: 29 | C143: 29 | D143: Hrst. v. Kraftwagen u. Kraftwagenteilen | F143: 908896 | G143: 3621 | H143: 3227 | I143: 137854 | J143: * | K143: 88518 | L143: 63158 | M143: 34065 | N143: 215379 | O143: 248802 | P143: 26169 | Q143: 4356 | R143: 4646 | S143: * | T143: 37038 | U143: 4020 | V143: 18223 | W143: 10163 | X143: 111 | Y143: 64 | Z143: 903 | AA143: * | AB143: 1548 | AC143: 385 | AD143: 649 | AE143: 2465 | AF143: 2523 | AG143: 135 | AH143: 46 | AI143: 74 | AJ143: * | AK143: 440 | AL143: 98 | AM143: 224 | AN143: 7917 | AO143: 90 | AP143: 52 | AQ143: 694 | AR143: * | AS143: 1166 | AT143: 315 | AU143: 512 | AV143: 1847 | AW143: 2003 | AX143: 106 | AY143: 35 | AZ143: 57 | BA143: * | BB143: 322 | BC143: 81 | BD143: 179 | BE143: 2246 | BF143: 21 | BG143: 12 | BH143: 209 | BI143: * | BJ143: 382 | BK143: 70 | BL143: 137 | BM143: 618 | BN143: 520 | BO143: 29 | BP143: 11 | BQ143: 17 | BR143: * | BS143: 118 | BT143: 17 | BU143: 45
B144: 30 | C144: 30 | D144: Sonstiger Fahrzeugbau | F144: 155679 | G144: 7647 | H144: 25476 | I144: 19107 | J144: 5330 | K144: 12446 | L144: 8589 | M144: 3120 | N144: 12314 | O144: 36549 | P144: 189 | Q144: 3861 | R144: 7291 | S144: 3850 | T144: 6028 | U144: 2804 | V144: 1078 | W144: 2607 | X144: 151 | Y144: 122 | Z144: 210 | AA144: 45 | AB144: 620 | AC144: 102 | AD144: 152 | AE144: 438 | AF144: 469 | AG144: 14 | AH144: 21 | AI144: 54 | AJ144: 58 | AK144: 68 | AL144: 36 | AM144: 47 | AN144: 1788 | AO144: 106 | AP144: 91 | AQ144: 159 | AR144: 38 | AS144: 422 | AT144: 67 | AU144: 93 | AV144: 270 | AW144: 305 | AX144: 7 | AY144: 17 | AZ144: 42 | BA144: 50 | BB144: 57 | BC144: 25 | BD144: 39 | BE144: 819 | BF144: 45 | BG144: 31 | BH144: 51 | BI144: 7 | BJ144: 198 | BK144: 35 | BL144: 59 | BM144: 168 | BN144: 164 | BO144: 7 | BP144: 4 | BQ144: 12 | BR144: 8 | BS144: 11 | BT144: 11 | BU144: 8
